Workbook

Sheet Index
A1: Sheet | B1: Magazine PDF | C1: Journal | D1: Title | E1: Citation | F1: F_Name | G1: L_Name | H1: Year | I1: Volcanoe | J1: Full Citation
A2: H24 | B2: C:\Essays\Geo_Dating\Historic\Historic_24.pdf | C2: Journal Of Geophysical Research, 108:(B5-2252):1-25 | D2: Transport rates along the Alaska-Aleutian | E2: ="(" & G2 & ", " & H2 & ", P. )" -> (George, 2003, P. ) | F2: Rhiannon | G2: George | H2: 2003 | I2: Alaska | J2: =G2 & ", " & F2 & ", " & H2 & ", " & D2 & ", " & C2 -> George, Rhiannon, 2003, Transport rates along the Alaska-Aleutian, Journal Of Geophysical Research, 108:(B5-2252):1-25
A3: H38 | B3: C:\Essays\Geo_Dating\Historic\Historic_38.pdf | C3: Journal Of Petrology, 45(1):203-219 | D3: Two Volcanoes in the Alaska-Aleutian Arc | E3: (George, 2004, P. ) | F3: Rhiannon | G3: George | H3: 2004 | I3: Aleutian Arc | J3: George, Rhiannon, 2004, Two Volcanoes in the Alaska-Aleutian Arc, Journal Of Petrology, 45(1):203-219
A4: H01 | B4: C:\Essays\Geo_Dating\Historic\Historic_01.pdf | C4: Journal Of Petrology, 45(9)1845–1875 | D4: Variable Impact of the Subducted Slab | E4: (Jicha, 2004, P. ) | F4: B. R. | G4: Jicha | H4: 2004 | I4: Aleutian Island | J4: Jicha, B. R., 2004, Variable Impact of the Subducted Slab, Journal Of Petrology, 45(9)1845–1875
A5: H05 | B5: C:\Essays\Geo_Dating\Historic\Historic_05.pdf | C5: Journal of Volcanology and Geothermal Research 146:139-170 | D5: The May 2003 eruption of Anatahan volcano | E5: (Wade, 2005, P. ) | F5: Jennifer A. | G5: Wade | H5: 2005 | I5: Anatahan Volcano | J5: Wade, Jennifer A., 2005, The May 2003 eruption of Anatahan volcano, Journal of Volcanology and Geothermal Research 146:139-170
A6: H25 | B6: C:\Essays\Geo_Dating\Historic\Historic_25.pdf | C6: Journal Of Petrology, 37(1):95-115 | D6: Geochemistry of Augustine Volcano | E6: (Johnson, 1996, P. ) | F6: K. E. | G6: Johnson | H6: 1996 | I6: Augustine | J6: Johnson, K. E., 1996, Geochemistry of Augustine Volcano, Journal Of Petrology, 37(1):95-115
A7: H28 | B7: C:\Essays\Geo_Dating\Historic\Historic_28.pdf | C7: Journal Of Petrology, 53(1):27-65 | D7: Eastern Mediterranean K-rich Lavas | E7: (Kirchenbaur, 2012, P. ) | F7: Maria | G7: Kirchenbaur | H7: 2012 | I7: Bulgaria | J7: Kirchenbaur, Maria, 2012, Eastern Mediterranean K-rich Lavas, Journal Of Petrology, 53(1):27-65
A8: H29 | B8: C:\Essays\Geo_Dating\Historic\Historic_29.pdf | C8: Journal Of Petrology, 39(5):859-880 | D8: Jurassic Oceanic Crust beneath Grand Canaria | E8: (Hoernle, 1998, P. ) | F8: Kaj | G8: Hoernle | H8: 1998 | I8: Canary Islands | J8: Hoernle, Kaj, 1998, Jurassic Oceanic Crust beneath Grand Canaria, Journal Of Petrology, 39(5):859-880
A9: H30 | B9: C:\Essays\Geo_Dating\Historic\Historic_30.pdf | C9: PhD Thesis, University of Bremen, http://d-nb.info/1072301873/34 | D9: Evolution of La Palma (Canary Islands) | E9: (Galipp, 2005, P. ) | F9: Karsten | G9: Galipp | H9: 2005 | I9: Canary Islands | J9: Galipp, Karsten, 2005, Evolution of La Palma (Canary Islands), PhD Thesis, University of Bremen, http://d-nb.info/1072301873/34
A10: H53 | B10: C:\Essays\Geo_Dating\Historic\Historic_53.pdf | C10: Geology, 33:897-900 | D10: 1585 eruption on La Palma, Canary Islands | E10: (Johansen, 2005, P. ) | F10: T. S. | G10: Johansen | H10: 2005 | I10: Canary Islands | J10: Johansen, T. S., 2005, 1585 eruption on La Palma, Canary Islands , Geology, 33:897-900
A11: H14 | B11: C:\Essays\Geo_Dating\Historic\Historic_14.pdf | C11: Geochemica Et Cosmochemica Acta, 61(18):3789-3801 | D11: Excess Argon In Melt Inclusions | E11: (Esser, 1997, P. ) | F11: R. P. | G11: Esser | H11: 1997 | I11: Erebus | J11: Esser, R. P., 1997, Excess Argon In Melt Inclusions, Geochemica Et Cosmochemica Acta, 61(18):3789-3801
A12: H15 | B12: C:\Essays\Geo_Dating\Historic\Historic_15.pdf | C12: Journal of Volcanology and Geothermal Research, 177:606-618 | D12: Alkaline magmas from Erebus volcano | E12: (Sims, 2008, P. ) | F12: Kenneth W.W. | G12: Sims | H12: 2008 | I12: Erebus | J12: Sims, Kenneth W.W., 2008, Alkaline magmas from Erebus volcano, Journal of Volcanology and Geothermal Research, 177:606-618
A13: H16 | B13: C:\Essays\Geo_Dating\Historic\Historic_16.pdf | C13: Earth and Planetary Science Letters, 245:743-761 | D13: Comparison of Th, Sr, Nd and Pb isotopes | E13: (Sims, 2006, P. ) | F13: Kenneth W.W. | G13: Sims | H13: 2006 | I13: Erebus | J13: Sims, Kenneth W.W., 2006, Comparison of Th, Sr, Nd and Pb isotopes, Earth and Planetary Science Letters, 245:743-761
A14: H48 | B14: C:\Essays\Geo_Dating\Historic\Historic_48.pdf | C14: Journal Of Geophysical Research, 117(B05202):1-18 | D14: 2010 Eyjafjallajökull explosive eruption | E14: (Borisova, 2012, P. ) | F14: Anastassia Y. | G14: Borisova | H14: 2012 | I14: Eyjafjallajökull | J14: Borisova, Anastassia Y., 2012, 2010 Eyjafjallajökull explosive eruption, Journal Of Geophysical Research, 117(B05202):1-18
A15: H17 | B15: C:\Essays\Geo_Dating\Historic\Historic_17.pdf | C15: Journal Of Geophysical Research, 73(14):4601-4607 | D15: Ultramafic Inclusions from Hawaii | E15: (Funkhouser, 1968, P. ) | F15: John G. | G15: Funkhouser | H15: 1968 | I15: Hualalai | J15: Funkhouser, John G., 1968, Ultramafic Inclusions from Hawaii, Journal Of Geophysical Research, 73(14):4601-4607
A16: H42 | B16: C:\Essays\Geo_Dating\Historic\Historic_42.pdf | C16: Proceedings Radiochimica Acta 1:335-338 | D16: Izu arc volcanoes, Japan | E16: (Kurihara, 2011, P. ) | F16: Yuichi | G16: Kurihara | H16: 2011 | I16: Izu Arc | J16: Kurihara, Yuichi, 2011, Izu arc volcanoes, Japan, Proceedings Radiochimica Acta 1:335-338
A17: H44 | B17: C:\Essays\Geo_Dating\Historic\Historic_44.pdf | C17: Radio Isotopes, 56:795-809 | D17: Volcanic Products from Izu arc volcanoes | E17: (Kurihara, 2007, P. ) | F17: Yuichi | G17: Kurihara | H17: 2007 | I17: Izu Arc | J17: Kurihara, Yuichi, 2007, Volcanic Products from Izu arc volcanoes, Radio Isotopes, 56:795-809
A18: H55 | B18: C:\Essays\Geo_Dating\Historic\Historic_55.pdf | C18: Geochemical Journal, 42:461-479 | D18: 238U–230Th radioactive disequilibrium | E18: (Fukuda, 2008, P. ) | F18: Satoru | G18: Fukuda | H18: 2008 | I18: Izu Arc | J18: Fukuda, Satoru, 2008, 238U–230Th radioactive disequilibrium, Geochemical Journal, 42:461-479
A19: H40 | B19: C:\Essays\Geo_Dating\Historic\Historic_40.pdf | C19: Contributions Mineralogy Petrology, 168(1067):1-28 | D19: Bezymianny and Klyuchevskoy Volcanoes | E19: (Kayzar, 2014, P. ) | F19: Theresa M. | G19: Kayzar | H19: 2014 | I19: Kamchatka | J19: Kayzar, Theresa M., 2014, Bezymianny and Klyuchevskoy Volcanoes, Contributions Mineralogy Petrology, 168(1067):1-28
A20: H47 | B20: C:\Essays\Geo_Dating\Historic\Historic_47.pdf | C20: Earth and Planetary Science Letters, 175:69-86 | D20: The Kluchevskoy volcano | E20: (Dorendorf, 2000, P. ) | F20: Frank | G20: Dorendorf | H20: 2000 | I20: Kamchatka | J20: Dorendorf, Frank, 2000, The Kluchevskoy volcano, Earth and Planetary Science Letters, 175:69-86
A21: H51 | B21: C:\Essays\Geo_Dating\Historic\Historic_51.pdf | C21: Journal Of Petrology, 51(7):1507-1540 | D21: Kaua‘i Lavas over 4.5 million years | E21: (Garcia, 2010, P. ) | F21: M. O. | G21: Garcia | H21: 2010 | I21: Kaua‘i
A22: H03 | B22: C:\Essays\Geo_Dating\Historic\Historic_03.pdf | C22: Geochemistry, Geophysics, Geosystems, 14(1):4849-4873 | D22: Kılauea’s Puu Oo eruption (1983–2010) | E22: (Greene, 2013, P. ) | F22: Andrew R. | G22: Greene | H22: 2013 | I22: Kilauea | J22: =G22 & ", " & F22 & ", " & H22 & ", " & D22 & ", " & C22 -> Greene, Andrew R., 2013, Kılauea’s Puu Oo eruption (1983–2010), Geochemistry, Geophysics, Geosystems, 14(1):4849-4873
A23: H04 | B23: C:\Essays\Geo_Dating\Historic\Historic_04.pdf | C23: Journal Of Petrology, 49(7):1297-1318 | D23: Kilauea’s Puu Oo Eruption | E23: (Marske, 2008, P. ) | F23: Jared P. | G23: Marske | H23: 2008 | I23: Kilauea | J23: Marske, Jared P. , 2008, Kilauea’s Puu Oo Eruption, Journal Of Petrology, 49(7):1297-1318
A24: H09 | B24: C:\Essays\Geo_Dating\Historic\Historic_09.pdf | C24: Journal Of Petrology, 40(8)1321–1342 | D24: Melting History of Kilauea Volcano | E24: (Pietruszka, 1999, P. ) | F24: Aaron J. | G24: Pietruszka | H24: 1999 | I24: Kilauea | J24: Pietruszka, Aaron J. , 1999, Melting History of Kilauea Volcano, Journal Of Petrology, 40(8)1321–1342
A25: H39 | B25: C:\Essays\Geo_Dating\Historic\Historic_39.pdf | C25: Journal Of Petrology, 41(7):961-990 | D25: Puu Oo Eruption of Kilauea Volcano | E25: (Garcia, 2000, P. ) | F25: M. O. | G25: Garcia | H25: 2000 | I25: Kilauea | J25: Garcia, M. O., 2000, Puu Oo Eruption of Kilauea Volcano, Journal Of Petrology, 41(7):961-990
A26: H32 | B26: C:\Essays\Geo_Dating\Historic\Historic_32.pdf | C26: Journal of Volcanology and Geothermal Research 158:281-295 | D26: Crystallization ages of Las Tres Vírgenes | E26: (Schmitt, 2006, P. ) | F26: Axel K. | G26: Schmitt | H26: 2006 | I26: Las Tres Vírgenes | J26: Schmitt, Axel K., 2006, Crystallization ages of Las Tres Vírgenes, Journal of Volcanology and Geothermal Research 158:281-295
A27: None | B27: None | C27: https://en.wikipedia.org/wiki/Volcanoes_of_east-central_Baja_California | D27: Volcanoes of east-central Baja California, | E27: (Wikipedia, 2015, P. ) | G27: Wikipedia | H27: 2015 | I27: Las Tres Vírgenes | J27: Wikipedia, , 2015, Volcanoes of east-central Baja California,, https://en.wikipedia.org/wiki/Volcanoes_of_east-central_Baja_California
A28: H43 | B28: C:\Essays\Geo_Dating\Historic\Historic_43.pdf | C28: Chemical Geology 265:272–278 | D28: Contributions to Lesser Antilles magmas | E28: (DuFrane, 2009, P. ) | F28: S. Andy | G28: DuFrane | H28: 2009 | I28: Lesser Antilles | J28: DuFrane, S. Andy, 2009, Contributions to Lesser Antilles magmas, Chemical Geology 265:272–278
A29: H02 | B29: C:\Essays\Geo_Dating\Historic\Historic_02.pdf | C29: Bulletin Volcanology, 59:577–592 | D29: Earthquake swarm of Loihi seamount | E29: (Garcia, 1998, P. ) | F29: M. O. | G29: Garcia | H29: 1998 | I29: Lohi Seamount | J29: Garcia, M. O., 1998, Earthquake swarm of Loihi seamount, Bulletin Volcanology, 59:577–592
A30: H08 | B30: C:\Essays\Geo_Dating\Historic\Historic_08.pdf | C30: Journal Of Geophysical Research, 115(B12201):1-22 | D30: The 1912 Katmai‐Novarupta Eruption | E30: (Turner, 2010, P. ) | F30: Simon | G30: Turner | H30: 2010 | I30: Lohi Seamount | J30: Turner, Simon, 2010, The 1912 Katmai‐Novarupta Eruption, Journal Of Geophysical Research, 115(B12201):1-22
A31: H07 | B31: C:\Essays\Geo_Dating\Historic\Historic_07.pdf | C31: Journal of Petrology, 53(2):271-297 | D31: The Great Tambora Eruption in 1815 | E31: (Gertisser, 2012, P. ) | F31: R. | G31: Gertisser | H31: 2012 | I31: Mauna Loa | J31: Gertisser, R., 2012, The Great Tambora Eruption in 1815, Journal of Petrology, 53(2):271-297
A32: H34 | B32: C:\Essays\Geo_Dating\Historic\Historic_34.pdf | C32: http://perso.ens-lyon.fr/francis.albarede/JBT_Rev_text.pdf | D32: Isotope evolution of Mauna Kea volcano | E32: (Blichert-Toft, 2002, P. ) | F32: Janne | G32: Blichert-Toft | H32: 2002 | I32: Mauna Loa | J32: Blichert-Toft, Janne, 2002, Isotope evolution of Mauna Kea volcano, http://perso.ens-lyon.fr/francis.albarede/JBT_Rev_text.pdf
A33: H31 | B33: C:\Essays\Geo_Dating\Historic\Historic_31.pdf | C33: Journal Of Petrology, 44(3):457-489 | D33: Volcanic rocks from Merapi Volcano | E33: (Gertisser, 2003, P. ) | F33: R. | G33: Gertisser | H33: 2003 | I33: Merapi | J33: Gertisser, R., 2003, Volcanic rocks from Merapi Volcano, Journal Of Petrology, 44(3):457-489
A34: H18 | B34: C:\Essays\Geo_Dating\Historic\Historic_18.pdf | C34: Fifth International Conference on Creationism | D34: Recent Andesite Flows at Mt. Ngauruhoe | E34: ="(" & G34 & ", " & H34 & ", P. )" -> (Snelling, 2003, P. ) | F34: Andrew | G34: Snelling | H34: 2003 | I34: Ngauruhoe | J34: Snelling, Andrew, 2003, Recent Andesite Flows at Mt. Ngauruhoe, Fifth International Conference on Creationism
A35: H33 | B35: C:\Essays\Geo_Dating\Historic\Historic_33.pdf | C35: Contributions Mineralogy Petrology, 156:103-118 | D35: Melting beneath Niuafo’ou Island | E35: (Regelous, 2008, P. ) | F35: Marcel | G35: Regelous | H35: 2008 | I35: Niuafo’ou Island | J35: Regelous, Marcel, 2008, Melting beneath Niuafo’ou Island, Contributions Mineralogy Petrology, 156:103-118
A36: None | B36: None | C36: http://www.bgc.org/isoplot_etc/isoplot/Isoplot3_75-4_15manual.pdf | D36: Isoplot User Manual | E36: (Ludwig, 2010, P. ) | F36: Kenneth | G36: Ludwig | H36: 2010 | I36: None | J36: Ludwig, Kenneth, 2010, Isoplot User Manual, http://www.bgc.org/isoplot_etc/isoplot/Isoplot3_75-4_15manual.pdf
A37: None | B37: None | C37: http://www.bgc.org/isoplot_etc/isoplot/Isoplot3_75files.zip | D37: Isoplot Excel Add In | E37: (Ludwig, 2012, P. ) | F37: Kenneth | G37: Ludwig | H37: 2012 | I37: None | J37: Ludwig, Kenneth, 2012, Isoplot Excel Add In, http://www.bgc.org/isoplot_etc/isoplot/Isoplot3_75files.zip
A38: H26 | B38: C:\Essays\Geo_Dating\Historic\Historic_26.pdf | C38: http://pubs.usgs.gov/pp/1791/ | D38: The Novarupta-Katmai Eruption of 1912, P. 1-259 | E38: (Hildreth, 2012, P. ) | F38: Wes | G38: Hildreth | H38: 2012 | I38: Novarupta | J38: Hildreth, Wes, 2012, The Novarupta-Katmai Eruption of 1912, P. 1-259, http://pubs.usgs.gov/pp/1791/
A39: H27 | B39: C:\Essays\Geo_Dating\Historic\Historic_27.pdf | C39: Journal Of Petrology, 44(9):1703-1726 | D39: Rhyolite in North American Continental Arcs | E39: (Reagan, 2003, P. ) | F39: M. K. | G39: Reagan | H39: 2003 | I39: Novarupta | J39: Reagan, M. K., 2003, Rhyolite in North American Continental Arcs, Journal Of Petrology, 44(9):1703-1726
A40: H06 | B40: C:\Essays\Geo_Dating\Historic\Historic_06.pdf | C40: http://pubs.usgs.gov/pinatubo/bernard/table9.html | D40: 1991 Eruption Products of Mount Pinatubo | E40: (Bernard, 1999, P. ) | F40: Alain | G40: Bernard | H40: 1999 | I40: Pinatubo | J40: Bernard, Alain, 1999, 1991 Eruption Products of Mount Pinatubo, http://pubs.usgs.gov/pinatubo/bernard/table9.html
A41: H06 | B41: C:\Essays\Geo_Dating\Historic\Historic_06.pdf | C41: http://pubs.usgs.gov/pinatubo/castillo/index.html | D41: Geochemistry of Mount Pinatubo Volcanic Rocks | E41: (Castillo, 1999, P. ) | F41: Paterno R. | G41: Castillo | H41: 1999 | I41: Pinatubo | J41: Castillo, Paterno R., 1999, Geochemistry of Mount Pinatubo Volcanic Rocks, http://pubs.usgs.gov/pinatubo/castillo/index.html
A42: H12 | B42: C:\Essays\Geo_Dating\Historic\Historic_12.pdf | C42: Geochimica et Cosmochimica Acta 70:3401-3420 | D42: Bicol and Bataan arcs, Philippines | E42: (DuFrane, 2006, P. ) | F42: S. Andrew | G42: DuFrane | H42: 2006 | I42: Pinatubo | J42: DuFrane, S. Andrew , 2006, Bicol and Bataan arcs, Philippines, Geochimica et Cosmochimica Acta 70:3401-3420
A43: H37 | B43: C:\Essays\Geo_Dating\Historic\Historic_37.pdf | C43: Journal of Petrology, 50(3):507-529 | D43: Active Caldera, Rabaul, Papua New Guinea | E43: (Cunningham, 2009, P. ) | F43: H. S. | G43: Cunningham | H43: 2009 | I43: Rabaul | J43: Cunningham, H. S., 2009, Active Caldera, Rabaul, Papua New Guinea, Journal of Petrology, 50(3):507-529
A44: H35 | B44: C:\Essays\Geo_Dating\Historic\Historic_35.pdf | C44: Earth and Planetary Science Letters 265:748-765 | D44: The two Réunion Island volcanoes | E44: (Bosch, 2008, P. ) | F44: Delphine | G44: Bosch | H44: 2008 | I44: Réunion Island | J44: Bosch, Delphine, 2008, The two Réunion Island volcanoes, Earth and Planetary Science Letters 265:748-765
A45: H46 | B45: C:\Essays\Geo_Dating\Historic\Historic_46.pdf | C45: Journal of Volcanology 184:63-78 | D45: Piton de la Fournaise historical lavas | E45: (Vlastélic, 2009, P. ) | F45: Ivan | G45: Vlastélic | H45: 2009 | I45: Réunion island | J45: Vlastélic, Ivan, 2009, Piton de la Fournaise historical lavas, Journal of Volcanology 184:63-78
A46: H54 | B46: C:\Essays\Geo_Dating\Historic\Historic_54.pdf | C46: http://pubs.usgs.gov/pp/1750/chapters/pp2008-1750_chapter36.pdf | D46: Eruption of Mount St. Helens, 2004–2006 | E46: (Cooper, 2008, P. ) | F46: Kari M. | G46: Cooper | H46: 2008 | I46: Saint Helens | J46: Cooper, Kari M., 2008, Eruption of Mount St. Helens, 2004–2006, http://pubs.usgs.gov/pp/1750/chapters/pp2008-1750_chapter36.pdf
A47: H23 | B47: C:\Essays\Geo_Dating\Historic\Historic_23.pdf | C47: Earth and Planetary Science Letters, 303:37–47 | D47: Disequilibria at Volcan Llaima, Chile | E47: (Reubi, 2011, P. ) | F47: O. | G47: Reubi | H47: 2011 | I47: Samoa | J47: Reubi, O., 2011, Disequilibria at Volcan Llaima, Chile, Earth and Planetary Science Letters, 303:37–47
A48: H45 | B48: C:\Essays\Geo_Dating\Historic\Historic_45.pdf | C48: Phd Thesis, San Diego State University | D48: Lavas from the islands of Upolu and Savaii | E48: (Bühler, 2011, P. ) | F48: Alena | G48: Bühler | H48: 2011 | I48: Samoa | J48: Bühler, Alena, 2011, Lavas from the islands of Upolu and Savaii, Phd Thesis, San Diego State University
A49: None | B49: None | C49: http://adsabs.harvard.edu/abs/2006AGUFM.V34B..02K | D49: New 40Ar/39Ar Ages for Savai'i Island | E49: (Koppers, 2006, P. ) | F49: A. A | G49: Koppers | H49: 2006 | I49: Samoa | J49: Koppers, A. A, 2006, New 40Ar/39Ar Ages for Savai'i Island, http://adsabs.harvard.edu/abs/2006AGUFM.V34B..02K
A50: None | B50: None | C50: Chapman And Hall Publishers | D50: Radioactive and Stable Isotope Geology, P. 1-305 | E50: (Attendon, 1997, P. ) | F50: H. G. | G50: Attendon | H50: 1997 | I50: Samoa | J50: Attendon, H. G., 1997, Radioactive and Stable Isotope Geology, P. 1-305, Chapman And Hall Publishers
A51: H10 | B51: C:\Essays\Geo_Dating\Historic\Historic_10.pdf | C51: Journal Of Petrology, 44(3)491–515 | D51: Evolution Beneath the Sangeang Api Volcano | E51: (Turner, 2003, P. ) | F51: Simon | G51: Turner | H51: 2003 | I51: Sangeang Api | J51: Turner, Simon, 2003, Evolution Beneath the Sangeang Api Volcano, Journal Of Petrology, 44(3)491–515
A52: H36 | B52: C:\Essays\Geo_Dating\Historic\Historic_36.pdf | C52: Chemical Geology 265:289-302 | D52: Isotopic variations in Ocean Island Basalts | E52: (Millet, 2009, P. ) | F52: Marc-Alban | G52: Millet | H52: 2009 | I52: São Jorge Island | J52: Millet, Marc-Alban, 2009, Isotopic variations in Ocean Island Basalts, Chemical Geology 265:289-302
A53: H20 | B53: C:\Essays\Geo_Dating\Historic\Historic_20.pdf | C53: Lithos, 81:255-277 | D53: Glass-bearing crustal xenoliths | E53: (Salvioli-Mariani, 2005, P. ) | F53: E. | G53: Salvioli-Mariani | H53: 2005 | I53: Stromboli | J53: Salvioli-Mariani, E., 2005, Glass-bearing crustal xenoliths, Lithos, 81:255-277
A54: H21 | B54: C:\Essays\Geo_Dating\Historic\Historic_21.pdf | C54: Journal Of Petrology, 48(12): 2407-2430 | D54: Study of Stromboli Volcano | E54: (Tommasini, 2007, P. ) | F54: Simone | G54: Tommasini | H54: 2007 | I54: Stromboli | J54: Tommasini, Simone, 2007, Study of Stromboli Volcano, Journal Of Petrology, 48(12): 2407-2430
A55: H41 | B55: C:\Essays\Geo_Dating\Historic\Historic_41.pdf | C55: Contributions Mineralogy Petrology, 142:43-57 | D55: Element Variations in Sunda arc Lavas | E55: (Turner, 2001, P. ) | F55: S. | G55: Turner | H55: 2001 | I55: Sunda Arc | J55: Turner, S., 2001, Element Variations in Sunda arc Lavas, Contributions Mineralogy Petrology, 142:43-57
A56: H13 | B56: C:\Essays\Geo_Dating\Historic\Historic_13.pdf | C56: Lithos 126 (2011) 198–211 | D56: A Toba-scale eruption in the Early Miocene | E56: (Smyth, 2011, P. ) | F56: Helen R. | G56: Smyth | H56: 2011 | I56: Toba Miocene | J56: Smyth, Helen R., 2011, A Toba-scale eruption in the Early Miocene, Lithos 126 (2011) 198–211
A57: H11 | B57: C:\Essays\Geo_Dating\Historic\Historic_11.pdf | C57: Bulletin Volcanology, 69:259-263 | D57: 40Ar/39Ar ages of the AD 79 eruption of Vesuvius | E57: (Lanphere, 2007, P. ) | F57: Marvin | G57: Lanphere | H57: 2007 | I57: Vesuvius | J57: Lanphere, Marvin, 2007, 40Ar/39Ar ages of the AD 79 eruption of Vesuvius, Bulletin Volcanology, 69:259-263
A58: H49 | B58: C:\Essays\Geo_Dating\Historic\Historic_49.pdf | C58: Mineralogy and Petrology, 73:121-143 | D58: (Sr-Nd-Pb) of interplinian magmas | E58: (Somma, 2001, P. ) | F58: R. | G58: Somma | H58: 2001 | I58: Vesuvius | J58: Somma, R., 2001, (Sr-Nd-Pb) of interplinian magmas, Mineralogy and Petrology, 73:121-143
A59: H50 | B59: C:\Essays\Geo_Dating\Historic\Historic_50.pdf | C59: Mineralogy and Petrology, 73:145-176 | D59: Skarns from Vesuvius | E59: (Gilg, 2001, P. ) | F59: H. A. | G59: Gilg | H59: 2001 | I59: Vesuvius | J59: Gilg, H. A., 2001, Skarns from Vesuvius, Mineralogy and Petrology, 73:145-176
A60: H19 | B60: C:\Essays\Geo_Dating\Historic\Historic_19.pdf | C60: Volcanism in Hawaii, 26:723-744 | D60: Origin of the West Maui volcanic rocks | E60: (Tatsumoto, 1987, P. ) | F60: Mitsunobu | G60: Tatsumoto | H60: 1987 | I60: West Maui | J60: Tatsumoto, Mitsunobu, 1987, Origin of the West Maui volcanic rocks, Volcanism in Hawaii, 26:723-744
A61: H22 | B61: C:\Essays\Geo_Dating\Historic\Historic_22.pdf | E61: (, , P. ) | J61: , , , ,

Sheet Erupt
A1: Dated | B1: Eruption | C1: Age (Yr.) | D1: Age (Ma) | E1: Volcano | F1: Reference | G1: Age Ratio 106 | H1: Citation
A2: 2005 | B2: 2003 | C2: =A2-B2 -> 2 | D2: 4970 | E2: Anatahan | F2: Wade | G2: 2485 | H2: ="(" & F2 & ", " & A2 & ")" -> (Wade, 2005)
A3: 1996 | B3: 1986 | C3: =A3-B3 -> 10 | D3: 5076 | E3: Augustine | F3: Johnson | G3: 507 | H3: ="(" & F3 & ", " & A3 & ")" -> (Johnson, 1996)
A4: 2005 | B4: 1949 | C4: 56 | D4: 4920 | E4: Canary Islands | F4: Galipp | G4: 87 | H4: (Galipp, 2005)
A5: 1998 | B5: 1949 | C5: 49 | D5: 5001 | E5: Canary Islands | F5: Hoernle | G5: 100 | H5: (Hoernle, 1998)
A6: 2011 | B6: 1877 | C6: 134 | D6: 4966 | E6: Cotopaxi | F6: Garrison | G6: 37 | H6: (Garrison, 2011)
A7: 1997 | B7: 1984 | C7: 13 | D7: 9 | E7: Erebus | F7: Esser | G7: 1 | H7: (Esser, 1997)
A8: 2006 | B8: 2000 | C8: 6 | D8: 4935 | E8: Erebus | F8: Sims | G8: 823 | H8: (Sims, 2006)
A9: 2008 | B9: 2004 | C9: 4 | D9: 4894 | E9: Erebus | F9: Sims | G9: 1224 | H9: (Sims, 2008)
A10: 1968 | B10: 1800 | C10: 168 | D10: 3300 | E10: Hualalai | F10: Funkhouser | G10: 20 | H10: (Funkhouser, 1968)
A11: 2004 | B11: 1906 | C11: 98 | D11: 4963 | E11: Kanaga | F11: Jicha | G11: 183 | H11: (Jicha, 2004)
A12: 2013 | B12: 1983 | C12: 30 | D12: 4991 | E12: Kilauea | F12: Greene | G12: 166 | H12: (Greene, 2013)
A13: 2008 | B13: 1998 | C13: 10 | D13: 4991 | E13: Kilauea | F13: Marske | G13: 499 | H13: (Marske, 2008)
A14: 1999 | B14: 1790 | C14: 209 | D14: 4981 | E14: Kilauea | F14: Pietruszka | G14: 24 | H14: (Pietruszka, 1999)
A15: 1996 | B15: 1996 | C15: 0.1666 | D15: 4997 | E15: Loihi | F15: Garcia | G15: 30000 | H15: (Garcia, 1996)
A16: 2006 | B16: 1800 | C16: 206 | D16: 4986 | E16: Mayon | F16: DuFrane | G16: 24 | H16: (DuFrane, 2006)
A17: 2003 | B17: 1872 | C17: 131 | D17: 4986 | E17: Merapi | F17: Gertisser | G17: 38 | H17: (Gertisser, 2003)
A18: 2000 | B18: 1949 | C18: 51 | D18: 4974 | E18: Ngauruhoe | F18: Snelling | G18: 98 | H18: (Snelling, 2000)
A19: 2012 | B19: 1912 | C19: 100 | D19: 4967 | E19: Novarupta | F19: Hildreth | G19: 50 | H19: (Hildreth, 2012)
A20: 2003 | B20: 1912 | C20: 91 | D20: 4967 | E20: Novarupta | F20: Reagan | G20: 55 | H20: (Reagan, 2003)
A21: 1999 | B21: 1991 | C21: 8 | D21: 5000 | E21: Pinatubo | F21: Bernard | G21: 625 | H21: (Bernard, 1999)
A22: 1999 | B22: 1991 | C22: 8 | D22: 5000 | E22: Pinatubo | F22: Castillo | G22: 625 | H22: (Castillo, 1999)
A23: 2006 | B23: 1991 | C23: 15 | D23: 5000 | E23: Pinatubo | F23: DuFrane | G23: 333 | H23: (DuFrane, 2006)
A24: 2003 | B24: 1958 | C24: 45 | D24: 4969 | E24: Sangeang Api | F24: Turner | G24: 110 | H24: (Turner, 2003)
A25: 2004 | B25: 1906 | C25: 98 | D25: 4970 | E25: Seguam | F25: Jicha | G25: 51 | H25: (Jicha, 2004)
A26: 2005 | B26: 1944 | C26: 61 | D26: 4965 | E26: Stromboli | F26: Salvioli | G26: 81 | H26: (Salvioli, 2005)
A27: 2006 | B27: 1600 | C27: 406 | D27: 4990 | E27: Taal | F27: DuFrane | G27: 12 | H27: (DuFrane, 2006)
A28: 2008 | B28: 1945 | C28: 63 | D28: 4963 | E28: Réunion Island | F28: Bosch | G28: 79 | H28: (Bosch, 2008)
A29: 2009 | B29: 1808 | C29: 201 | D29: 4899 | E29: São Jorge Island | F29: Millet | G29: 49 | H29: (Millet, 2009)
A30: 2003 | B30: 2001 | C30: 2 | D30: 5045.11663 | E30: Masaya Volcano | F30: Vallelonga | G30: 50 | H30: (Vallelonga, 2003)
A31: 2014 | B31: 2010 | C31: 4 | D31: 5004.508922 | E31: Bezymianny | F31: Kayzar | G31: 1251.127231 | H31: (Kayzar, 2014)
A32: 2014 | B32: 2007 | C32: 7 | D32: 5001.19081 | E32: Klyuchevskoy | F32: Kayzar | G32: 714 | H32: (Kayzar, 2014)
A33: 2014 | B33: 2007 | C33: 7 | D33: 4996.917708 | E33: Shiveluch | F33: Kayzar | G33: 714 | H33: (Kayzar, 2014)
A34: 2014 | B34: 2008 | C34: 6 | D34: 4996.771912 | E34: Karymsky | F34: Kayzar | G34: 832 | H34: (Kayzar, 2014)
A35: 2001 | B35: 1883 | C35: 118 | D35: 4991 | E35: Krakatau | F35: Turner | G35: 42 | H35: (Turner, 2001)
A36: 2001 | B36: 1982 | C36: 19 | D36: 4983 | E36: Galunggung | F36: Turner | G36: 262 | H36: (Turner, 2001)
A37: 2001 | B37: 1006 | C37: 995 | D37: 4984 | E37: Merapi | F37: Turner | G37: 5 | H37: (Turner, 2001)
A38: 2001 | B38: 1900 | C38: 101 | D38: 4985 | E38: Rindjani | F38: Turner | G38: 49 | H38: (Turner, 2001)
A39: 2001 | B39: 1815 | C39: 186 | D39: 4967 | E39: Tambora | F39: Turner | G39: 27 | H39: (Turner, 2001)
A40: 2001 | B40: 1985 | C40: 16 | D40: 4970 | E40: Sangeang Api | F40: Turner | G40: 311 | H40: (Turner, 2001)
A41: 2001 | B41: 1900 | C41: 101 | D41: 4975 | E41: Ayi Flores | F41: Turner | G41: 49 | H41: (Turner, 2001)
A42: 2009 | B42: 1530 | C42: 479 | D42: 4962 | E42: Guadeloupe | F42: DuFrane | G42: 10.35908142 | H42: (DuFrane, 2009)
A43: 2009 | B43: 1995 | C43: 14 | D43: 4979 | E43: Montserrat | F43: DuFrane | G43: 355.6428571 | H43: (DuFrane, 2009)
A44: 2009 | B44: 2007 | C44: 2 | D44: 4965.341886 | E44: Réunion island | F44: Vlastélic | G44: 2482.670943 | H44: (Vlastélic, 2009)
A45: 2001 | B45: 79 | C45: 1922 | D45: 4960.043413 | E45: Mount Vesuvius | F45: Somma | G45: 2.5 | H45: (Somma, 2001)
A46: 2001 | B46: 79 | C46: 1922 | D46: 4960.043413 | E46: Mount Vesuvius | F46: Gilg | G46: 2.5 | H46: (Gilg, 2001)

Sheet Active
A1: Active Volcano Order | B1: Location | E1: Active Volcano | F1: Location Order | G1: Spreadsheet
A2: Avachinsky-Koryaksky | B2: Russia | E2: Barren Island | F2: India
A3: Cerro Azul | B3: Chile | E3: Mount Erebus | F3: Antarctica | G3: 14, 15, 16
A4: Colima | B4: Mexico | E4: LaPalma | F4: Canary Islands | G4: 29,30
A5: Chimborazo | B5: Ecuador | E5: Cha | F5: Cape Verde
A6: Cotopaxi | B6: Ecuador | E6: Cerro Azul | F6: Chile
A7: Galeras | B7: Colombia | E7: Galeras | F7: Colombia
A8: Glacier Peak | B8: US (Washington) | E8: Nevado del Ruiz | F8: Colombia
A9: Haleakala | B9: US (Hawaii) | E9: Irazu | F9: Costa Rica
A10: Irazu | B10: Costa Rica | E10: Niragongo | F10: Republic of the Congo
A11: Kelut | B11: Indonesia | E11: Chimborazo | F11: Ecuador
A12: Mount Kilauea | B12: US (Hawaii) | E12: Cotopaxi | F12: Ecuador | G12: 28
A13: Krakatoa | B13: Indonesia | E13: Santorini | F13: Greece
A14: Lō'ihi Seamount | B14: US (Hawaii) | E14: Pacaya | F14: Guatemala
A15: Mount Adams | B15: US (Washington) | E15: Lakagigar | F15: Iceland
A16: Mount Baker | B16: US (Washington) | E16: Kelut | F16: Indonesia
A17: Mount Fuji | B17: Japan | E17: Krakatoa | F17: Indonesia
A18: Mount Hood | B18: US (Oregon) | E18: Mount Merapi | F18: Indonesia | G18: 31
A19: Mount Lassen | B19: US (California) | E19: Mount Slamet | F19: Indonesia
A20: Mount Mayon | B20: Philippines | E20: Sinabung | F20: Indonesia
A21: Mount Merapi | B21: Indonesia | E21: Tambora | F21: Indonesia
A22: Mount Olympus | B22: US (Washington) | E22: Mount Etna | F22: Italy
A23: Mount Pinatubo | B23: Philippines | E23: Stromboli | F23: Italy
A24: Mount Rainier | B24: US (Washington) | E24: Vesuvius | F24: Italy
A25: Mount Slamet | B25: Indonesia | E25: Mount Fuji | F25: Japan
A26: Mount St Helens | B26: US Washington | E26: Sakurajima | F26: Japan
A27: Mauna Kea | B27: US (Hawaii) | E27: Mount Unzen | F27: Japan
A28: Mauna Hualalai | B28: US (Hawaii) | E28: Colima | F28: Mexico
A29: Mauna Loa | B29: US (Hawaii) | E29: Parícutin | F29: Mexico
A30: Nevado del Ruiz | B30: Colombia | E30: Popocatepetl | F30: Mexico
A31: Pacaya | B31: Guatemala | E31: Soufrière Hills | F31: Montserrat
A32: Parícutin | B32: Mexico | E32: Ulawun | F32: Papua New Guinea
A33: Popocatepetl | B33: Mexico | E33: Mount Mayon | F33: Philippines | G33: 12
A34: Redoubt | B34: US (Alaska) | E34: Mount Pinatubo | F34: Philippines | G34: 6, 12
A35: Sakurajima | B35: Japan | E35: Taal | F35: Philippines | G35: 12
A36: Sinabung | B36: Indonesia | E36: Avachinsky-Koryaksky | F36: Russia
A37: Taal | B37: Philippines | E37: Teide | F37: Spain (Canary Islands)
A38: Tambora | B38: Indonesia | E38: Redoubt | F38: US (Alaska) | G38: 1
A39: Ulawun | B39: Papua New Guinea | E39: Mount Lassen | F39: US (California)
A40: Mount Unzen | B40: Japan | E40: Haleakala | F40: US (Hawaii)
A41: Lakagigar | B41: Iceland | E41: Mount Kilauea | F41: US (Hawaii) | G41: 3, 4, 9
A42: LaPalma | B42: Canary Islands | E42: Lō'ihi Seamount | F42: US (Hawaii) | G42: 2
A43: Mount Erebus | B43: Antarctica | E43: Mauna Kea | F43: US (Hawaii)
A44: Mount Etna | B44: Italy | E44: Mauna Hualalai | F44: US (Hawaii)
A45: Niragongo | B45: Democratic Republic of the Congo | E45: Mauna Loa | F45: US (Hawaii) | G45: 7
A46: Santorini | B46: Greece | E46: Mount Hood | F46: US (Oregon)
A47: Soufrière Hills | B47: Montserrat | E47: Glacier Peak | F47: US (Washington)
A48: Stromboli | B48: Italy | E48: Mount Adams | F48: US (Washington)
A49: Teide | B49: Spain (Canary Islands) | E49: Mount Baker | F49: US (Washington)
A50: Vesuvius | B50: Italy | E50: Mount Olympus | F50: US (Washington)
A51: Barren Island | B51: India | E51: Mount Rainier | F51: US (Washington)
A52: Cha | B52: Cape Verde | E52: Mount St Helens | F52: US Washington

Sheet H25
A1: Table 5 | R1: 4968.555466
A2: Lavas/domes | B2: Year | C2: Structure | D2: 87Sr/86Sr | E2: 143Nd/144Nd | F2: E.Nd | G2: 206Pb/204Pb | H2: 207Pb/204Pb | I2: 208Pb/204Pb | J2: (SMOW) | K2: 207Pb/206Pb | L2: Age | N2: Year | O2: Pb Age (Ma) | P2: True Age | Q2: Age Ratio 106 | R2: 4968.964626
A3: 86AU9/11 | B3: 1986 | C3: Dome | D3: 0.7034 | G3: 18.824 | H3: 15.563 | I3: 38.334 | K3: =H3/G3 -> 0.8267637059 | L3: =[1]!AgePb76(K3) -> 4968.555466 | N3: 1812 | O3: 4973.577984 | P3: =1996-N3 -> 184 | Q3: =O3/P3 -> 27.03031513 | R3: 4969.465085
A4: 86AU9/11 | B4: 1986 | C4: Dome | G4: 18.795 | H4: 16.661 | I4: 38.309 | K4: =H4/G4 -> 0.8864591647 | L4: =[1]!AgePb76(K4) -> 5067.426564 | O4: 4973.426504 | P4: 184 | Q4: =O4/P4 -> 27.02949187 | R4: 4971.703892
A5: 86AU16 | B5: 1986 | C5: Dome | D5: 0.7034 | G5: 18.818 | H5: 15.568 | I5: 38.337 | J5: 6.5 | K5: 0.8272930173 | L5: =[1]!AgePb76(K5) -> 4969.465085 | O5: 4983.679354 | P5: 184 | Q5: 27.08521388 | R5: 4971.868542
A6: 86AMM5 | B6: 1986 | C6: Dome | D6: 0.7034 | G6: 18.796 | H6: 16.662 | I6: 38.302 | J6: 6.5 | K6: 0.8864652054 | L6: =[1]!AgePb76(K6) -> 5067.436208 | O6: 4973.937463 | P6: 184 | Q6: 27.03226882 | R6: 4972.07206
A7: 84AU19 | B7: 1976 | C7: Dome | D7: 0.7034 | E7: 0.5131 | F7: 8.1 | G7: 18.763 | H7: 15.551 | I7: 38.257 | J7: 6.4 | K7: 0.8288120237 | L7: =[1]!AgePb76(K7) -> 4972.07206 | O7: 5076.17697 | P7: 184 | Q7: 27.58791831 | R7: 4973.426504
A8: 84AU3 | B8: 1964 | C8: Dome | D8: 0.7034 | E8: 0.5131 | F8: 8.6 | G8: 18.821 | H8: 15.565 | I8: 38.345 | J8: 6.1 | K8: 0.8270017534 | L8: =[1]!AgePb76(K8) -> 4968.964626 | N8: 1883 | O8: 4975.214349 | P8: =1996-N8 -> 113 | Q8: 44.02844557 | R8: 4973.577984
A9: 84AU5 | B9: 1935 | C9: Dome | D9: 0.7033 | E9: 0.5131 | F9: 8.7 | G9: 18.757 | H9: 15.542 | I9: 38.279 | K9: 0.8285973237 | L9: =[1]!AgePb76(K9) -> 4971.703892 | O9: 4980.471229 | P9: 113 | Q9: 44.07496663 | R9: 4973.937463
A10: 75AU22 | B10: 1883 | C10: Lava | D10: 0.7032 | G10: 18.736 | H10: 15.563 | I10: 38.261 | J10: 6.1 | K10: 0.830646883 | L10: =[1]!AgePb76(K10) -> 4975.214349 | N10: 1935 | O10: 4971.703892 | P10: 61 | Q10: 81.50334249 | R10: 4975.214349
A11: 84AU101 | B11: 1883 | C11: Lava | D11: 0.7033 | E11: 0.5131 | F11: 8.2 | G11: 18.668 | H11: 15.564 | I11: 38.217 | J11: 6 | K11: 0.8337261624 | L11: =[1]!AgePb76(K11) -> 4980.471229 | N11: 1964 | O11: 4968.964626 | P11: 32 | Q11: 155.2801446 | R11: 4976.289568
A12: 84AU26 | B12: 1812 | C12: Lava | D12: 0.7034 | E12: 0.513 | F12: 7.5 | G12: 18.76 | H12: 15.565 | I12: 38.299 | J12: 5.8 | K12: 0.8296908316 | L12: =[1]!AgePb76(K12) -> 4973.577984 | O12: 4976.289568 | P12: 32 | Q12: 155.509049 | R12: 4980.471229
A13: 78A7 | B13: 1812 | C13: Lava | D13: 0.7034 | G13: 18.762 | H13: 15.565 | I13: 38.285 | K13: 0.8296023878 | L13: =[1]!AgePb76(K13) -> 4973.426504 | O13: 4983.457997 | P13: 32 | Q13: 155.7330624 | R13: 4983.457997
A14: 75AU4 | B14: 1812 | C14: Dome H | D14: 0.7033 | G14: 18.73 | H14: 15.651 | I14: 38.216 | J14: 6 | K14: 0.8356113187 | L14: =[1]!AgePb76(K14) -> 4983.679354 | N14: 1976 | O14: 4972.07206 | P14: 20 | Q14: 248.603603 | R14: 4983.679354
A15: 75AU5 | B15: 1812 | C15: Dome H | D15: 0.7033 | G15: 18.742 | H15: 15.554 | I15: 38.239 | K15: 0.8299007577 | L15: =[1]!AgePb76(K15) -> 4973.937463 | O15: 4971.868542 | P15: 20 | Q15: 248.5934271 | R15: 5067.426564
A16: 84AU112 | B16: 1812 | C16: Basah | D16: 0.7032 | E16: 0.513 | F16: 7.3 | G16: 18.678 | H16: 16.66 | I16: 38.265 | J16: 6.1 | K16: 0.8919584538 | L16: =[1]!AgePb76(K16) -> 5076.17697 | N16: 1986 | O16: 4968.555466 | P16: 10 | Q16: 496.8555466 | R16: 5067.436208
A17: 76AU5 | B17: 1976 | C17: Basal Ash | D17: 0.7033 | E17: 0.5131 | F17: 8.1 | G17: 18.75 | H17: 15.538 | I17: 36.213 | J17: 7.4 | K17: 0.8286933333 | L17: =[1]!AgePb76(K17) -> 4971.868542 | O17: 5067.426564 | P17: 10 | Q17: 506.7426564 | R17: 5076.17697
A18: 75AU16(host) | B18: 1964 | C18: Pumice Block | D18: 0.7034 | G18: 18.711 | H18: 15.554 | I18: 38.214 | J18: 6.7 | K18: 0.8312757202 | L18: =[1]!AgePb76(K18) -> 4976.289568 | O18: 4969.465085 | P18: 10 | Q18: 496.9465085
A19: 75AU16(host) | B19: 1964 | C19: Inclusion | D19: 0.7033 | G19: 18.624 | H19: 15.56 | I19: 38.182 | K19: 0.8354810997 | L19: =[1]!AgePb76(K19) -> 4983.457997 | O19: 5067.436208 | P19: 10 | Q19: 506.7436208
A20: 78A10 | B20: Age unknown | D20: 0.7034 | G20: 18.669 | H20: 15.543 | I20: 38.176 | J20: 6.9 | K20: 0.8325566447 | L20: =[1]!AgePb76(K20) -> 4978.477087 | N20: Age unknown | O20: 4978.477087
A21: 75AU11 | B21: Age unknown | D21: 0.7033 | G21: 18.788 | H21: 15.547 | I21: 38.249 | J21: 6.6 | K21: 0.8274962742 | L21: =[1]!AgePb76(K21) -> 4969.814217 | N21: Age unknown | O21: 4969.814217
A22: 75AU26 | B22: Age unknown | D22: 0.7033 | G22: 18.766 | H22: 15.568 | I22: 38.244 | J22: 7.1 | K22: 0.8295854204 | L22: =[1]!AgePb76(K22) -> 4973.397441 | N22: Age unknown | O22: 4973.397441
A23: 78A10 | B23: Age unknown | D23: 0.7034 | G23: 18.669 | H23: 15.543 | I23: 38.176 | K23: 0.8325566447 | L23: =[1]!AgePb76(K23) -> 4978.477087 | N23: Age unknown | O23: 4978.477087
A24: 75AU11 | B24: Age unknown | D24: 0.7033 | G24: 18.788 | H24: 15.547 | I24: 38.249 | K24: 0.8274962742 | L24: =[1]!AgePb76(K24) -> 4969.814217 | N24: Age unknown | O24: 4969.814217
A25: 75AU26 | B25: Age unknown | D25: 0.7033 | G25: 18.766 | H25: 15.568 | I25: 38.244 | K25: 0.8295854204 | L25: =[1]!AgePb76(K25) -> 4973.397441 | N25: Age unknown | O25: 4973.397441
A29: Table 7
B30: Lower Value | C30: Upper Value | D30: Lower Value | E30: Upper Value | F30: Lower Value | G30: Upper Value | H30: Lower Value | I30: Upper Value | J30: Lower Value | K30: Upper Value | L30: Lower Value | M30: Upper Value | N30: Upper Value | O30: Lower Value | P30: Upper Value | Q30: Lower Value | R30: Upper Value | S30: Lower Value | T30: Upper Value | U30: Lower Value | V30: Upper Value | W30: Lower Value
A31: Location | B31: K/Rb | C31: K/Rb | D31: Cs/Rb | E31: Cs/Rb | F31: Rb/Zr | G31: Rb/Zr | H31: (Ba/La)N | I31: (Ba/La)N | J31: (La/Yb)N | K31: (La/Yb)N | L31: 87Sr/86Sr | M31: 87Sr/86Sr | N31: 206Pb/204Pb | O31: 206Pb/204Pb | P31: 207Pb/204pb | Q31: 207Pb/204pb | R31: 208Pb/204Pb | S31: 208Pb/204Pb | T31: 18O | U31: 18O | V31: E.Nd | W31: E.Nd
A32: Mount Spurr | C32: 360 | D32: 781 | G32: 0.24 | H32: 0.3 | L32: 0.7035 | M32: 0.704 | N32: 18.733 | O32: 18.961 | P32: 15.565 | Q32: 15.624 | R32: 38.498 | S32: 38.676 | T32: 6.3 | U32: 7.8
A33: Augustine | B33: 372 | C33: 663 | D33: 0.016 | E33: 0.024 | F33: 0.14 | G33: 0.35 | H33: 0.79 | I33: 18.1 | J33: 2.3 | K33: 3.23 | L33: 0.7032 | M33: 0.7034 | N33: 18.624 | O33: 18.821 | P33: 15.538 | Q33: 15.568 | R33: 38.175 | S33: 38.346 | T33: 5.7 | U33: 7.1 | V33: 7.3 | W33: 8.7
A34: Okmok | B34: 486 | C34: 681 | D34: 0.007 | E34: 0.107 | F34: 0.106 | G34: 0.192 | H34: 1.66 | I34: 2.17 | J34: 1.81 | K34: 3.52 | L34: 0.7031 | M34: 0.7036 | N34: 18.707 | O34: 18.981 | P34: 15.555 | Q34: 15.593 | R34: 38.17 | S34: 38.666 | T34: 6.3 | U34: 6.6 | V34: 7.4 | W34: 8.3
A35: Akutan | D35: 0.011 | E35: 0.17 | F35: 0.08 | G35: 0.27 | H35: 2.88 | I35: 4.86 | J35: 2.18 | K35: 4.29 | L35: 0.7031 | M35: 0.7032 | N35: 18.817 | O35: 18.834 | P35: 15.549 | Q35: 15.661 | R35: 38.298
A36: Seguam | B36: 351 | C36: 1328 | F36: 0.024 | G36: 2.5 | H36: 2.22 | I36: 3.43 | J36: 1.34 | K36: 2.86 | L36: 0.7038 | M36: 0.7037 | N36: 18.881 | O36: 18.924 | P36: 15.583 | Q36: 15.622 | R36: 38.467 | S36: 38.663 | V36: 5.9 | W36: 7
A37: Sediments | B37: 250 | C37: 502 | D37: 0.013 | E37: 0.08 | F37: 0.37 | G37: 3.02 | H37: 0.37 | I37: 3.02 | J37: 4.93 | K37: 15.51 | L37: 0.7066 | M37: 0.7068 | N37: 18.934 | O37: 18.944 | P37: 15.605 | Q37: 15.623 | R37: 38.631 | S37: 38.66 | V37: 1.1 | W37: 2.2
A40: Upper Value | B40: Lower Value | C40: Upper Value | D40: Lower Value | E40: Lower Value | F40: Upper Value | G40: Lower Value | H40: Upper Value
A41: 206Pb/204Pb | B41: 206Pb/204Pb | C41: 207Pb/204pb | D41: 207Pb/204pb | E41: 207Pb/206Pb | F41: 207Pb/206Pb | G41: Pb Age (Ma) | H41: Pb Age (Ma)
A42: 18.733 | B42: 18.961 | C42: 15.565 | D42: 15.624 | E42: =D42/B42 -> 0.8240071726 | F42: =C42/A42 -> 0.8308866706 | G42: =[1]!AgePb76(E42) -> 4963.808347 | H42: =[1]!AgePb76(F42) -> 4975.624453
A43: 18.624 | B43: 18.821 | C43: 15.538 | D43: 15.568 | E43: =D43/B43 -> 0.8271611498 | F43: =C43/A43 -> 0.8342998282 | G43: =[1]!AgePb76(E43) -> 4969.238529 | H43: =[1]!AgePb76(F43) -> 4981.448298
A44: 18.707 | B44: 18.981 | C44: 15.555 | D44: 15.593 | E44: 0.8215057162 | F44: 0.8315069225 | G44: =[1]!AgePb76(E44) -> 4959.48587 | H44: =[1]!AgePb76(F44) -> 4976.684672
A45: 18.817 | B45: 18.834 | C45: 15.549 | D45: 15.661 | E45: 0.8315280875 | F45: 0.8263272573 | G45: =[1]!AgePb76(E45) -> 4976.720835 | H45: =[1]!AgePb76(F45) -> 4967.804965
A46: 18.881 | B46: 18.924 | C46: 15.583 | D46: 15.622 | E46: 0.8255125766 | F46: 0.8253270484 | G46: =[1]!AgePb76(E46) -> 4966.402942 | H46: =[1]!AgePb76(F46) -> 4966.083452
A47: 18.934 | B47: 18.944 | C47: 15.605 | D47: 15.623 | E47: 0.8246938345 | F47: 0.8241787261 | G47: =[1]!AgePb76(E47) -> 4964.992447 | H47: =[1]!AgePb76(F47) -> 4964.104277
E49: Table 7 | F49: Volcano | G49: Lower Value | H49: Upper Value
F50: Location | G50: Pb Age (Ma) | H50: Pb Age (Ma)
F51: Mount Spurr | G51: 4963.808347 | H51: 4975.624453
F52: Augustine | G52: 4969.238529 | H52: 4981.448298
F53: Okmok | G53: 4959.48587 | H53: 4976.684672
F54: Akutan | G54: 4976.720835 | H54: 4967.804965
F55: Seguam | G55: 4966.402942 | H55: 4966.083452
F56: Sediments | G56: 4964.992447 | H56: 4964.104277

Sheet H26
A2: 206Pb/204Pb | B2: 207Pb/204Pb | C2: 207Pb/206Pb | D2: Pb Age (Ma) | E2: Year Erupted | F2: Year Dated
A3: 18.85 | B3: 15.57 | C3: =B3/A3 -> 0.825994695 | D3: =[1]!AgePb76(C3) -> 4967.23282 | E3: 1912 | F3: 2012
A4: 18.88 | B4: 15.57 | C4: =B4/A4 -> 0.8246822034 | D4: =[1]!AgePb76(C4) -> 4964.972399
A5: 18.88 | B5: 15.58 | C5: =B5/A5 -> 0.8252118644 | D5: =[1]!AgePb76(C5) -> 4965.885061

Sheet H27
A1: Table 3
A2: Medicine Lake | B2: 206Pb/204Pb | C2: 207Pb/204Pb | D2: 207Pb/206Pb | E2: Age
A3: 1545m | B3: 19.0146 | C3: 15.6136 | D3: =(C3/B3) -> 0.8211374418 | E3: =[1]!AgePb76(D3) -> 4958.848316
A4: 1139ma | B4: 19.0001 | C4: 15.6117 | D4: =(C4/B4) -> 0.8216640965 | E4: =[1]!AgePb76(D4) -> 4959.759963
A5: 1543m | B5: 19.0084 | C5: 15.6124 | D5: 0.8213421435 | E5: =[1]!AgePb76(D5) -> 4959.202732
A6: 1331m | B6: 18.9019 | C6: 15.606 | D6: 0.8256312857 | E6: =[1]!AgePb76(D6) -> 4966.607326
A7: 733m | B7: 18.9046 | C7: 15.6044 | D7: 0.8254287316 | E7: =[1]!AgePb76(D7) -> 4966.258566
A8: Novaraupta
A9: K90Rhy | B9: 18.8511 | C9: 15.5732 | D9: =(C9/B9) -> 0.8261162479 | E9: =[1]!AgePb76(D9) -> 4967.44197
A10: K90Dac | B10: 18.8802 | C10: 15.5691 | D10: 0.8246257985 | E10: =[1]!AgePb76(D10) -> 4964.875171
A11: Crater Lake
A12: 1533 | B12: 18.9291 | C12: 15.5981 | D12: =(C12/B12) -> 0.8240275555 | E12: =[1]!AgePb76(D12) -> 4963.843511
A13: 1532 | B13: 18.8876 | C13: 15.585 | D13: 0.8251445393 | E13: =[1]!AgePb76(D13) -> 4965.769087
A14: 1534 | B14: 18.8361 | C14: 15.5935 | D14: 0.8278518377 | E14: =[1]!AgePb76(D14) -> 4970.424744
A18: Location | B18: Sample | C18: True Age | D18: Pb Age (Ma) | E18: Error Ratio 106 | F18: Year Erupted | G18: Year Dated
A19: Medicine Lake | B19: 1545m | C19: 91 | D19: 4958.848316 | E19: =D19/91 -> 54.49283864 | F19: 1912 | G19: 2003
B20: 1139ma | C20: 91 | D20: 4959.759963 | E20: =D20/91 -> 54.50285674 | F20: 1912 | G20: 2003
B21: 1543m | C21: 91 | D21: 4959.202732 | E21: 54.49673332 | F21: 1912 | G21: 2003
B22: 1331m | C22: 91 | D22: 4966.607326 | E22: 54.57810248 | F22: 1912 | G22: 2003
B23: 733m | C23: 91 | D23: 4966.258566 | E23: 54.57426996 | F23: 1912 | G23: 2003
A24: Novaraupta | B24: K90Rhy | C24: 91 | D24: 4967.44197 | E24: 54.58727439 | F24: 1912 | G24: 2003
B25: K90Dac | C25: 91 | D25: 4964.875171 | E25: 54.55906781 | F25: 1912 | G25: 2003
A26: Crater Lake | B26: 1533 | C26: 91 | D26: 4963.843511 | E26: 54.54773089 | F26: 1912 | G26: 2003
B27: 1532 | C27: 91 | D27: 4965.769087 | E27: 54.56889107 | F27: 1912 | G27: 2003
B28: 1534 | C28: 91 | D28: 4970.424744 | E28: 54.62005214 | F28: 1912 | G28: 2003
O30: =[1]!Th230Age(A3, B3) -> 
O31: A3=230Th/238U
O32: B3=234U/238U
A33: Table 2
A34: Sample | Q34: Location | R34: True Age | S34: Th Age (Ka) | T34: Error Ratio
A35: Novarupta | B35: 238U/232Th | C35: Error | D35: 230Th/232Th | E35: Error | F35: 238U/230Th | G35: Error | H35: 234U/238U | I35: Error | J35: Th(ppm) | K35: Error | L35: U(ppm) | M35: Error | N35: 230Th/238U | O35: Age (Ka) | Q35: Novarupta | R35: 91 | S35: 814.39 | T35: =(S35*1000)/91 -> 8949.340659
A36: K90And | B36: 1.378 | C36: 0.007 | D36: 1.382 | E36: 0.011 | F36: 0.997 | G36: 0.009 | H36: 0.994 | I36: 0.007 | J36: 3.361 | K36: 0.005 | L36: 1.519 | M36: 0.013 | N36: =1/F36 -> 1.003009027 | O36: =[1]!Th230Age(N36, H36) -> 0 | R36: 91 | S36: 349.71 | T36: =(S36*1000)/91 -> 3842.967033
A37: K90And | B37: 1.374 | C37: 0.006 | D37: 1.385 | E37: 0.015 | F37: 0.992 | G37: 0.011 | H37: 1.006 | I37: 0.002 | J37: 3.299 | K37: 0.01 | L37: 1.484 | M37: 0.004 | N37: =1/F37 -> 1.008064516 | O37: =[1]!Th230Age(N37, H37) -> 814.385617 | R37: 91 | S37: 795.39 | T37: 8740.549451
A38: K90And | B38: 1.341 | C38: 0.006 | D38: 1.392 | E38: 0.012 | F38: 0.963 | G38: 0.006 | H38: 1.002 | I38: 0.004 | J38: 0.19 | K38: 0.001 | L38: 0.0831 | M38: 0.0002 | N38: 1.038421599 | O38: =[1]!Th230Age(N38, H38) -> 0 | R38: 91 | S38: 480.78 | T38: 5283.296703
A39: K90And | B39: 1.44 | C39: 0.013 | D39: 1.4 | E39: 0.011 | F39: 1.028 | G39: 0.011 | H39: 1.01 | I39: 0.006 | J39: 0.959 | K39: 0.001 | L39: 0.455 | M39: 0.004 | N39: 0.9727626459 | O39: =[1]!Th230Age(N39, H39) -> 349.7073816 | R39: 91 | S39: 342.53 | T39: 3764.065934
A40: K90Dac | B40: 1.413 | C40: 0.009 | D40: 1.407 | E40: 0.013 | F40: 1.005 | G40: 0.002 | H40: 0.997 | I40: 0.002 | J40: 3.107 | K40: 0.018 | L40: 1.437 | M40: 0.003 | N40: 0.9950248756 | O40: =[1]!Th230Age(N40, H40) -> 795.3935966 | R40: 91 | S40: 318.66 | T40: 3501.758242
A41: K90Dac | B41: 1.429 | C41: 0.004 | D41: 1.402 | E41: 0.018 | F41: 1.015 | G41: 0.013 | H41: 0.998 | I41: 0.004 | J41: 3.008 | K41: 0.006 | L41: 1.406 | M41: 0.003 | N41: 0.9852216749 | O41: =[1]!Th230Age(N41, H41) -> 480.783139 | R41: 91 | S41: 390.35 | T41: 4289.56044
A42: K90Dac | B42: 1.486 | C42: 0.007 | D42: 1.417 | E42: 0.011 | F42: 1.049 | G42: 0.007 | H42: 0.997 | I42: 0.003 | J42: 0.419 | K42: 0.002 | L42: 0.205 | M42: 0.001 | N42: 0.9532888465 | O42: =[1]!Th230Age(N42, H42) -> 342.534404 | R42: 91 | S42: 426.55 | T42: 4687.362637
A43: K90Dac | B43: 1.506 | C43: 0.012 | D43: 1.427 | E43: 0.025 | F43: 1.055 | G43: 0.013 | H43: 1.001 | I43: 0.005 | J43: 0.419 | K43: 0.002 | L43: 0.207 | M43: 0.001 | N43: 0.9478672986 | O43: =[1]!Th230Age(N43, H43) -> 318.6616283 | Q43: Crater Lake | R43: 91 | S43: =[1]!Th230Age(N60, H60) -> 284.8279878 | T43: 3129.977887
A44: K90Dac | B44: 1.422 | C44: 0.009 | D44: 1.385 | E44: 0.02 | F44: 1.027 | G44: 0.013 | H44: 1.001 | I44: 0.005 | J44: 0.433 | K44: 0.003 | L44: 0.203 | M44: 0.001 | N44: 0.9737098345 | O44: =[1]!Th230Age(N44, H44) -> 390.3534153 | R44: 91 | S44: =[1]!Th230Age(N61, H61) -> 330.720152 | T44: 3634.287384
A45: K-851 | B45: 1.301 | C45: 0.006 | D45: 1.361 | E45: 0.009 | F45: 0.956 | G45: 0.007 | H45: 1 | I45: 0.003 | J45: 1.799 | K45: 0.005 | L45: 0.771 | M45: 0.003 | N45: 1.046025105 | O45: =[1]!Th230Age(N45, H45) -> 0 | R45: 91 | S45: =[1]!Th230Age(N62, H62) -> 317.9663113 | T45: 3494.135289
A46: K90Rhy | B46: 1.422 | C46: 0.007 | D46: 1.44 | E46: 0.007 | F46: 0.987 | G46: 0.006 | H46: 1 | I46: 0.004 | J46: 5.382 | K46: 0.012 | L46: 2.521 | M46: 0.01 | N46: 1.013171226 | O46: =[1]!Th230Age(N46, H46) -> 0 | R46: 91 | S46: =[1]!Th230Age(N63, H63) -> 272.7891815 | T46: 2997.683313
A47: K90Nov | B47: 1.43 | C47: 0.006 | D47: 1.443 | E47: 0.011 | F47: 0.991 | G47: 0.008 | H47: 1 | I47: 0.005 | J47: 5.368 | K47: 0.012 | L47: 2.524 | M47: 0.009 | N47: 1.009081736 | O47: =[1]!Th230Age(N47, H47) -> 0 | R47: 91 | S47: =[1]!Th230Age(N64, H64) -> 470.5191864 | T47: 5170.54051
A48: K-2043 | B48: 1.384 | C48: 0.006 | D48: 1.423 | E48: 0.011 | F48: 0.973 | G48: 0.008 | H48: 0.993 | I48: 0.007 | J48: 3.305 | K48: 0.019 | L48: 1.469 | M48: 0.006 | N48: 1.027749229 | O48: =[1]!Th230Age(N48, H48) -> 0 | R48: 91 | S48: =[1]!Th230Age(N65, H65) -> 458.0300663 | T48: 5033.297431
A49: K90TR | B49: 1.412 | C49: 0.005 | D49: 1.391 | E49: 0.015 | F49: 1.016 | G49: 0.01 | H49: 1.003 | I49: 0.003 | J49: 2.628 | K49: 0.006 | L49: 1.203 | M49: 0.002 | N49: 0.9842519685 | O49: =[1]!Th230Age(N49, H49) -> 426.5495918 | Q49: Medicine Lake | R49: 91 | S49: 379.97 | T49: 4175.494505
A50: K90CB | B50: 1.317 | C50: 0.007 | D50: 1.373 | E50: 0.011 | F50: 0.959 | G50: 0.009 | H50: 0.001 | I50: 0.005 | J50: 2.485 | K50: 0.006 | L50: 1.071 | M50: 0.005 | N50: 1.042752868 | O50: =[1]!Th230Age(N50, H50) -> 0 | R50: 91 | S50: 359.16 | T50: 3946.813187
A51: K90FM | B51: 1.366 | C51: 0.006 | D51: 1.388 | E51: 0.019 | F51: 0.984 | G51: 0.014 | H51: 1.002 | I51: 0.004 | J51: 2.25 | K51: 0.005 | L51: 1.006 | M51: 0.004 | N51: 1.016260163 | O51: =[1]!Th230Age(N51, H51) -> 0 | R51: 91 | S51: 333.29 | T51: 3662.527473
A52: K90FM | B52: 1.364 | C52: 0.01 | D52: 1.391 | E52: 0.017 | F52: 0.981 | G52: 0.006 | H52: 0.998 | I52: 0.002 | J52: 2.413 | K52: 0.02 | L52: 1.085 | M52: 0.003 | N52: 1.019367992 | O52: =[1]!Th230Age(N52, H52) -> 0 | R52: 91 | S52: 406.43 | T52: 4466.263736
R53: 91 | S53: 528.32 | T53: 5805.714286
A54: Crater Lake | F54: 238U/230Th | G54: Error | H54: 234U/238U | R54: 91 | S54: 676.07 | T54: 7429.340659
A55: 88c:1534-wr | B55: 1.167 | C55: 0.012 | D55: 1.312 | E55: 0.011 | F55: 0.89 | G55: 0.008 | H55: 1.003 | I55: 0.002 | J55: 2.077 | K55: 0.015 | L55: 0.799 | M55: 0.006 | N55: 1.123595506 | O55: =[1]!Th230Age(N55, H55) -> 0 | R55: 91 | S55: 562.22 | T55: 6178.241758
A56: 88c:1534-mag3 | B56: 1.199 | C56: 0.012 | D56: 1.294 | E56: 0.008 | F56: 0.926 | G56: 0.011 | H56: 1.007 | I56: 0.006 | J56: 0.847 | K56: 0.005 | L56: 0.332 | M56: 0.002 | N56: 1.079913607 | O56: =[1]!Th230Age(N56, H56) -> 0 | R56: 91 | S56: 662.17 | T56: 7276.593407
A57: 88c:1534-gl | B57: 1.111 | C57: 0.009 | D57: 1.306 | E57: 0.021 | F57: 0.851 | G57: 0.013 | H57: 0.998 | I57: 0.002 | J57: 4.09 | K57: 0.03 | L57: 1.488 | M57: 0.004 | N57: 1.175088132 | O57: =[1]!Th230Age(N57, H57) -> 0
A58: 88c:1534-hblp | B58: 1.098 | C58: 0.007 | D58: 1.284 | E58: 0.017 | F58: 0.856 | G58: 0.011 | H58: 0.995 | I58: 0.005 | J58: 0.379 | K58: 0.003 | L58: 0.136 | M58: 0.001 | N58: 1.168224299 | O58: =[1]!Th230Age(N58, H58) -> 0
A59: 88c:1534-hblp | B59: 1.064 | C59: 0.015 | D59: 1.292 | E59: 0.021 | F59: 0.824 | G59: 0.006 | H59: 0.998 | I59: 0.004 | J59: 0.365 | K59: 0.005 | L59: 0.128 | M59: 0.001 | N59: 1.213592233 | O59: =[1]!Th230Age(N59, H59) -> 0
A60: 88c:1532 | B60: 1.557 | C60: 0.015 | D60: 1.451 | E60: 0.017 | F60: 1.073 | G60: 0.017 | H60: 1.004 | I60: 0.015 | J60: 1.012 | K60: 0.004 | L60: 0.519 | M60: 0.005 | N60: 0.9319664492 | O60: =[1]!Th230Age(N60, H60) -> 284.8279878
A61: 88c:1532 | B61: 1.482 | C61: 0.009 | D61: 1.417 | E61: 0.013 | F61: 1.046 | G61: 0.011 | H61: 1.003 | I61: 0.012 | J61: 0.274 | K61: 0.001 | L61: 0.133 | M61: 0.001 | N61: 0.9560229446 | O61: =[1]!Th230Age(N61, H61) -> 330.720152
A62: 88c:1532 | B62: 1.517 | C62: 0.011 | D62: 1.43 | E62: 0.044 | F62: 1.061 | G62: 0.033 | H62: 0.997 | I62: 0.012 | J62: 0.0313 | K62: 0.0002 | L62: 0.0313 | M62: 0.0002 | N62: 0.9425070688 | O62: =[1]!Th230Age(N62, H62) -> 317.9663113
A63: 88c:1532 | B63: 1.576 | C63: 0.006 | D63: 1.455 | E63: 0.009 | F63: 1.083 | G63: 0.007 | H63: 1.004 | I63: 0.002 | J63: 2.463 | K63: 0.006 | L63: 1.27 | M63: 0.004 | N63: 0.9233610342 | O63: =[1]!Th230Age(N63, H63) -> 272.7891815
A64: 88c:1533 | B64: 1.374 | C64: 0.01 | D64: 1.368 | E64: 0.011 | F64: 1.005 | G64: 0.009 | H64: 1.006 | I64: 0.006 | J64: 4.878 | K64: 0.013 | L64: 2.193 | M64: 0.014 | N64: 0.9950248756 | O64: =[1]!Th230Age(N64, H64) -> 470.5191864
A65: 88c:1533 | B65: 1.485 | C65: 0.009 | D65: 1.448 | E65: 0.017 | F65: 1.025 | G65: 0.011 | H65: 0.993 | I65: 0.005 | J65: 0.1599 | K65: 0.0008 | L65: O.0777 | M65: 0.0003 | N65: 0.9756097561 | O65: =[1]!Th230Age(N65, H65) -> 458.0300663
A67: Medicine Lake | F67: 238U/230Th | G67: Error | H67: 234U/238U
A68: 82-72f | B68: 1.153 | C68: 0.015 | D68: 1.163 | E68: 0.022 | F68: 0.991 | G68: 0.023 | H68: 1.004 | I68: 0.003 | J68: 0.179 | K68: 0.002 | L68: 0.0676 | M68: 0.0003 | N68: 1.009081736 | O68: =[1]!Th230Age(N68, H68) -> 0
A69: 1513m | B69: 1.194 | C69: 0.011 | D69: 1.172 | E69: 0.024 | F69: 1.018 | G69: 0.022 | J69: 1 | K69: 0.009 | L69: 0.391 | M69: 0.001 | N69: 0.9823182711
A70: 733m | B70: 1.233 | C70: 0.014 | D70: 1.206 | E70: 0.019 | F70: 1.023 | G70: 0.02 | H70: 1.006 | I70: 0.008 | J70: 1.235 | K70: 0.01 | L70: 0.498 | M70: 0.006 | N70: 0.9775171065 | O70: =[1]!Th230Age(N70, H70) -> 379.9674624
A71: 1139ma | B71: 1.082 | C71: 0.013 | D71: 1.137 | E71: 0.013 | F71: 0.952 | G71: 0.016 | H71: 1.001 | I71: 0.004 | J71: 2.003 | K71: 0.008 | L71: 0.71 | M71: 0.008 | N71: 1.050420168 | O71: =[1]!Th230Age(N71, H71) -> 0
A72: 1545m | B72: 1.134 | C72: 0.012 | D72: 1.09 | E72: 0.013 | F72: 1.041 | G72: 0.017 | H72: 0.998 | I72: 0.008 | J72: 3.693 | K72: 0.024 | L72: 1.371 | M72: 0.011 | N72: 0.9606147935 | O72: =[1]!Th230Age(N72, H72) -> 359.1602448
A73: 1545m | H73: 0.999 | I73: 0.004 | L73: 1.358 | M73: 0.006
A74: 1545m | B74: 1.147 | C74: 0.004 | D74: 1.094 | E74: 0.011 | F74: 1.049 | G74: 0.011 | J74: 4.526 | K74: 0.012 | L74: 1.699 | M74: 0.004 | N74: 0.9532888465
A75: 1545m | B75: 1.142 | C75: 0.004 | D75: 1.096 | E75: 0.018 | F75: 1.042 | G75: 0.017 | H75: 1.005 | I75: 0.001 | J75: 5.336 | K75: 0.015 | L75: 1.986 | M75: 0.006 | N75: 0.9596928983 | O75: =[1]!Th230Age(N75, H75) -> 333.293334
A76: 1424ma | B76: 1.13 | C76: 0.021 | D76: 1.165 | E76: 0.005 | F76: 0.97 | G76: 0.024 | H76: 1.002 | I76: 0.003 | J76: 3.974 | K76: 0.032 | L76: 1.469 | M76: 0.026 | N76: 1.030927835 | O76: =[1]!Th230Age(N76, H76) -> 0
A77: 695m | B77: 1.188 | C77: 0.005 | D77: 1.171 | E77: 0.02 | F77: 1.014 | G77: 0.018 | J77: 5.252 | K77: 0.022 | L77: 2.042 | M77: 0.004 | N77: 0.9861932939
A78: 945m | B78: 1.024 | C78: 0.012 | D78: 1.074 | E78: 0.008 | F78: 0.953 | G78: 0.013 | J78: 7.314 | K78: 0.036 | L78: 2.45 | M78: 0.026 | N78: 1.049317943
A79: 945m | B79: 1.024 | C79: 0.004 | D79: 7.321 | E79: 0.014
A80: 1413m | B80: 1.188 | C80: 0.01 | D80: 1.162 | E80: 0.013 | F80: 1.023 | G80: 0.014 | H80: 1.001 | I80: 0.005 | J80: 7.453 | K80: 0.022 | L80: 2.898 | M80: 0.025 | N80: 0.9775171065 | O80: =[1]!Th230Age(N80, H80) -> 406.4330634
A81: 1368m | B81: 1.21 | C81: 0.002 | D81: 1.204 | E81: 0.01 | F81: 1.005 | G81: 0.009 | H81: 1.002 | I81: 0.003 | J81: 12.539 | K81: 0.096 | L81: 4.967 | M81: 0.01 | N81: 0.9950248756 | O81: =[1]!Th230Age(N81, H81) -> 528.3201108
A82: 1331m | B82: 1.206 | C82: 0.001 | D82: 1.203 | E82: 0.014 | F82: 1.002 | G82: 0.012 | H82: 1 | I82: 0.001 | J82: 13.65 | K82: 0.086 | L82: 5.385 | M82: 0.004 | N82: 0.998003992 | O82: =[1]!Th230Age(N82, H82) -> 676.0671107
A83: TML | B83: 1.063 | C83: 0.006 | D83: 1.079 | E83: 0.013 | F83: 1.01 | G83: 0.012 | H83: 0.997 | I83: 0.004 | J83: 29.5 | K83: 0.1 | L83: 10.27 | M83: 0.05 | N83: 0.9900990099 | O83: =[1]!Th230Age(N83, H83) -> 562.2214401
A84: TML | B84: 1.073 | C84: 0.007 | D84: 1.075 | E84: 0.009 | F84: 0.998 | G84: 0.011 | H84: 1.003 | I84: 0.003 | J84: 30.06 | K84: 0.09 | L84: 10.56 | M84: 0.06 | N84: 1.002004008 | O84: =[1]!Th230Age(N84, H84) -> 662.1666646

Sheet H28
A1: Table 2 | Q1: 22073
A2: Sample | B2: Age(Ma) | C2: 207Pb/206Pb | D2: 208Pb/232Th | E2: 207Pb/235U | F2: 206Pb/238U | G2: 206Pb/204Pb | H2: 207Pb/204Pb | I2: 208Pb/204Pb | J2: 238U/204Pb | K2: 235U/204Pb | L2: 232Th/204Pb | M2: 206Pb/204Pb(i) | N2: 207Pb/204Pb(i) | O2: 208Pb/204Pb(i) | Q2: 22072
A3: Absarokites | Q3: 20130 | R3: 3 over | S3: 20 billion years old
A4: BG-99a | B4: 32 | C4: =[1]!AgePb76(H4/G4) -> 4986.966219 | D4: =[1]!AgePb8Th2(I4/L4) -> 19693.82014 | E4: =[1]!AgePb7U5(H4/K4) -> 6059.878309 | F4: =[1]!AgePb6U8(G4/J4) -> 9525.818376 | G4: 18.707 | H4: 15.668 | I4: 38.927 | J4: 5.53 | K4: 0.0402 | L4: 23.6 | M4: 18.679 | N4: 15.666 | O4: 38.889 | Q4: 19930 | R4: 24 over | S4: 10 billion years old
A5: BG-102 | B5: 32 | C5: =[1]!AgePb76(H5/G5) -> 4986.449669 | D5: =[1]!AgePb8Th2(I5/L5) -> 19856.16651 | E5: =[1]!AgePb7U5(H5/K5) -> 5699.397679 | F5: =[1]!AgePb6U8(G5/J5) -> 7829.893358 | G5: 18.715 | H5: 15.669 | I5: 38.93 | J5: 7.9 | K5: 0.0574 | L5: 23.3 | M5: 18.676 | N5: 15.667 | O5: 38.893 | Q5: 19856 | R5: 73 over | S5: 5 billion years old
A6: BG-99b | B6: 32 | C6: =[1]!AgePb76(H6/G6) -> 4987.027414 | D6: =[1]!AgePb8Th2(I6/L6) -> 20130.26175 | E6: =[1]!AgePb7U5(H6/K6) -> 6146.573404 | F6: =[1]!AgePb6U8(G6/J6) -> 9951.612366 | G6: 18.705 | H6: 15.667 | I6: 38.926 | J6: 5.08 | K6: 0.0369 | L6: 22.8 | M6: 18.68 | N6: 15.666 | O6: 38.889 | Q6: 19694 | R6: 108 over | S6: 3.8 billion years old
A7: BG-101 | B7: 32 | C7: =[1]!AgePb76(H7/G7) -> 4986.28315 | D7: =[1]!AgePb8Th2(I7/L7) -> 19587.4776 | E7: =[1]!AgePb7U5(H7/K7) -> 5644.454584 | F7: =[1]!AgePb6U8(G7/J7) -> 7586.43401 | G7: 18.716 | H7: 15.668 | I7: 38.926 | J7: 8.34 | K7: 0.0606 | L7: 23.8 | M7: 18.675 | N7: 15.666 | O7: 38.888 | Q7: 19587
A8: BG-109a | B8: 32 | C8: =[1]!AgePb76(H8/G8) -> 4983.825876 | D8: =[1]!AgePb8Th2(I8/L8) -> 19929.79811 | E8: =[1]!AgePb7U5(H8/K8) -> 5356.347238 | F8: =[1]!AgePb6U8(G8/J8) -> 6377.480941 | G8: 18.752 | H8: 15.671 | I8: 38.821 | J8: 11.1 | K8: 0.0806 | L8: 23.1 | M8: 18.697 | N8: 15.669 | O8: 38.784 | Q8: 18463
A9: BG-109b | B9: 32 | C9: =[1]!AgePb76(H9/G9) -> 4983.583762 | D9: =[1]!AgePb8Th2(I9/L9) -> 22073.31737 | E9: =[1]!AgePb7U5(H9/K9) -> 5510.39126 | F9: =[1]!AgePb6U8(G9/J9) -> 7017.230012 | G9: 18.754 | H9: 15.67 | I9: 38.817 | J9: 9.52 | K9: 0.0692 | L9: 19.6 | M9: 18.707 | N9: 15.668 | O9: 38.786 | Q9: 16656
A10: BG-109b | B10: 32 | C10: =[1]!AgePb76(H10/G10) -> 4983.947598 | D10: =[1]!AgePb8Th2(I10/L10) -> 22071.93333 | E10: =[1]!AgePb7U5(H10/K10) -> 5510.326745 | F10: =[1]!AgePb6U8(G10/J10) -> 7015.861879 | G10: 18.748 | H10: 15.669 | I10: 38.813 | J10: 9.52 | K10: 0.0692 | L10: 19.6 | M10: 18.701 | N10: 15.667 | O10: 38.782 | Q10: 15846
A11: Shoshonites | Q11: 15447
A12: BG-60 | B12: 32 | G12: n.d. | H12: n.d. | I12: n.d. | Q12: 14832
A13: BG-103 | B13: 32 | C13: =[1]!AgePb76(H13/G13) -> 4979.998143 | D13: =[1]!AgePb8Th2(I13/L13) -> 15446.83693 | E13: =[1]!AgePb7U5(H13/K13) -> 5513.510762 | F13: =[1]!AgePb6U8(G13/J13) -> 7042.362598 | G13: 18.805 | H13: 15.673 | I13: 38.895 | J13: 9.49 | K13: 0.069 | L13: 33.9 | M13: 18.758 | N13: 15.671 | O13: 38.841 | Q13: 14380
A14: BG-103 | B14: 32 | G14: n.d. | H14: n.d. | I14: n.d. | Q14: 14358
A15: BG-113 | B15: 32 | C15: =[1]!AgePb76(H15/G15) -> 4976.046853 | D15: =[1]!AgePb8Th2(I15/L15) -> 16656.3809 | E15: =[1]!AgePb7U5(H15/K15) -> 5143.295377 | F15: =[1]!AgePb6U8(G15/J15) -> 5581.973717 | G15: 18.867 | H15: 15.681 | I15: 38.905 | J15: 13.7 | K15: 0.0996 | L15: 30.4 | M15: 18.799 | N15: 15.677 | O15: 38.857 | Q15: 14357
A16: BG-46 | B16: 32 | C16: =[1]!AgePb76(H16/G16) -> 4977.732938 | D16: =[1]!AgePb8Th2(I16/L16) -> 14831.72918 | E16: =[1]!AgePb7U5(H16/K16) -> 4828.515475 | F16: =[1]!AgePb6U8(G16/J16) -> 4490.510515 | G16: 18.829 | H16: 15.668 | I16: 38.879 | J16: 18.7 | K16: 0.136 | L16: 35.9 | M16: 18.736 | N16: 15.663 | O16: 38.822 | Q16: 14122
A17: Medium/high-K | B17: 32 | Q17: 14019
A18: BG-62 | B18: 32 | C18: =[1]!AgePb76(H18/G18) -> 4978.397872 | D18: =[1]!AgePb8Th2(I18/L18) -> 13934.36957 | E18: =[1]!AgePb7U5(H18/K18) -> 5346.75693 | F18: =[1]!AgePb6U8(G18/J18) -> 6358.204049 | G18: 18.831 | H18: 15.677 | I18: 38.907 | J18: 11.2 | K18: 0.0814 | L18: 39.2 | M18: 18.775 | N18: 15.674 | O18: 38.845 | Q18: 13934
A19: BG-58 | B19: 32 | C19: =[1]!AgePb76(H19/G19) -> 4978.383597 | D19: =[1]!AgePb8Th2(I19/L19) -> 14019.39967 | E19: =[1]!AgePb7U5(H19/K19) -> 5274.35427 | F19: =[1]!AgePb6U8(G19/J19) -> 6085.226415 | G19: 18.842 | H19: 15.686 | I19: 38.936 | J19: 12 | K19: 0.0875 | L19: 38.9 | M19: 18.782 | N19: 15.684 | O19: 38.874 | Q19: 13550
A20: BG-78 | B20: 32 | C20: =[1]!AgePb76(H20/G20) -> 4978.186236 | D20: =[1]!AgePb8Th2(I20/L20) -> 12209.8618 | E20: =[1]!AgePb7U5(H20/K20) -> 5150.917611 | F20: =[1]!AgePb6U8(G20/J20) -> 5601.826214 | G20: 18.829 | H20: 15.673 | I20: 38.907 | J20: 13.6 | K20: 0.0988 | L20: 46.9 | M20: 18.761 | N20: 15.67 | O20: 38.833 | Q20: 13531
A21: BG-78* | B21: 32 | Q21: 13165
A22: BG-56 | B22: 32 | C22: =[1]!AgePb76(H22/G22) -> 4984.960783 | D22: =[1]!AgePb8Th2(I22/L22) -> 12722.1687 | E22: =[1]!AgePb7U5(H22/K22) -> 5234.111713 | F22: =[1]!AgePb6U8(G22/J22) -> 5905.34541 | G22: 18.743 | H22: 15.676 | I22: 39.006 | J22: 12.5 | K22: 0.091 | L22: 44.5 | M22: 18.681 | N22: 15.674 | O22: 38.935 | Q22: 12722
A23: BG-67 | B23: 32 | C23: =[1]!AgePb76(H23/G23) -> 4978.171561 | D23: =[1]!AgePb8Th2(I23/L23) -> 14358.32622 | E23: =[1]!AgePb7U5(H23/K23) -> 5325.879075 | F23: =[1]!AgePb6U8(G23/J23) -> 6287.534334 | G23: 18.834 | H23: 15.677 | I23: 38.907 | J23: 11.4 | K23: 0.0831 | L23: 37.6 | M23: 18.777 | N23: 15.674 | O23: 38.847 | Q23: 12210
A24: BG-67* | B24: 32 | C24: =[1]!AgePb76(H24/G24) -> 4978.231807 | D24: =[1]!AgePb8Th2(I24/L24) -> 14357.26944 | E24: =[1]!AgePb7U5(H24/K24) -> 5325.814645 | F24: =[1]!AgePb6U8(G24/J24) -> 6287.107885 | G24: 18.832 | H24: 15.676 | I24: 38.903 | J24: 11.4 | K24: 0.0831 | L24: 37.6 | M24: 18.775 | N24: 15.673 | O24: 38.843 | Q24: 12151
A25: BG-59 | B25: 32 | C25: =[1]!AgePb76(H25/G25) -> 4978.911193 | D25: =[1]!AgePb8Th2(I25/L25) -> 13164.57618 | E25: =[1]!AgePb7U5(H25/K25) -> 5427.057914 | F25: =[1]!AgePb6U8(G25/J25) -> 6701.629952 | G25: 18.829 | H25: 15.681 | I25: 38.926 | J25: 10.3 | K25: 0.0752 | L25: 42.4 | M25: 18.778 | N25: 15.679 | O25: 38.859 | Q25: 9952
A26: BG-82 | B26: 32 | C26: =[1]!AgePb76(H26/G26) -> 4980.571973 | D26: =[1]!AgePb8Th2(I26/L26) -> 14122.08653 | E26: =[1]!AgePb7U5(H26/K26) -> 5265.986685 | F26: =[1]!AgePb6U8(G26/J26) -> 6045.300518 | G26: 18.807 | H26: 15.681 | I26: 38.928 | J26: 12.1 | K26: 0.0882 | L26: 38.5 | M26: 18.746 | N26: 15.678 | O26: 38.868 | Q26: 9526
A27: BG-52 | B27: 32 | C27: =[1]!AgePb76(H27/G27) -> 4977.551575 | D27: =[1]!AgePb8Th2(I27/L27) -> 13549.95269 | E27: =[1]!AgePb7U5(H27/K27) -> 5245.745277 | F27: =[1]!AgePb6U8(G27/J27) -> 5954.234828 | G27: 18.829 | H27: 15.666 | I27: 38.868 | J27: 12.4 | K27: 0.0899 | L27: 40.7 | M27: 18.767 | N27: 15.663 | O27: 38.804 | Q27: 9362
A28: BG-52* | B28: 32 | C28: =[1]!AgePb76(H28/G28) -> 4977.793813 | D28: =[1]!AgePb8Th2(I28/L28) -> 13531.31937 | E28: =[1]!AgePb7U5(H28/K28) -> 5246.131871 | F28: =[1]!AgePb6U8(G28/J28) -> 5955.060471 | G28: 18.833 | H28: 15.672 | I28: 38.89 | J28: 12.4 | K28: 0.0899 | L28: 40.8 | M28: 18.771 | N28: 15.669 | O28: 38.825 | Q28: 8497
A29: BG-92 | B29: 32 | C29: =[1]!AgePb76(H29/G29) -> 4979.877248 | D29: =[1]!AgePb8Th2(I29/L29) -> 15845.80821 | E29: =[1]!AgePb7U5(H29/K29) -> 5322.432621 | F29: =[1]!AgePb6U8(G29/J29) -> 6248.480929 | G29: 18.815 | H29: 15.68 | I29: 38.918 | J29: 11.5 | K29: 0.0834 | L29: 32.7 | M29: 18.758 | N29: 15.678 | O29: 38.866 | Q29: 7830
A30: BG-117 | B30: 32 | G30: n.d. | H30: n.d. | I30: n.d. | Q30: 7586
A31: BG-107 | B31: 32 | C31: =[1]!AgePb76(H31/G31) -> 4984.809242 | D31: =[1]!AgePb8Th2(I31/L31) -> 18462.57881 | E31: =[1]!AgePb7U5(H31/K31) -> 5843.573103 | F31: =[1]!AgePb6U8(G31/J31) -> 8497.330331 | G31: 18.745 | H31: 15.676 | I31: 38.964 | J31: 6.85 | K31: 0.0498 | L31: 26.1 | M31: 18.711 | N31: 15.674 | O31: 38.923 | Q31: 7484
A32: BG-61 | B32: 32 | C32: =[1]!AgePb76(H32/G32) -> 4977.658854 | D32: =[1]!AgePb8Th2(I32/L32) -> 9361.94044 | E32: =[1]!AgePb7U5(H32/K32) -> 4980.732882 | F32: =[1]!AgePb6U8(G32/J32) -> 4995.134711 | G32: 18.842 | H32: 15.678 | I32: 38.941 | J32: 16.1 | K32: 0.117 | L32: 66.1 | M32: 18.762 | N32: 15.674 | O32: 38.836 | Q32: 7042
A33: BG-64 | B33: 32 | C33: =[1]!AgePb76(H33/G33) -> 4980.088777 | D33: =[1]!AgePb8Th2(I33/L33) -> 12151.05789 | E33: =[1]!AgePb7U5(H33/K33) -> 5221.853481 | F33: =[1]!AgePb6U8(G33/J33) -> 5856.852667 | G33: 18.805 | H33: 15.674 | I33: 38.905 | J33: 12.7 | K33: 0.0921 | L33: 47.2 | M33: 18.742 | N33: 15.672 | O33: 38.83 | Q33: 7017
A34: BG-64* | B34: 32 | Q34: 7016
A35: BG-72 | B35: 32 | C35: =[1]!AgePb76(H35/G35) -> 4981.161752 | D35: =[1]!AgePb8Th2(I35/L35) -> 14380.42631 | E35: =[1]!AgePb7U5(H35/K35) -> 5616.923942 | F35: =[1]!AgePb6U8(G35/J35) -> 7483.561366 | G35: 18.792 | H35: 15.675 | I35: 38.887 | J35: 8.57 | K35: 0.0623 | L35: 37.5 | M35: 18.75 | N35: 15.673 | O35: 38.828 | Q35: 6702
A36: BG-72* | B36: 32 | Q36: 6444
A37: Alkaline basalts | B37: 32 | Q37: 6377
A38: BG-49 | B38: 32 | C38: =[1]!AgePb76(H38/G38) -> 4962.876901 | D38: =[1]!AgePb8Th2(I38/L38) -> 6324.328393 | E38: =[1]!AgePb7U5(H38/K38) -> 4438.974201 | F38: =[1]!AgePb6U8(G38/J38) -> 3388.35065 | G38: 18.988 | H38: 15.636 | I38: 38.893 | J38: 27.459 | K38: 0.2 | L38: 105.866 | M38: 18.869 | N38: 15.631 | O38: 38.746 | Q38: 6358
A39: BG-110 | B39: 32 | C39: =[1]!AgePb76(H39/G39) -> 4968.530472 | D39: =[1]!AgePb8Th2(I39/L39) -> 6443.75938 | E39: =[1]!AgePb7U5(H39/K39) -> 4572.762803 | F39: =[1]!AgePb6U8(G39/J39) -> 3741.879961 | G39: 18.909 | H39: 15.633 | I39: 38.864 | J39: 24.031 | K39: 0.175 | L39: 103.504 | M39: 18.804 | N39: 15.628 | O39: 38.721 | Q39: 6324
Q40: 6288
Q41: 6287
Q42: 6248
Q43: 6147
Q44: 6085
A45: Sample | B45: 176Lu/177Hf | C45: 87Rb/86Sr | D45: 147Sm/144Nd | E45: 207Pb/206Pb | F45: 208Pb/232Th | G45: 207Pb/235U | H45: 206Pb/238U | Q45: 6060
A46: BG-99a | B46: 32 | C46: 32 | D46: 32 | E46: 4986.966219 | F46: 19693.82014 | G46: 6059.878309 | H46: 9525.818376 | Q46: 6045
A47: BG-102 | B47: 32 | C47: 32 | D47: 32 | E47: 4986.449669 | F47: 19856.16651 | G47: 5699.397679 | H47: 7829.893358 | Q47: 5955
A48: BG-99b | B48: 32 | C48: 32 | D48: 32 | E48: 4987.027414 | F48: 20130.26175 | G48: 6146.573404 | H48: 9951.612366 | Q48: 5954
A49: BG-101 | B49: 32 | C49: 32 | D49: 32 | E49: 4986.28315 | F49: 19587.4776 | G49: 5644.454584 | H49: 7586.43401 | Q49: 5905
A50: BG-109a | B50: 32 | C50: 32 | D50: 32 | E50: 4983.825876 | F50: 19929.79811 | G50: 5356.347238 | H50: 6377.480941 | Q50: 5857
A51: BG-109b | B51: 32 | C51: 32 | D51: 32 | E51: 4983.583762 | F51: 22073.31737 | G51: 5510.39126 | H51: 7017.230012 | Q51: 5844
A52: BG-109b | B52: 32 | C52: 32 | D52: 32 | E52: 4983.947598 | F52: 22071.93333 | G52: 5510.326745 | H52: 7015.861879 | Q52: 5699
A53: BG-103 | B53: 32 | C53: 32 | D53: 32 | E53: 4979.998143 | F53: 15446.83693 | G53: 5513.510762 | H53: 7042.362598 | Q53: 5644
A54: BG-113 | B54: 32 | C54: 32 | D54: 32 | E54: 4976.046853 | F54: 16656.3809 | G54: 5143.295377 | H54: 5581.973717 | Q54: 5617
A55: BG-46 | B55: 32 | C55: 32 | D55: 32 | E55: 4977.732938 | F55: 14831.72918 | G55: 4828.515475 | H55: 4490.510515 | Q55: 5602
A56: BG-62 | B56: 32 | C56: 32 | D56: 32 | E56: 4978.397872 | F56: 13934.36957 | G56: 5346.75693 | H56: 6358.204049 | Q56: 5582
A57: BG-58 | B57: 32 | C57: 32 | D57: 32 | E57: 4978.383597 | F57: 14019.39967 | G57: 5274.35427 | H57: 6085.226415 | Q57: 5514
A58: BG-78 | B58: 32 | C58: 32 | D58: 32 | E58: 4978.186236 | F58: 12209.8618 | G58: 5150.917611 | H58: 5601.826214 | Q58: 5510
A59: BG-56 | B59: 32 | C59: 32 | D59: 32 | E59: 4984.960783 | F59: 12722.1687 | G59: 5234.111713 | H59: 5905.34541 | Q59: 5510
A60: BG-67 | B60: 32 | C60: 32 | D60: 32 | E60: 4978.171561 | F60: 14358.32622 | G60: 5325.879075 | H60: 6287.534334 | Q60: 5427
A61: BG-67* | B61: 32 | C61: 32 | D61: 32 | E61: 4978.231807 | F61: 14357.26944 | G61: 5325.814645 | H61: 6287.107885 | Q61: 5356
A62: BG-59 | B62: 32 | C62: 32 | D62: 32 | E62: 4978.911193 | F62: 13164.57618 | G62: 5427.057914 | H62: 6701.629952 | Q62: 5347
A63: BG-82 | B63: 32 | C63: 32 | D63: 32 | E63: 4980.571973 | F63: 14122.08653 | G63: 5265.986685 | H63: 6045.300518 | Q63: 5326
A64: BG-52 | B64: 32 | C64: 32 | D64: 32 | E64: 4977.551575 | F64: 13549.95269 | G64: 5245.745277 | H64: 5954.234828 | Q64: 5326
A65: BG-52* | B65: 32 | C65: 32 | D65: 32 | E65: 4977.793813 | F65: 13531.31937 | G65: 5246.131871 | H65: 5955.060471 | Q65: 5322
A66: BG-92 | B66: 32 | C66: 32 | D66: 32 | E66: 4979.877248 | F66: 15845.80821 | G66: 5322.432621 | H66: 6248.480929 | Q66: 5274
A67: BG-107 | B67: 32 | C67: 32 | D67: 32 | E67: 4984.809242 | F67: 18462.57881 | G67: 5843.573103 | H67: 8497.330331 | Q67: 5266
A68: BG-61 | B68: 32 | C68: 32 | D68: 32 | E68: 4977.658854 | F68: 9361.94044 | G68: 4980.732882 | H68: 4995.134711 | Q68: 5246
A69: BG-64 | B69: 32 | C69: 32 | D69: 32 | E69: 4980.088777 | F69: 12151.05789 | G69: 5221.853481 | H69: 5856.852667 | Q69: 5246
A70: BG-72 | B70: 32 | C70: 32 | D70: 32 | E70: 4981.161752 | F70: 14380.42631 | G70: 5616.923942 | H70: 7483.561366 | Q70: 5234
A71: BG-49 | B71: 28 | C71: 32 | D71: 28 | E71: 4962.876901 | F71: 6324.328393 | G71: 4438.974201 | H71: 3388.35065 | Q71: 5222
A72: BG-110 | B72: 28 | C72: 32 | D72: 28 | E72: 4969 | F72: 6444 | G72: 4573 | H72: 3742 | Q72: 5151
A73: Average | B73: =AVERAGE(B46:B72) -> 31.7037037 | C73: 32 | D73: 31.7037037 | E73: 4979.944252 | F73: 15156.1923 | G73: 5342.701372 | H73: 6437.494759 | Q73: 5143
A74: Maximum | B74: =MAX(B46:B73) -> 32 | C74: 32 | D74: 32 | E74: 4987.027414 | F74: 22073.31737 | G74: 6146.573404 | H74: 9951.612366 | Q74: 4995
A75: Minimum | B75: =MIN(B46:B74) -> 28 | C75: 32 | D75: 28 | E75: 4962.876901 | F75: 6324.328393 | G75: 4438.974201 | H75: 3388.35065 | Q75: 4987
A76: Difference | B76: =B74-B75 -> 4 | C76: 0 | D76: 4 | E76: 24.15051224 | F76: 15748.98898 | G76: 1707.599203 | H76: 6563.261716 | Q76: 4987
A77: Accuracy | B77: =1-(B76/B73) -> 0.8738317757 | C77: 1 | D77: 0.8738317757 | E77: 0.9951504453 | F77: -0.03911250745 | G77: 0.6803865527 | H77: -0.0195366306 | Q77: 4986
Q78: 4986
Q79: 4985
Q80: 4985
Q81: 4984
Q82: 4984
Q83: 4984
Q84: 4981
Q85: 4981
Q86: 4981
Q87: 4980
Q88: 4980
Q89: 4980
Q90: 4979
Q91: 4978
Q92: 4978
Q93: 4978
Q94: 4978
Q95: 4978
Q96: 4978
Q97: 4978
Q98: 4978
Q99: 4978
Q100: 4976
Q101: 4969
Q102: 4963
Q103: 4829
Q104: 4573
Q105: 4491
Q106: 4439
Q107: 3742
Q108: 3388

Sheet H29
A1: Table 2 | B1: 1949 Eruption
A2: Sample | B2: 206Pb/204Pb | C2: 207Pb/204Pb | D2: 208Pb/204Pb | E2: l | F2: j | G2: (206Pb/204Pb)T | H2: (207Pb/204Pb)T | I2: (208Pb/204Pb)T
A3: Sediment | J3: 207Pb/206Pb | K3: Age
A4: 917c | B4: 19.059 | C4: 15.699 | D4: 39.299 | E4: 8.67 | F4: 7.2 | G4: 18.83 | H4: 15.69 | I4: 38.77 | J4: =(C4/B4) -> 0.8237053361 | K4: =[1]!AgePb76(J4) -> 4963.287519 | L4: =K4/49 -> 101.291582
A5: 91249 | B5: 18.922 | C5: 15.7 | D5: 39.177 | E5: 1.31 | F5: 6.09 | G5: 18.89 | H5: 15.7 | I5: 39.11 | J5: =(C5/B5) -> 0.8297220167 | K5: =[1]!AgePb76(J5) -> 4973.631392 | L5: =K5/49 -> 101.5026815
A6: DSDP397-60-4 | B6: 19.018 | C6: 15.745 | D6: 39.201 | E6: 6.57 | F6: 4.4 | G6: 18.84 | H6: 15.74 | I6: 38.96 | J6: 0.8278998843 | K6: =[1]!AgePb76(J6) -> 4970.507222 | L6: 101.4389229
A7: DSDP397-101-1 | B7: 18.903 | C7: 15.699 | D7: 39.092 | E7: 21.4 | F7: 1.68 | G7: 18.33 | H7: 15.67 | I7: 38.79 | J7: 0.8305030947 | K7: =[1]!AgePb76(J7) -> 4974.968371 | L7: 101.5299668
A8: DSDP397-30-1 | B8: 18.975 | C8: 15.726 | D8: 39.015 | E8: 10.4 | F8: 3.4 | G8: 18.7 | H8: 15.71 | I8: 38.72 | J8: 0.8287747036 | K8: =[1]!AgePb76(J8) -> 4972.008071 | L8: 101.4695525
A9: DSDP397-40-2 | B9: 18.949 | C9: 15.701 | D9: 39.183 | E9: 17.6 | F9: 2.16 | G9: 18.48 | H9: 15.68 | I9: 38.86 | J9: 0.8285925379 | K9: =[1]!AgePb76(J9) -> 4971.695684 | L9: 101.4631772
A10: DSDP397-49-1 | B10: 18.951 | C10: 15.695 | D10: 39.182 | E10: 15.3 | F10: 2.61 | G10: 18.54 | H10: 15.68 | I10: 38.85 | J10: 0.8281884861 | K10: =[1]!AgePb76(J10) -> 4971.002537 | L10: 101.4490314
A11: Basalt
A12: 303905 | B12: 18.155 | C12: 15.605 | D12: 38.078 | E12: 14.2 | F12: 4.72 | G12: 17.77 | H12: 15.59 | I12: 37.51 | J12: 0.8595428257 | K12: =[1]!AgePb76(J12) -> 5023.749867 | L12: 102.5255075
A13: 303906 | B13: 18.385 | C13: 15.597 | D13: 38.246 | E13: 5.87 | F13: 3.95 | G13: 18.23 | H13: 15.59 | I13: 38.05 | J13: 0.8483546369 | K13: =[1]!AgePb76(J13) -> 5005.166042 | L13: 102.1462458
A14: B9117.1 | B14: 18.443 | C14: 15.596 | D14: 38.456 | E14: 21.6 | F14: 3.94 | G14: 17.87 | H14: 15.57 | I14: 37.74 | J14: 0.8456324893 | K14: =[1]!AgePb76(J14) -> 5000.605121 | L14: 102.0531657
A15: B9117.1 | B15: 18.447 | C15: 15.58 | D15: 38.401 | J15: 0.8445817748 | K15: =[1]!AgePb76(J15) -> 4998.840491 | L15: 102.0171529
A16: B9117.2 | B16: 19.357 | C16: 15.663 | D16: 39.553 | E16: 25.4 | F16: 5.23 | G16: 18.68 | H16: 15.63 | I16: 38.43 | J16: 0.8091646433 | K16: =[1]!AgePb76(J16) -> 4937.953804 | L16: 100.7745674
A17: B9117.3 | B17: 20.753 | C17: 15.728 | D17: 41.303 | E17: 65.5 | F17: 5.87 | G17: 19 | H17: 15.64 | I17: 38.06 | J17: 0.7578663326 | K17: =[1]!AgePb76(J17) -> 4844.542969 | L17: 98.86822386
A18: Gabbro
A19: 303903 | B19: 18.221 | C19: 15.591 | D19: 38.097 | E19: 5.83 | F19: 4.96 | G19: 18.06 | H19: 15.58 | I19: 37.85 | J19: 0.8556610504 | K19: =[1]!AgePb76(J19) -> 5017.331404 | L19: 102.3945185
A20: B913 | B20: 19.067 | C20: 15.62 | D20: 38.841 | E20: 5.3 | F20: 4 | G20: 18.93 | H20: 15.61 | I20: 38.66 | J20: 0.8192164473 | K20: =[1]!AgePb76(J20) -> 4955.517769 | L20: 101.1330157
A21: B914 | B21: 18.664 | C21: 15.638 | D21: 38.486 | E21: 3.11 | F21: 6.2 | G21: 18.58 | H21: 15.63 | I21: 38.32 | J21: 0.8378696957 | K21: =[1]!AgePb76(J21) -> 4987.51251 | L21: 101.7859696
A22: B914 | B22: 18.545 | C22: 15.576 | D22: 38.255 | E22: 0 | F22: 18.54 | G22: 15.58 | H22: 38.03 | J22: 0.8399029388 | K22: =[1]!AgePb76(J22) -> 4990.954165 | L22: 101.8562075
A23: Pliocene Basalts
A24: RNB60 | B24: 18.994 | C24: 15.525 | D24: 39.039 | J24: 0.8173633779 | K24: =[1]!AgePb76(J24) -> 4952.297109 | L24: 101.0672879
A25: RN1249 | B25: 18.931 | C25: 15.509 | D25: 38.988 | E25: 24.9 | F25: 4.63 | G25: 18.91 | H25: 15.51 | I25: 38.96 | J25: 0.8192382864 | K25: =[1]!AgePb76(J25) -> 4955.555679 | L25: 101.1337894
B27: Pb Age (Ma) | C27: Pb Age (Ma) | D27: Pb Age (Ma) | E27: Pb Age (Ma)
B28: Sediment | C28: Basalt | D28: Gabbro | E28: Pliocene Basalts | H28: Pb Age (Ma) | I28: Eruption | J28: Age Ratio 106 | K28: Dated | L28: Erupted
B29: 4963 | C29: 5024 | D29: 5017 | E29: 4952 | H29: 4963 | I29: 1949 | J29: =H29/49 -> 101.2857143 | K29: 1998 | L29: 1949
B30: 4974 | C30: 5005 | D30: 4956 | E30: 4956 | H30: 4974 | I30: 1949 | J30: =H30/49 -> 101.5102041
B31: 4971 | C31: 5001 | D31: 4988 | H31: 4971 | I31: 1949 | J31: 101.4489796
B32: 4975 | C32: 4999 | D32: 4991 | H32: 4975 | I32: 1949 | J32: 101.5306122
B33: 4972 | C33: 4938 | H33: 4972 | I33: 1949 | J33: 101.4693878
B34: 4972 | C34: 4845 | H34: 4972 | I34: 1949 | J34: 101.4693878
B35: 4971 | H35: 4971 | I35: 1949 | J35: 101.4489796
H36: 5024 | I36: 1949 | J36: 102.5306122
H37: 5005 | I37: 1949 | J37: 102.1428571
H38: 5001 | I38: 1949 | J38: 102.0612245
H39: 4999 | I39: 1949 | J39: 102.0204082
H40: 4938 | I40: 1949 | J40: 100.7755102
H41: 4845 | I41: 1949 | J41: 98.87755102
H42: 5017 | I42: 1949 | J42: 102.3877551
H43: 4956 | I43: 1949 | J43: 101.1428571
H44: 4988 | I44: 1949 | J44: 101.7959184
H45: 4991 | I45: 1949 | J45: 101.8571429
N48: Sample | O48: 207Pb/206Pb | P48: 147Sm/144Nd | Q48: 87Rb/86Sr | R48: 207Pb/206Pb | S48: 147Sm/144Nd | T48: 87Rb/86Sr
A49: Table 2 | N49: Number | O49: Age (Ma) | P49: Age (Ma) | Q49: Age (Ma) | R49: Error Ratio 106 | S49: Error Ratio 106 | T49: Error Ratio 106
A50: Initial | B50: Today | C50: Today | D50: Age | E50: Half | F50: Decay | G50: 2.303/Delta | H50: Age | I50: Age | J50: Age | N50: 917c | O50: 4963.287519 | P50: 172 | Q50: 170 | R50: =O50/49 -> 101.291582 | S50: =P50/49 -> 3.510204082 | T50: 3.469387755
A51: 87Sr/86Sr | B51: 87Sr/86Sr | C51: 87Rb/86Sr | D51: Years | E51: Life | F51: Constant | G51: Constant | H51: Years | I51: Million Years | J51: Billion Years | K51: Sample | N51: 91249 | O51: 4973.631392 | P51: 174 | Q51: 170 | R51: =O51/49 -> 101.5026815 | S51: =P51/49 -> 3.551020408 | T51: =Q51/49 -> 3.469387755
A52: 0.70768 | B52: 0.709643 | C52: 0.81 | D52: =1+((B52-A52)/C52) -> 1.002423457 | E52: 48800000000 | F52: =(0.693/E52) -> 1.420081967e-11 | G52: 1.621737374e+11 | H52: =(LOG(D52))*(G52) -> 170480378.5 | I52: =(H52/1000000) -> 170.4803785 | J52: =(I52/1000) -> 0.1704803785 | K52: 917c | N52: DSDP397-60-4 | O52: 4970.507222 | P52: 174 | Q52: 170 | R52: 101.4389229 | S52: 3.551020408 | T52: 3.469387755
A53: 0.71275 | B53: 0.715426 | C53: 1.11 | D53: =1+((B53-A53)/C53) -> 1.002410811 | E53: 48800000000 | F53: =(0.693/E53) -> 1.420081967e-11 | G53: 1.621737374e+11 | H53: =(LOG(D53))*(G53) -> 169591855.2 | I53: =(H53/1000000) -> 169.5918552 | J53: =(I53/1000) -> 0.1695918552 | K53: 91249 | N53: DSDP397-101-1 | O53: 4974.968371 | P53: 167 | Q53: 171 | R53: 101.5299668 | S53: 3.408163265 | T53: 3.489795918
A54: 0.70737 | B54: 0.710291 | C54: 1.21 | D54: 1.00241405 | E54: 48800000000 | F54: 1.420081967e-11 | G54: 1.621737374e+11 | H54: 169819417 | I54: 169.819417 | J54: 0.169819417 | K54: DSDP397-60-4 | N54: DSDP397-30-1 | O54: 4972.008071 | P54: 172 | Q54: 170 | R54: 101.4695525 | S54: 3.510204082 | T54: 3.469387755
A55: 0.7234 | B55: 0.723619 | C55: 0.09 | D55: 1.002433333 | E55: 48800000000 | F55: 1.420081967e-11 | G55: 1.621737374e+11 | H55: 171174309.8 | I55: 171.1743098 | J55: 0.1711743098 | K55: DSDP397-101-1 | N55: DSDP397-40-2 | O55: 4971.695684 | P55: 168 | Q55: 166 | R55: 101.4631772 | S55: 3.428571429 | T55: 3.387755102
A56: 0.70579 | B56: 0.709362 | C56: 1.48 | D56: 1.002413514 | E56: 48800000000 | F56: 1.420081967e-11 | G56: 1.621737374e+11 | H56: 169781751.7 | I56: 169.7817517 | J56: 0.1697817517 | K56: DSDP397-30-1 | N56: DSDP397-49-1 | O56: 4971.002537 | P56: 177 | Q56: 165 | R56: 101.4490314 | S56: 3.612244898 | T56: 3.367346939
A57: 0.70908 | B57: 0.709363 | C57: 0.12 | D57: 1.002358333 | E57: 48800000000 | F57: 1.420081967e-11 | G57: 1.621737374e+11 | H57: 165904598.2 | I57: 165.9045982 | J57: 0.1659045982 | K57: DSDP397-40-2 | N57: 303905 | O57: 5023.749867 | P57: 170 | Q57: 151 | R57: 102.5255075 | S57: 3.469387755 | T57: 3.081632653
A58: 0.70903 | B58: 0.709288 | C58: 0.11 | D58: 1.002345455 | E58: 48800000000 | F58: 1.420081967e-11 | G58: 1.621737374e+11 | H58: 164999658.6 | I58: 164.9996586 | J58: 0.1649996586 | K58: DSDP397-49-1 | N58: 303906 | O58: 5005.166042 | P58: 172 | Q58: 168 | R58: 102.1462458 | S58: 3.510204082 | T58: 3.428571429
A59: 0.7052 | B59: 0.705243 | C59: 0.02 | D59: 1.00215 | E59: 48800000000 | F59: 1.420081967e-11 | G59: 1.621737374e+11 | H59: 151264441.3 | I59: 151.2644413 | J59: 0.1512644413 | K59: 303905 | N59: B9117.1 | O59: 5000.605121 | P59: 166 | Q59: 225 | R59: 102.0531657 | S59: 3.387755102 | T59: 4.591836735
A60: 0.70367 | B60: 0.704004 | C60: 0.14 | D60: 1.002385714 | E60: 48800000000 | F60: 1.420081967e-11 | G60: 1.621737374e+11 | H60: 167828506.9 | I60: 167.8285069 | J60: 0.1678285069 | K60: 303906 | N60: B9117.1 | O60: 4998.840491 | Q60: 204 | R60: 102.0171529 | T60: 4.163265306
A61: 0.70283 | B61: 0.702862 | C61: 0.01 | D61: 1.0032 | E61: 48800000000 | F61: 1.420081967e-11 | G61: 1.621737374e+11 | H61: 225019869.5 | I61: 225.0198695 | J61: 0.2250198695 | K61: B9117.1 | N61: B9117.2 | O61: 4937.953804 | P61: 173 | Q61: 151 | R61: 100.7745674 | S61: 3.530612245 | T61: 3.081632653
A62: 0.70283 | B62: 0.702859 | C62: 0.01 | D62: 1.0029 | E62: 48800000000 | F62: 1.420081967e-11 | G62: 1.621737374e+11 | H62: 203954770.1 | I62: 203.9547701 | J62: 0.2039547701 | K62: B9117.2 | N62: B9117.3 | O62: 4844.542969 | P62: 174 | Q62: 253 | R62: 98.86822386 | S62: 3.551020408 | T62: 5.163265306
A63: 0.70288 | B63: 0.702923 | C63: 0.02 | D63: 1.00215 | E63: 48800000000 | F63: 1.420081967e-11 | G63: 1.621737374e+11 | H63: 151264441.3 | I63: 151.2644413 | J63: 0.1512644413 | K63: B9117.3 | N63: 303903 | O63: 5017.331404 | P63: 168 | R63: 102.3945185 | S63: 3.428571429
A64: 0.70368 | B64: 0.703716 | C64: 0.01 | D64: 1.0036 | E64: 48800000000 | F64: 1.420081967e-11 | G64: 1.621737374e+11 | H64: 253096871.8 | I64: 253.0968718 | J64: 0.2530968718 | K64: 303903 | N64: B913 | O64: 4955.517769 | P64: 170 | Q64: 172 | R64: 101.1330157 | S64: 3.469387755 | T64: 3.510204082
A65: 0.70413 | B65: 0.704399 | C65: 0.11 | D65: 1.002445455 | E65: 48800000000 | F65: 1.420081967e-11 | G65: 1.621737374e+11 | H65: 172025943.3 | I65: 172.0259433 | J65: 0.1720259433 | K65: B913 | N65: B914 | O65: 4987.51251 | P65: 166 | Q65: 178 | R65: 101.7859696 | S65: 3.387755102 | T65: 3.632653061
A66: 0.70284 | B66: 0.702992 | C66: 0.06 | D66: 1.002533333 | E66: 48800000000 | F66: 1.420081967e-11 | G66: 1.621737374e+11 | H66: 178199978.6 | I66: 178.1999786 | J66: 0.1781999786 | K66: B914 | N66: B914 | O66: 4990.954165 | P66: 162 | Q66: 274 | R66: 101.8562075 | S66: 3.306122449 | T66: 5.591836735
A67: 0.70284 | B67: 0.702879 | C67: 0.01 | D67: 1.0039 | E67: 48800000000 | F67: 1.420081967e-11 | G67: 1.621737374e+11 | H67: 274147280.7 | I67: 274.1472807 | J67: 0.2741472807 | K67: B914 | N67: RNB60 | O67: 4952.297109 | P67: 153 | Q67: 151 | R67: 101.0672879 | S67: 3.12244898 | T67: 3.081632653
A68: 0.7031 | B68: 0.703272 | C68: 0.08 | D68: 1.00215 | E68: 48800000000 | F68: 1.420081967e-11 | G68: 1.621737374e+11 | H68: 151264441.3 | I68: 151.2644413 | J68: 0.1512644413 | K68: 241921B | N68: RN1249 | O68: 4955.555679 | R68: 101.1337894
N69: 241921B | Q69: 151.2644413 | T69: 3.087029415
N70: Average | O70: =AVERAGE(O50:O69) -> 4971.954091 | P70: 169.2941176 | Q70: 181.1258023 | R70: 101.4684508 | S70: 3.454981993 | T70: 3.696444945
N71: Maximum | O71: =MAX(O50:O70) -> 5023.749867 | P71: 177 | Q71: 274 | R71: 102.5255075 | S71: 3.612244898 | T71: 5.591836735
A72: Table 2 | N72: Minimum | O72: =MIN(O50:O71) -> 4844.542969 | P72: 153 | Q72: 151 | R72: 98.86822386 | S72: 3.12244898 | T72: 3.081632653
A73: Initial | B73: Today | C73: Today | D73: The Ratio | E73: Half | F73: Decay | G73: 2.303/Delta | H73: Age | I73: Age | J73: Age | N73: Difference | O73: =O71-O72 -> 179.2068972 | P73: 24 | Q73: 123 | R73: 3.657283615 | S73: 0.4897959184 | T73: 2.510204082
A74: 143Nd/144Nd | B74: 143Nd/144Nd | C74: 147Sm/144Nd | D74: Plus One | E74: Life | F74: Constant | G74: Constant | H74: Years | I74: Million Years | J74: Billion Years | K74: Sample | N74: Accuracy | O74: =1-(O73/O70) -> 0.9639564457 | P74: 0.8582348853 | Q74: 0.3209139811 | R74: 0.9639564457 | S74: 0.8582348853 | T74: 0.3209139811
A75: 0.51185 | B75: 0.511985 | C75: 0.12 | D75: =1+((B75-A75)/C75) -> 1.001125 | E75: 106000000000 | F75: =(0.693/E75) -> 6.537735849e-12 | G75: =(2.303/F75) -> 3.522626263e+11 | H75: =(LOG(D75))*(G75) -> 172012190.4 | I75: =(H75/1000000) -> 172.0121904 | J75: =(I75/1000) -> 0.1720121904 | K75: 917c
A76: 0.51183 | B76: 0.511978 | C76: 0.13 | D76: =1+((B76-A76)/C76) -> 1.001138462 | E76: 106000000000 | F76: =(0.693/E76) -> 6.537735849e-12 | G76: =(2.303/F76) -> 3.522626263e+11 | H76: =(LOG(D76))*(G76) -> 174069285.4 | I76: =(H76/1000000) -> 174.0692854 | J76: =(I76/1000) -> 0.1740692854 | K76: 91249
A77: 0.51184 | B77: 0.511965 | C77: 0.11 | D77: 1.001136364 | E77: 106000000000 | F77: 6.537735849e-12 | G77: 3.522626263e+11 | H77: 173748701 | I77: 173.748701 | J77: 0.173748701 | K77: DSDP397-60-4
A78: 0.51196 | B78: 0.51208 | C78: 0.11 | D78: 1.001090909 | E78: 106000000000 | F78: 6.537735849e-12 | G78: 3.522626263e+11 | H78: 166802540.3 | I78: 166.8025403 | J78: 0.1668025403 | K78: DSDP397-101-1
A79: 0.51154 | B79: 0.511664 | C79: 0.11 | D79: 1.001127273 | E79: 106000000000 | F79: 6.537735849e-12 | G79: 3.522626263e+11 | H79: 172359494.1 | I79: 172.3594941 | J79: 0.1723594941 | K79: DSDP397-30-1
A80: 0.51201 | B80: 0.512131 | C80: 0.11 | D80: 1.0011 | E80: 106000000000 | F80: 6.537735849e-12 | G80: 3.522626263e+11 | H80: 168191797.7 | I80: 168.1917977 | J80: 0.1681917977 | K80: DSDP397-40-2
A81: 0.51203 | B81: 0.512157 | C81: 0.11 | D81: 1.001154545 | E81: 106000000000 | F81: 6.537735849e-12 | G81: 3.522626263e+11 | H81: 176527076.9 | I81: 176.5270769 | J81: 0.1765270769 | K81: DSDP397-49-1
A82: 0.51277 | B82: 0.513004 | C82: 0.21 | D82: 1.001114286 | E82: 106000000000 | F82: 6.537735849e-12 | G82: 3.522626263e+11 | H82: 170374890.9 | I82: 170.3748909 | J82: 0.1703748909 | K82: 303905
A83: 0.51278 | B83: 0.512949 | C83: 0.15 | D83: 1.001126667 | E83: 106000000000 | F83: 6.537735849e-12 | G83: 3.522626263e+11 | H83: 172266879.8 | I83: 172.2668798 | J83: 0.1722668798 | K83: 303906
A84: 0.51278 | B84: 0.512965 | C84: 0.17 | D84: 1.001088235 | E84: 106000000000 | F84: 6.537735849e-12 | G84: 3.522626263e+11 | H84: 166393932.8 | I84: 166.3939328 | J84: 0.1663939328 | K84: B9117.1
A85: 0.51277 | B85: 0.512962 | C85: 0.17 | D85: 1.001129412 | E85: 106000000000 | F85: 6.537735849e-12 | G85: 3.522626263e+11 | H85: 172686367.4 | I85: 172.6863674 | J85: 0.1726863674 | K85: B9117.2
A86: 0.51276 | B86: 0.512954 | C86: 0.17 | D86: 1.001141176 | E86: 106000000000 | F86: 6.537735849e-12 | G86: 3.522626263e+11 | H86: 174484158.3 | I86: 174.4841583 | J86: 0.1744841583 | K86: B9117.3
A87: 0.5128 | B87: 0.513042 | C87: 0.22 | D87: 1.0011 | E87: 106000000000 | F87: 6.537735849e-12 | G87: 3.522626263e+11 | H87: 168191797.7 | I87: 168.1917977 | J87: 0.1681917977 | K87: 303903
A88: 0.51278 | B88: 0.512958 | C88: 0.16 | D88: 1.0011125 | E88: 106000000000 | F88: 6.537735849e-12 | G88: 3.522626263e+11 | H88: 170102006 | I88: 170.102006 | J88: 0.170102006 | K88: B913
A89: 0.51279 | B89: 0.513061 | C89: 0.25 | D89: 1.001084 | E89: 106000000000 | F89: 6.537735849e-12 | G89: 3.522626263e+11 | H89: 165746696.3 | I89: 165.7466963 | J89: 0.1657466963 | K89: B914
A90: 0.5128 | B90: 0.512938 | C90: 0.13 | D90: 1.001061538 | E90: 106000000000 | F90: 6.537735849e-12 | G90: 3.522626263e+11 | H90: 162314084.2 | I90: 162.3140842 | J90: 0.1623140842 | K90: B914
A91: 0.51281 | B91: 0.51298 | C91: 0.17 | D91: =1+((B91-A91)/C91) -> 1.001 | E91: 106000000000 | F91: =(0.693/E91) -> 6.537735849e-12 | G91: 3.522626263e+11 | H91: =(LOG(D91))*(G91) -> 152909272.9 | I91: 152.9092729 | J91: 0.1529092729 | K91: 241921B

Sheet H30
A1: Table 3 | B1: Age
A2: Sample No. | B2: 40Ar/39Ar | C2: Error | D2: 87Sr/86Sr | E2: 2sigma | F2: 143Nd/144Nd | G2: 2sigma | H2: 206Pb/204Pb | I2: 2sigma | J2: 207Pb/204Pb | K2: 2sigma | L2: 208Pb/204Pb | M2: 2sigma
A3: Taburiente | N3: 207Pb/206Pb | O3: Pb Age (Ma)
A4: KLP59 | B4: 533 | C4: 8 | D4: 0.703072 | E4: 2e-06 | F4: 0.512892 | G4: 3e-06 | H4: 19.76 | I4: 0.001 | J4: 15.614 | K4: 0.001 | L4: 39.614 | M4: 0.003 | N4: =(J4/H4) -> 0.7901821862 | O4: =[1]!AgePb76(N4) -> 4904.142689 | P4: 533 | Q4: 4904
A5: KLP63 | B5: 410 | C5: 80 | D5: 0.703078 | E5: 3e-06 | F5: 0.512889 | G5: 3e-06 | H5: 19.722 | I5: 0.001 | J5: 15.614 | K5: 0.001 | L5: 39.567 | M5: 0.002 | N5: =(J5/H5) -> 0.7917046953 | O5: =[1]!AgePb76(N5) -> 4906.886272 | P5: 410 | Q5: 4907
A6: KLP65 | B6: 563 | C6: 8 | D6: 0.70308 | E6: 3e-06 | F6: 0.512892 | G6: 3e-06 | H6: 19.679 | I6: 0.001 | J6: 15.59 | K6: 0.001 | L6: 39.518 | M6: 0.003 | N6: 0.7922150516 | O6: =[1]!AgePb76(N6) -> 4907.804684 | P6: 563 | Q6: 4908
A7: KLP67 | B7: 585 | C7: 10 | D7: 0.70308 | E7: 3e-06 | F7: 0.51289 | G7: 2e-06 | H7: 19.773 | I7: 0.001 | J7: 15.596 | K7: 0.001 | L7: 39.657 | M7: 0.002 | N7: 0.788752339 | O7: =[1]!AgePb76(N7) -> 4901.560955 | P7: 585 | Q7: 4902
A8: KLP73 | B8: 560 | C8: 8 | D8: 0.703098 | E8: 3e-06 | F8: 0.512881 | G8: 2e-06 | H8: 19.947 | I8: 0.001 | J8: 15.624 | K8: 0.001 | L8: 39.758 | M8: 0.002 | N8: 0.7832756806 | O8: =[1]!AgePb76(N8) -> 4891.625992 | P8: 560 | Q8: 4892
A9: KLP77 | B9: 833 | C9: 14 | D9: 0.703095 | E9: 4e-06 | F9: 0.512858 | G9: 3e-06 | H9: 19.805 | I9: 0.002 | J9: 15.639 | K9: 0.002 | L9: 39.667 | M9: 0.006 | N9: 0.7896490785 | O9: =[1]!AgePb76(N9) -> 4903.180691 | P9: 833 | Q9: 4903
A10: Cumbre Nueva
A11: KLP19 | B11: 647 | C11: 10 | D11: 0.703056 | E11: 2e-06 | F11: 0.512896 | G11: 3e-06 | H11: 19.663 | I11: 0.001 | J11: 15.608 | K11: 0.001 | L11: 39.451 | M11: 0.002 | N11: 0.7937751106 | O11: =[1]!AgePb76(N11) -> 4910.608192 | P11: 647 | Q11: 4911
A12: KLP23 | D12: 0.703066 | E12: 3e-06 | F12: 0.512886 | G12: 2e-06 | H12: 19.644 | I12: 0.001 | J12: 15.595 | K12: 0.001 | L12: 39.457 | M12: 0.002 | N12: 0.7938810833 | O12: =[1]!AgePb76(N12) -> 4910.798418 | Q12: 4911
A13: KLP27 | D13: 0.703058 | E13: 2e-06 | F13: 0.512896 | G13: 4e-06 | H13: 19.717 | I13: 0.001 | J13: 15.609 | K13: 0.001 | L13: 39.571 | M13: 0.002 | N13: 0.791651874 | O13: =[1]!AgePb76(N13) -> 4906.791181 | Q13: 4907
A14: KLP35 | D14: 0.703091 | E14: 2e-06 | F14: 0.512885 | G14: 3e-06 | H14: 19.765 | I14: 0.001 | J14: 15.606 | K14: 0.001 | L14: 39.581 | M14: 0.002 | N14: 0.789577536 | O14: =[1]!AgePb76(N14) -> 4903.051539 | Q14: 4903
A15: KLP41 | D15: 0.70311 | E15: 2e-06 | F15: 0.51288 | G15: 2e-06 | H15: 19.942 | I15: 0.002 | J15: 15.622 | K15: 0.002 | L15: 39.726 | M15: 0.004 | N15: 0.7833717782 | O15: =[1]!AgePb76(N15) -> 4891.800955 | Q15: 4892
A16: KLP80 | B16: 834 | C16: 12 | D16: 0.703047 | E16: 2e-06 | F16: 0.512903 | G16: 3e-06 | H16: 19.577 | I16: 0.002 | J16: 15.6 | K16: 0.001 | L16: 39.308 | M16: 0.004 | N16: 0.7968534505 | O16: =[1]!AgePb76(N16) -> 4916.122967 | P16: 834 | Q16: 4916
A17: KLP87 | D17: 0.703075 | E17: 2e-06 | F17: 0.512882 | G17: 2e-06 | H17: 19.911 | I17: 0.001 | J17: 15.626 | K17: 0.001 | L17: 39.717 | M17: 0.003 | N17: 0.7847923259 | O17: =[1]!AgePb76(N17) -> 4894.384658 | Q17: 4894
A18: KLP103 | D18: 0.703017 | E18: 3e-06 | F18: 0.512938 | G18: 2e-06 | H18: 19.286 | I18: 0.002 | J18: 15.556 | K18: 0.001 | L18: 38.942 | M18: 0.003 | N18: 0.8065954578 | O18: =[1]!AgePb76(N18) -> 4933.427305 | Q18: 4933
A19: Bejenado
A20: KLP105 | D20: 0.702987 | E20: 4e-06 | F20: 0.512962 | G20: 2e-06 | H20: 19.157 | I20: 0.002 | J20: 15.542 | K20: 0.001 | L20: 38.849 | M20: 0.003 | N20: 0.811296132 | O20: =[1]!AgePb76(N20) -> 4941.697563 | Q20: 4942
A21: KLP106 | D21: 0.703006 | E21: 3e-06 | F21: 0.512953 | G21: 3e-06 | H21: 19.182 | I21: 0.001 | J21: 15.553 | K21: 0.001 | L21: 38.902 | M21: 0.002 | N21: 0.8108122198 | O21: =[1]!AgePb76(N21) -> 4940.848536 | Q21: 4941
A22: KLP114 | D22: 0.703021 | E22: 3e-06 | F22: 0.512964 | G22: 2e-06 | H22: 19.142 | I22: 0.002 | J22: 15.544 | K22: 0.002 | L22: 38.829 | M22: 0.004 | N22: 0.8120363598 | O22: =[1]!AgePb76(N22) -> 4942.995256 | Q22: 4943
A23: KLP205 | D23: 0.703001 | E23: 2e-06 | F23: 0.512971 | G23: 2e-06 | H23: 19.164 | I23: 0.001 | J23: 15.557 | K23: 0.001 | L23: 38.883 | M23: 0.002 | N23: 0.8117825089 | O23: =[1]!AgePb76(N23) -> 4942.550372 | Q23: 4943
A24: KLP217 | D24: 0.703061 | E24: 2e-06 | F24: 0.512906 | G24: 2e-06 | H24: 19.762 | I24: 0.001 | J24: 15.603 | K24: 0.001 | L24: 39.567 | M24: 0.002 | N24: 0.7895455926 | O24: =[1]!AgePb76(N24) -> 4902.993869 | Q24: 4903
A25: Cumbre Vieja
A26: KLP47 | B26: 123 | C26: 3 | D26: 0.703083 | E26: 2e-06 | F26: 0.512901 | G26: 2e-06 | H26: 19.629 | I26: 0.0007 | J26: 15.585 | K26: 0.001 | L26: 39.396 | M26: 0.002 | N26: 0.7939782974 | O26: =[1]!AgePb76(N26) -> 4910.972897 | P26: 123 | Q26: 4911
A27: KLP52 | B27: 90 | C27: 3 | D27: 0.703087 | E27: 3e-06 | F27: 0.512901 | G27: 3e-06 | H27: 19.544 | I27: 0.0004 | J27: 15.584 | K27: 0 | L27: 39.313 | M27: 0.001 | N27: 0.7973802702 | O27: =[1]!AgePb76(N27) -> 4917.06448 | P27: 90 | Q27: 4917
A28: KLP82 | B28: 120 | C28: 3 | D28: 0.703141 | E28: 3e-06 | F28: 0.512892 | G28: 2e-06 | H28: 19.497 | I28: 0.0005 | J28: 15.582 | K28: 0 | L28: 39.288 | M28: 0.001 | N28: 0.7991998769 | O28: =[1]!AgePb76(N28) -> 4920.31133 | P28: 120 | Q28: 4920
A29: KLP92 | B29: 20 | C29: 2 | D29: 0.703098 | E29: 3e-06 | F29: 0.5129 | G29: 2e-06 | H29: 19.55 | I29: 0.0006 | J29: 15.587 | K29: 0.001 | L29: 39.394 | M29: 0.002 | N29: 0.7972890026 | O29: =[1]!AgePb76(N29) -> 4916.901417 | P29: 20 | Q29: 4917
A30: TLP19-2 | D30: 0.703125 | E30: 3e-06 | F30: 0.512896 | G30: 2e-06 | H30: 19.648 | I30: 0.0006 | J30: 15.588 | K30: 0.001 | L30: 39.438 | M30: 0.002 | N30: 0.7933631922 | O30: =[1]!AgePb76(N30) -> 4909.868523
A31: TLP23-1 | D31: 0.703088 | E31: 3e-06 | F31: 0.512899 | G31: 2e-06 | H31: 19.558 | I31: 0.0006 | J31: 15.591 | K31: 0.001 | L31: 39.294 | M31: 0.002 | N31: 0.7971673995 | O31: =[1]!AgePb76(N31) -> 4916.684125
A32: TLP25-1 | B32: 1677 A.D. | D32: 0.703099 | E32: 3e-06 | F32: 0.512892 | G32: 2e-06 | H32: 19.636 | I32: 0.0006 | J32: 15.594 | K32: 0.001 | L32: 39.426 | M32: 0.002 | N32: 0.7941535954 | O32: =[1]!AgePb76(N32) -> 4911.287465
A33: TLP38-1 | D33: 0.703117 | E33: 3e-06 | F33: 0.512887 | G33: 2e-06 | H33: 19.66 | I33: 0.0006 | J33: 15.596 | K33: 0.001 | L33: 39.472 | M33: 0.002 | N33: 0.7932858596 | O33: =[1]!AgePb76(N33) -> 4909.729614
A34: TLP43-1 | B34: 1646 A.D. | D34: 0.703108 | E34: 3e-06 | F34: 0.512891 | G34: 2e-06 | H34: 19.641 | I34: 0.0006 | J34: 15.6 | K34: 0.001 | L34: 39.439 | M34: 0.002 | N34: 0.7942569116 | O34: =[1]!AgePb76(N34) -> 4911.472828
A35: TLP46-1 | D35: 0.703129 | E35: 2e-06 | F35: 0.512895 | G35: 3e-06 | H35: 19.656 | I35: 0.001 | J35: 15.595 | K35: 0 | L35: 38.464 | M35: 0.001 | N35: 0.7933964184 | O35: =[1]!AgePb76(N35) -> 4909.928202
A36: TLP50-1 | B36: 1585 A.D. | D36: 0.703095 | E36: 3e-06 | F36: 0.512892 | G36: 7e-06 | H36: 19.655 | I36: 0.001 | J36: 15.594 | K36: 0.001 | L36: 38.448 | M36: 0.002 | N36: 0.7933859069 | O36: =[1]!AgePb76(N36) -> 4909.909322
A37: TLP50-2 | B37: 1585 A.D. | D37: 0.703082 | E37: 3e-06 | F37: 0.512898 | G37: 8e-06 | H37: 19.644 | I37: 0.001 | J37: 15.591 | K37: 0.001 | L37: 38.415 | M37: 0.003 | N37: 0.7936774588 | O37: =[1]!AgePb76(N37) -> 4910.432879
A38: TLP51-2 | B38: 1585 A.D. | D38: 0.703099 | E38: 3e-06 | F38: 0.512893 | G38: 4e-06 | H38: 19.66 | I38: 0.001 | J38: 15.599 | K38: 0.001 | L38: 38.468 | M38: 0.002 | N38: 0.7934384537 | O38: =[1]!AgePb76(N38) -> 4910.003698
A39: TLP51-3 | B39: 1585 A.D. | D39: 0.703076 | E39: 3e-06 | F39: 0.512897 | G39: 2e-06 | H39: 19.653 | I39: 0.001 | J39: 15.592 | K39: 0.001 | L39: 39.426 | M39: 0.002 | N39: 0.7933648807 | O39: =[1]!AgePb76(N39) -> 4909.871556
A40: TLP58-1 | B40: 1480 A.D. | D40: 0.703107 | E40: 3e-06 | F40: 0.512891 | G40: 2e-06 | H40: 19.652 | I40: 0.002 | J40: 15.599 | K40: 0.002 | L40: 39.454 | M40: 0.005 | N40: 0.7937614492 | O40: =[1]!AgePb76(N40) -> 4910.583667
A41: TLP64-1 | D41: 0.703102 | E41: 3e-06 | F41: 0.512891 | G41: 3e-06 | H41: 19.715 | I41: 0.002 | J41: 15.599 | K41: 0.002 | L41: 39.478 | M41: 0.004 | N41: 0.7912249556 | O41: =[1]!AgePb76(N41) -> 4906.022381
A42: TLP69-1 | D42: 0.703082 | E42: 2e-06 | F42: 0.512898 | G42: 3e-06 | H42: 19.641 | I42: 0.001 | J42: 15.596 | K42: 0.001 | L42: 39.411 | M42: 0.003 | N42: 0.7940532559 | O42: =[1]!AgePb76(N42) -> 4911.107417
A43: TLP79-1 | B43: 1971 A.D. | D43: 0.703118 | E43: 4e-06 | F43: 0.512896 | G43: 3e-06 | H43: 19.598 | I43: 0.002 | J43: 15.593 | K43: 0.001 | L43: 39.373 | M43: 0.004 | N43: 0.7956424125 | O43: =[1]!AgePb76(N43) -> 4913.95613
A44: TLP116-1 | D44: 0.703118 | E44: 3e-06 | F44: 0.512896 | G44: 3e-06 | H44: 19.669 | I44: 0.001 | J44: 15.599 | K44: 0.001 | L44: 39.488 | M44: 0.003 | N44: 0.7930753978 | O44: =[1]!AgePb76(N44) -> 4909.351498
A45: KLA1-5-07 | B45: 1949 A.D. | D45: 0.703114 | E45: 4e-06 | F45: 0.51289 | G45: 2e-06 | H45: 19.354 | I45: 0.001 | J45: 15.599 | K45: 0.001 | L45: 39.159 | M45: 0.003 | N45: 0.8059832593 | O45: =[1]!AgePb76(N45) -> 4932.346445
A46: KLA1-2-10 | B46: 1949 A.D. | D46: 0.703169 | E46: 2e-06 | F46: 0.51289 | G46: 3e-06 | H46: 19.516 | I46: 0.001 | J46: 15.599 | K46: 0 | L46: 39.329 | M46: 0.001 | N46: 0.7992928879 | O46: =[1]!AgePb76(N46) -> 4920.477084
A47: KLA1-5-13 | B47: 1949 A.D. | D47: 0.703167 | E47: 2e-06 | F47: 0.512888 | G47: 2e-06 | H47: 19.576 | I47: 0.004 | J47: 15.609 | K47: 0.003 | L47: 39.412 | M47: 0.008 | N47: 0.7973539027 | O47: =[1]!AgePb76(N47) -> 4917.017372
B49: Volcano | C49: 40Ar/39Ar | D49: 207Pb/206Pb | E49: Age Ratio
B50: La Palma Island | C50: Age (Ma) | D50: Age (Ma)
B51: Taburiente | C51: 533 | D51: 4904 | E51: =D51/C51 -> 9.200750469
C52: 410 | D52: 4907 | E52: =D52/C52 -> 11.96829268
C53: 563 | D53: 4908 | E53: 8.717584369
C54: 585 | D54: 4902 | E54: 8.379487179
C55: 560 | D55: 4892 | E55: 8.735714286
C56: 833 | D56: 4903 | E56: 5.885954382
B57: Cumbre Nueva | C57: 647 | D57: 4911 | E57: 7.590417311
C58: 834 | D58: 4916 | E58: 5.894484412
B59: Cumbre Vieja | C59: 123 | D59: 4911 | E59: 39.92682927
C60: 90 | D60: 4917 | E60: 54.63333333
C61: 120 | D61: 4920 | E61: 41
C62: 20 | D62: 4917 | E62: 245.85
B66: Eruption Year | C66: Pb Age (Ma) | D66: True Age | E66: Error Ratio 106 | F66: Eruption Year | G66: Year Dated
B67: 1480 A.D. | C67: 4910.583667 | D67: =G67-F67 -> 525 | E67: =C67/D67 -> 9.353492699 | F67: 1480 | G67: 2005
C68: 4906.022381 | D68: 525 | E68: 9.344804534 | F68: 1480 | G68: 2005
C69: 4911.107417 | D69: 525 | E69: 9.354490319 | F69: 1480 | G69: 2005
B70: 1585 A.D. | C70: 4909.909322 | D70: 420 | E70: 11.69026029 | F70: 1585 | G70: 2005
C71: 4910.432879 | D71: 420 | E71: 11.69150685 | F71: 1585 | G71: 2005
C72: 4910.003698 | D72: 420 | E72: 11.690485 | F72: 1585 | G72: 2005
C73: 4909.871556 | D73: 420 | E73: 11.69017037 | F73: 1585 | G73: 2005
B74: 1646 A.D. | C74: 4911.472828 | D74: 359 | E74: 13.68098281 | F74: 1646 | G74: 2005
C75: 4909.928202 | D75: 359 | E75: 13.67668023 | F75: 1646 | G75: 2005
B76: 1677 A.D. | C76: 4911.287465 | D76: =G76-F76 -> 328 | E76: =C76/D76 -> 14.97343739 | F76: 1677 | G76: 2005
C77: 4909.729614 | D77: =G77-F77 -> 328 | E77: =C77/D77 -> 14.96868785 | F77: 1677 | G77: 2005
B78: 1949 A.D. | C78: 4932.346445 | D78: =G78-F78 -> 56 | E78: =C78/D78 -> 88.07761508 | F78: 1949 | G78: 2005
C79: 4920.477084 | D79: 56 | E79: 87.86566222 | F79: 1949 | G79: 2005
C80: 4917.017372 | D80: 56 | E80: 87.80388165 | F80: 1949 | G80: 2005
B81: 1971 A.D. | C81: 4913.95613 | D81: =G81-F81 -> 34 | E81: =C81/D81 -> 144.5281215 | F81: 1971 | G81: 2005
C82: 4909.351498 | D82: 34 | E82: 144.3926911 | F82: 1971 | G82: 2005

Sheet H31
A1: Table 1 | B1: Holocene | C1: Holocene | D1: Recent | E1: Recent
A2: 206Pb/204Pb | B2: 18.78 | C2: 18.775 | D2: 18.773 | E2: 18.727
A3: 207Pb/204Pb | B3: 15.699 | C3: 15.702 | D3: 15.714 | E3: 15.671
A4: 207Pb/206Pb | B4: =(B3/B2) -> 0.835942492 | C4: =(C3/C2) -> 0.8363249001 | D4: =(D3/D2) -> 0.8370532147 | E4: =(E3/E2) -> 0.8368131575
A5: Pb/Pb Age | B5: =[1]!AgePb76(B4) -> 4984.242145 | C5: =[1]!AgePb76(C4) -> 4984.891708 | D5: =[1]!AgePb76(D4) -> 4986.127961 | E5: =[1]!AgePb76(E4) -> 4985.72061
A7: Eruption Year | B7: Pb Age (Ma) | C7: Year Dated | D7: Error Ratio
A8: 8000 BC | B8: 4984 | C8: 2003 | D8: =(B8 * 1000000)/10000 -> 498400
A9: 8000 BC | B9: 4985 | C9: 2003 | D9: =(B9 * 1000000)/10000 -> 498500
A10: 1822 AD | B10: 4986 | C10: 2003 | D10: =(B10 * 1000000)/181 -> 27546961.33
A11: 1872 AD | B11: 4986 | C11: 2003 | D11: =(B11 * 1000000)/131 -> 38061068.7

Sheet H32
A1: Table 3 | E1: 206Pb/238U | H1: 207Pb/235U | L1: 207Pb/206Pb | R1: 230Th/238U | X1: La Reforma | Y1: 206Pb/238U | Z1: 207Pb/235U | AA1: 207Pb/206Pb
A2: La Reforma | D2: 206Pb/238U | E2: Age (Ma) | G2: 207Pb/235U | H2: Age (Ma) | K2: 207Pb/206Pb | L2: Age (Ma) | N2: 204Pb/206Pb | R2: Age (Ma) | Y2: Age (Ma) | Z2: Age (Ma) | AA2: Age (Ma)
A3: BH00R40 | B3: 1 | C3: 1 | D3: 0.917 | E3: =[1]!AgePb6U8(D3) -> 4195.077931 | F3: 0.166 | G3: 72 | H3: =[1]!AgePb7U5(G3) -> 4356.459807 | I3: 15.8 | J3: 0.68 | K3: 0.569 | L3: =[1]!AgePb76(K3) -> 4430.765086 | M3: 0.093 | N3: 37.6 | O3: 15.4 | P3: 33.1 | Q3: 1.05 | R3: 2.05 | S3: 1.39 | T3: 93 | U3: 34 | Y3: 4195.077931 | Z3: 4356.459807 | AA3: 4430.765086
A4: BH00R40 | B4: 3 | C4: 1 | D4: 0.333 | E4: =[1]!AgePb6U8(D4) -> 1852.905987 | F4: 0.027 | G4: 17.4 | H4: =[1]!AgePb7U5(G4) -> 2957.15151 | I4: 2.8 | J4: 0.86 | K4: 0.379 | L4: =[1]!AgePb76(K4) -> 3827.785266 | M4: 0.037 | N4: 73.9 | O4: 16.2 | P4: 57.5 | Q4: 1.06 | R4: 1.31 | S4: 0.23 | T4: 805 | U4: 768 | Y4: 1852.905987 | Z4: 2957.15151 | AA4: 3827.785266
A5: BH00R40 | B5: 5 | C5: 1 | D5: 0.418 | E5: =[1]!AgePb6U8(D5) -> 2251.393574 | F5: 0.055 | G5: 25.1 | H5: =[1]!AgePb7U5(G5) -> 3312.113839 | I5: 6.1 | J5: 0.86 | K5: 0.435 | L5: =[1]!AgePb76(K5) -> 4034.705687 | M5: 0.063 | N5: 39.3 | O5: 14.9 | P5: 50.2 | Q5: 1.07 | R5: 1.44 | S5: 0.49 | T5: 216 | U5: 104 | Y5: 2251.393574 | Z5: 3312.113839 | AA5: 4034.705687
A6: BH00R40 | B6: 7 | C6: 1 | D6: 0.249 | E6: =[1]!AgePb6U8(D6) -> 1433.316559 | F6: 0.015 | G6: 6.4 | H6: =[1]!AgePb7U5(G6) -> 2032.268874 | I6: 1.1 | J6: 0.8 | K6: 0.188 | L6: =[1]!AgePb76(K6) -> 2724.743949 | M6: 0.025 | N6: 43.3 | O6: 9.2 | P6: 81.9 | Q6: 1.06 | R6: 1.39 | S6: 0.11 | T6: 1272 | U6: 1111 | Y6: 1433.316559 | Z6: 2032.268874 | AA6: 2724.743949
A7: BH00R40 | B7: 7 | C7: 2 | D7: 0.199 | E7: =[1]!AgePb6U8(D7) -> 1169.946018 | F7: 0.006 | G7: 2.53 | H7: =[1]!AgePb7U5(G7) -> 1280.700483 | I7: 0.26 | J7: 0.57 | K7: 0.092 | L7: =[1]!AgePb76(K7) -> 1467.385947 | M7: 0.008 | N7: 32.6 | O7: 5.3 | P7: 94.1 | Q7: 1.05 | R7: 1.26 | S7: 0.04 | T7: 1181 | U7: 1574 | Y7: 1169.946018 | Z7: 1280.700483 | AA7: 1467.385947
A8: BH00R40 | B8: 8 | C8: 1 | D8: 0.534 | E8: =[1]!AgePb6U8(D8) -> 2758.283339 | F8: 0.068 | G8: 38 | H8: =[1]!AgePb7U5(G8) -> 3719.91841 | I8: 7.9 | J8: 0.74 | K8: 0.517 | L8: =[1]!AgePb76(K8) -> 4290.42523 | M8: 0.074 | N8: 32.9 | O8: 14.8 | P8: 39.8 | Q8: 1.07 | R8: 1.46 | S8: 0.63 | T8: 158 | U8: 63 | Y8: 2758.283339 | Z8: 3719.91841 | AA8: 4290.42523
A9: BH00R40 | B9: 9 | C9: 1 | D9: 0.272 | E9: =[1]!AgePb6U8(D9) -> 1550.945785 | F9: 0.015 | G9: 9.3 | H9: =[1]!AgePb7U5(G9) -> 2368.019389 | I9: 1.16 | J9: 0.55 | K9: 0.248 | L9: =[1]!AgePb76(K9) -> 3172.043602 | M9: 0.026 | N9: 21.2 | O9: 8.2 | P9: 74.2 | Q9: 1.07 | R9: 1.39 | S9: 0.12 | T9: 212 | U9: 106 | Y9: 1550.945785 | Z9: 2368.019389 | AA9: 3172.043602
A10: BH00R40 | B10: 9 | C10: 2 | D10: 0.286 | E10: =[1]!AgePb6U8(D10) -> 1621.509272 | F10: 0.016 | G10: 10.1 | H10: =[1]!AgePb7U5(G10) -> 2443.971273 | I10: 2.2 | J10: 0.76 | K10: 0.256 | L10: =[1]!AgePb76(K10) -> 3222.257101 | M10: 0.045 | N10: 23 | O10: 10.3 | P10: 73.2 | Q10: 1.07 | R10: 1.44 | S10: 0.16 | T10: 443 | U10: 253 | Y10: 1621.509272 | Z10: 2443.971273 | AA10: 3222.257101
A11: BH00R40 | B11: 19 | C11: 1 | D11: 0.499 | E11: =[1]!AgePb6U8(D11) -> 2609.496981 | F11: 0.065 | G11: 30.8 | H11: =[1]!AgePb7U5(G11) -> 3512.683444 | I11: 5.4 | J11: 0.87 | K11: 0.447 | L11: =[1]!AgePb76(K11) -> 4075.255246 | M11: 0.039 | N11: 110 | O11: 31 | P11: 48.8 | Q11: 1.06 | R11: 1.66 | S11: 0.51 | T11: 136 | U11: 57 | Y11: 2609.496981 | Z11: 3512.683444 | AA11: 4075.255246
A12: BH00R40 | B12: 19 | C12: 2 | D12: 0.466 | E12: =[1]!AgePb6U8(D12) -> 2465.995832 | F12: 0.06 | G12: 27 | H12: =[1]!AgePb7U5(G12) -> 3383.46399 | I12: 4.8 | J12: 0.85 | K12: 0.419 | L12: =[1]!AgePb76(K12) -> 3978.70039 | M12: 0.041 | N12: 24.1 | O12: 12 | P12: 52.3 | Q12: 1.06 | R12: 1.66 | S12: 0.47 | T12: 136 | U12: 64 | Y12: 2465.995832 | Z12: 3383.46399 | AA12: 3978.70039
A13: BH00R40 | B13: 20 | C13: 1 | D13: 0.756 | E13: =[1]!AgePb6U8(D13) -> 3629.579341 | F13: 0.145 | G13: 59.5 | H13: =[1]!AgePb7U5(G13) -> 4165.754546 | I13: 13.3 | J13: 0.89 | K13: 0.571 | L13: =[1]!AgePb76(K13) -> 4435.883123 | M13: 0.059 | N13: 59.8 | O13: 23.4 | P13: 33 | Q13: 1.06 | R13: 1.7 | S13: 1.19 | T13: 99 | U13: 36 | Y13: 3629.579341 | Z13: 4165.754546 | AA13: 4435.883123
A14: BH00R40 | B14: 21 | C14: 1 | D14: 0.901 | E14: =[1]!AgePb6U8(D14) -> 4141.047952 | F14: 0.183 | G14: 93.9 | H14: =[1]!AgePb7U5(G14) -> 4622.860035 | I14: 20.2 | J14: 0.87 | K14: 0.756 | L14: =[1]!AgePb76(K14) -> 4841.018605 | M14: 0.081 | N14: 79.7 | O14: 25.1 | P14: 9.2 | Q14: 1.18 | R14: 0.63 | S14: 1.63 | T14: 129 | U14: 48 | Y14: 4141.047952 | Z14: 4622.860035 | AA14: 4841.018605
D15: Average | E15: =AVERAGE(E3:E14) -> 2473.291547 | G15: Average | H15: =AVERAGE(H3:H14) -> 3179.6138 | K15: Average | L15: =AVERAGE(L3:L14) -> 3708.414103 | Q15: Average | R15: =AVERAGE(R3:R14) -> 1.449166667 | Y15: 206Pb/238U | Z15: 207Pb/235U | AA15: 207Pb/206Pb
D16: Maximum | E16: =MAX(E3:E15) -> 4195.077931 | G16: Maximum | H16: =MAX(H3:H15) -> 4622.860035 | K16: Maximum | L16: =MAX(L3:L15) -> 4841.018605 | Q16: Maximum | R16: =MAX(R3:R15) -> 2.05 | Y16: Age (Ma) | Z16: Age (Ma) | AA16: Age (Ma)
D17: Minimum | E17: =MIN(E3:E16) -> 1169.946018 | G17: Minimum | H17: =MIN(H3:H16) -> 1280.700483 | K17: Minimum | L17: =MIN(L3:L16) -> 1467.385947 | Q17: Minimum | R17: =MIN(R3:R16) -> 0.63 | X17: Aguajito | Y17: 5855 | Z17: 5088 | AA17: 4799
D18: Difference | E18: =E16-E17 -> 3025.131913 | G18: Difference | H18: =H16-H17 -> 3342.159552 | K18: Difference | L18: =L16-L17 -> 3373.632657 | Q18: Difference | R18: =R16-R17 -> 1.42 | Y18: 4282 | Z18: 4271 | AA18: 4265
Y19: 2310 | Z19: 3592 | AA19: 4413
R20: 230Th/238U | Y20: 4272 | Z20: 4589 | AA20: 4731
A21: Aguajito | R21: Age (Ma) | Y21: 3078 | Z21: 4089 | AA21: 4628
A22: BH00R41 | B22: 1 | C22: 1 | D22: 1.48 | E22: =[1]!AgePb6U8(D22) -> 5855.010863 | F22: 0.29 | G22: 149 | H22: =[1]!AgePb7U5(G22) -> 5087.714164 | I22: 29 | J22: 0.89 | K22: 0.734 | L22: =[1]!AgePb76(K22) -> 4798.760647 | M22: 0.067 | N22: 57.7 | O22: 18.5 | P22: 12 | Q22: 1.09 | R22: 1.24 | S22: 2.46 | T22: 68 | U22: 19 | Y22: 4374 | Z22: 4644 | AA22: 4765
A23: BH00R41 | B23: 2 | C23: 1 | D23: 0.943 | E23: =[1]!AgePb6U8(D23) -> 4281.92213 | F23: 0.149 | G23: 66.1 | H23: =[1]!AgePb7U5(G23) -> 4270.887997 | I23: 14 | J23: 0.86 | K23: 0.508 | L23: =[1]!AgePb76(K23) -> 4264.591697 | M23: 0.056 | N23: 34 | O23: 11.6 | P23: 41 | Q23: 1.04 | R23: 2.59 | S23: 1.24 | T23: 167 | U23: 48 | Y23: 2523 | Z23: 3812 | AA23: 4583
A24: BH00R41 | B24: 2 | C24: 2 | D24: 0.431 | E24: =[1]!AgePb6U8(D24) -> 2310.224017 | F24: 0.028 | G24: 33.4 | H24: =[1]!AgePb7U5(G24) -> 3592.482677 | I24: 1.8 | J24: 0.29 | K24: 0.562 | L24: =[1]!AgePb76(K24) -> 4412.698095 | M24: 0.04 | N24: 63.2 | O24: 14 | P24: 34.1 | Q24: 1.1 | R24: 1.04 | S24: 0.21 | T24: 159 | U24: 55 | Y24: 3078 | Z24: 4054 | AA24: 4579
A25: BH00R41 | B25: 3 | C25: 1 | D25: 0.94 | E25: =[1]!AgePb6U8(D25) -> 4271.961148 | F25: 0.167 | G25: 90.8 | H25: =[1]!AgePb7U5(G25) -> 4589.137734 | I25: 21 | J25: 0.91 | K25: 0.7 | L25: =[1]!AgePb76(K25) -> 4730.718583 | M25: 0.071 | N25: 29.9 | O25: 10.9 | P25: 16.4 | Q25: 1.1 | R25: 1.09 | S25: 1.59 | T25: 131 | U25: 43 | Y25: 2404 | Z25: 3592 | AA25: 4343
A26: BH00R41 | B26: 4 | C26: 1 | D26: 0.612 | E26: =[1]!AgePb6U8(D26) -> 3078.005764 | F26: 0.119 | G26: 55.1 | H26: =[1]!AgePb7U5(G26) -> 4089.085457 | I26: 11.3 | J26: 0.86 | K26: 0.652 | L26: =[1]!AgePb76(K26) -> 4628.390781 | M26: 0.069 | N26: 43.8 | O26: 14.7 | P26: 22.5 | Q26: 1.11 | R26: 0.98 | S26: 1 | T26: 215 | U26: 87 | Y26: 1541 | Z26: 2802 | AA26: 3905
A27: BH00R41 | B27: 5 | C27: 1 | D27: 0.971 | E27: =[1]!AgePb6U8(D27) -> 4374.156507 | F27: 0.199 | G27: 95.9 | H27: =[1]!AgePb7U5(G27) -> 4644.036675 | I27: 22.5 | J27: 0.92 | K27: 0.717 | L27: =[1]!AgePb76(K27) -> 4765.170398 | M27: 0.068 | N27: 56.3 | O27: 14.2 | P27: 14.3 | Q27: 1.11 | R27: 0.99 | S27: 1.8 | T27: 167 | U27: 57 | Y27: 2842 | Z27: 3994 | AA27: 4637
A28: BH00R41 | B28: 6 | C28: 1 | D28: 0.479 | E28: =[1]!AgePb6U8(D28) -> 2522.908517 | F28: 0.081 | G28: 41.7 | H28: =[1]!AgePb7U5(G28) -> 3811.949962 | I28: 9.2 | J28: 0.85 | K28: 0.632 | L28: =[1]!AgePb76(K28) -> 4583.348098 | M28: 0.075 | N28: 31.1 | O28: 19.8 | P28: 25.1 | Q28: 1.12 | R28: 0.87 | S28: 0.73 | T28: 183 | U28: 61 | Y28: 2058 | Z28: 3460 | AA28: 4415
A29: BH00R41 | B29: 7 | C29: 1 | D29: 0.612 | E29: =[1]!AgePb6U8(D29) -> 3078.005764 | F29: 0.105 | G29: 53.2 | H29: =[1]!AgePb7U5(G29) -> 4054.100531 | I29: 12.1 | J29: 0.9 | K29: 0.63 | L29: =[1]!AgePb76(K29) -> 4578.759972 | M29: 0.066 | N29: 54.7 | O29: 20.9 | P29: 25.4 | Q29: 1.1 | R29: 1.1 | S29: 0.96 | T29: 148 | U29: 50 | Y29: 4144 | Z29: 4579 | AA29: 4779
A30: BH00R41 | B30: 9 | C30: 1 | D30: 0.452 | E30: =[1]!AgePb6U8(D30) -> 2404.138059 | F30: 0.06 | G30: 33.4 | H30: =[1]!AgePb7U5(G30) -> 3592.482677 | I30: 6.7 | J30: 0.83 | K30: 0.536 | L30: =[1]!AgePb76(K30) -> 4343.401235 | M30: 0.063 | N30: 30.3 | O30: 12.8 | P30: 37.3 | Q30: 1.09 | R30: 1.19 | S30: 0.54 | T30: 170 | U30: 49 | Y30: 2431 | Z30: 3778 | AA30: 4597
A31: BH00R41 | B31: 9 | C31: 2 | D31: 0.27 | E31: =[1]!AgePb6U8(D31) -> 1540.801937 | F31: 0.015 | G31: 14.8 | H31: =[1]!AgePb7U5(G31) -> 2802.46732 | I31: 2.9 | J31: 0.42 | K31: 0.399 | L31: =[1]!AgePb76(K31) -> 3905.31442 | M31: 0.072 | N31: 44.9 | O31: 17.1 | P31: 54.9 | Q31: 1.09 | R31: 1.04 | S31: 0.19 | T31: 140 | U31: 72 | Y31: 2247 | Z31: 3566 | AA31: 4420
A32: BH00R41 | B32: 11 | C32: 1 | D32: 0.554 | E32: =[1]!AgePb6U8(D32) -> 2841.787281 | F32: 0.106 | G32: 50.1 | H32: =[1]!AgePb7U5(G32) -> 3994.298114 | I32: 12.3 | J32: 0.91 | K32: 0.656 | L32: =[1]!AgePb76(K32) -> 4637.221483 | M32: 0.069 | N32: 77.7 | O32: 24 | P32: 22.1 | Q32: 1.12 | R32: 0.88 | S32: 0.97 | T32: 194 | U32: 85 | Y32: 3600 | Z32: 4416 | AA32: 4810
A33: BH00R41 | B33: 12 | C33: 1 | D33: 0.376 | E33: =[1]!AgePb6U8(D33) -> 2057.571246 | F33: 0.044 | G33: 29.2 | H33: =[1]!AgePb7U5(G33) -> 3460.264938 | I33: 7.1 | J33: 0.82 | K33: 0.563 | L33: =[1]!AgePb76(K33) -> 4415.293894 | M33: 0.091 | N33: 46.8 | O33: 16.3 | P33: 33.9 | Q33: 1.11 | R33: 0.91 | S33: 0.49 | T33: 233 | U33: 117 | Y33: 3329 | Z33: 4221 | AA33: 4676
A34: BH00R41 | B34: 13 | C34: 1 | D34: 0.902 | E34: =[1]!AgePb6U8(D34) -> 4144.438125 | F34: 0.06 | G34: 89.9 | H34: =[1]!AgePb7U5(G34) -> 4579.133879 | I34: 9.8 | J34: 0.84 | K34: 0.724 | L34: =[1]!AgePb76(K34) -> 4779.10359 | M34: 0.047 | N34: 58.9 | O34: 12.2 | P34: 13.4 | Q34: 1.09 | R34: 0.85 | S34: 0.67 | T34: 259 | U34: 246 | Y34: 2993 | Z34: 4105 | AA34: 4704
A35: BH00R41 | B35: 14 | C35: 1 | D35: 0.458 | E35: =[1]!AgePb6U8(D35) -> 2430.721248 | F35: 0.05 | G35: 40.3 | H35: =[1]!AgePb7U5(G35) -> 3778.100726 | I35: 6 | J35: 0.78 | K35: 0.638 | L35: =[1]!AgePb76(K35) -> 4597.019585 | M35: 0.06 | N35: 48 | O35: 14.2 | P35: 24.3 | Q35: 1.12 | R35: 0.81 | S35: 0.47 | T35: 258 | U35: 148 | Y35: 4325 | Z35: 4584 | AA35: 4702
A36: BH00R41 | B36: 15 | C36: 1 | D36: 0.417 | E36: =[1]!AgePb6U8(D36) -> 2246.845839 | F36: 0.032 | G36: 32.5 | H36: =[1]!AgePb7U5(G36) -> 3565.563729 | I36: 3.5 | J36: 0.84 | K36: 0.565 | L36: =[1]!AgePb76(K36) -> 4420.470618 | M36: 0.034 | N36: 46.9 | O36: 10.9 | P36: 33.6 | Q36: 1.1 | R36: 0.99 | S36: 0.28 | T36: 219 | U36: 125 | Y36: 3118 | Z36: 4035 | AA36: 4530
A37: BH00R41 | B37: 16 | C37: 1 | D37: 0.748 | E37: =[1]!AgePb6U8(D37) -> 3600.143608 | F37: 0.142 | G37: 76.4 | H37: =[1]!AgePb7U5(G37) -> 4415.887476 | I37: 17.8 | J37: 0.91 | K37: 0.74 | L37: =[1]!AgePb76(K37) -> 4810.418172 | M37: 0.074 | N37: 42.4 | O37: 14.2 | P37: 11.3 | Q37: 1.18 | R37: 0.64 | S37: 1.35 | T37: 161 | U37: 54 | Y37: 2904 | Z37: 3802 | AA37: 4316
A38: BH00R41 | B38: 17 | C38: 1 | D38: 0.676 | E38: =[1]!AgePb6U8(D38) -> 3328.992761 | F38: 0.107 | G38: 62.9 | H38: =[1]!AgePb7U5(G38) -> 4221.271627 | I38: 12 | J38: 0.84 | K38: 0.674 | L38: =[1]!AgePb76(K38) -> 4676.258505 | M38: 0.07 | N38: 30.1 | O38: 12.7 | P38: 19.7 | Q38: 1.11 | R38: 0.95 | S38: 0.96 | T38: 190 | U38: 84 | Y38: 4083 | Z38: 4377 | AA38: 4515
A39: BH00R41 | B39: 18 | C39: 1 | D39: 0.591 | E39: =[1]!AgePb6U8(D39) -> 2993.474613 | F39: 0.093 | G39: 56 | H39: =[1]!AgePb7U5(G39) -> 4105.245741 | I39: 11.6 | J39: 0.88 | K39: 0.687 | L39: =[1]!AgePb76(K39) -> 4703.764127 | M39: 0.07 | N39: 37.8 | O39: 12.4 | P39: 18.1 | Q39: 1.13 | R39: 0.78 | S39: 0.89 | T39: 240 | U39: 114 | Y39: 4627 | Z39: 4612 | AA39: 4602
A40: BH00R41 | B40: 19 | C40: 1 | D40: 0.956 | E40: =[1]!AgePb6U8(D40) -> 4324.909406 | F40: 0.165 | G40: 90.3 | H40: =[1]!AgePb7U5(G40) -> 4583.59221 | I40: 18 | J40: 0.87 | K40: 0.686 | L40: =[1]!AgePb76(K40) -> 4701.668158 | M40: 0.067 | N40: 73.4 | O40: 18.2 | P40: 18.2 | Q40: 1.09 | R40: 1.22 | S40: 1.46 | T40: 162 | U40: 48
A41: BH00R41 | B41: 31 | C41: 1 | D41: 0.622 | E41: =[1]!AgePb6U8(D41) -> 3117.872398 | F41: 0.079 | G41: 52.2 | H41: =[1]!AgePb7U5(G41) -> 4035.191548 | I41: 10.1 | J41: 0.94 | K41: 0.609 | L41: =[1]!AgePb76(K41) -> 4529.618847 | M41: 0.052 | N41: 53.8 | O41: 10.5 | P41: 28.1 | Q41: 1.08 | R41: 1.22 | S41: 0.76 | T41: 141 | U41: 58
A42: BH00R41 | B42: 33 | C42: 1 | D42: 0.569 | E42: =[1]!AgePb6U8(D42) -> 2903.712965 | F42: 0.074 | G42: 41.3 | H42: =[1]!AgePb7U5(G42) -> 3802.393345 | I42: 6.9 | J42: 0.82 | K42: 0.526 | L42: =[1]!AgePb76(K42) -> 4315.776867 | M42: 0.051 | N42: 40.5 | O42: 13.1 | P42: 38.7 | Q42: 1.07 | R42: 1.51 | S42: 0.62 | T42: 83 | U42: 35
A43: BH00R41 | B43: 36 | C43: 1 | D43: 0.884 | E43: =[1]!AgePb6U8(D43) -> 4083.140539 | F43: 0.131 | G43: 73.5 | H43: =[1]!AgePb7U5(G43) -> 4377.112378 | I43: 12 | J43: 0.91 | K43: 0.603 | L43: =[1]!AgePb76(K43) -> 4515.243709 | M43: 0.042 | N43: 56.8 | O43: 13.4 | P43: 28.8 | Q43: 1.06 | R43: 1.74 | S43: 1.08 | T43: 113 | U43: 45
A44: BH00R41 | B44: 38 | C44: 1 | D44: 1.05 | E44: =[1]!AgePb6U8(D44) -> 4627.492623 | F44: 0.1 | G44: 92.9 | H44: =[1]!AgePb7U5(G44) -> 4612.103758 | I44: 10.5 | J44: 0.88 | K44: 0.64 | L44: =[1]!AgePb76(K44) -> 4601.546123 | M44: 0.034 | N44: 37.5 | O44: 6.8 | P44: 24.1 | Q44: 1.05 | R44: 1.73 | S44: 0.85 | T44: 178 | U44: 93
C45: =COUNT(C22:C44) -> 23 | D45: Average | E45: =AVERAGE(E22:E44) -> 3322.532059 | G45: Average | H45: =AVERAGE(H22:H44) -> 4089.761072 | K45: Average | L45: =AVERAGE(L22:L44) -> 4552.806852 | Q45: Average | R45: =AVERAGE(R22:R44) -> 1.146086957
D46: Maximum | E46: =MAX(E22:E45) -> 5855.010863 | G46: Maximum | H46: =MAX(H22:H45) -> 5087.714164 | K46: Maximum | L46: =MAX(L22:L45) -> 4810.418172 | Q46: Maximum | R46: =MAX(R22:R45) -> 2.59
D47: Minimum | E47: =MIN(E22:E46) -> 1540.801937 | G47: Minimum | H47: =MIN(H22:H46) -> 2802.46732 | K47: Minimum | L47: =MIN(L22:L46) -> 3905.31442 | Q47: Minimum | R47: =MIN(R22:R46) -> 0.64
D48: Difference | E48: =E46-E47 -> 4314.208926 | G48: Difference | H48: =H46-H47 -> 2285.246844 | K48: Difference | L48: =L46-L47 -> 905.1037525 | Q48: Difference | R48: =R46-R47 -> 1.95
R49: 230Th/238U | Y49: 206Pb/238U | Z49: 207Pb/235U | AA49: 207Pb/206Pb
A50: La Vírgen | R50: Age (Ma) | X50: La Vírgen | Y50: Age (Ma) | Z50: Age (Ma) | AA50: Age (Ma)
A51: BH91B10 | B51: 3 | C51: 1 | D51: 40.1 | E51: =[1]!AgePb6U8(D51) -> 23954.92746 | F51: 1.5 | G51: 322 | H51: =[1]!AgePb7U5(G51) -> 5866.530257 | I51: 17 | J51: 0.84 | K51: 0.058 | L51: =[1]!AgePb76(K51) -> 529.7619025 | M51: 0.002 | N51: 0.516 | O51: 0.129 | P51: 99.2 | Q51: 1 | R51: 252 | S51: 4 | T51: 238 | U51: 126 | Y51: 23954.92746 | Z51: 5866.530257 | AA51: 529.7619025
A52: BH91B10 | B52: 8 | C52: 1 | D52: 20.2 | E52: =[1]!AgePb6U8(D52) -> 19687.35653 | F52: 3.1 | G52: 141 | H52: =[1]!AgePb7U5(G52) -> 5032.062809 | I52: 22 | J52: 0.99 | K52: 0.05 | L52: =[1]!AgePb76(K52) -> 194.9931303 | M52: 0.001 | N52: 0.017 | O52: 0.02 | P52: 100 | Q52: 1 | R52: 129 | S52: 1 | T52: 656 | U52: 423 | Y52: 19687.35653 | Z52: 5032.062809 | AA52: 194.9931303
A53: BH91B10 | B53: 15 | C53: 1 | D53: 3.54 | E53: =[1]!AgePb6U8(D53) -> 9752.954147 | F53: 0.52 | G53: 32.6 | H53: =[1]!AgePb7U5(G53) -> 3568.590209 | I53: 39.8 | J53: 0.42 | K53: 0.067 | L53: =[1]!AgePb76(K53) -> 837.7735816 | M53: 0.078 | N53: 14.24 | O53: 2.09 | P53: 73.4 | Q53: 1 | R53: 25.1 | S53: 3.5 | T53: 269 | U53: 133 | Y53: 9752.954147 | Z53: 3568.590209 | AA53: 837.7735816
A54: BH91B10 | B54: 19 | C54: 1 | D54: 40.7 | E54: =[1]!AgePb6U8(D54) -> 24048.35538 | F54: 0.4 | G54: 290 | H54: =[1]!AgePb7U5(G54) -> 5760.596301 | I54: 8 | J54: −0.28 | K54: 0.052 | L54: =[1]!AgePb76(K54) -> 285.409898 | M54: 0.002 | N54: 0.59 | O54: 0.217 | P54: 99.1 | Q54: 1 | R54: 255 | S54: 3 | T54: 106 | U54: 62 | Y54: 24048.35538 | Z54: 5760.596301 | AA54: 285.409898
A55: BH91B10 | B55: 10 | C55: 1 | D55: 0.05 | E55: =[1]!AgePb6U8(D55) -> 314.5216062 | F55: 0.008 | G55: 5.07 | H55: =[1]!AgePb7U5(G55) -> 1831.099767 | I55: 1.06 | J55: 0.81 | K55: 0.734 | L55: =[1]!AgePb76(K55) -> 4798.760647 | M55: 0.09 | N55: 93.61 | O55: 42.73 | P55: 12.1 | Q55: 3.25 | R55: 0.127 | S55: 0.081 | T55: 195 | U55: 98 | Y55: 314.5216062 | Z55: 1831.099767 | AA55: 4798.760647
A56: BH91B10 | B56: 12 | C56: 1 | D56: 15.8 | E56: =[1]!AgePb6U8(D56) -> 18187.77687 | F56: 0.3 | G56: 112 | H56: =[1]!AgePb7U5(G56) -> 4800.109477 | I56: 6 | J56: 0.51 | K56: 0.051 | L56: =[1]!AgePb76(K56) -> 240.8298814 | M56: 0.003 | N56: 0.509 | O56: 0.393 | P56: 99.6 | Q56: 1 | R56: 101 | S56: 1.7 | T56: 74 | U56: 42 | Y56: 18187.77687 | Z56: 4800.109477 | AA56: 240.8298814
D57: Average | E57: =AVERAGE(E51:E56) -> 15990.982 | G57: Average | H57: =AVERAGE(H51:H56) -> 4476.498137 | K57: Average | L57: =AVERAGE(L51:L56) -> 1147.921507 | Q57: Average | R57: =AVERAGE(R51:R56) -> 127.0378333
D58: Maximum | E58: =MAX(E51:E57) -> 24048.35538 | G58: Maximum | H58: =MAX(H51:H57) -> 5866.530257 | K58: Maximum | L58: =MAX(L51:L57) -> 4798.760647 | Q58: Maximum | R58: =MAX(R51:R57) -> 255
D59: Minimum | E59: =MIN(E51:E58) -> 314.5216062 | G59: Minimum | H59: =MIN(H51:H58) -> 1831.099767 | K59: Minimum | L59: =MIN(L51:L58) -> 194.9931303 | Q59: Minimum | R59: =MIN(R51:R58) -> 0.127
D60: Difference | E60: =E58-E59 -> 23733.83378 | G60: Difference | H60: =H58-H59 -> 4035.43049 | K60: Difference | L60: =L58-L59 -> 4603.767516 | Q60: Difference | R60: =R58-R59 -> 254.873
A63: Volcano's | B63: Statistical | C63: 206Pb/238U | D63: 207Pb/235U | E63: 207Pb/206Pb | F63: 230Th/238U | G63: 206Pb/238U | H63: 207Pb/235U | I63: 207Pb/206Pb | J63: 230Th/238U
A64: Name | B64: Data | C64: Age (Ma) | D64: Age (Ma) | E64: Age (Ma) | F64: Age (Ma) | G64: Age Ratio | H64: Age Ratio | I64: Age Ratio | J64: Age Ratio
A65: La Reforma | B65: Average | C65: 2473 | D65: 3180 | E65: 3708 | F65: 1.449166667 | G65: =C65/F65 -> 1706.497987 | H65: =D65/F65 -> 2194.364577 | I65: =E65/F65 -> 2558.711903 | J65: =F65/F65 -> 1
B66: Maximum | C66: 4195 | D66: 4623 | E66: 4841 | F66: 2.05 | G66: =C66/F66 -> 2046.341463 | H66: =D66/F66 -> 2255.121951 | I66: =E66/F66 -> 2361.463415 | J66: =F66/F66 -> 1
B67: Minimum | C67: 1170 | D67: 1281 | E67: 1467 | F67: 0.63 | G67: 1857.142857 | H67: 2033.333333 | I67: 2328.571429 | J67: 1
B68: Difference | C68: 3025 | D68: 3342 | E68: 3374 | F68: 1.42 | G68: 2130.28169 | H68: 2353.521127 | I68: 2376.056338 | J68: 1
A69: Aguajito | B69: Average | C69: 3323 | D69: 4090 | E69: 4553 | F69: 1.146086957 | G69: 2899.430956 | H69: 3568.664643 | I69: 3972.647951 | J69: 1
B70: Maximum | C70: 5855 | D70: 5088 | E70: 4810 | F70: 2.59 | G70: 2260.617761 | H70: 1964.478764 | I70: 1857.142857 | J70: 1
B71: Minimum | C71: 1541 | D71: 2802 | E71: 3905 | F71: 0.64 | G71: 2407.8125 | H71: 4378.125 | I71: 6101.5625 | J71: 1
B72: Difference | C72: 4314 | D72: 2285 | E72: 905 | F72: 1.95 | G72: 2212.307692 | H72: 1171.794872 | I72: 464.1025641 | J72: 1
A73: La Vírgen | B73: Average | C73: 15990.982 | D73: 4476.498137 | E73: 1147.921507 | F73: 127.0378333 | G73: 125.8757457 | H73: 35.23751956 | I73: 9.036060177 | J73: 1
B74: Maximum | C74: 24048.35538 | D74: 5866.530257 | E74: 4798.760647 | F74: 255 | G74: 94.30727601 | H74: 23.00600101 | I74: 18.8186692 | J74: 1
B75: Minimum | C75: 314.5216062 | D75: 1831.099767 | E75: 194.9931303 | F75: 0.127 | G75: 2476.548081 | H75: 14418.1084 | I75: 1535.378979 | J75: 1
B76: Difference | C76: 23733.83378 | D76: 4035.43049 | E76: 4603.767516 | F76: 254.873 | G76: 93.12023548 | H76: 15.83310311 | I76: 18.06298634 | J76: 1

Sheet H33
A1: Table 2 | K1: Age | L1: Eruption
A2: Sample | B2: Location | C2: 87Sr/86Sr | D2: 143Nd/144Nd | E2: 206Pb/204Pb | G2: 207Pb/204Pb | I2: 208Pb/204Pb | K2: 207Pb/206Pb | L2: Year
A3: 31461 | B3: Niuafo’ou | C3: 0.704319 | D3: 0.512827 | E3: 18.4616 | F3: 14 | G3: 15.5977 | H3: 13 | I3: 38.5514 | J3: 36 | K3: =[1]!AgePb76(G3/E3) -> 4999.329153 | L3: 1946
A4: 31462 | B4: Niuafo’ou | C4: 0.704321 | D4: 0.512801 | E4: 18.4638 | F4: 18 | G4: 15.5986 | H4: 16 | I4: 38.5548 | J4: 48 | K4: =[1]!AgePb76(G4/E4) -> 4999.24192 | L4: 1946
A5: 31463 | B5: Niuafo’ou | C5: 0.704323 | D5: 0.512803 | E5: 18.4635 | F5: 15 | G5: 15.5995 | H5: 14 | I5: 38.558 | J5: 38 | K5: =[1]!AgePb76(G5/E5) -> 4999.346872 | L5: 1946
A6: 31477 | B6: Niuafo’ou | C6: 0.704355 | D6: 0.512798 | E6: 18.4622 | F6: 15 | G6: 15.5983 | H6: 13 | I6: 38.5496 | J6: 43 | K6: =[1]!AgePb76(G6/E6) -> 4999.337623 | L6: 1886
A7: T078 | B7: Niuafo’ou | C7: 0.704391 | D7: 0.512795 | E7: 18.4564 | F7: 17 | G7: 15.5996 | H7: 15 | I7: 38.5505 | J7: 41 | K7: =[1]!AgePb76(G7/E7) -> 4999.901868
A8: T079 | B8: Niuafo’ou | C8: 0.704338 | D8: 0.512815 | E8: 18.4096 | F8: 17 | G8: 15.5948 | H8: 16 | I8: 38.4789 | J8: 48 | K8: =[1]!AgePb76(G8/E8) -> 5003.068383
A9: T080 | B9: Niuafo’ou | C9: 0.70437 | D9: 0.512794 | E9: 18.4599 | F9: 16 | G9: 15.5983 | H9: 14 | I9: 38.5508 | J9: 37 | K9: =[1]!AgePb76(G9/E9) -> 4999.514454
A10: T081 | B10: Niuafo’ou | C10: 0.70439 | D10: 0.512795 | E10: 18.4748 | F10: 17 | G10: 15.6005 | H10: 15 | I10: 38.5705 | J10: 47 | K10: =[1]!AgePb76(G10/E10) -> 4998.569443
A11: T082 | B11: Niuafo’ou | C11: 0.704358 | E11: 18.4638 | F11: 11 | G11: 15.5971 | H11: 10 | I11: 38.5538 | J11: 27 | K11: =[1]!AgePb76(G11/E11) -> 4999.105425
A12: T083 | B12: Niuafo’ou | C12: 0.704345 | D12: 0.512804 | E12: 18.4624 | F12: 20 | G12: 15.597 | H12: 18 | I12: 38.5523 | J12: 47 | K12: =[1]!AgePb76(G12/E12) -> 4999.20395
A13: T084 | B13: Niuafo’ou | C13: 0.704377 | D13: 0.512808 | E13: 18.4669 | F13: 19 | G13: 15.5982 | H13: 17 | I13: 38.5599 | J13: 49 | K13: =[1]!AgePb76(G13/E13) -> 4998.967238
A14: N108 | B14: Niuafo’ou | C14: 0.704358 | D14: 0.512807 | E14: 18.4662 | F14: 17 | G14: 15.5988 | H14: 16 | I14: 38.552 | J14: 43 | K14: =[1]!AgePb76(G14/E14) -> 4999.075637
A15: N131 | B15: Niuafo’ou | C15: 0.704365 | D15: 0.5128 | E15: 18.4621 | F15: 16 | G15: 15.5991 | H15: 15 | I15: 38.5525 | J15: 42 | K15: =[1]!AgePb76(G15/E15) -> 4999.418103
A16: MU40422 | B16: Niuafo’ou | C16: 0.704329 | D16: 0.51281 | E16: 18.4393 | F16: 25 | G16: 15.5981 | H16: 22 | I16: 38.5274 | J16: 57 | K16: =[1]!AgePb76(G16/E16) -> 5001.080967
A17: MU40454 | B17: Niuafo’ou | C17: 0.704281 | D17: 0.512811 | E17: 18.448 | F17: 17 | G17: 15.5959 | H17: 17 | I17: 38.529 | J17: 50 | K17: =[1]!AgePb76(G17/E17) -> 5000.211299
A18: MU40457 | B18: Niuafo’ou | C18: 0.704358 | D18: 0.512804 | E18: 18.4115 | F18: 27 | G18: 15.5937 | H18: 24 | I18: 38.4767 | J18: 67 | K18: =[1]!AgePb76(G18/E18) -> 5002.821824
A19: MU40458 | B19: Niuafo’ou | C19: 0.704264 | D19: 0.512794 | E19: 18.4305 | F19: 19 | G19: 15.5954 | H19: 18 | I19: 38.505 | J19: 48 | K19: =[1]!AgePb76(G19/E19) -> 5001.512755
A20: MU40462 | B20: Niuafo’ou | C20: 0.704302 | D20: 0.51282 | E20: 18.4527 | F20: 15 | G20: 15.591 | H20: 14 | I20: 38.5353 | J20: 39 | K20: =[1]!AgePb76(G20/E20) -> 4999.403747
A21: 2212-2 (g) | B21: KTJ | C21: 0.703992 | D21: 0.512838 | E21: 18.6259 | F21: 19 | G21: 15.5842 | H21: 17 | I21: 38.6841 | J21: 51 | K21: =[1]!AgePb76(G21/E21) -> 4985.520301
A22: 2212-2b (g) | B22: KTJ | E22: 18.6266 | F22: 21 | G22: 15.5848 | H22: 19 | I22: 38.6856 | J22: 54 | K22: =[1]!AgePb76(G22/E22) -> 4985.521606
A23: 2218-7 (g) | B23: KTJ | C23: 0.703942 | D23: 0.512861 | E23: 18.5928 | F23: 11 | G23: 15.5843 | H23: 11 | I23: 38.6562 | J23: 28 | K23: =[1]!AgePb76(G23/E23) -> 4988.055363
A24: 2218-7b (g) | B24: KTJ | D24: 0.512857 | E24: 18.5929 | F24: 14 | G24: 15.585 | H24: 13 | I24: 38.6565 | J24: 34 | K24: =[1]!AgePb76(G24/E24) -> 4988.111509
A25: 2218-8 (g) | B25: KTJ | C25: 0.703865 | D25: 0.512868 | E25: 18.5719 | F25: 16 | G25: 15.5781 | H25: 15 | I25: 38.6286 | J25: 43 | K25: =[1]!AgePb76(G25/E25) -> 4989.087443
A26: 2218-8b (g) | B26: KTJ | E26: 18.572 | F26: 18 | G26: 15.5783 | H26: 16 | I26: 38.6289 | J26: 46 | K26: =[1]!AgePb76(G26/E26) -> 4989.098028
A27: 2218-10 (g) | B27: KTJ | C27: 0.704083 | D27: 0.512829 | E27: 18.5559 | F27: 15 | G27: 15.5895 | H27: 14 | I27: 38.6398 | J27: 40 | K27: =[1]!AgePb76(G27/E27) -> 4991.349959
A28: 2218-12 (g) | B28: KTJ | C28: 0.703887 | D28: 0.512861 | E28: 18.5935 | F28: 19 | G28: 15.5835 | H28: 17 | I28: 38.6445 | J28: 46 | K28: =[1]!AgePb76(G28/E28) -> 4987.929002
A29: D120-2-1 (g) | B29: NELSC | C29: 0.70393 | D29: 0.512786 | E29: 18.9877 | F29: 22 | G29: 15.6169 | H29: 19 | I29: 38.9232 | J29: 49 | K29: =[1]!AgePb76(G29/E29) -> 4961.161656
A30: 16-94/1 | B30: Uo Mamae | C30: 0.705215 | D30: 0.51247 | E30: 18.3317 | F30: 11 | G30: 15.6372 | H30: 10 | I30: 38.521 | J30: 26 | K30: =[1]!AgePb76(G30/E30) -> 5012.937082
J31: Average | K31: =AVERAGE(K3:K30) -> 4995.638665
J32: Maximum | K32: =MAX(K3:K31) -> 5012.937082
J33: Minimum | K33: =MIN(K3:K32) -> 4961.161656
J34: Difference | K34: =K32-K33 -> 51.77542563
J35: Accuracy | K35: =1-(K34/K31) -> 0.9896358746

Sheet H34
A1: Table 1. | B1: Mauna Loa | C1: Mauna Loa | D1: Mauna Loa | E1: Mauna Loa | F1: Mauna Loa | G1: Mauna Loa | H1: Mauna Loa | I1: Mauna Loa | K1: MBSL | L1: Mauna Loa | M1: MBSL | N1: Pb Age (Ma)
A2: Sample name | B2: MBSL | C2: 176Hf/177Hf | D2: Error | E2: εHf | F2: 206Pb/204Pb | G2: 207Pb/204Pb | H2: 207Pb/206Pb | I2: Pb Age (Ma) | K2: Metres below sea level | M2: 9.5 | N2: 5015.610156
M3: 9.5 | N3: 5015.655967
A4: SR0008-2.70 | B4: 9.5 | C4: 0.283051 | D4: 6 | E4: 9.9 | F4: 18.0923 | G4: 15.4621 | H4: =G4/F4 -> 0.8546232375 | I4: =[1]!AgePb76(H4) -> 5015.610156 | M4: 34 | N4: 5016.986743
B5: 9.5 | C5: 0.283059 | D5: 7 | E5: 10.1 | F5: 18.0978 | G5: 15.4673 | H5: =G5/F5 -> 0.8546508415 | I5: =[1]!AgePb76(H5) -> 5015.655967 | M5: 34 | N5: 5015.6896
A6: SR0023-2.90 | B6: 34 | C6: 0.283058 | D6: 8 | E6: 10.1 | F6: 18.0841 | G6: 15.4701 | H6: 0.8554531329 | I6: =[1]!AgePb76(H6) -> 5016.986743 | M6: 45.5 | N6: 5015.148137
B7: 34 | C7: 0.283064 | D7: 7 | E7: 10.3 | F7: 18.0728 | G7: 15.4463 | H7: 0.854671108 | I7: =[1]!AgePb76(H7) -> 5015.6896 | M7: 53.5 | N7: 5014.95299
A8: SR0031-0.50 | B8: 45.5 | C8: 0.283077 | D8: 9 | E8: 10.8 | F8: 18.0948 | G8: 15.4592 | H8: 0.8543448947 | I8: =[1]!AgePb76(H8) -> 5015.148137 | M8: 53.5 | N8: 5013.267558
A9: SR0036-1.22 | B9: 53.5 | C9: 0.283086 | D9: 7 | E9: 11.1 | F9: 18.1248 | G9: 15.4827 | H9: 0.854227357 | I9: =[1]!AgePb76(H9) -> 5014.95299 | M9: 59.5 | N9: 5014.522177
B10: 53.5 | C10: 0.283085 | D10: 8 | E10: 11.1 | F10: 18.1174 | G10: 15.458 | H10: 0.8532129334 | I10: =[1]!AgePb76(H10) -> 5013.267558 | M10: 59.5 | N10: 5013.523587
A11: SR0040-1.07 | B11: 59.5 | C11: 0.28307 | D11: 9 | E11: 10.5 | F11: 18.1152 | G11: 15.4698 | H11: 0.8539679385 | I11: =[1]!AgePb76(H11) -> 5014.522177 | M11: 68.7 | N11: 5015.202839
B12: 59.5 | C12: 0.283087 | D12: 7 | E12: 11.1 | F12: 18.1262 | G12: 15.4683 | H12: 0.8533669495 | I12: =[1]!AgePb76(H12) -> 5013.523587 | M12: 68.7 | N12: 5014.416627
A13: SR0046-1.15 | B13: 68.7 | C13: 0.283091 | D13: 6 | E13: 11.3 | F13: 18.0831 | G13: 15.4498 | H13: 0.8543778445 | I13: =[1]!AgePb76(H13) -> 5015.202839 | M13: 85.9 | N13: 5010.066414
B14: 68.7 | F14: 18.095 | G14: 15.4514 | H14: 0.8539043935 | I14: =[1]!AgePb76(H14) -> 5014.416627 | M14: 91.2 | N14: 5012.131962
A15: SR0057-3.00 | B15: 85.9 | C15: 0.283087 | D15: 6 | E15: 11.1 | F15: 18.1662 | G15: 15.4647 | H15: 0.8512897579 | I15: =[1]!AgePb76(H15) -> 5010.066414 | M15: 98.8 | N15: 5004.928728
A16: SR0061-0.00 | B16: 91.2 | C16: 0.283087 | D16: 7 | E16: 11.1 | F16: 18.1332 | G16: 15.4591 | H16: 0.8525301657 | I16: =[1]!AgePb76(H16) -> 5012.131962 | M16: 98.8 | N16: 5004.857529
A17: SR0066-0.00 | B17: 98.8 | C17: 0.283096 | D17: 8 | E17: 11.5 | F17: 18.2433 | G17: 15.4742 | H17: 0.8482127685 | I17: =[1]!AgePb76(H17) -> 5004.928728 | M17: 125.4 | N17: 5005.609615
B18: 98.8 | F18: 18.2316 | G18: 15.4635 | H18: 0.84817021 | I18: =[1]!AgePb76(H18) -> 5004.857529 | M18: 137 | N18: 5006.277308
A19: SR0080-0.35 | B19: 125.4 | C19: 0.283084 | D19: 6 | E19: 11 | F19: 18.223 | G19: 15.4644 | H19: 0.848619876 | I19: =[1]!AgePb76(H19) -> 5005.609615 | M19: 149.9 | N19: 5010.235646
A20: SR0083-7.85 | B20: 137 | C20: 0.283088 | D20: 7 | E20: 11.2 | F20: 18.2063 | G20: 15.4575 | H20: 0.8490192955 | I20: =[1]!AgePb76(H20) -> 5006.277308 | M20: 163.3 | N20: 5003.373473
A21: SR0089-1.15 | B21: 149.9 | C21: 0.283087 | D21: 7 | E21: 11.1 | F21: 18.1591 | G21: 15.4605 | H21: 0.8513913134 | I21: =[1]!AgePb76(H21) -> 5010.235646 | M21: 177.8 | N21: 5003.586148
A22: SR0093-6.55 | B22: 163.3 | C22: 0.283088 | D22: 5 | E22: 11.2 | F22: 18.2469 | G22: 15.4603 | H22: 0.8472836482 | I22: =[1]!AgePb76(H22) -> 5003.373473 | M22: 197.4 | N22: 5018.302001
A23: SR0098-2.00 | B23: 177.8 | C23: 0.283108 | D23: 6 | E23: 11.9 | F23: 18.2516 | G23: 15.4666 | H23: 0.847410638 | I23: =[1]!AgePb76(H23) -> 5003.586148 | M23: 197.4 | N23: 5017.520755
A24: SR0104-4.95 | B24: 197.4 | C24: 0.283074 | D24: 6 | E24: 10.7 | F24: 18.0803 | G24: 15.4812 | H24: 0.8562468543 | I24: =[1]!AgePb76(H24) -> 5018.302001 | M24: 209.1 | N24: 5012.396536
B25: 197.4 | F25: 18.0614 | G25: 15.4565 | H25: 0.8557752998 | I25: =[1]!AgePb76(H25) -> 5017.520755 | M25: 222.5 | N25: 5009.004703
A26: SR0109-0.65 | B26: 209.1 | C26: 0.283067 | D26: 5 | E26: 10.4 | F26: 18.1263 | G26: 15.4561 | H26: 0.8526891864 | I26: =[1]!AgePb76(H26) -> 5012.396536 | M26: 233.7 | N26: 5007.217807
A27: SR0113-6.20 | B27: 222.5 | C27: 0.283092 | D27: 5 | E27: 11.3 | F27: 18.1798 | G27: 15.4647 | H27: 0.8506529225 | I27: =[1]!AgePb76(H27) -> 5009.004703 | M27: 242 | N27: 5002.735488
A28: SR0117-4.00 | B28: 233.7 | C28: 0.283078 | D28: 6 | E28: 10.8 | F28: 18.2166 | G28: 15.4765 | H28: 0.8495822492 | I28: =[1]!AgePb76(H28) -> 5007.217807 | M28: 242 | N28: 5003.583745
A29: SR0120-1.00 | B29: 242 | C29: 0.28308 | D29: 8 | E29: 10.9 | F29: 18.2505 | G29: 15.4564 | H29: 0.8469028246 | I29: =[1]!AgePb76(H29) -> 5002.735488
B30: 242 | F30: 18.2357 | G30: 15.4531 | H30: 0.8474092028 | I30: =[1]!AgePb76(H30) -> 5003.583745
H31: Average | I31: =AVERAGE(I4:I30) -> 5010.99275
H32: Maximum | I32: =MAX(I4:I31) -> 5018.302001
H33: Minimum | I33: =MIN(I4:I32) -> 5002.735488
H34: Difference | I34: =I32-I33 -> 15.56651291
H35: Accuracy | I35: =1-(I34/I31) -> 0.9968935272
A37: Mauna Kea | B37: Mauna Kea | C37: Mauna Kea | D37: Mauna Kea | E37: Mauna Kea | F37: Mauna Kea | G37: Mauna Kea | H37: Mauna Kea | I37: Mauna Kea
A38: SR0121-4.40 | B38: 246.2 | C38: 0.283103 | D38: 5 | E38: 11.7 | F38: 18.4111 | G38: 15.4825 | H38: 0.8409329155 | I38: =[1]!AgePb76(H38) -> 4992.694223 | L38: Mauna Kea | M38: MBSL | N38: Pb Age (Ma)
B39: 246.2 | C39: 0.283112 | D39: 10 | E39: 12 | F39: 18.4179 | G39: 15.4822 | H39: 0.8406061495 | I39: =[1]!AgePb76(H39) -> 4992.142425 | M39: 246.2 | N39: 4992.694223
A40: SR0124-3.90 | B40: 252.9 | C40: 0.2831 | D40: 5 | E40: 11.6 | F40: 18.4081 | G40: 15.4774 | H40: 0.8407929118 | I40: =[1]!AgePb76(H40) -> 4992.457832 | M40: 246.2 | N40: 4992.142425
A41: SR0125-6.25 | B41: 256.5 | C41: 0.283097 | D41: 5 | E41: 11.5 | F41: 18.4076 | G41: 15.4936 | H41: 0.8416958213 | I41: =[1]!AgePb76(H41) -> 4993.981628 | M41: 252.9 | N41: 4992.457832
B42: 256.5 | F42: 18.4329 | G42: 15.4888 | H42: 0.8402801513 | I42: =[1]!AgePb76(H42) -> 4991.591697 | M42: 256.5 | N42: 4993.981628
A43: SR0127-4.75 | B43: 261.7 | C43: 0.283104 | D43: 4 | E43: 11.7 | F43: 18.431 | G43: 15.4849 | H43: 0.8401551733 | I43: =[1]!AgePb76(H43) -> 4991.380504 | M43: 256.5 | N43: 4991.591697
A44: SR0129-5.20 | B44: 267.5 | C44: 0.283126 | D44: 7 | E44: 12.5 | F44: 18.4362 | G44: 15.4794 | H44: 0.8396198783 | I44: =[1]!AgePb76(H44) -> 4990.475562 | M44: 261.7 | N44: 4991.380504
A45: SR0131-6.92 | B45: 274.4 | C45: 0.283125 | D45: 5 | E45: 12.5 | F45: 18.4413 | G45: 15.4863 | H45: 0.8397618389 | I45: =[1]!AgePb76(H45) -> 4990.715613 | M45: 267.5 | N45: 4990.475562
A46: SR0133-8.20 | B46: 281.3 | C46: 0.283121 | D46: 5 | E46: 12.3 | F46: 18.4301 | G46: 15.4834 | H46: 0.8401148122 | I46: =[1]!AgePb76(H46) -> 4991.312293 | M46: 274.4 | N46: 4990.715613
A47: SR0137-5.98 | B47: 293 | C47: 0.283109 | D47: 5 | E47: 11.9 | F47: 18.4339 | G47: 15.4794 | H47: 0.8397246378 | I47: =[1]!AgePb76(H47) -> 4990.652711 | M47: 281.3 | N47: 4991.312293
B48: 293 | F48: 18.4343 | G48: 15.4779 | H48: 0.8396250468 | I48: =[1]!AgePb76(H48) -> 4990.484302 | M48: 293 | N48: 4990.652711
A49: SR0141-7.90 | B49: 305.8 | C49: 0.283114 | D49: 5 | E49: 12.1 | F49: 18.4465 | G49: 15.4832 | H49: 0.8393570596 | I49: =[1]!AgePb76(H49) -> 4990.03103 | M49: 293 | N49: 4990.484302
A50: SR0148-8.50 | B50: 326.7 | C50: 0.28312 | D50: 6 | E50: 12.3 | F50: 18.3848 | G50: 15.4744 | H50: 0.8416953135 | I50: =[1]!AgePb76(H50) -> 4993.980772 | M50: 305.8 | N50: 4990.03103
B51: 326.7 | E51: 18.5148 | F51: 15.4749 | G51: 38.0448 | H51: 2.458484384 | I51: =[1]!AgePb76(H51) -> 6473.729724 | M51: 326.7 | N51: 4993.980772
B52: 326.7 | E52: 18.5257 | F52: 15.4763 | G52: 38.0499 | H52: 2.458591524 | I52: =[1]!AgePb76(H52) -> 6473.788476 | M52: 326.7 | N52: 6473.729724
A53: SR0175-5.25 | B53: 398.1 | C53: 0.28312 | D53: 6 | E53: 12.3 | F53: 18.5613 | G53: 15.4809 | H53: 0.8340417966 | I53: =[1]!AgePb76(H53) -> 4981.008907 | M53: 326.7 | N53: 6473.788476
A54: SR0184-2.80 | B54: 421.2 | C54: 0.283152 | D54: 6 | E54: 13.4 | F54: 18.4785 | G54: 15.4793 | H54: 0.8376924534 | I54: =[1]!AgePb76(H54) -> 4987.212073 | M54: 398.1 | N54: 4981.008907
A55: SR0193-0.00 | B55: 443.6 | C55: 0.283143 | D55: 8 | E55: 13.1 | F55: 18.5331 | G55: 15.4874 | H55: 0.8356616001 | I55: =[1]!AgePb76(H55) -> 4983.764817 | M55: 421.2 | N55: 4987.212073
A56: SR0205-1.30 | B56: 467.8 | C56: 0.283142 | D56: 8 | E56: 13.1 | F56: 18.5456 | G56: 15.4859 | H56: 0.8350174705 | I56: =[1]!AgePb76(H56) -> 4982.669584 | M56: 443.6 | N56: 4983.764817
A57: SR0212-8.20 | B57: 490.9 | C57: 0.283152 | D57: 8 | E57: 13.4 | F57: 18.5606 | G57: 15.5042 | H57: 0.8353285993 | I57: =[1]!AgePb76(H57) -> 4983.198718 | M57: 467.8 | N57: 4982.669584
B58: 490.9 | F58: 18.5995 | G58: 15.5036 | H58: 0.833549289 | I58: =[1]!AgePb76(H58) -> 4980.169833 | M58: 490.9 | N58: 4983.198718
A59: SR0222-2.00 | B59: 516.2 | C59: 0.283126 | D59: 9 | E59: 12.5 | F59: 18.5597 | G59: 15.4957 | H59: 0.8349111246 | I59: =[1]!AgePb76(H59) -> 4982.488675 | M59: 490.9 | N59: 4980.169833
A60: SR0232-8.50 | B60: 542.1 | C60: 0.283112 | D60: 9 | E60: 12 | F60: 18.5521 | G60: 15.487 | H60: 0.8347842023 | I60: =[1]!AgePb76(H60) -> 4982.27273 | M60: 516.2 | N60: 4982.488675
A61: SR0240-3.30 | B61: 563.5 | C61: 0.283148 | D61: 8 | E61: 13.3 | F61: 18.583 | G61: 15.4947 | H61: 0.8338104719 | I61: =[1]!AgePb76(H61) -> 4980.61487 | M61: 542.1 | N61: 4982.27273
A62: SR0256-0.95 | B62: 589 | C62: 0.283123 | D62: 7 | E62: 12.4 | F62: 18.5232 | G62: 15.4846 | H62: 0.8359570701 | I62: =[1]!AgePb76(H62) -> 4984.266913 | M62: 563.5 | N62: 4980.61487
A63: SR0267-6.85 | B63: 615.8 | C63: 0.283134 | D63: 10 | E63: 12.8 | F63: 18.5512 | G63: 15.5 | H63: 0.8355254647 | I63: =[1]!AgePb76(H63) -> 4983.533417 | M63: 589 | N63: 4984.266913
B64: 615.8 | F64: 18.5485 | G64: 15.4875 | H64: 0.8349731784 | I64: =[1]!AgePb76(H64) -> 4982.59424 | M64: 615.8 | N64: 4983.533417
A65: SR0276-7.85 | B65: 636 | C65: 0.28313 | D65: 7 | E65: 12.7 | F65: 18.5315 | G65: 15.4821 | H65: 0.8354477511 | I65: =[1]!AgePb76(H65) -> 4983.401303 | M65: 615.8 | N65: 4982.59424
A66: SR0284-1.75 | B66: 658.3 | C66: 0.283131 | D66: 7 | E66: 12.7 | F66: 18.6343 | G66: 15.4888 | H66: 0.8311983815 | I66: =[1]!AgePb76(H66) -> 4976.157377 | M66: 636 | N66: 4983.401303
A67: SR0294-7.65 | B67: 678.6 | C67: 0.283129 | D67: 7 | E67: 12.6 | F67: 18.5815 | G67: 15.4917 | H67: 0.8337163308 | I67: =[1]!AgePb76(H67) -> 4980.454477 | M67: 658.3 | N67: 4976.157377
A68: SR0300-6.50 | B68: 695.9 | C68: 0.283137 | D68: 7 | E68: 12.9 | F68: 18.5688 | G68: 15.4873 | H68: =G68/F68 -> 0.8340495886 | I68: =[1]!AgePb76(H68) -> 4981.022177 | M68: 678.6 | N68: 4980.454477
A69: SR0311-4.40 | B69: 724.1 | C69: 0.283131 | D69: 7 | E69: 12.7 | F69: 18.5409 | G69: 15.4992 | H69: 0.8359464751 | I69: =[1]!AgePb76(H69) -> 4984.248912 | M69: 695.9 | N69: 4981.022177
A70: SR0328-3.10 | B70: 759.8 | C70: 0.283116 | D70: 8 | E70: 12.2 | F70: 18.5164 | G70: 15.4792 | H70: 0.8359724352 | I70: =[1]!AgePb76(H70) -> 4984.293018 | M70: 724.1 | N70: 4984.248912
A71: SR0340-1.00 | B71: 793.6 | C71: 0.283127 | D71: 6 | E71: 12.6 | F71: 18.6117 | G71: 15.5007 | H71: 0.8328470801 | I71: =[1]!AgePb76(H71) -> 4978.972586 | M71: 759.8 | N71: 4984.293018
A72: SR0346-5.60 | B72: 812.7 | C72: 0.283121 | D72: 8 | E72: 12.3 | F72: 18.5245 | G72: 15.4799 | H72: 0.8356446868 | I72: =[1]!AgePb76(H72) -> 4983.73607 | M72: 793.6 | N72: 4978.972586
A73: SR0354-7.75 | B73: 833.9 | C73: 0.283118 | D73: 10 | E73: 12.2 | F73: 18.428 | G73: 15.4761 | H73: 0.8398144129 | I73: =[1]!AgePb76(H73) -> 4990.804503 | M73: 812.7 | N73: 4983.73607
A74: SR0372-2.80 | B74: 871.2 | C74: 0.283115 | D74: 6 | E74: 12.1 | F74: 18.4967 | G74: 15.4806 | H74: 0.8369384809 | I74: =[1]!AgePb76(H74) -> 4985.933286 | M74: 833.9 | N74: 4990.804503
A75: SR0379-3.00 | B75: 888.4 | C75: 0.283109 | D75: 5 | E75: 11.9 | F75: 18.456 | G75: 15.4801 | H75: 0.8387570438 | I75: =[1]!AgePb76(H75) -> 4989.015608 | M75: 871.2 | N75: 4985.933286
A76: SR0392-4.30 | B76: 921.8 | C76: 0.28312 | D76: 7 | E76: 12.3 | F76: 18.4979 | G76: 15.4818 | H76: 0.8369490591 | I76: =[1]!AgePb76(H76) -> 4985.951236 | M76: 888.4 | N76: 4989.015608
B77: 921.8 | F77: 18.4971 | G77: 15.4912 | H77: 0.8374934449 | I77: =[1]!AgePb76(H77) -> 4986.87466 | M77: 921.8 | N77: 4985.951236
A78: SR0401-2.85 | B78: 948.9 | C78: 0.283115 | D78: 8 | E78: 12.1 | F78: 18.4908 | G78: 15.4857 | H78: 0.8374813421 | I78: =[1]!AgePb76(H78) -> 4986.854137 | M78: 921.8 | N78: 4986.87466
A79: SR0413-3.10 | B79: 984.2 | C79: 0.283137 | D79: 6 | E79: 12.9 | F79: 18.4872 | G79: 15.4936 | H79: 0.8380717469 | I79: =[1]!AgePb76(H79) -> 4987.854918 | M79: 948.9 | N79: 4986.854137
A80: SR0423-3.65 | B80: 1012.4 | C80: 0.283129 | D80: 7 | E80: 12.6 | F80: 18.5806 | G80: 15.4867 | H80: 0.8334876161 | I80: =[1]!AgePb76(H80) -> 4980.064726 | M80: 984.2 | N80: 4987.854918
A81: SR0432-8.50 | B81: 1037.7 | C81: 0.283111 | D81: 7 | E81: 12 | F81: 18.5307 | G81: 15.4836 | H81: 0.8355647655 | I81: =[1]!AgePb76(H81) -> 4983.600224 | M81: 1012.4 | N81: 4980.064726
A82: SR0441-9.10 | B82: 1061.2 | C82: 0.283121 | D82: 8 | E82: 12.3 | F82: 18.4716 | G82: 15.4825 | H82: 0.8381786093 | I82: =[1]!AgePb76(H82) -> 4988.035977 | M82: 1037.7 | N82: 4983.600224
A83: SR0450-3.55 | B83: 1083.7 | C83: 0.283117 | D83: 7 | E83: 12.2 | F83: 18.5073 | G83: 15.4788 | H83: 0.836361868 | I83: =[1]!AgePb76(H83) -> 4984.954486 | M83: 1061.2 | N83: 4988.035977
A84: SR0455-7.40 | B84: 1098.2 | C84: 0.283137 | D84: 9 | E84: 12.9 | F84: 18.5431 | G84: 15.4893 | H84: 0.835313405 | I84: =[1]!AgePb76(H84) -> 4983.172882 | M84: 1083.7 | N84: 4984.954486
A85: SR0472-1.00 | B85: 1123.2 | C85: 0.283123 | D85: 9 | E85: 12.4 | F85: 18.4646 | G85: 15.4846 | H85: 0.8386100972 | I85: =[1]!AgePb76(H85) -> 4988.766808 | M85: 1098.2 | N85: 4983.172882
B86: 1123.2 | F86: 18.459 | G86: 15.4805 | H86: 0.8386423967 | I86: =[1]!AgePb76(H86) -> 4988.8215 | M86: 1123.2 | N86: 4988.766808
A87: SR0490-1.50 | B87: 1229.6 | C87: 0.283131 | D87: 7 | E87: 12.7 | F87: 18.4918 | G87: 15.4841 | H87: 0.8373495279 | I87: =[1]!AgePb76(H87) -> 4986.6306 | M87: 1123.2 | N87: 4988.8215
A88: SR0502-4.85 | B88: 1265.2 | C88: 0.283123 | D88: 8 | E88: 12.4 | F88: 18.5486 | G88: 15.4778 | H88: 0.8344457264 | I88: =[1]!AgePb76(H88) -> 4981.696679 | M88: 1229.6 | N88: 4986.6306
A89: SR0518-0.80 | B89: 1311.9 | C89: 0.28312 | D89: 8 | E89: 12.3 | F89: 18.4728 | G89: 15.4688 | H89: 0.83738253 | I89: =[1]!AgePb76(H89) -> 4986.68657 | M89: 1265.2 | N89: 4981.696679
A90: SR0531-4.40 | B90: 1352.6 | C90: 0.283117 | D90: 8 | E90: 12.2 | F90: 18.4417 | G90: 15.4805 | H90: 0.8394291199 | I90: =[1]!AgePb76(H90) -> 4990.152927 | M90: 1311.9 | N90: 4986.68657
A91: SR0545-8.35 | B91: 1395 | C91: 0.283123 | D91: 8 | E91: 12.4 | F91: 18.4453 | G91: 15.4808 | H91: 0.8392815514 | I91: =[1]!AgePb76(H91) -> 4989.903288 | M91: 1352.6 | N91: 4990.152927
A92: SR0548-8.00 | B92: 1404.1 | C92: 0.283118 | D92: 7 | E92: 12.2 | F92: 18.4968 | G92: 15.4851 | H92: 0.8371772415 | I92: =[1]!AgePb76(H92) -> 4986.338372 | M92: 1395 | N92: 4989.903288
A93: SR0560-7.50 | B93: 1435.4 | C93: 0.28314 | D93: 8 | E93: 13 | F93: 18.4491 | G93: 15.4839 | H93: 0.8392767127 | I93: =[1]!AgePb76(H93) -> 4989.895101 | M93: 1404.1 | N93: 4986.338372
A94: SR0574-1.90 | B94: 1474.7 | C94: 0.283127 | D94: 8 | E94: 12.6 | F94: 18.6213 | G94: 15.488 | H94: 0.8317357005 | I94: =[1]!AgePb76(H94) -> 4977.075519 | M94: 1435.4 | N94: 4989.895101
A95: SR0582-10.00 | B95: 1497.7 | C95: 0.28314 | D95: 7 | E95: 13 | F95: 18.6259 | G95: 15.4905 | H95: 0.8316645102 | I95: =[1]!AgePb76(H95) -> 4976.953909 | M95: 1474.7 | N95: 4977.075519
A96: SR0594-8.70 | B96: 1521.4 | C96: 0.283132 | D96: 10 | E96: 12.7 | F96: 18.6116 | G96: 15.4773 | H96: 0.8315942745 | I96: =[1]!AgePb76(H96) -> 4976.833919 | M96: 1497.7 | N96: 4976.953909
A97: SR0603-8.90 | B97: 1548.2 | C97: 0.283152 | D97: 8 | E97: 13.4 | F97: 18.5296 | G97: 15.4908 | H97: 0.8360029358 | I97: =[1]!AgePb76(H97) -> 4984.344837 | M97: 1521.4 | N97: 4976.833919
A98: SR0604-2.50 | B98: 1549.3 | C98: 0.28314 | D98: 8 | E98: 13 | F98: 18.5107 | G98: 15.4797 | H98: 0.8362568676 | I98: =[1]!AgePb76(H98) -> 4984.776171 | M98: 1548.2 | N98: 4984.344837
A99: SR0641-1.00 | B99: 1636.3 | C99: 0.283114 | D99: 6 | E99: 12.1 | F99: 18.4958 | G99: 15.4943 | H99: 0.8377199148 | I99: =[1]!AgePb76(H99) -> 4987.258626 | M99: 1549.3 | N99: 4984.776171
A100: SR0664-5.10 | B100: 1705.5 | C100: 0.283108 | D100: 6 | E100: 11.9 | F100: 18.5485 | G100: 15.4923 | H100: 0.8352319595 | I100: =[1]!AgePb76(H100) -> 4983.034386 | M100: 1636.3 | N100: 4987.258626
A101: SR0675-6.90 | B101: 1739.3 | C101: 0.283115 | D101: 8 | E101: 12.1 | F101: 18.4422 | G101: 15.4775 | H101: 0.8392436911 | I101: =[1]!AgePb76(H101) -> 4989.839232 | M101: 1705.5 | N101: 4983.034386
A102: SR0694-9.00 | B102: 1794.8 | C102: 0.283134 | D102: 9 | E102: 12.8 | F102: 18.5944 | G102: 15.498 | H102: 0.8334767457 | I102: =[1]!AgePb76(H102) -> 4980.046199 | M102: 1739.3 | N102: 4989.839232
A103: SR0705-0.15 | B103: 1823.2 | C103: 0.283104 | D103: 10 | E103: 11.7 | F103: 18.4876 | G103: 15.4756 | H103: 0.8370799887 | I103: =[1]!AgePb76(H103) -> 4986.173386 | M103: 1794.8 | N103: 4980.046199
A104: SR0709-13.35 | B104: 1852 | C104: 0.283129 | D104: 16 | E104: 12.6 | F104: 18.5846 | G104: 15.4889 | H104: 0.8334266005 | I104: =[1]!AgePb76(H104) -> 4979.96073 | M104: 1823.2 | N104: 4986.173386
A105: SR0714-11.55 | B105: 1883.6 | C105: 0.283111 | D105: 10 | E105: 12 | F105: 18.5842 | G105: 15.4951 | H105: 0.8337781556 | I105: =[1]!AgePb76(H105) -> 4980.559813 | M105: 1852 | N105: 4979.96073
A106: SR0723-13.70 | B106: 1933.8 | C106: 0.283129 | D106: 8 | E106: 12.6 | F106: 18.5306 | G106: 15.4892 | H106: 0.8358714774 | I106: =[1]!AgePb76(H106) -> 4984.121484 | M106: 1883.6 | N106: 4980.559813
A107: SR0732-1.10 | B107: 1973.8 | C107: 0.283103 | D107: 9 | E107: 11.7 | F107: 18.4544 | G107: 15.4813 | H107: 0.8388947893 | I107: =[1]!AgePb76(H107) -> 4989.248786 | M107: 1933.8 | N107: 4984.121484
A108: SR0741-7.90 | B108: 2009.8 | C108: 0.283105 | D108: 11 | E108: 11.8 | F108: 18.4569 | G108: 15.4833 | H108: 0.838889521 | I108: =[1]!AgePb76(H108) -> 4989.239869 | M108: 1973.8 | N108: 4989.248786
A109: SR0750-12.45 | B109: 2062.7 | C109: 0.283102 | D109: 14 | E109: 11.7 | F109: 18.4539 | G109: 15.484 | H109: 0.8390638293 | I109: =[1]!AgePb76(H109) -> 4989.534885 | M109: 2009.8 | N109: 4989.239869
B110: 2062.7 | C110: 0.283095 | D110: 8 | E110: 11.4 | F110: 18.4542 | G110: 15.4846 | H110: 0.839082702 | I110: =[1]!AgePb76(H110) -> 4989.566823 | M110: 2062.7 | N110: 4989.534885
A111: SR0756-13.25 | B111: 2098.6 | C111: 0.283094 | D111: 20 | E111: 11.4 | F111: 18.4304 | G111: 15.4746 | H111: 0.8396236652 | I111: =[1]!AgePb76(H111) -> 4990.481966 | M111: 2062.7 | N111: 4989.566823
A112: SR0762-4.60 | B112: 2123.7 | C112: 0.283108 | D112: 11 | E112: 11.9 | F112: 18.4486 | G112: 15.481 | H112: 0.8391422655 | I112: =[1]!AgePb76(H112) -> 4989.667617 | M112: 2098.6 | N112: 4990.481966
A113: SR0768-11.20 | B113: 2157.4 | C113: 0.283108 | D113: 8 | E113: 11.9 | F113: 18.5411 | G113: 15.4841 | H113: 0.835123051 | I113: =[1]!AgePb76(H113) -> 4982.849168 | M113: 2123.7 | N113: 4989.667617
A114: SR0776-17.70 | B114: 2209.5 | C114: 0.283119 | D114: 6 | E114: 12.3 | F114: 18.5213 | G114: 15.4836 | H114: 0.8359888345 | I114: =[1]!AgePb76(H114) -> 4984.32088 | M114: 2157.4 | N114: 4982.849168
A115: SR0778-3.20 | B115: 2218.2 | C115: 0.283117 | D115: 5 | E115: 12.2 | F115: 18.5386 | G115: 15.4888 | H115: 0.8354891955 | I115: =[1]!AgePb76(H115) -> 4983.47176 | M115: 2209.5 | N115: 4984.32088
A116: SR0791-9.50 | B116: 2280.2 | C116: 0.283116 | D116: 10 | E116: 12.2 | F116: 18.4897 | G116: 15.4703 | H116: 0.8366982698 | I116: =[1]!AgePb76(H116) -> 4985.525615 | M116: 2218.2 | N116: 4983.47176
A117: SR0800-13.20 | B117: 2321.6 | C117: 0.283113 | D117: 11 | E117: 12.1 | F117: 18.5128 | G117: 15.4895 | H117: 0.8366913703 | I117: =[1]!AgePb76(H117) -> 4985.513903 | M117: 2280.2 | N117: 4985.525615
A118: SR0836-5.80 | B118: 2467.3 | C118: 0.283113 | D118: 10 | E118: 12.1 | F118: 18.4991 | G118: 15.4892 | H118: =G118/F118 -> 0.8372947873 | I118: =[1]!AgePb76(H118) -> 4986.537757 | M118: 2321.6 | N118: 4985.513903
A119: SR0842-2.35 | B119: 2503.5 | C119: 0.283106 | D119: 9 | E119: 11.8 | F119: 18.4766 | G119: 15.498 | H119: 0.8387906866 | I119: =[1]!AgePb76(H119) -> 4989.072563 | M119: 2467.3 | N119: 4986.537757
A120: SR0846-2.80 | B120: 2525.4 | C120: 0.283133 | D120: 11 | E120: 12.8 | F120: 18.5675 | G120: 15.4912 | H120: 0.8343180288 | I120: =[1]!AgePb76(H120) -> 4981.479286 | M120: 2503.5 | N120: 4989.072563
A121: SR0850-5.95 | B121: 2550.9 | C121: 0.283115 | D121: 8 | E121: 12.1 | F121: 18.6762 | G121: 15.4986 | H121: 0.8298583224 | I121: =[1]!AgePb76(H121) -> 4973.864804 | M121: 2525.4 | N121: 4981.479286
A122: SR0850-5.95 | B122: 2550.9 | C122: 0.283118 | D122: 5 | E122: 12.2 | F122: 18.6697 | G122: 15.4956 | H122: 0.8299865558 | I122: =[1]!AgePb76(H122) -> 4974.084356 | M122: 2550.9 | N122: 4973.864804
A123: SR0850-5.95 | B123: 2550.9 | F123: 18.6653 | G123: 15.4928 | H123: 0.8300321988 | I123: =[1]!AgePb76(H123) -> 4974.162494 | M123: 2550.9 | N123: 4974.084356
A124: SR0855-0.10 | B124: 2581.8 | C124: 0.283128 | D124: 8 | E124: 12.6 | F124: 18.6438 | G124: 15.4968 | H124: 0.8312039391 | I124: =[1]!AgePb76(H124) -> 4976.166876 | M124: 2550.9 | N124: 4974.162494
A125: SR0860-8.10 | B125: 2615 | C125: 0.283118 | D125: 9 | E125: 12.2 | F125: 18.5042 | G125: 15.4851 | H125: 0.8368424466 | I125: =[1]!AgePb76(H125) -> 4985.770317 | M125: 2581.8 | N125: 4976.166876
A126: SR0871-13.00 | B126: 2654.1 | C126: 0.283116 | D126: 11 | E126: 12.2 | F126: 18.4512 | G126: 15.4816 | H126: 0.8390565383 | I126: =[1]!AgePb76(H126) -> 4989.522546 | M126: 2615 | N126: 4985.770317
A127: SR0891-15.10 | B127: 2730.2 | C127: 0.283117 | D127: 11 | E127: 12.2 | F127: 18.5754 | G127: 15.494 | H127: 0.8341139356 | I127: =[1]!AgePb76(H127) -> 4981.131764 | M127: 2654.1 | N127: 4989.522546
A128: SR0896-2.40 | B128: 2759.3 | C128: 0.283108 | D128: 5 | E128: 11.9 | F128: 18.5083 | G128: 15.4892 | H128: 0.8368785896 | I128: =[1]!AgePb76(H128) -> 4985.831654 | M128: 2730.2 | N128: 4981.131764
A129: SR0899-2.45 | B129: 2770.9 | C129: 0.283106 | D129: 12 | E129: 11.8 | F129: 18.5065 | G129: 15.4889 | H129: 0.8369437765 | I129: =[1]!AgePb76(H129) -> 4985.942272 | M129: 2759.3 | N129: 4985.831654
A130: SR0907-1.65 | B130: 2789.9 | C130: 0.283103 | D130: 8 | E130: 11.7 | F130: 18.5111 | G130: 15.4963 | H130: 0.8371355565 | I130: =[1]!AgePb76(H130) -> 4986.267657 | M130: 2770.9 | N130: 4985.942272
A131: SR0913-2.40 | B131: 2825.8 | C131: 0.283118 | D131: 9 | E131: 12.2 | F131: 18.5482 | G131: 15.4881 | H131: 0.8350190315 | I131: =[1]!AgePb76(H131) -> 4982.67224 | M131: 2789.9 | N131: 4986.267657
A132: SR0916-1.15 | B132: 2837.6 | C132: 0.283126 | D132: 9 | E132: 12.5 | F132: 18.6044 | G132: 15.4909 | H132: 0.8326471157 | I132: =[1]!AgePb76(H132) -> 4978.631455 | M132: 2825.8 | N132: 4982.67224
A133: SR0930-15.85 | B133: 2919.5 | C133: 0.28312 | D133: 14 | E133: 12.3 | F133: 18.5124 | G133: 15.489 | H133: 0.8366824399 | I133: =[1]!AgePb76(H133) -> 4985.498745 | M133: 2837.6 | N133: 4978.631455
A134: SR0939-18.10 | B134: 2961 | C134: 0.283124 | D134: 9 | E134: 12.4 | F134: 18.6031 | G134: 15.4836 | H134: 0.8323128941 | I134: =[1]!AgePb76(H134) -> 4978.061094 | M134: 2919.5 | N134: 4985.498745
A135: SR0940-18.35 | B135: 2967.8 | C135: 0.283102 | D135: 8 | E135: 11.7 | F135: 18.4999 | G135: 15.4777 | H135: 0.8366369548 | I135: =[1]!AgePb76(H135) -> 4985.421535 | M135: 2961 | N135: 4978.061094
A136: SR0954-8.00 | B136: 3009.2 | C136: 0.283118 | D136: 15 | E136: 12.2 | F136: 18.6272 | G136: 15.5093 | H136: 0.8326157447 | I136: =[1]!AgePb76(H136) -> 4978.57793 | M136: 2967.8 | N136: 4985.421535
A137: SR0954-8.00 | B137: 3009.2 | C137: 0.283118 | D137: 11 | E137: 12.2 | F137: 18.5967 | G137: 15.481 | H137: 0.8324595224 | I137: =[1]!AgePb76(H137) -> 4978.31135 | M137: 3009.2 | N137: 4978.57793
A138: SR0954-8.00 | B138: 3009.2 | F138: 18.606 | G138: 15.4821 | H138: 0.8321025476 | I138: =[1]!AgePb76(H138) -> 4977.702005 | M138: 3009.2 | N138: 4978.31135
A139: SR0956-18.35 | B139: 3019 | C139: 0.283122 | D139: 8 | E139: 12.4 | F139: 18.492 | G139: 15.4764 | H139: 0.8369240753 | I139: =[1]!AgePb76(H139) -> 4985.908841 | M139: 3009.2 | N139: 4977.702005
A140: SR0967-2.75 | B140: 3068.9 | C140: 0.283104 | D140: 9 | E140: 11.7 | F140: 18.496 | G140: 15.4847 | H140: 0.8371918253 | I140: =[1]!AgePb76(H140) -> 4986.363111 | M140: 3019 | N140: 4985.908841
A141: SR0967-2.75 | B141: 3068.9 | F141: 18.4899 | G141: 15.4826 | H141: 0.8373544476 | I141: =[1]!AgePb76(H141) -> 4986.638944 | M141: 3068.9 | N141: 4986.363111
H142: Average | I142: =AVERAGE(I38:I141) -> 5013.572395 | M142: 3068.9 | N142: 4986.638944
H143: Maximum | I143: =MAX(I38:I142) -> 6473.788476
H144: Minimum | I144: =MIN(I38:I143) -> 4973.864804
H145: Difference | I145: =I143-I144 -> 1499.923672
H146: Accuracy | I146: =1-(I145/I142) -> 0.7008273634

Sheet H35
A1: Table 1 | E1: Age (Ma) | F1: Age Ratio
A2: Samples | B2: Age(kyr) | C2: 206Pb/204Pb | D2: 207Pb/204Pb | E2: 207Pb/206Pb | H2: 208Pb/204Pb | I2: 87Sr/86Sr | J2: ɛSr | K2: 143Nd/144Nd | L2: ɛNd | M2: 176Hf/177Hf | N2: ɛHf
A3: Piton des Neiges (PDN)
A4: Les Remparts | B4: Thousand Years Old
A5: RP01 | B5: 1690 | C5: 18.999 | D5: 15.598 | E5: =[1]!AgePb76(D5/C5) -> 4958.593983 | F5: =E5/(B5/1000) -> 2934.07928 | H5: 39.07 | I5: 0.70418 | K5: −4.6 | L5: – | M5: – | N5: – | O5: –
A6: RP02 | B6: 1670 | C6: 18.981 | D6: 15.605 | E6: =[1]!AgePb76(D6/C6) -> 4960.579641 | F6: =E6/(B6/1000) -> 2970.406971 | H6: 39.052 | I6: 0.70412 | K6: −5.4 | L6: – | M6: – | N6: – | O6: –
A7: RP03 | B7: 1630 | C7: 18.934 | D7: 15.594 | E7: =[1]!AgePb76(D7/C7) -> 4963.101845 | F7: 3044.847758 | H7: 38.989 | I7: 0.70414 | K7: −5.2 | L7: – | M7: – | N7: – | O7: –
A8: RP04 | B8: 1605 | C8: 18.945 | D8: 15.592 | E8: =[1]!AgePb76(D8/C8) -> 4962.093811 | F8: 3091.647235 | H8: 39.001 | I8: 0.70408 | K8: −5.9 | L8: – | M8: – | N8: – | O8: –
A9: RP05 | B9: 1590 | C9: 18.965 | D9: 15.591 | E9: =[1]!AgePb76(D9/C9) -> 4960.502513 | F9: 3119.812901 | H9: 39.021 | I9: 0.70415 | K9: −5.0 | L9: – | M9: – | N9: – | O9: –
A10: RP06 | B10: 1550 | C10: 18.983 | D10: 15.593 | E10: =[1]!AgePb76(D10/C10) -> 4959.33606 | F10: 3199.571651 | H10: 39.039 | I10: 0.70415 | K10: −5.0 | L10: – | M10: – | N10: – | O10: –
A11: RP07 | B11: 1540 | C11: 18.956 | D11: 15.588 | E11: =[1]!AgePb76(D11/C11) -> 4960.903784 | F11: 3221.366094 | H11: 39.017 | I11: 0.70409 | K11: −5.8 | L11: – | M11: – | N11: – | O11: –
A12: RP09 | B12: 1390 | C12: 18.94 | D12: 15.588 | E12: =[1]!AgePb76(D12/C12) -> 4962.104306 | F12: 3569.859213 | H12: 39.013 | I12: 0.70414 | K12: −5.1 | L12: – | M12: – | N12: – | O12: –
A13: RP10 | B13: 1370 | C13: 18.947 | D13: 15.594 | E13: =[1]!AgePb76(D13/C13) -> 4962.126083 | F13: 3621.989841 | H13: 39.012 | I13: 0.70412 | K13: −5.4 | L13: – | M13: – | N13: – | O13: –
A14: RP11 | B14: 1345 | C14: 18.934 | D14: 15.586 | E14: =[1]!AgePb76(D14/C14) -> 4962.372331 | F14: 3689.496157 | H14: 39.001 | I14: 0.70411 | K14: −5.5 | L14: – | M14: – | N14: – | O14: –
A15: RP12 | B15: 1330 | C15: 18.996 | D15: 15.592 | E15: =[1]!AgePb76(D15/C15) -> 4958.27146 | F15: 3728.023654 | H15: 39.059 | I15: 0.70405 | K15: −6.3 | L15: – | M15: – | N15: – | O15: –
A16: RP13 | B16: 1280 | C16: 18.992 | D16: 15.596 | E16: =[1]!AgePb76(D16/C16) -> 4958.935633 | F16: 3874.168463 | H16: 39.073 | I16: 0.70414 | K16: −5.0 | L16: – | M16: – | N16: – | O16: –
A17: RP14 | B17: 1270 | C17: 18.986 | D17: 15.591 | E17: =[1]!AgePb76(D17/C17) -> 4958.928987 | F17: 3904.668494 | H17: 39.056 | I17: 0.704061 | K17: −6.2 | L17: 0.512867 | M17: 5 | N17: 4.5 | O17: 0.28303 | P17: 5 | Q17: 9.1
A18: RP15 | B18: 1240 | C18: 19 | D18: 15.596 | E18: =[1]!AgePb76(D18/C18) -> 4958.336812 | F18: 3998.65872 | H18: 39.075 | I18: 0.70408 | K18: −5.9 | L18: – | M18: – | N18: – | O18: –
A19: RP16 | B19: 1200 | C19: 18.94 | D19: 15.591 | E19: =[1]!AgePb76(D19/C19) -> 4962.377889 | F19: 4135.314907 | H19: 39.002 | I19: 0.70415 | K19: −5.0 | L19: – | M19: – | N19: – | O19: –
A20: RP17 | B20: 1190 | C20: 18.969 | D20: 15.593 | E20: =[1]!AgePb76(D20/C20) -> 4960.385043 | F20: 4168.390792 | H20: 39.04 | I20: 0.70406 | K20: −6.3 | L20: – | M20: – | N20: – | O20: –
A21: RP18 | B21: 1170 | C21: 18.977 | D21: 15.583 | E21: =[1]!AgePb76(D21/C21) -> 4958.873388 | F21: 4238.353323 | H21: 39.04 | I21: 0.70416 | K21: −4.9 | L21: – | M21: – | N21: – | O21: –
A22: RP19 | B22: 1145 | C22: 18.996 | D22: 15.596 | E22: =[1]!AgePb76(D22/C22) -> 4958.636193 | F22: 4330.686631 | H22: 39.064 | I22: 0.70405 | K22: −6.4 | L22: – | M22: – | N22: – | O22: –
A23: RP20 | B23: 1110 | C23: 18.971 | D23: 15.599 | E23: =[1]!AgePb76(D23/C23) -> 4960.782123 | F23: 4469.173084 | H23: 39.046 | I23: 0.7041 | K23: −5.6 | L23: – | M23: – | N23: – | O23: –
A24: RP21 | B24: 1080 | C24: 18.966 | D24: 15.59 | E24: =[1]!AgePb76(D24/C24) -> 4960.336351 | F24: 4592.904028 | H24: 39.034 | I24: 0.70411 | K24: −5.5 | L24: – | M24: – | N24: – | O24: –
A25: RP23 | B25: 990 | C25: 18.964 | D25: 15.592 | E25: =[1]!AgePb76(D25/C25) -> 4960.668673 | F25: 5010.776437 | H25: 39.029 | I25: 0.704063 | K25: −6.2 | L25: 0.512861 | M25: 6 | N25: 4.3 | O25: 0.283026 | P25: 6 | Q25: 9
A26: RP24 | B26: 910 | C26: 18.962 | D26: 15.583 | E26: =[1]!AgePb76(D26/C26) -> 4959.997705 | F26: 5450.546928 | H26: 39.015 | I26: 0.70405 | K26: −6.4 | L26: – | M26: – | N26: – | O26: –
C27: 18.97 | D27: 15.587 | E27: =[1]!AgePb76(D27/C27) -> 4959.762891 | H27: 39.028
A28: RP25 | B28: 890 | C28: 18.932 | D28: 15.584 | E28: =[1]!AgePb76(D28/C28) -> 4962.34007 | F28: 5575.662999 | H28: 38.981 | I28: 0.70403 | K28: −6.6 | L28: – | M28: – | N28: – | O28: –
A29: RP26 | B29: 850 | C29: 18.941 | D29: 15.593 | E29: =[1]!AgePb76(D29/C29) -> 4962.485187 | F29: 5838.217867 | H29: 39.023 | I29: 0.70409 | K29: −5.8 | L29: – | M29: – | N29: – | O29: –
A30: RP27 | B30: 810 | C30: 18.962 | D30: 15.592 | E30: =[1]!AgePb76(D30/C30) -> 4960.818624 | F30: 6124.467438 | H30: 39.035 | I30: 0.70407 | K30: −6.0 | L30: – | M30: – | N30: – | O30: –
A31: RP28 | B31: 790 | C31: 18.926 | D31: 15.592 | E31: =[1]!AgePb76(D31/C31) -> 4963.52029 | F31: 6282.937076 | H31: 39.002 | I31: 0.70409 | K31: −5.9 | L31: – | M31: – | N31: – | O31: –
A32: RP29 | B32: 760 | C32: 18.924 | D32: 15.589 | E32: =[1]!AgePb76(D32/C32) -> 4963.396974 | F32: 6530.785492 | H32: 38.994 | I32: 0.70413 | K32: −5.3 | L32: – | M32: – | N32: – | O32: –
A33: RP30 | B33: 750 | C33: 18.928 | D33: 15.591 | E33: =[1]!AgePb76(D33/C33) -> 4963.278893 | F33: 6617.70519 | H33: 39.005 | I33: 0.70412 | K33: −5.3 | L33: – | M33: – | N33: – | O33: –
A34: RP31 | B34: 740 | C34: 18.892 | D34: 15.586 | E34: =[1]!AgePb76(D34/C34) -> 4965.529191 | F34: 6710.174582 | H34: 38.955 | I34: 0.70412 | K34: −5.4 | L34: 0.512837 | M34: 9 | N34: 3.9 | O34: 0.28302 | P34: 7 | Q34: 8.8
A35: RP32 | B35: 720 | C35: 18.952 | D35: 15.593 | E35: =[1]!AgePb76(D35/C35) -> 4961.659784 | F35: 6891.194144 | H35: 39.018 | I35: 0.70406 | K35: −6.2 | L35: 0.512861 | M35: 6 | N35: 4.3 | O35: 0.283036 | P35: 5 | Q35: 9.3
A36: Nez de Boeuf | B36: Thousand Years Old
A37: R01 | B37: 1850 | C37: 18.847 | D37: 15.607 | E37: =[1]!AgePb76(D37/C37) -> 4970.832416 | F37: 2686.936441 | H37: 38.914 | I37: – | J37: – | K37: – | L37: – | M37: – | N37: –
A38: R02 | B38: 1845 | C38: 18.852 | D38: 15.582 | E38: =[1]!AgePb76(D38/C38) -> 4968.177037 | F38: 2692.778882 | H38: 38.926 | I38: – | J38: – | K38: – | L38: – | M38: – | N38: –
A39: R03 | B39: 1750 | C39: 18.855 | D39: 15.592 | E39: =[1]!AgePb76(D39/C39) -> 4968.862715 | F39: 2839.350123 | H39: 38.935 | I39: – | J39: – | K39: – | L39: – | M39: – | N39: –
A40: R04 | B40: 1730 | C40: 18.909 | D40: 15.592 | E40: =[1]!AgePb76(D40/C40) -> 4964.79775 | F40: 2869.825289 | H40: 38.97 | I40: – | J40: – | K40: 0.512854 | L40: 6 | M40: 4.2 | N40: 0.283011 | O40: 4 | P40: 8.4
A41: R05 | B41: 1720 | C41: 18.993 | D41: 15.597 | E41: =[1]!AgePb76(D41/C41) -> 4958.951934 | F41: 2883.111589 | H41: 39.041 | I41: – | J41: – | K41: – | L41: – | M41: – | N41: –
A42: R06 | B42: 1710 | C42: 18.844 | D42: 15.574 | E42: =[1]!AgePb76(D42/C42) -> 4968.050404 | F42: 2905.292634 | H42: 38.883 | I42: – | J42: – | K42: 0.512851 | L42: 5 | M42: 4.1 | N42: 0.283026 | P42: 9
A43: R07 | B43: 1800 | C43: 18.954 | D43: 15.594 | E43: =[1]!AgePb76(D43/C43) -> 4961.600932 | F43: 2756.444962 | H43: 39.026 | I43: – | J43: – | K43: – | L43: – | M43: – | N43: –
A44: R08 | B44: 1705 | C44: 18.917 | D44: 15.588 | E44: =[1]!AgePb76(D44/C44) -> 4963.831722 | F44: 2911.338253 | H44: 38.977 | I44: – | J44: – | K44: – | L44: – | M44: – | N44: –
A45: R09 | B45: 1695 | C45: 18.918 | D45: 15.592 | E45: =[1]!AgePb76(D45/C45) -> 4964.121314 | F45: 2928.685141 | H45: 38.982 | I45: – | J45: – | K45: – | L45: – | M45: – | N45: –
A46: R10 | B46: 1690 | C46: 18.907 | D46: 15.588 | E46: =[1]!AgePb76(D46/C46) -> 4964.583386 | F46: 2937.623305 | H46: 38.973 | I46: – | J46: – | K46: – | L46: – | M46: – | N46: –
A47: R11 | B47: 1675 | C47: 18.865 | D47: 15.603 | E47: =[1]!AgePb76(D47/C47) -> 4969.11146 | F47: 2966.633707 | H47: 38.946 | I47: 0.704222 | J47: 7 | K47: −3.9 | L47: 0.51284 | M47: 6 | N47: 3.9 | O47: 0.283014 | P47: 6 | Q47: 8.6
A48: R12 | B48: 1670 | C48: 19.012 | D48: 15.604 | E48: =[1]!AgePb76(D48/C48) -> 4958.16823 | F48: 2968.963012 | H48: 39.073 | I48: 0.704056 | J48: 7 | K48: −6.3 | L48: 0.512843 | M48: 6 | N48: 4 | O48: 0.283029 | P48: 5 | Q48: 9.1
A49: R13 | B49: 1665 | C49: 18.912 | D49: 15.595 | E49: =[1]!AgePb76(D49/C49) -> 4964.84572 | F49: 2981.889321 | H49: 38.989 | I49: – | J49: – | K49: – | L49: – | M49: – | N49: –
A50: Langevin | B50: Thousand Years Old
A51: LGV01 | B51: 2300 | C51: 18.894 | D51: 15.587 | E51: =[1]!AgePb76(D51/C51) -> 4965.469914 | F51: 2158.899963 | H51: 38.947 | I51: 0.70412 | K51: – | L51: – | M51: – | N51: – | O51: –
A52: LGV02 | B52: 2280 | C52: 18.895 | D52: 15.588 | E52: =[1]!AgePb76(D52/C52) -> 4965.485875 | F52: 2177.844682 | H52: 38.976 | I52: 0.70416 | K52: – | L52: – | M52: – | N52: – | O52: –
A53: LGV03 | B53: 2260 | C53: 18.951 | D53: 15.596 | E53: =[1]!AgePb76(D53/C53) -> 4962.008301 | F53: 2195.578894 | H53: 39.028 | I53: 0.70414 | K53: – | L53: – | M53: – | N53: – | O53: –
A54: LGV04 | B54: 2240 | C54: 18.878 | D54: 15.581 | E54: =[1]!AgePb76(D54/C54) -> 4966.126876 | F54: 2217.020927 | H54: 38.93 | I54: 0.7041 | K54: – | L54: – | M54: – | N54: – | O54: –
A55: LGV06 | B55: 2200 | C55: 18.888 | D55: 15.588 | E55: =[1]!AgePb76(D55/C55) -> 4966.012575 | F55: 2257.278443 | H55: 38.955 | I55: 0.7041 | K55: – | L55: – | M55: – | N55: – | O55: –
A56: Piton des Neiges (PDN)
A57: Langevin | B57: Thousand Years Old
A58: LGV07 | B58: 2190 | C58: 18.913 | D58: 15.588 | E58: =[1]!AgePb76(D58/C58) -> 4964.132343 | F58: 2266.727097 | H58: 38.962 | I58: 0.7041 | K58: – | L58: – | M58: – | N58: – | O58: –
A59: LGV09 | B59: 2160 | C59: 18.904 | D59: 15.591 | E59: =[1]!AgePb76(D59/C59) -> 4965.082508 | F59: 2298.649309 | H59: 38.966 | I59: 0.70406 | K59: – | L59: – | M59: – | N59: – | O59: –
A60: LGV12 | B60: 2100 | C60: 18.911 | D60: 15.591 | E60: =[1]!AgePb76(D60/C60) -> 4964.556232 | F60: 2364.074396 | H60: 38.969 | I60: 0.70409 | K60: – | L60: – | M60: – | N60: – | O60: –
A61: LGV13 | B61: 2080 | C61: 18.887 | D61: 15.579 | E61: =[1]!AgePb76(D61/C61) -> 4965.266894 | F61: 2387.147545 | H61: 38.933 | I61: 0.70409 | K61: – | L61: – | M61: – | N61: – | O61: –
A62: LGV14 | B62: 2060 | C62: 18.761 | D62: 15.535 | E62: =[1]!AgePb76(D62/C62) -> 4970.760669 | F62: 2412.990616 | H62: 38.744 | I62: 0.704212 | J62: 7 | K62: −4.1 | L62: 0.512826 | M62: 8 | N62: 4 | O62: 0.283016 | P62: 8 | Q62: 8.6
A63: LGV15 | B63: 2040 | C63: 18.846 | D63: 15.582 | E63: =[1]!AgePb76(D63/C63) -> 4968.629459 | F63: 2435.602676 | H63: 38.915 | I63: 0.70406 | K63: – | L63: – | M63: – | N63: – | O63: –
A64: LGV16 | B64: 1990 | C64: 18.894 | D64: 15.587 | E64: =[1]!AgePb76(D64/C64) -> 4965.469914 | F64: 2495.211012 | H64: 38.953 | I64: 0.70421 | K64: – | L64: – | M64: – | N64: – | O64: –
A65: LGV17 | B65: 1980 | C65: 18.888 | D65: 15.589 | E65: =[1]!AgePb76(D65/C65) -> 4966.10376 | F65: 2508.133212 | H65: 38.956 | I65: 0.70421 | K65: −3.9 | L65: 0.512839 | M65: 7 | N65: 3.9 | O65: 0.283019 | P65: 11 | Q65: 8.7
A66: LGV18 | B66: 1985 | C66: 18.905 | D66: 15.594 | E66: =[1]!AgePb76(D66/C66) -> 4965.280809 | F66: 2501.400911 | H66: 38.978 | I66: 0.70423 | K66: – | L66: – | M66: – | N66: – | O66: –
A67: LGV20 | B67: 1960 | C67: 18.92 | D67: 15.585 | E67: =[1]!AgePb76(D67/C67) -> 4963.332675 | F67: 2532.312589 | H67: 38.976 | I67: 0.70413 | K67: – | L67: – | M67: – | N67: – | O67: –
A68: LGV21 | B68: 1930 | C68: 18.961 | D68: 15.598 | E68: =[1]!AgePb76(D68/C68) -> 4961.440604 | F68: 2570.694613 | H68: 39.024 | I68: 0.70412 | J68: – | K68: – | L68: – | M68: – | N68: –
A69: LGV22 | B69: 1910 | C69: 18.968 | D69: 15.596 | E69: =[1]!AgePb76(D69/C69) -> 4960.733513 | F69: 2597.242677 | H69: 39.016 | I69: 0.7041 | K69: −5.6 | L69: 0.512858 | M69: 5 | N69: 4.3 | O69: 0.283039 | P69: 7 | Q69: 9.4
A70: LGV23 | B70: 1905 | C70: 18.851 | D70: 15.583 | E70: =[1]!AgePb76(D70/C70) -> 4968.343642 | F70: =E70/(B70/1000) -> 2608.054405 | H70: 38.914 | I70: 0.70416 | K70: – | L70: – | M70: – | N70: – | O70: –
A71: LGV25 | B71: 1870 | C71: 18.881 | D71: 15.588 | E71: =[1]!AgePb76(D71/C71) -> 4966.539458 | F71: 2655.903453 | H71: 38.946 | I71: 0.70417 | K71: – | L71: – | M71: – | N71: – | O71: –
A72: LGV26 | B72: 1850 | C72: 18.858 | D72: 15.592 | E72: =[1]!AgePb76(D72/C72) -> 4968.636598 | F72: 2685.749512 | H72: 38.928 | I72: 0.70404 | K72: – | L72: – | M72: – | N72: – | O72: –
B73: Thousand Years Old | C73: 18.857 | D73: 15.587 | E73: =[1]!AgePb76(D73/C73) -> 4968.256122 | H73: 38.921 | I73: – | J73: – | K73: – | L73: – | M73: – | N73: –
A74: LGV27 | B74: 1830 | C74: 18.874 | D74: 15.584 | E74: =[1]!AgePb76(D74/C74) -> 4966.70174 | F74: 2714.044667 | H74: 38.928 | I74: 0.70405 | K74: – | L74: – | M74: – | N74: – | O74: –
A75: LGV28 | B75: 1820 | C75: 18.838 | D75: 15.59 | E75: =[1]!AgePb76(D75/C75) -> 4969.962377 | F75: 2730.748559 | H75: 38.908 | I75: 0.70409 | K75: −5.8 | L75: 0.512858 | M75: 6 | N75: 4.3 | O75: 0.283036 | P75: 4 | Q75: 9.3
A76: LGV29 | B76: 1815 | C76: 18.853 | D76: 15.588 | E76: =[1]!AgePb76(D76/C76) -> 4968.648821 | F76: 2737.54756 | H76: 38.916 | I76: 0.70411 | K76: – | L76: – | M76: – | N76: – | O76: –
A77: Average | B77: =AVERAGE(B5:B76) -> 1588.863636 | E77: =AVERAGE(E5:E76) -> 4963.528724 | F77: =AVERAGE(F5:F76) -> 3466.266935
A78: Maximum | B78: =MAX(B5:B77) -> 2300 | E78: =MAX(E5:E77) -> 4970.832416 | F78: =MAX(F5:F77) -> 6891.194144
A79: Minimum | B79: =MIN(B5:B78) -> 720 | E79: =MIN(E5:E78) -> 4958.16823 | F79: =MIN(F5:F78) -> 2158.899963
A80: Difference | B80: =B78-B79 -> 1580 | E80: =E78-E79 -> 12.66418607 | F80: =F78-F79 -> 4732.294181
A81: Accuracy | B81: =1-(B80/B77) -> 0.005578601059 | E81: =1-(E80/E77) -> 0.9974485519 | F81: =1-(F80/F77) -> -0.3652422822
A84: Historical samples | B84: Eruption Year | E84: 0 | F84: Eruption Age | G84: Error Ratio
A85: R1301 | B85: 1700 | C85: 18.915 | D85: 15.59 | E85: =[1]!AgePb76(D85/C85) -> 4964.164404 | F85: =(2008-B85) -> 308 | G85: =E85/F85 -> 16.1174169 | H85: 39.001 | I85: – | J85: – | K85: – | L85: – | M85: –
A86: O2201 | B86: 1802 | C86: 18.876 | D86: 15.578 | E86: =[1]!AgePb76(D86/C86) -> 4966.003763 | F86: =(2008-B86) -> 206 | G86: =E86/F86 -> 24.10681439 | H86: 38.937 | I86: – | J86: – | K86: – | L86: – | M86: – | N86: –
A87: R1201 | B87: 1905 | C87: 18.915 | D87: 15.59 | E87: =[1]!AgePb76(D87/C87) -> 4964.164404 | F87: 103 | G87: 48.19577092 | H87: 39.002 | I87: – | J87: – | K87: – | L87: – | M87: – | N87: –
A88: Q1301 | B88: 1915 | C88: 18.951 | D88: 15.596 | E88: =[1]!AgePb76(D88/C88) -> 4962.008301 | F88: 93 | G88: 53.35492797 | H88: 39.01 | I88: – | J88: – | K88: – | L88: – | M88: – | N88: –
A89: S1401 | B89: 1927 | C89: 18.861 | D89: 15.584 | E89: =[1]!AgePb76(D89/C89) -> 4967.681079 | F89: 81 | G89: 61.32939603 | H89: 38.933 | I89: – | J89: – | K89: – | L89: – | M89: – | N89: –
A90: Q1401 | B90: 1927 | C90: 18.938 | D90: 15.593 | E90: =[1]!AgePb76(D90/C90) -> 4962.710375 | F90: 81 | G90: 61.26802932 | H90: 39.004 | I90: – | J90: – | K90: – | L90: – | M90: – | N90: –
A91: T1902 | B91: 1927 | C91: 18.868 | D91: 15.575 | E91: =[1]!AgePb76(D91/C91) -> 4966.332554 | F91: 81 | G91: 61.31274758 | H91: 38.866 | I91: 0.704159 | J91: 14 | K91: −4.8 | L91: 0.512841 | M91: 4 | N91: 4 | O91: 0.283027 | P91: 13 | Q91: 9
A92: T2101 | B92: 1927 | C92: 18.885 | D92: 15.587 | E92: =[1]!AgePb76(D92/C92) -> 4966.14717 | F92: 81 | G92: 61.31045888 | H92: 38.968 | I92: – | J92: – | K92: – | L92: – | M92: – | N92: –
A93: T1602 | B93: 1931 | C93: 18.79 | D93: 15.564 | E93: =[1]!AgePb76(D93/C93) -> 4971.216062 | F93: 77 | G93: 64.56124755 | H93: 38.824 | I93: 0.704117 | J93: 14 | K93: −5.4 | L93: 0.512852 | M93: 5 | N93: 4.2 | O93: 0.283025 | P93: 11 | Q93: 9
A94: L2001 | B94: 1934 | C94: 18.931 | D94: 15.592 | E94: =[1]!AgePb76(D94/C94) -> 4963.144771 | F94: 74 | G94: 67.06952393 | H94: 38.993 | I94: 0.704118 | J94: 11 | K94: −5.4 | L94: 0.512848 | M94: 5 | N94: 4.1 | O94: 0.28303 | P94: 4 | Q94: 9.1
A95: P1601 | B95: 1939 | C95: 18.89 | D95: 15.586 | E95: =[1]!AgePb76(D95/C95) -> 4965.679682 | F95: 69 | G95: 71.9663722 | H95: 38.96 | I95: – | J95: – | K95: – | L95: – | M95: – | N95: –
A96: N2201 | B96: 1943 | C96: 18.898 | D96: 15.589 | E96: =[1]!AgePb76(D96/C96) -> 4965.35139 | F96: 65 | G96: 76.39002139 | H96: 38.971 | I96: – | J96: – | K96: – | L96: – | M96: – | N96: –
A97: O2202 | B97: 1943 | C97: 18.87 | D97: 15.588 | E97: =[1]!AgePb76(D97/C97) -> 4967.367786 | F97: 65 | G97: 76.42104287 | H97: 38.934 | I97: – | J97: – | K97: – | L97: – | M97: – | N97: –
A98: M1701 | B98: 1945 | C98: 18.813 | D98: 15.589 | E98: =[1]!AgePb76(D98/C98) -> 4971.758456 | F98: 63 | G98: 78.91680089 | H98: 38.87 | I98: 0.704156 | J98: 17 | K98: −4.9 | L98: 0.512858 | M98: 4 | N98: 4.3 | O98: 0.283031 | P98: 4 | Q98: 9.2
A99: R1801 | B99: 1945 | C99: 18.919 | D99: 15.586 | E99: =[1]!AgePb76(D99/C99) -> 4963.499027 | F99: 63 | G99: 78.78569885 | H99: 38.97 | I99: – | J99: – | K99: – | L99: – | M99: – | N99: –
A100: R2301 | B100: 1945 | C100: 18.888 | D100: 15.586 | E100: =[1]!AgePb76(D100/C100) -> 4965.830187 | F100: 63 | G100: 78.82270138 | H100: 38.956 | I100: – | J100: – | K100: – | L100: – | M100: – | N100: –
A101: R1602 | B101: 1945 | C101: 18.9 | D101: 15.59 | E101: =[1]!AgePb76(D101/C101) -> 4965.292143 | F101: 63 | G101: 78.814161 | H101: 38.965 | I101: – | J101: – | K101: – | L101: – | M101: –
A102: Q1303 | B102: 1945 | C102: 18.851 | D102: 15.581 | E102: =[1]!AgePb76(D102/C102) -> 4968.161215 | F102: 63 | G102: 78.85970182 | H102: 38.916 | I102: – | J102: – | K102: – | L102: – | M102: – | N102: –
A103: T1904 | B103: 1953 | C103: 18.88 | D103: 15.583 | E103: =[1]!AgePb76(D103/C103) -> 4966.158738 | F103: 55 | G103: 90.29379523 | H103: 38.947 | I103: – | J103: – | K103: – | L103: – | M103: – | N103: –
A104: S2301 | B104: 1953 | C104: 18.877 | D104: 15.582 | E104: =[1]!AgePb76(D104/C104) -> 4966.293398 | F104: 55 | G104: 90.2962436 | H104: 38.932 | I104: – | J104: – | K104: – | L104: – | M104: – | N104: –
A105: S1201 | B105: 1949 | C105: 18.909 | D105: 15.584 | E105: =[1]!AgePb76(D105/C105) -> 4964.068198 | F105: 59 | G105: 84.13674911 | H105: 38.985 | I105: 0.704185 | J105: 14 | K105: −4.5 | L105: 0.512851 | M105: 5 | N105: 4.1 | O105: 0.283033 | P105: 5 | Q105: 9.2
E106: 0
A107: Piton des Neiges (PDN) | E107: 0
B108: Age (kyr) | E108: 0
A109: Oldest lavas | E109: 0
A110: 00RU8G | B110: 2000/2150 | C110: 19.045 | D110: 15.579 | E110: =[1]!AgePb76(D110/C110) -> 4953.421787 | H110: 38.894 | I110: – | J110: – | K110: 0.512813 | L110: 15 | M110: § | N110: 3.4 | O110: 0.28303 | P110: 6 | Q110: 9.1
A111: 00RU7G | B111: 2000/2150 | C111: 18.975 | D111: 15.541 | E111: =[1]!AgePb76(D111/C111) -> 4955.185447 | H111: 38.805 | I111: – | J111: – | K111: 0.512805 | L111: 11 | M111: § | N111: 3.3 | O111: 0.283016 | P111: 6 | Q111: 8.6
A112: 00RU15 | B112: 2000/2150 | C112: 19.011 | D112: 15.554 | E112: =[1]!AgePb76(D112/C112) -> 4953.678964 | H112: 38.848 | I112: – | J112: – | K112: 0.512813 | L112: 11 | M112: § | N112: 3.4 | O112: 0.283033 | P112: 7 | Q112: 9.2
A113: 00RU13 | B113: 2000/2150 | C113: 19.067 | D113: 15.582 | E113: =[1]!AgePb76(D113/C113) -> 4952.053641 | H113: 38.938 | I113: – | J113: – | K113: 0.512839 | L113: 12 | M113: § | N113: 3.9 | O113: 0.283026 | P113: 9 | Q113: 9
A114: 00RU9G | B114: 2000/2150 | C114: 18.938 | D114: 15.551 | E114: =[1]!AgePb76(D114/C114) -> 4958.875667 | H114: 38.796 | I114: – | J114: – | K114: 0.51284 | L114: 10 | M114: § | N114: 3.9 | O114: 0.283047 | P114: 5 | Q114: 9.7
A115: 00RU26 | B115: 2000/2150 | C115: 19.075 | D115: 15.589 | E115: =[1]!AgePb76(D115/C115) -> 4952.095813 | H115: 38.962 | I115: – | J115: – | K115: 0.512815 | L115: 10 | M115: § | N115: 3.5 | O115: 0.283019 | P115: 8 | Q115: 8.7
A116: 00RU08 | B116: 2000/2150 | C116: 18.918 | D116: 15.566 | E116: =[1]!AgePb76(D116/C116) -> 4961.74874 | H116: 38.757 | I116: – | J116: – | K116: 0.512806 | L116: 10 | M116: 3.3 | N116: 0.283014 | O116: 8 | P116: 8.6
A117: Intermediate Samples | E117: 0
A118: PN67G1 | B118: 1400 | C118: 19.002 | D118: 15.564 | E118: =[1]!AgePb76(D118/C118) -> 4955.266435 | H118: 38.869 | I118: – | J118: – | K118: 0.512828 | L118: 11 | M118: § | N118: 3.7 | O118: 0.283051 | P118: 13 | Q118: 9.9
A119: PN69H4 | B119: 1200 | C119: 18.969 | D119: 15.569 | E119: =[1]!AgePb76(D119/C119) -> 4958.194902 | H119: 38.813 | I119: – | J119: – | K119: 0.512841 | L119: 8 | M119: § | N119: 4 | O119: 0.283033 | P119: 6 | Q119: 9.2
A120: PN67P1 | B120: 1040 | C120: 18.973 | D120: 15.581 | E120: =[1]!AgePb76(D120/C120) -> 4958.990623 | H120: 38.858 | I120: – | J120: – | K120: 0.512841 | L120: 14 | M120: 4 | N120: 0.283024 | O120: 7 | P120: 8.9
A121: PN60K | B121: 946 | C121: 18.943 | D121: 15.568 | E121: =[1]!AgePb76(D121/C121) -> 4960.053803 | H121: 38.827 | I121: – | J121: – | K121: 0.512809 | L121: 6 | M121: 3.3 | N121: 0.283046 | O121: 9 | P121: 9.7
A122: PN69H18 | B122: 680 | C122: 18.992 | D122: 15.572 | E122: =[1]!AgePb76(D122/C122) -> 4956.745772 | H122: 38.852 | I122: – | J122: – | K122: 0.512822 | L122: 7 | M122: § | N122: 3.6 | O122: 0.283014 | P122: 8 | Q122: 8.6
A123: Younger lavas | E123: 0
A124: PN69T1 | B124: 577 | C124: 18.723 | D124: 15.551 | E124: =[1]!AgePb76(D124/C124) -> 4975.104567 | H124: 38.63 | I124: – | J124: – | K124: 0.512834 | L124: 7 | M124: § | N124: 3.8 | O124: 0.283067 | P124: 8 | Q124: 10.4
A125: PN60D | B125: 452 | C125: 18.921 | D125: 15.5571 | E125: =[1]!AgePb76(D125/C125) -> 4960.710178 | H125: 38.722 | I125: – | J125: – | K125: 0.512851 | L125: 7 | M125: § | N125: 4.1 | O125: 0.283082 | P125: 9 | Q125: 11
A126: PN60A | B126: 374 | C126: 18.762 | D126: 15.56 | E126: =[1]!AgePb76(D126/C126) -> 4972.969964 | H126: 38.7 | I126: – | J126: – | K126: 0.512797 | L126: 12 | M126: § | N126: 3.1 | O126: 0.283039 | P126: 7 | Q126: 9.4
A131: Eruption Year | B131: Pb Age (Ma) | C131: Age (Years) | D131: Age Ratio (106)
A132: 1700 | B132: 4964.164404 | C132: 308 | D132: 16.1174169
A133: 1802 | B133: 4966.003763 | C133: 206 | D133: 24.10681439
A134: 1905 | B134: 4964.164404 | C134: 103 | D134: 48.19577092
A135: 1915 | B135: 4962.008301 | C135: 93 | D135: 53.35492797
A136: 1927 | B136: 4967.681079 | C136: 81 | D136: 61.32939603
B137: 4962.710375 | C137: 81 | D137: 61.26802932
B138: 4966.332554 | C138: 81 | D138: 61.31274758
B139: 4966.14717 | C139: 81 | D139: 61.31045888
A140: 1931 | B140: 4971.216062 | C140: 77 | D140: 64.56124755
A141: 1934 | B141: 4963.144771 | C141: 74 | D141: 67.06952393
A142: 1939 | B142: 4965.679682 | C142: 69 | D142: 71.9663722
A143: 1943 | B143: 4965.35139 | C143: 65 | D143: 76.39002139
B144: 4967.367786 | C144: 65 | D144: 76.42104287
A145: 1945 | B145: 4971.758456 | C145: 63 | D145: 78.91680089
B146: 4963.499027 | C146: 63 | D146: 78.78569885
B147: 4965.830187 | C147: 63 | D147: 78.82270138
B148: 4965.292143 | C148: 63 | D148: 78.814161
B149: 4968.161215 | C149: 63 | D149: 78.85970182
A150: 1949 | B150: 4964.068198 | C150: 59 | D150: 84.13674911
A151: 1953 | B151: 4966.158738 | C151: 55 | D151: 90.29379523
B152: 4966.293398 | C152: 55 | D152: 90.2962436
A153: Average | B153: =AVERAGE(B132:B152) -> 4965.858719 | C153: 21 dates
A154: Maximum | B154: =MAX(B132:B153) -> 4971.758456
A155: Minimum | B155: =MIN(B132:B154) -> 4962.008301
A156: Difference | B156: =B154-B155 -> 9.750155034
A157: Accuracy | B157: =1-(B156/B153) -> 0.9980365621

Sheet H36
A1: Table 1
A2: Sample | B2: SJ01 | C2: SJ03 | D2: SJ04 | E2: SJ05 | F2: SJ07 | G2: SJ08 | H2: SJ50 | I2: SJ51 | J2: SJ52 | K2: SJ10 | L2: SJ11 | M2: SJ12 | N2: SJ13 | O2: SJ14 | P2: SJ09 | Q2: SJ15 | R2: SJ55 | S2: SJ56 | T2: SJ57 | U2: SJ58 | V2: SJ60
A3: Formation | B3: Topo | C3: Topo | D3: Topo | E3: Topo | F3: Topo | G3: Topo | H3: Topo | I3: Topo | J3: Topo | K3: Rosais | L3: Rosais | M3: Rosais | N3: Rosais | O3: Rosais | P3: Manadas | Q3: Manadas | R3: Manadas | S3: Manadas | T3: Manadas | U3: Manadas | V3: Manadas
A4: 206Pb/204Pb | B4: 19.347 | C4: 19.861 | D4: 19.8 | E4: 20.047 | F4: 20.511 | G4: 20.276 | H4: 20.177 | I4: 20.127 | J4: 20.507 | K4: 19.972 | L4: 19.776 | M4: 19.793 | N4: 20.134 | O4: 20.186 | P4: 19.896 | Q4: 19.993 | R4: 20.001 | S4: 19.959 | T4: 19.959 | U4: 19.85 | V4: 19.874
A5: 207Pb/204Pb | B5: 15.626 | C5: 15.631 | D5: 15.626 | E5: 15.627 | F5: 15.673 | G5: 15.653 | H5: 15.647 | I5: 15.639 | J5: 15.667 | K5: 15.636 | L5: 15.643 | M5: 15.621 | N5: 15.638 | O5: 15.654 | P5: 15.624 | Q5: 15.637 | R5: 15.637 | S5: 15.632 | T5: 15.632 | U5: 15.627 | V5: 15.628
A6: 207Pb/206Pb | B6: =(B5/B4) -> 0.8076704399 | C6: =(C5/C4) -> 0.7870197875 | D6: 0.7891919192 | E6: 0.7795181324 | F6: 0.7641265662 | G6: 0.771996449 | H6: 0.7754869406 | I6: 0.7770159487 | J6: 0.7639830302 | K6: 0.7828960545 | L6: 0.7910093042 | M6: 0.7892184105 | N6: 0.7766961359 | O6: 0.775487962 | P6: 0.7852834741 | Q6: 0.7821237433 | R6: 0.7818109095 | S6: 0.7832055714 | T6: 0.7832055714 | U6: 0.7872544081 | V6: 0.7863540304
A7: Age (Ma) | B7: =[1]!AgePb76(B6) -> 4935.323117 | C7: =[1]!AgePb76(C6) -> 4898.425973 | D7: =[1]!AgePb76(D6) -> 4902.355191 | E7: =[1]!AgePb76(E6) -> 4884.766712 | F7: =[1]!AgePb76(F6) -> 4856.297531 | G7: =[1]!AgePb76(G6) -> 4870.929701 | H7: =[1]!AgePb76(H6) -> 4877.368641 | I7: =[1]!AgePb76(I6) -> 4880.179499 | J7: =[1]!AgePb76(J6) -> 4856.029171 | K7: =[1]!AgePb76(K6) -> 4890.93459 | L7: =[1]!AgePb76(L6) -> 4905.633865 | M7: =[1]!AgePb76(M6) -> 4902.403041 | N7: =[1]!AgePb76(N6) -> 4879.592057 | O7: =[1]!AgePb76(O6) -> 4877.370521 | P7: =[1]!AgePb76(P6) -> 4895.276804 | Q7: =[1]!AgePb76(Q6) -> 4889.5269 | R7: =[1]!AgePb76(R6) -> 4888.956277 | S7: =[1]!AgePb76(S6) -> 4891.498331 | T7: =[1]!AgePb76(T6) -> 4891.498331 | U7: =[1]!AgePb76(U6) -> 4898.850939 | V7: =[1]!AgePb76(V6) -> 4897.219358
A8: Eruption Year | P8: 1808 | Q8: 1808 | R8: 1808 | S8: 1808 | T8: 1808 | U8: 1808 | V8: 1808
H10: Eruption Year AD | I10: Age (Years) | J10: Pb Age (Ma) | K10: Age Ratio (106)
H11: 1808 | I11: 100 | J11: 4895 | K11: =J11/100 -> 48.95
H12: 1808 | I12: 100 | J12: 4890 | K12: =J12/100 -> 48.9
H13: 1808 | I13: 100 | J13: 4889 | K13: 48.89
H14: 1808 | I14: 100 | J14: 4891 | K14: 48.91
H15: 1808 | I15: 100 | J15: 4891 | K15: 48.91
H16: 1808 | I16: 100 | J16: 4899 | K16: 48.99
H17: 1808 | I17: 100 | J17: 4897 | K17: 48.97

Sheet H37
A1: Table 5: | K1: Thousand Years | L1: Historic Age | M1: Age Ratio
A2: Volcano | B2: Eruption | C2: U(ppm) | D2: Th(ppm) | E2: (234U/238U) | F2: (238U/232Th) | G2: (230Th/232Th) | H2: (238U/230Th) | I2: (226Ra/230Th) | J2: (230Th/238U) | K2: (230Th/238U) | L2: Years
A3: FD1-25-2 | B3: 640 | C3: 0.87 | D3: 1.502 | E3: 0.999 | F3: 1.758 | G3: 1.656 | H3: 1.062 | I3: 1.64 | J3: =1/H3 -> 0.9416195857 | K3: =[1]!Th230Age(J3, E3) -> 311.2854478 | L3: =2009-B3 -> 1369 | M3: =(K3 * 1000)/L3 -> 227.3816273
A4: Dawapia10a | B4: 1250 | C4: 1.316 | D4: 2.26 | E4: 0.999 | F4: 1.766 | G4: 1.667 | H4: 1.06 | I4: 2.47 | J4: =1/H4 -> 0.9433962264 | K4: =[1]!Th230Age(J4, E4) -> 314.7293582 | L4: =2009-B4 -> 759 | M4: =(K4 * 1000)/L4 -> 414.663186
A5: Rabalanakaia | B5: 1250 | C5: 0.984 | D5: 2.093 | E5: 0.998 | F5: 1.427 | G5: 1.649 | H5: 0.865 | I5: 1.26 | J5: 1.156069364 | K5: =[1]!Th230Age(J5, E5) -> 0 | L5: 759 | M5: 0
A6: Sulphur Creek | B6: 1850 | C6: 0.784 | D6: 1.354 | E6: 1 | F6: 1.756 | G6: 1.642 | H6: 1.07 | I6: 1.67 | J6: 0.9345794393 | K6: =[1]!Th230Age(J6, E6) -> 296.5573188 | L6: 159 | M6: 1865.14037
A7: Vulcan | K7: =[1]!Th230Age(J7, E7) ->  | L7: 2009 | M7: .
A8: HPP-070 | B8: 1878 | C8: 1.11 | D8: 1.883 | E8: 1.004 | F8: 1.818 | G8: 1.662 | H8: 1.094 | I8: 1.39 | J8: 0.9140767824 | K8: =[1]!Th230Age(J8, E8) -> 261.1373521 | L8: 131 | M8: 1993.414902
A9: HPP-075 | B9: 1937 | C9: 0.234 | D9: 0.37 | E9: 1.04 | F9: 1.915 | G9: 1.598 | H9: 1.198 | I9: 1.73 | J9: 0.8347245409 | K9: =[1]!Th230Age(J9, E9) -> 172.9543439 | L9: 72 | M9: 2402.143666
A10: VulN-814 | B10: 1994 | C10: 1.041 | D10: 1.797 | E10: 1.001 | F10: 1.785 | G10: 1.647 | H10: 1.083 | I10: 1.54 | J10: 0.9233610342 | K10: =[1]!Th230Age(J10, E10) -> 277.6579659 | L10: 15 | M10: 18510.53106
A11: TavQ-817 | B11: 1994 | C11: 0.882 | D11: 1.516 | E11: 1 | F11: 1.766 | G11: 1.673 | H11: 1.056 | I11: 1.53 | J11: 0.946969697 | K11: =[1]!Th230Age(J11, E11) -> 319.3922703 | L11: 15 | M11: 21292.81802
A12: replicate | B12: 1994 | C12: 0.874 | D12: 1.488 | E12: 0.998 | F12: 1.782 | G12: 1.679 | H12: 1.061 | J12: 0.9425070688 | K12: =[1]!Th230Age(J12, E12) -> 315.4446359 | L12: 15 | M12: 21029.6424
A13: SER-42 | B13: 1996 | C13: 1.065 | D13: 1.823 | E13: 0.999 | F13: 1.771 | G13: 1.645 | H13: 1.077 | I13: 1.47 | J13: 0.9285051068 | K13: =[1]!Th230Age(J13, E13) -> 288.765658 | L13: 13 | M13: 22212.74292
A14: SER-48 | B14: 1996 | C14: 1.049 | D14: 1.809 | E14: 1 | F14: 1.767 | G14: 1.667 | H14: 1.06 | I14: 1.32 | J14: 0.9433962264 | K14: =[1]!Th230Age(J14, E14) -> 312.3003317 | L14: 13 | M14: 24023.10244
A15: replicate | B15: 1996 | I15: 1.38 | K15: =[1]!Th230Age(J15, E15) ->  | L15: 13 | M15: .
A16: SER-213 | B16: 1996 | C16: 1.049 | D16: 1.871 | E16: 0.999 | F16: 1.701 | G16: 1.626 | H16: 1.046 | I16: 1.42 | J16: 0.9560229446 | K16: =[1]!Th230Age(J16, E16) -> 342.9684374 | L16: 13 | M16: 26382.18749
A17: SER-225 | B17: 1997 | C17: 0.886 | D17: 1.523 | E17: 0.999 | F17: 1.765 | G17: 1.664 | H17: 1.079 | I17: 1.54 | J17: 0.9267840593 | K17: =[1]!Th230Age(J17, E17) -> 286.128687 | L17: 12 | M17: 23844.05725
A18: replicate | B18: 1997 | I18: 1.57 | K18: =[1]!Th230Age(J18, E18) ->  | L18: 12 | M18: .
A19: SER-228 | B19: 1997 | C19: 0.863 | D19: 1.465 | E19: 0.986 | F19: 1.75 | G19: 1.638 | H19: 1.069 | I19: 1.59 | J19: 0.935453695 | K19: =[1]!Th230Age(J19, E19) -> 333.12147 | L19: 12 | M19: 27760.1225
A20: SER-239 | B20: 1997 | C20: 1.074 | D20: 1.824 | E20: 0.992 | F20: 1.786 | G20: 1.623 | H20: 1.101 | I20: 1.46 | J20: 0.9082652134 | K20: =[1]!Th230Age(J20, E20) -> 271.6948724 | L20: 12 | M20: 22641.23936
A21: SER-382 | B21: 1997 | C21: 0.812 | D21: 1.394 | E21: 1.001 | F21: 1.768 | G21: 1.628 | H21: 1.086 | I21: 1.65 | J21: 0.9208103131 | K21: =[1]!Th230Age(J21, E21) -> 274.1588525 | L21: 12 | M21: 22846.57105
A22: SER-385 | B22: 1998 | C22: 0.737 | D22: 1.3 | E22: 0.993 | F22: 1.75 | G22: 1.662 | H22: 1.052 | I22: 1.64 | J22: 0.9505703422 | K22: =[1]!Th230Age(J22, E22) -> 348.9480494 | L22: 11 | M22: 31722.54995
A23: replicate | B23: 1998 | C23: 0.729 | D23: 1.305 | E23: 0.998 | F23: 1.696 | G23: 1.662 | H23: 1.02 | J23: 0.9803921569 | K23: =[1]!Th230Age(J23, E23) -> 443.8284604 | L23: 11 | M23: 40348.04185
A24: SER-395 | B24: 1998 | C24: 1.032 | D24: 1.772 | E24: 0.998 | F24: 1.768 | G24: 1.645 | H24: 1.074 | I24: 1.46 | J24: 0.9310986965 | K24: =[1]!Th230Age(J24, E24) -> 294.8537857 | L24: 11 | M24: 26804.88961
A25: replicate | B25: 1998 | C25: 1.012 | D25: 1.741 | E25: 0.998 | F25: 1.763 | G25: 1.67 | H25: 1.056 | J25: 0.946969697 | K25: =[1]!Th230Age(J25, E25) -> 324.6966785 | L25: 11 | M25: 29517.87987
A26: SER-423a | B26: 1998 | C26: 1.042 | D26: 1.789 | E26: 0.999 | F26: 1.767 | G26: 1.668 | H26: 1.06 | I26: 0.92 | J26: 0.9433962264 | K26: =[1]!Th230Age(J26, E26) -> 314.7293582 | L26: 11 | M26: 28611.75983
A27: replicate | B27: 1998 | I27: 0.89 | K27: =[1]!Th230Age(J27, E27) ->  | L27: 11 | M27: .
A28: SER-416a | B28: 1999 | C28: 1.035 | D28: 1.777 | E28: 1 | F28: 1.766 | G28: 1.651 | H28: 1.07 | I28: 1.63 | J28: 0.9345794393 | K28: =[1]!Th230Age(J28, E28) -> 296.5573188 | L28: 10 | M28: 29655.73188
A29: replicate | B29: 1999 | I29: 1.64 | K29: =[1]!Th230Age(J29, E29) ->  | L29: 10 | M29: .
A30: HPP-021a | B30: 2000 | C30: 1.036 | D30: 1.471 | E30: 0.999 | F30: 2.136 | G30: 1.684 | H30: 1.269 | I30: 1.76 | J30: 0.7880220646 | K30: =[1]!Th230Age(J30, E30) -> 169.1936524 | L30: 9 | M30: 18799.29472
A31: HPP-041 | B31: 2001 | C31: 1.052 | D31: 1.837 | E31: 0.99 | F31: 1.776 | G31: 1.651 | H31: 1.076 | I31: 1.44 | J31: 0.9293680297 | K31: =[1]!Th230Age(J31, E31) -> 309.2792612 | L31: 8 | M31: 38659.90765
A32: TML-n4 | B32: 2001 | C32: 10.49 | D32: 29.71 | E32: 0.993 | F32: 1.071 | G32: 1.074 | H32: 0.995 | I32: 0.97 | J32: 1.005025126 | K32: =[1]!Th230Age(J32, E32) -> 0 | L32: 8 | M32: 0
A36: Eruption | B36: Historic Age | C36: Thousand Years | D36: Age Ratio
A37: Year AD | B37: Years | C37: (230Th/238U)
A38: 640 | B38: 1369 | C38: 311.2854478 | D38: 227.3816273
A39: 1250 | B39: 759 | C39: 314.7293582 | D39: 414.663186
B40: 759 | C40: 0 | D40: 759
A41: 1850 | B41: 159 | C41: 296.5573188 | D41: 1865.14037
A42: 1878 | B42: 131 | C42: 261.1373521 | D42: 1993.414902
A43: 1937 | B43: 72 | C43: 172.9543439 | D43: 2402.143666
A44: 1994 | B44: 15 | C44: 277.6579659 | D44: 18510.53106
B45: 15 | C45: 319.3922703 | D45: 21292.81802
B46: 15 | C46: 315.4446359 | D46: 21029.6424
A47: 1996 | B47: 13 | C47: 288.765658 | D47: 22212.74292
B48: 13 | C48: 312.3003317 | D48: 24023.10244
B49: 13 | C49: 342.9684374 | D49: 26382.18749
A50: 1997 | B50: 12 | C50: 286.128687 | D50: 23844.05725
B51: 12 | C51: 333.12147 | D51: 27760.1225
B52: 12 | C52: 271.6948724 | D52: 22641.23936
B53: 12 | C53: 274.1588525 | D53: 22846.57105
A54: 1998 | B54: 11 | C54: 348.9480494 | D54: 31722.54995
B55: 11 | C55: 443.8284604 | D55: 40348.04185
B56: 11 | C56: 294.8537857 | D56: 26804.88961
B57: 11 | C57: 324.6966785 | D57: 29517.87987
B58: 11 | C58: 314.7293582 | D58: 28611.75983
A59: 1999 | B59: 10 | C59: 296.5573188 | D59: 29655.73188
A60: 2000 | B60: 9 | C60: 169.1936524 | D60: 18799.29472
A61: 2001 | B61: 8 | C61: 309.2792612 | D61: 38659.90765

Sheet H38
A1: Table 1 | C1: Akutan | D1: Lavas
A2: Sample: | B2: 96PSXEN | C2: 96PS09 | D2: 96PS12 | E2: 96PS01 | F2: AK81-35 | G2: 96PS28 | H2: 96PS32 | I2: 96PS30 | J2: 96PS13 | K2: 96PS18 | L2: 96PS23 | M2: 96PS17 | N2: GLASS
A3: Age | B3: - | C3: Historical | D3: Historical | E3: Historical | F3: 1870 | G3: 1400 | H3: 1910 | I3: 1910 | J3: 1929 | K3: 1978 | L3: 1978 | M3: 1978 | N3: ?
A4: 206Pb/204Pb | B4: 18.943 | C4: 18.975 | D4: 18.954 | E4: 18.963 | F4: 18.981 | G4: - | H4: 18.954 | I4: 18.949 | J4: 18.959 | K4: 18.957 | L4: 18.963 | M4: 18.93 | N4: 18.799
A5: 207Pb/204Pb | B5: 15.636 | C5: 15.599 | D5: 15.592 | E5: 15.596 | F5: 15.602 | G5: - | H5: 15.581 | I5: 15.579 | J5: 15.596 | K5: 15.606 | L5: 15.591 | M5: 15.556 | N5: 15.557
A6: 208Pb/204Pb | B6: 38.674 | C6: 38.568 | D6: 38.54 | E6: 38.549 | F6: 38.559 | G6: - | H6: 38.51 | I6: 38.5 | J6: 38.559 | K6: 38.58 | L6: 38.528 | M6: 38.437 | N6: 38.337
A7: (230Th/232Th) | B7: 1.357 | C7: 1.318 | D7: 1.43 | E7: 1.349 | F7: 1.348 | G7: 1.394 | H7: 1.347 | I7: 1.35 | J7: 1.359 | K7: 1.345 | L7: 1.324 | M7: 1.358 | N7: 1.366
A8: (238U/232Th) | B8: 1.632 | C8: 1.597 | D8: 1.514 | E8: 1.721 | F8: 1.701 | G8: 1.605 | H8: 1.71 | I8: 1.732 | J8: 1.699 | K8: 1.619 | L8: 1.626 | M8: 1.874 | N8: 1.377
A9: (238U/230Th) | B9: 1.145 | C9: 1.211 | D9: 1.085 | E9: 1.276 | F9: 1.261 | G9: 1.139 | H9: 1.195 | I9: 1.186 | J9: 1.158 | K9: 1.165 | L9: 1.228 | M9: 1.185 | N9: 0.988
A10: (226Ra/230Th)i | B10: - | C10: - | D10: - | E10: - | F10: - | G10: - | H10: 1.038 | I10: 1.081 | J10: 1.062 | K10: 1.175 | L10: 1.034 | M10: 1.156 | N10: -
A11: Pb Age (Ma) | B11: =[1]!AgePb76(B5/B4) -> 4966.249797 | C11: =[1]!AgePb76(C5/C4) -> 4960.482376 | D11: =[1]!AgePb76(D5/D4) -> 4961.418579 | E11: =[1]!AgePb76(E5/E4) -> 4961.108339 | F11: =[1]!AgePb76(F5/F4) -> 4960.306282 | G11: . | H11: =[1]!AgePb76(H5/H4) -> 4960.415191 | I11: =[1]!AgePb76(I5/I4) -> 4960.607788 | J11: =[1]!AgePb76(J5/J4) -> 4961.408267 | K11: =[1]!AgePb76(K5/K4) -> 4962.469532 | L11: =[1]!AgePb76(L5/L4) -> 4960.652458 | M11: =[1]!AgePb76(M5/M4) -> 4959.933511 | N11: =[1]!AgePb76(N5/N4) -> 4969.896213
A16: Table 2 | C16: Aniakchak | D16: Lavas
A17: Sample: | B17: 98AC2D | C17: AC38B | D17: 94CNA11 | E17: 92CNA22 | F17: NA94-5 | G17: NA94-7 | H17: 94AMC2 | I17: 97ANB-44 | J17: 97ANB-27 | K17: 97ANB-33 | L17: 97ANB-26 | M17: 97ANB-32 | N17: NA93-94 | O17: 92CNA06 | P17: 92CNA05
A18: Age | B18: 3500 | C18: 3500 | D18: 3500 | E18: 3500 | F18: 3500 | G18: 3500 | H18: 3500 | I18: 1931 | J18: 1931 | K18: 1931 | L18: 1931 | M18: 1931 | N18: 1931 | O18: 1931 | P18: 1931
A19: 206Pb/204Pb | B19: 18.874 | C19: 18.89 | D19: 18.865 | E19: 18.854 | F19: 18.839 | G19: 18.838 | H19: 18.866 | I19: 18.847 | J19: 18.876 | K19: 18.911 | L19: 18.883 | M19: 18.887 | N19: 18.899 | O19: 18.882 | P19: 18.876
A20: 207Pb/204Pb | B20: 15.573 | C20: 15.588 | D20: 15.582 | E20: 15.565 | F20: 15.559 | G20: 15.547 | H20: 15.565 | I20: 15.62 | J20: 15.583 | K20: 15.614 | L20: 15.585 | M20: 15.58 | N20: 15.599 | O20: 15.59 | P20: 15.572
A21: 208Pb/204Pb | B21: 38.412 | C21: 38.465 | D21: 38.444 | E21: 38.383 | F21: 38.359 | G21: 38.331 | H21: 38.393 | I21: 38.594 | J21: 38.468 | K21: 38.569 | L21: 38.486 | M21: 38.451 | N21: 38.528 | O21: 38.487 | P21: 38.429
A22: (230Th/232Th) | B22: 1.449 | C22: 1.338 | D22: 1.461 | E22: 1.457 | F22: 1.35 | G22: 1.427 | H22: 1.411 | I22: 1.428 | J22: 1.404 | K22: 1.41 | L22: 1.416 | M22: 1.396 | N22: 1.407 | O22: 1.399 | P22: 1.42
A23: (238U/232Th) | B23: 1.489 | C23: 1.409 | D23: 1.441 | E23: 1.401 | F23: 1.406 | G23: 1.509 | H23: 1.595 | I23: 1.415 | J23: 1.46 | K23: 1.425 | L23: 1.373 | M23: 1.478 | N23: 1.358 | O23: 1.468 | P23: 1.381
A24: (238U/230Th) | B24: 1.028 | C24: 0.854 | D24: 0.986 | E24: 0.961 | F24: 1.041 | G24: 1.057 | H24: 1.13 | I24: 0.991 | J24: 1.04 | K24: 1.01 | L24: 0.97 | M24: 1.059 | N24: 0.965 | O24: 1.049 | P24: 0.972
A25: Pb Age (Ma) | B25: =[1]!AgePb76(B20/B19) -> 4965.698072 | C25: =[1]!AgePb76(C20/C19) -> 4965.862071 | D25: =[1]!AgePb76(D20/D19) -> 4967.197253 | E25: =[1]!AgePb76(E20/E19) -> 4966.474711 | F25: =[1]!AgePb76(F20/F19) -> 4967.057976 | G25: =[1]!AgePb76(G20/G19) -> 4966.036739 | H25: =[1]!AgePb76(H20/H19) -> 4965.5703 | I25: =[1]!AgePb76(I20/I19) -> 4972.015636 | J25: =[1]!AgePb76(J20/J19) -> 4966.459917 | K25: =[1]!AgePb76(K20/K19) -> 4966.651638 | L25: =[1]!AgePb76(L20/L19) -> 4966.115315 | M25: =[1]!AgePb76(M20/M19) -> 4965.358135 | N25: =[1]!AgePb76(N20/N19) -> 4966.187711 | O25: =[1]!AgePb76(O20/O19) -> 4966.646537 | P25: =[1]!AgePb76(P20/P19) -> 4965.456174
F28: Volcano | G28: Age | H28: Eruption | I28: Pb Age (Ma) | J28: Ratio (106)
F29: Aniakchak | G29: =2004-H29 -> 73 | H29: 1931 | I29: 4972 | J29: =I29/G29 -> 68.10958904
G30: =2004-H30 -> 73 | H30: 1931 | I30: 4966 | J30: =I30/G30 -> 68.02739726
G31: 73 | H31: 1931 | I31: 4967 | J31: 68.04109589
G32: 73 | H32: 1931 | I32: 4966 | J32: 68.02739726
G33: 73 | H33: 1931 | I33: 4965 | J33: 68.01369863
G34: 73 | H34: 1931 | I34: 4966 | J34: 68.02739726
G35: 73 | H35: 1931 | I35: 4967 | J35: 68.04109589
G36: 73 | H36: 1931 | I36: 4965 | J36: 68.01369863
F37: Akutan | G37: =2004-H37 -> 134 | H37: 1870 | I37: 4960 | J37: =I37/G37 -> 37.01492537
G38: =2004-H38 -> 94 | H38: 1910 | I38: 4960 | J38: =I38/G38 -> 52.76595745
G39: 94 | H39: 1910 | I39: 4961 | J39: 52.77659574
G40: 75 | H40: 1929 | I40: 4961 | J40: 66.14666667
G41: 26 | H41: 1978 | I41: 4962 | J41: 190.8461538
G42: 26 | H42: 1978 | I42: 4961 | J42: 190.8076923
G43: 26 | H43: 1978 | I43: 4960 | J43: 190.7692308
I44: =MIN(I29:I43) -> 4960
I45: =MAX(I29:I44) -> 4972

Sheet H39
A1: Table 8
A2: Date | B2: 206Pb/204Pb | C2: 207Pb/204Pb | D2: 207Pb/206Pb | E2: Age (Ma) | F2: Age Ratio (106)
A3: 1992-12-29 | B3: 18.397 | C3: 15.46 | D3: =C3/B3 -> 0.8403544056 | E3: =[1]!AgePb76(D3) -> 4991.717159 | F3: =E3/8 -> 623.9646449 | G3: 1992
A4: 1994-04-25 | B4: 18.407 | C4: 15.472 | D4: =C4/B4 -> 0.8405497908 | E4: =[1]!AgePb76(D4) -> 4992.047231 | F4: =E4/6 -> 832.0078719 | G4: 1994
A5: 1995-04-27 | B5: 18.427 | C5: 15.492 | D5: 0.8407228523 | E5: =[1]!AgePb76(D5) -> 4992.339523 | F5: =E5/5 -> 998.4679046 | G5: 1995
A6: 1997-01-10 | B6: 18.414 | C6: 15.48 | D6: 0.8406647116 | E6: =[1]!AgePb76(D6) -> 4992.241334 | F6: =E6/3 -> 1664.080445 | G6: 1997
A7: 1998-01-10 | B7: 18.429 | C7: 15.502 | D7: 0.8411742363 | E7: =[1]!AgePb76(D7) -> 4993.101586 | F7: =E7/2 -> 2496.550793 | G7: 1998
A11: Eruption | B11: Age (Ma) | C11: Age Ratio (106)
A12: 1992-12-29 | B12: 4991.717159 | C12: 623.9646449
A13: 1994-04-25 | B13: 4992.047231 | C13: 832.0078719
A14: 1995-04-27 | B14: 4992.339523 | C14: 998.4679046
A15: 1997-01-10 | B15: 4992.241334 | C15: 1664.080445
A16: 1998-01-10 | B16: 4993.101586 | C16: 2496.550793

Sheet H40
A1: Table 2 | M1: Volcano | N1: Eruption Year AD | O1: Age (Years) | P1: Pb Age (Ma) | Q1: Age Ratio (106) | R1: Year Date
A2: Sample | B2: Eruption | C2: Month | D2: 208Pb/204Pb | E2: 207Pb/204Pb | F2: 206Pb/204Pb | G2: 207Pb/206Pb | H2: Age | I2: na | J2: Description | M2: Bezymianny | N2: 1956 | O2: =R2-N2 -> 58 | P2: 5003.689704 | Q2: =P2/O2 -> 86.27051214 | R2: 2014
A3: Bezymianny Volcano | N3: 1956 | O3: 58 | P3: 5003.548269 | Q3: 86.26807361 | R3: 2014
A4: Bezymianny Domes | N4: 1997 | O4: 17 | P4: 5003.73166 | Q4: 294.3371565 | R4: 2014
A5: 06BZT04 | B5: <3 ka | D5: 37.903 | E5: 15.478 | F5: 18.277 | G5: =E5/F5 -> 0.8468567051 | H5: =[1]!AgePb76(G5) -> 5002.658205 | I5: “Young” | J5: dome | N5: 2006 | O5: 8 | P5: 5004.000613 | Q5: 625.5000766 | R5: 2014
A6: 06BZT08 | B6: 3–5 ka | D6: 37.899 | E6: 15.478 | F6: 18.276 | G6: =E6/F6 -> 0.8469030422 | H6: =[1]!AgePb76(G6) -> 5002.735853 | I6: Lokmaty | J6: dome | N6: 2006 | O6: 8 | P6: 5003.647733 | Q6: 625.4559666 | R6: 2014
A7: 08BZT08b | B7: Holocene | D7: 37.903 | E7: 15.478 | F7: 18.278 | G7: 0.8468103731 | H7: =[1]!AgePb76(G7) -> 5002.580561 | I7: 3 | J7: Expedition | K7: dome | N7: 2006 | O7: 8 | P7: 5003.725467 | Q7: 625.4656834 | R7: 2014
A8: 06CBZT08 | B8: Pleistocene | D8: 37.87 | E8: 15.473 | F8: 18.268 | G8: 0.847000219 | H8: =[1]!AgePb76(G8) -> 5002.89868 | I8: Cedlo | J8: dome | N8: 2006 | O8: 8 | P8: 5003.92288 | Q8: 625.4903599 | R8: 2014
A9: MP1BZT09 | B9: Unknown | D9: 37.865 | E9: 15.471 | F9: 18.262 | G9: 0.8471689848 | H9: =[1]!AgePb76(G9) -> 5003.181412 | I9: Mega | J9: plag | K9: lava | N9: 2006 | O9: 8 | P9: 5003.570003 | Q9: 625.4462503 | R9: 2014
A10: MP2BZT09 | B10: Unknown | D10: 37.881 | E10: 15.475 | F10: 18.269 | G10: 0.8470633313 | H10: =[1]!AgePb76(G10) -> 5003.004419 | I10: Mega | J10: plag | K10: lava | N10: 2006 | O10: 8 | P10: 5003.611987 | Q10: 625.4514983 | R10: 2014
A11: 06BZT05 | B11: 1956 | D11: 37.889 | E11: 15.474 | F11: 18.259 | G11: 0.8474724793 | H11: =[1]!AgePb76(G11) -> 5003.689704 | I11: Cryptodome | N11: 2006 | O11: 8 | P11: 5003.534274 | Q11: 625.4417842 | R11: 2014
A12: 05BZT08 | B12: 1956 | D12: 37.886 | E12: 15.475 | F12: 18.262 | G12: 0.8473880188 | H12: =[1]!AgePb76(G12) -> 5003.548269 | I12: Cryptodome | N12: 2007 | O12: 7 | P12: 5003.823346 | Q12: 714.8319066 | R12: 2014
A13: 06BZT11 | B13: 1997 | D13: 37.889 | E13: 15.477 | F13: 18.262 | G13: 0.8474975359 | H13: =[1]!AgePb76(G13) -> 5003.73166 | I13: Pumice, | J13: tephra | N13: 2007 | O13: 7 | P13: 5003.703691 | Q13: 714.814813 | R13: 2014
A14: 06IPE16 | B14: 2006 | C14: (May) | D14: 37.878 | E14: 15.474 | F14: 18.255 | G14: 0.8476581758 | H14: =[1]!AgePb76(G14) -> 5004.000613 | I14: Juvenile | J14: breadcrust | K14: bomb | N14: 2007 | O14: 7 | P14: 5004.467096 | Q14: 714.9238708 | R14: 2014
A15: 06IPE17 | B15: 2006 | C15: (May) | D15: 37.875 | E15: 15.471 | F15: 18.256 | G15: 0.8474474145 | H15: =[1]!AgePb76(G15) -> 5003.647733 | I15: Juvenile | J15: breadcrust | K15: bomb | N15: 2007 | O15: 7 | P15: 5003.703691 | Q15: 714.814813 | R15: 2014
A16: 06BZT02a | B16: 2006 | C16: (May) | D16: 37.872 | E16: 15.471 | F16: 18.255 | G16: 0.8474938373 | H16: =[1]!AgePb76(G16) -> 5003.725467 | I16: Juvenile | J16: breadcrust | K16: bomb | N16: 2007 | O16: 7 | P16: 5003.315166 | Q16: 714.7593095 | R16: 2014
A17: 06BZT02bb | B17: 2006 | C17: (May) | D17: 37.879 | E17: 15.474 | F17: 18.256 | G17: 0.8476117441 | H17: =[1]!AgePb76(G17) -> 5003.92288 | I17: 2 | J17: Inner, | K17: breadcrust | N17: 2007 | O17: 7 | P17: 5003.695909 | Q17: 714.8137014 | R17: 2014
A18: 06BZT03 | B18: 2006 | C18: (May) | D18: 37.867 | E18: 15.471 | F18: 18.257 | G18: 0.8474009969 | H18: =[1]!AgePb76(G18) -> 5003.570003 | I18: 2 | J18: Pumice | N18: 2007 | O18: 7 | P18: 5003.73166 | Q18: 714.8188086 | R18: 2014
A19: 02BZTK07 | B19: 2006 | C19: (Dec) | D19: 37.882 | E19: 15.474 | F19: 18.26 | G19: 0.8474260679 | H19: =[1]!AgePb76(G19) -> 5003.611987 | I19: Juvenile | J19: breadcrust | K19: bomb | N19: 2007 | O19: 7 | P19: 5003.781408 | Q19: 714.8259154 | R19: 2014
A20: 05BZT09b | B20: 2006 | D20: 37.882 | E20: 15.474 | F20: 18.261 | G20: 0.8473796616 | H20: =[1]!AgePb76(G20) -> 5003.534274 | I20: 2 | J20: Juvenile | K20: breadcrust | N20: 2007 | O20: 7 | P20: 5009.516237 | Q20: 715.6451767 | R20: 2014
A21: 01BZTK07 | B21: 2007 | C21: (May) | D21: 37.892 | E21: 15.478 | F21: 18.262 | G21: 0.8475522944 | H21: =[1]!AgePb76(G21) -> 5003.823346 | I21: Juvenile | J21: breadcrust | K21: bomb | N21: 2007 | O21: 7 | P21: 5005.775706 | Q21: 715.1108152 | R21: 2014
A22: 02BZT08 | B22: 2007 | C22: (Oct) | D22: 37.881 | E22: 15.475 | F22: 18.26 | G22: 0.8474808324 | H22: =[1]!AgePb76(G22) -> 5003.703691 | I22: Juvenile | J22: breadcrust | K22: bomb | N22: 2007 | O22: 7 | P22: 5002.552466 | Q22: 714.6503523 | R22: 2014
A23: 03BZT08 | B23: 2007 | C23: (Oct) | D23: 37.877 | E23: 15.474 | F23: 18.249 | G23: 0.8479368733 | H23: =[1]!AgePb76(G23) -> 5004.467096 | I23: Juvenile | J23: breadcrust | K23: bomb | N23: 2007 | O23: 7 | P23: 5003.251485 | Q23: 714.7502121 | R23: 2014
A24: 04BZT08 | B24: 2007 | C24: (Oct) | D24: 37.882 | E24: 15.475 | F24: 18.26 | G24: 0.8474808324 | H24: =[1]!AgePb76(G24) -> 5003.703691 | I24: Juvenile | J24: breadcrust | K24: bomb | N24: 2007 | O24: 7 | P24: 5003.667942 | Q24: 714.809706 | R24: 2014
A25: 03BZT09 | B25: 2007 | C25: (Oct) | D25: 37.888 | E25: 15.475 | F25: 18.265 | G25: 0.8472488366 | H25: =[1]!AgePb76(G25) -> 5003.315166 | I25: Juvenile | J25: breadcrust | K25: bomb | N25: 2007 | O25: 7 | P25: 5003.406866 | Q25: 714.7724094 | R25: 2014
A26: 04BZT09 | B26: 2007 | C26: (Oct) | D26: 37.896 | E26: 15.48 | F26: 18.266 | G26: 0.8474761853 | H26: =[1]!AgePb76(G26) -> 5003.695909 | I26: Juvenile | J26: breadcrust | K26: bomb | N26: 2007 | O26: 7 | P26: 5003.259122 | Q26: 714.7513032 | R26: 2014
A27: 11BZT09 | B27: 2007 | C27: (Oct) | D27: 37.888 | E27: 15.477 | F27: 18.262 | G27: 0.8474975359 | H27: =[1]!AgePb76(G27) -> 5003.73166 | I27: Juvenile | J27: breadcrust | K27: bomb | N27: 2007 | O27: 7 | P27: 5003.653956 | Q27: 714.807708 | R27: 2014
A28: 06BZT09 | B28: 2008 | C28: (Aug) | D28: 37.89 | E28: 15.477 | F28: 18.269 | G28: 0.8471728064 | H28: =[1]!AgePb76(G28) -> 5003.187814 | I28: Juvenile | J28: bomb | N28: 2007 | O28: 7 | P28: 5003.265494 | Q28: 714.7522134 | R28: 2014
A29: 10IPE5A | B29: 2009 | C29: (Dec) | D29: 37.889 | E29: 15.479 | F29: 18.26 | G29: 0.8476998905 | H29: =[1]!AgePb76(G29) -> 5004.070445 | I29: Juvenile | J29: breadcrust | K29: bomb | N29: 2008 | O29: 6 | P29: 5003.187814 | Q29: 833.8646356 | R29: 2014
A30: 10IPE7A | B30: 2009 | C30: (Dec) | D30: 37.893 | E30: 15.479 | F30: 18.261 | G30: 0.8476534691 | H30: =[1]!AgePb76(G30) -> 5003.992733 | I30: Juvenile | J30: breadcrust | K30: bomb | N30: 2008 | O30: 6 | P30: 5008.09871 | Q30: 834.6831183 | R30: 2014
A31: 10IPE8 | B31: 2010 | C31: (Jan/Feb) | D31: 37.892 | E31: 15.48 | F31: 18.259 | G31: 0.8478010844 | H31: =[1]!AgePb76(G31) -> 5004.239833 | I31: Lava | J31: flow | N31: 2008 | O31: 6 | P31: 5003.287148 | Q31: 833.8811913 | R31: 2014
A32: 10IPE1A | B32: 2010 | C32: (June) | D32: 37.886 | E32: 15.476 | F32: 18.268 | G32: 0.8471644406 | H32: =[1]!AgePb76(G32) -> 5003.1738 | I32: Juvenile | J32: bomb | N32: 2009 | O32: 5 | P32: 5004.070445 | Q32: 1000.814089 | R32: 2014
A33: 10IPE2A | B33: 2010 | C33: (June) | D33: 37.892 | E33: 15.478 | F33: 18.265 | G33: 0.8474130851 | H33: =[1]!AgePb76(G33) -> 5003.590246 | I33: Juvenile | J33: bomb | N33: 2009 | O33: 5 | P33: 5003.992733 | Q33: 1000.798547 | R33: 2014
A34: 10IPE9 | B34: 2010 | C34: (June) | D34: 37.893 | E34: 15.479 | F34: 18.257 | G34: 0.847839185 | H34: =[1]!AgePb76(G34) -> 5004.303604 | I34: Lava | J34: flow | N34: 2009 | O34: =R34-N34 -> 5 | P34: 5004.028551 | Q34: =P34/O34 -> 1000.80571 | R34: 2014
A35: Bezymianny Xenoliths | G35: . | H35: . | N35: 2009 | O35: 5 | P35: 5004.564668 | Q35: 1000.912934 | R35: 2014
A36: 01BZT09a | B36: 2007 | C36: (Oct) | D36: 37.881 | E36: 15.475 | F36: 18.259 | G36: 0.8475272468 | H36: =[1]!AgePb76(G36) -> 5003.781408 | I36: Enclave | J36: in | K36: 02BZT08 | N36: 2010 | O36: 4 | P36: 5004.239833 | Q36: 1251.059958 | R36: 2014
A37: 01BZT09bb | B37: 2007 | C37: (Oct) | D37: 37.828 | E37: 15.473 | F37: 18.183 | G37: 0.8509596876 | H37: =[1]!AgePb76(G37) -> 5009.516237 | I37: 3 | J37: Xenolith | K37: in | N37: 2010 | O37: 4 | P37: 5003.1738 | Q37: 1250.79345 | R37: 2014
A38: 01BZT09c | B38: 2007 | C38: (Oct) | D38: 37.854 | E38: 15.473 | F38: 18.231 | G38: 0.8487192145 | H38: =[1]!AgePb76(G38) -> 5005.775706 | I38: Xenolith | J38: in | K38: 02BZT08 | N38: 2010 | O38: 4 | P38: 5003.590246 | Q38: 1250.897561 | R38: 2014
A39: 03BZT09a | B39: 2007 | C39: (Oct) | D39: 37.893 | E39: 15.476 | F39: 18.276 | G39: 0.8467936091 | H39: =[1]!AgePb76(G39) -> 5002.552466 | I39: Xenolith | J39: in | K39: 03BZT09 | N39: 2010 | O39: 4 | P39: 5004.303604 | Q39: 1251.075901 | R39: 2014
A40: 03BZT09b | B40: 2007 | C40: (Oct) | D40: 37.89 | E40: 15.476 | F40: 18.267 | G40: 0.8472108173 | H40: =[1]!AgePb76(G40) -> 5003.251485 | I40: Enclave | J40: in | K40: 03BZT09 | N40: 2010 | O40: 4 | P40: 5011.209916 | Q40: 1252.802479 | R40: 2014
A41: 03BZT09d | B41: 2007 | C41: (Oct) | D41: 37.892 | E41: 15.478 | F41: 18.264 | G41: 0.8474594831 | H41: =[1]!AgePb76(G41) -> 5003.667942 | I41: Enclave | J41: in | K41: 03BZT09 | N41: 2010 | O41: 4 | P41: 5004.508922 | Q41: 1251.127231 | R41: 2014
A42: 04BZT09d | B42: 2007 | C42: (Oct) | D42: 37.892 | E42: 15.476 | F42: 18.265 | G42: 0.8473035861 | H42: =[1]!AgePb76(G42) -> 5003.406866 | I42: Enclave | J42: in | K42: 04BZT09 | M42: Klyuchevskoy | N42: 1939 | O42: 75 | P42: 5001.75492 | Q42: 66.6900656 | R42: 2014
A43: 11BZT09a | B43: 2007 | C43: (Oct) | D43: 37.873 | E43: 15.471 | F43: 18.261 | G43: 0.847215377 | H43: =[1]!AgePb76(G43) -> 5003.259122 | I43: Enclave | J43: in | K43: 11BZT09 | N43: 1945 | O43: 69 | P43: 5001.726738 | Q43: 72.4887933 | R43: 2014
A44: 05BZT09ab | B44: 2007 | D44: 37.889 | E44: 15.477 | F44: 18.263 | G44: 0.8474511307 | H44: =[1]!AgePb76(G44) -> 5003.653956 | I44: 2 | J44: Enclave | K44: in | N44: 1946 | O44: 68 | P44: 5001.797181 | Q44: 73.55584089 | R44: 2014
A45: 05BZT09bb | B45: 2007 | D45: 37.893 | E45: 15.477 | F45: 18.268 | G45: 0.8472191811 | H45: =[1]!AgePb76(G45) -> 5003.265494 | I45: 2 | J45: Enclave | K45: in | N45: 2007 | O45: 7 | P45: 5001.310684 | Q45: 714.4729548 | R45: 2014
A46: 02BZT09bb | B46: 2008 | C46: (Aug) | D46: 37.815 | E46: 15.472 | F46: 18.2 | G46: 0.8501098901 | H46: =[1]!AgePb76(G46) -> 5008.09871 | I46: 3 | J46: Enclave | K46: in | N46: 2007 | O46: 7 | P46: 5001.19081 | Q46: 714.4558301 | R46: 2014
A47: 06BZT09a | B47: 2008 | C47: (Aug) | D47: 37.883 | E47: 15.473 | F47: 18.263 | G47: 0.8472321086 | H47: =[1]!AgePb76(G47) -> 5003.287148 | I47: Enclave | J47: in | K47: 06BZT09 | M47: Shiveluch | N47: 1964 | O47: 50 | P47: 4996.60843 | Q47: 99.93216861 | R47: 2014
A48: 10IPE5B | B48: 2009 | C48: (Dec) | D48: 37.886 | E48: 15.476 | F48: 18.257 | G48: 0.8476748644 | H48: =[1]!AgePb76(G48) -> 5004.028551 | I48: Enclave | J48: in | K48: 10IPE5A | N48: 1980 | O48: 34 | P48: 4995.661405 | Q48: 146.9312178 | R48: 2014
A49: 10IPE7B | B49: 2009 | C49: (Dec) | D49: 37.897 | E49: 15.481 | F49: 18.256 | G49: 0.8479951797 | H49: =[1]!AgePb76(G49) -> 5004.564668 | I49: Enclave | J49: in | K49: 10IPE7A | N49: 1993 | O49: 21 | P49: 4996.376514 | Q49: 237.9226911 | R49: 2014
A50: 10IPE1Bb | B50: 2010 | C50: (June) | D50: 37.8 | E50: 15.477 | F50: 18.166 | G50: 0.8519762193 | H50: =[1]!AgePb76(G50) -> 5011.209916 | I50: 3 | J50: Enclave | K50: in | N50: 2001 | O50: 13 | P50: 4996.16434 | Q50: 384.3203339 | R50: 2014
A51: 10IPE2B | B51: 2010 | C51: (June) | D51: 37.88 | E51: 15.477 | F51: 18.252 | G51: 0.8479618672 | H51: =[1]!AgePb76(G51) -> 5004.508922 | I51: Enclave | J51: in | K51: 10IPE2A | N51: 2001 | O51: 13 | P51: 4999.759617 | Q51: 384.5968936 | R51: 2014
A52: Klyuchevskoy Volcano | H52: . | N52: 2007 | O52: 7 | P52: 4996.917708 | Q52: 713.8453868 | R52: 2014
A53: Klyuchevskoy lavas | H53: . | M53: Karymsky | N53: 1964 | O53: 50 | P53: 4996.777423 | Q53: 99.93554845 | R53: 2014
A54: KL1939 | B54: 1939 | D54: 37.915 | E54: 15.48 | F54: 18.291 | G54: 0.8463178612 | H54: =[1]!AgePb76(G54) -> 5001.75492 | I54: Lava | J54: flow, | K54: flank | N54: 1971 | O54: 43 | P54: 4996.897801 | Q54: 116.2069256 | R54: 2014
A55: KL1945Y | B55: 1945 | D55: 37.907 | E55: 15.478 | F55: 18.289 | G55: 0.8463010553 | H55: =[1]!AgePb76(G55) -> 5001.726738 | I55: Lava | J55: flow, | K55: flank | N55: 1971 | O55: 43 | P55: 4996.714473 | Q55: 116.2026622 | R55: 2014
A56: KL1946A | B56: 1946 | D56: 37.918 | E56: 15.483 | F56: 18.294 | G56: 0.8463430633 | H56: =[1]!AgePb76(G56) -> 5001.797181 | I56: Lava | J56: flow, | K56: flank | N56: 1996 | O56: 18 | P56: 4996.912151 | Q56: 277.6062306 | R56: 2014
A57: KLKrest07 | B57: 2007 | D57: 37.949 | E57: 15.487 | F57: 18.305 | G57: 0.846052991 | H57: =[1]!AgePb76(G57) -> 5001.310684 | I57: Lava | J57: flow, | K57: summit | N57: 1996 | O57: 18 | P57: 4996.685744 | Q57: 277.5936524 | R57: 2014
A58: KL-Apah232-07 | B58: 2007 | D58: 37.944 | E58: 15.484 | F58: 18.303 | G58: 0.8459815331 | H58: =[1]!AgePb76(G58) -> 5001.19081 | I58: Lava | J58: flow, | K58: summit | N58: 1996 | O58: 18 | P58: 4996.594059 | Q58: 277.5885588 | R58: 2014
A59: Shiveluch Volcano | H59: . | N59: 1998 | O59: 16 | P59: 4996.820496 | Q59: 312.301281 | R59: 2014
A60: SHIV1964 | B60: 1964 | D60: 37.912 | E60: 15.483 | F60: 18.361 | G60: 0.8432547247 | H60: =[1]!AgePb76(G60) -> 4996.60843 | I60: Juvenile | J60: clast, | K60: pyroclastic | N60: 2003 | O60: 11 | P60: 4996.763061 | Q60: 454.2511874 | R60: 2014
A61: SHIV1980b | B61: 1980 | D61: 37.934 | E61: 15.487 | F61: 18.378 | G61: 0.8426923495 | H61: =[1]!AgePb76(G61) -> 4995.661405 | I61: 2 | J61: Juvenile | K61: clast, | N61: 2004 | O61: 10 | P61: 4996.763061 | Q61: 499.6763061 | R61: 2014
A62: SHIV1993 | B62: 1993 | D62: 37.91 | E62: 15.483 | F62: 18.364 | G62: 0.843116968 | H62: =[1]!AgePb76(G62) -> 4996.376514 | I62: Juvenile | J62: clast, | K62: pyroclastic | N62: 2007 | O62: 7 | P62: 4998.487506 | Q62: 714.0696437 | R62: 2014
A63: SHIV2001 | B63: 2001 | D63: 37.901 | E63: 15.479 | F63: 18.362 | G63: 0.8429909596 | H63: =[1]!AgePb76(G63) -> 4996.16434 | I63: Juvenile | J63: clast, | K63: pyroclastic | N63: 2008 | O63: 6 | P63: 4996.771912 | Q63: 832.7953186 | R63: 2014
A64: SHIV2001DMBb | B64: 2001 | D64: 37.875 | E64: 15.476 | F64: 18.312 | G64: 0.8451288772 | H64: =[1]!AgePb76(G64) -> 4999.759617 | I64: 2 | J64: Dome | N64: 2008 | O64: 6 | P64: 4996.771912 | Q64: 832.7953186 | R64: 2014
A65: SHIV72007 | B65: 2007 | D65: 37.908 | E65: 15.483 | F65: 18.357 | G65: 0.8434384703 | H65: =[1]!AgePb76(G65) -> 4996.917708 | I65: Juvenile | J65: clast, | K65: pyroclastic | O65: Average | P65: =AVERAGE(P2:P64) -> 5001.905368 | Q65: =AVERAGE(Q2:Q64) -> 625.8973335
A66: Karymsky Volcano | H66: . | O66: Maximum | P66: =MAX(P2:P65) -> 5011.209916 | Q66: =MAX(Q2:Q65) -> 1252.802479
A67: KTK0308 | B67: 1964 | D67: 37.988 | E67: 15.484 | F67: 18.36 | G67: 0.8433551198 | H67: =[1]!AgePb76(G67) -> 4996.777423 | I67: Lava | J67: flow | O67: Minimum | P67: =MIN(P2:P66) -> 4995.661405 | Q67: =MIN(Q2:Q66) -> 66.6900656
A68: K1971PFMB | B68: 1971 | D68: 37.994 | E68: 15.487 | F68: 18.362 | G68: 0.843426642 | H68: =[1]!AgePb76(G68) -> 4996.897801 | I68: Juvenile | J68: bomb, | K68: pyroclastic | O68: Difference | P68: =P66-P67 -> 15.5485106 | Q68: 1186.112413
A69: KTK0408 | B69: 1971 | D69: 37.993 | E69: 15.485 | F69: 18.362 | G69: 0.8433177214 | H69: =[1]!AgePb76(G69) -> 4996.714473 | I69: Lava | J69: flow | K69: toe | O69: Accuracy | P69: =1-(P68/P65) -> 0.9968914825 | Q69: -0.8950590615
A70: 97IPE4b | B70: 1996 | C70: (Apr–Aug) | D70: 37.998 | E70: 15.488 | F70: 18.363 | G70: =E70/F70 -> 0.8434351685 | H70: =[1]!AgePb76(G70) -> 4996.912151 | I70: 3 | J70: Lava | K70: flow
A71: 98IPE28 | B71: 1996 | C71: (Sep–Oct) | D71: 37.983 | E71: 15.483 | F71: 18.36 | G71: 0.8433006536 | H71: =[1]!AgePb76(G71) -> 4996.685744 | I71: Lava | J71: flow
A72: 98IPE22db | B72: 1996 | D72: 37.98 | E72: 15.482 | F72: 18.36 | G72: 0.8432461874 | H72: =[1]!AgePb76(G72) -> 4996.594059 | I72: 2 | J72: Juvenile | K72: bomb,
A73: 98IPE26 | B73: 1998 | C73: (June–July) | D73: 37.994 | E73: 15.487 | F73: 18.363 | G73: 0.8433807112 | H73: =[1]!AgePb76(G73) -> 4996.820496 | I73: Lava | J73: flow
A74: K2003 | B74: 2003 | D74: 37.985 | E74: 15.483 | F74: 18.359 | G74: 0.8433465875 | H74: =[1]!AgePb76(G74) -> 4996.763061 | I74: Lava | J74: flow
A75: K2004 | B75: 2004 | D75: 37.983 | E75: 15.483 | F75: 18.359 | G75: 0.8433465875 | H75: =[1]!AgePb76(G75) -> 4996.763061 | I75: Lava | J75: flow
A76: K2007b | B76: 2007 | D76: 37.992 | E76: 15.49 | F76: 18.345 | G76: 0.8443717634 | H76: =[1]!AgePb76(G76) -> 4998.487506 | I76: 2 | J76: Ash, | K76: collected
A77: KTK0508 | B77: 2008 | C77: (April) | D77: 38.001 | E77: 15.489 | F77: 18.366 | G77: 0.8433518458 | H77: =[1]!AgePb76(G77) -> 4996.771912 | I77: Juvenile | J77: bomb | M77: Volcano | N77: Eruption AD | O77: Age (Years) | P77: Pb Age (Ma) | Q77: Age Ratio (106)
A78: KTK0908 | B78: 2008 | C78: (July 25) | D78: 38.002 | E78: 15.489 | F78: 18.366 | G78: 0.8433518458 | H78: =[1]!AgePb76(G78) -> 4996.771912 | I78: Juvenile | J78: bomb | M78: Bezymianny | N78: 1956 | O78: 58 | P78: 5003.689704 | Q78: 86.27051214
N79: 1956 | O79: 58 | P79: 5003.548269 | Q79: 86.26807361
N80: 1997 | O80: 17 | P80: 5003.73166 | Q80: 294.3371565
N81: 2006 | O81: 8 | P81: 5004.000613 | Q81: 625.5000766
N82: 2007 | O82: 7 | P82: 5003.823346 | Q82: 714.8319066
N83: 2008 | O83: 6 | P83: 5003.187814 | Q83: 833.8646356
N84: 2009 | O84: 5 | P84: 5004.070445 | Q84: 1000.814089
N85: 2010 | O85: 4 | P85: 5004.239833 | Q85: 1251.059958
M86: Klyuchevskoy | N86: 1939 | O86: 75 | P86: 5001.75492 | Q86: 66.6900656
N87: 1945 | O87: 69 | P87: 5001.726738 | Q87: 72.4887933
N88: 1946 | O88: 68 | P88: 5001.797181 | Q88: 73.55584089
N89: 2007 | O89: 7 | P89: 5001.310684 | Q89: 714.4729548
M90: Shiveluch | N90: 1964 | O90: 50 | P90: 4996.60843 | Q90: 99.93216861
N91: 1980 | O91: 34 | P91: 4995.661405 | Q91: 146.9312178
N92: 1993 | O92: 21 | P92: 4996.376514 | Q92: 237.9226911
N93: 2001 | O93: 13 | P93: 4996.16434 | Q93: 384.3203339
N94: 2007 | O94: 7 | P94: 4996.917708 | Q94: 713.8453868
M95: Karymsky | N95: 1964 | O95: 50 | P95: 4996.777423 | Q95: 99.93554845
N96: 1971 | O96: 43 | P96: 4996.897801 | Q96: 116.2069256
N97: 1996 | O97: 18 | P97: 4996.912151 | Q97: 277.6062306
N98: 1998 | O98: 16 | P98: 4996.820496 | Q98: 312.301281
N99: 2003 | O99: 11 | P99: 4996.763061 | Q99: 454.2511874
N100: 2004 | O100: 10 | P100: 4996.763061 | Q100: 499.6763061
N101: 2007 | O101: 7 | P101: 4998.487506 | Q101: 714.0696437
N102: 2008 | O102: 6 | P102: 4996.771912 | Q102: 832.7953186
N115: 1980 | O115: 34 | P115: 4995.661405 | Q115: 146.9312178
N116: 1993 | O116: 21 | P116: 4996.376514 | Q116: 237.9226911
N117: 2001 | O117: 13 | P117: 4996.16434 | Q117: 384.3203339
N118: 2001 | O118: 13 | P118: 4999.759617 | Q118: 384.5968936
N119: 2007 | O119: 7 | P119: 4996.917708 | Q119: 713.8453868
M121: Karymsky | N121: 1964 | O121: 50 | P121: 4996.777423 | Q121: 99.93554845
N122: 1971 | O122: 43 | P122: 4996.897801 | Q122: 116.2069256
N123: 1971 | O123: 43 | P123: 4996.714473 | Q123: 116.2026622
N124: 1996 | O124: 18 | P124: 4996.912151 | Q124: 277.6062306
N125: 1996 | O125: 18 | P125: 4996.685744 | Q125: 277.5936524
N126: 1996 | O126: 18 | P126: 4996.594059 | Q126: 277.5885588
N127: 1998 | O127: 16 | P127: 4996.820496 | Q127: 312.301281
N128: 2003 | O128: 11 | P128: 4996.763061 | Q128: 454.2511874
N129: 2004 | O129: 10 | P129: 4996.763061 | Q129: 499.6763061
N130: 2007 | O130: 7 | P130: 4998.487506 | Q130: 714.0696437
N131: 2008 | O131: 6 | P131: 4996.771912 | Q131: 832.7953186
N132: 2008 | O132: 6 | P132: 4996.771912 | Q132: 832.7953186

Sheet H41
A1: Table 1
A2: Volcano | B2: Toba | C2: Toba | D2: Sorikmarapi | E2: Krakatau | F2: Krakatau | G2: Galunggung | H2: Galunggung | I2: Galunggung | J2: Galunggung
A3: Age | B3: -72000 | C3: -72000 | D3: -10000 | E3: 1883 | F3: 1883 | G3: 1982 | H3: 1982 | I3: 1982 | J3: 1918 | L3: Negative Dates | M3: are BC
A4: 206Pb/204Pb | B4: 18.899 | C4: 18.972 | D4: 18.666 | E4: 18.585 | F4: 18.471 | G4: 18.724 | H4: 18.735 | I4: 18.782 | J4: 18.692
A5: 207Pb/204Pb | B5: 15.738 | C5: 15.828 | D5: 15.659 | E5: 15.61 | F5: 15.621 | G5: 15.635 | H5: 15.627 | I5: 15.673 | J5: 15.624
A6: 207Pb/206Pb | B6: =(B5/B4) -> 0.8327424731 | C6: =(C5/C4) -> 0.8342820999 | D6: 0.8389049609 | E6: 0.8399246704 | F6: 0.8457040767 | G6: 0.8350245674 | H6: 0.8341072858 | I6: 0.8344691726 | J6: 0.835865611
A7: Pb/Pb Age | B7: =[1]!AgePb76(B6) -> 4978.794142 | C7: =[1]!AgePb76(C6) -> 4981.418114 | D7: =[1]!AgePb76(D6) -> 4989.266003 | E7: =[1]!AgePb76(E6) -> 4990.990903 | F7: =[1]!AgePb76(F6) -> 5000.725265 | G7: =[1]!AgePb76(G6) -> 4982.681657 | H7: =[1]!AgePb76(H6) -> 4981.120439 | I7: =[1]!AgePb76(I6) -> 4981.73659 | J7: =[1]!AgePb76(J6) -> 4984.111516
A11: Volcano | B11: Galunggung | C11: Merapi | D11: Merapi | E11: Merapi | F11: Merapi | G11: Rindjani | H11: Rindjani | I11: Tambora | J11: Sangeang Api | K11: Ayi Flores
A12: Age | B12: -2200 | C12: 1006 | D12: 1006 | E12: 1006 | F12: 1006 | G12: 1900 | H12: 1900 | I12: 1815 | J12: 1985 | K12: 1900 | L12: Negative Dates | M12: are BC
A13: 206Pb/204Pb | B13: 18.731 | C13: 18.718 | D13: 18.714 | E13: 18.695 | F13: 18.719 | G13: 18.64 | H13: 18.62 | I13: 18.858 | J13: 18.85 | K13: 18.857
A14: 207Pb/204Pb | B14: 15.654 | C14: 15.647 | D14: 15.638 | E14: 15.629 | F14: 15.63 | G14: 15.641 | H14: 15.572 | I14: 15.57 | J14: 15.6 | K14: 15.666
A15: 207Pb/206Pb | B15: =(B14/B13) -> 0.8357268699 | C15: =(C14/C13) -> 0.8359333262 | D15: 0.8356310783 | E15: 0.8359989302 | F15: 0.8349805011 | G15: 0.8391094421 | H15: 0.8363050483 | I15: 0.8256442889 | J15: 0.8275862069 | K15: 0.8307790211
A16: Pb/Pb Age | B16: =[1]!AgePb76(B15) -> 4983.875747 | C16: =[1]!AgePb76(C15) -> 4984.226572 | D16: =[1]!AgePb76(D15) -> 4983.71294 | E16: =[1]!AgePb76(E15) -> 4984.338031 | F16: =[1]!AgePb76(F15) -> 4982.606697 | G16: =[1]!AgePb76(G15) -> 4989.612074 | H16: =[1]!AgePb76(H15) -> 4984.857996 | I16: =[1]!AgePb76(I15) -> 4966.629712 | J16: =[1]!AgePb76(J15) -> 4969.968664 | K16: =[1]!AgePb76(K15) -> 4975.440358
B19: Volcano | C19: Eruption Year | D19: Age (Years) | E19: Pb Age (Ma) | F19: Age Ratio (106)
B20: Toba | C20: -72000 | D20: 74000 | E20: 4979 | F20: =E20/D20 -> 0.06728378378
C21: -72000 | D21: 74000 | E21: 4981 | F21: =E21/D21 -> 0.06731081081
B22: Sorikmarapi | C22: -10000 | D22: 12000 | E22: 4989 | F22: =E22/D22 -> 0.41575
B23: Krakatau | C23: 1883 | D23: =2001-C23 -> 118 | E23: 4991 | F23: =E23/D23 -> 42.29661017 | H23: 1883
C24: 1883 | D24: =2001-C24 -> 118 | E24: 5001 | F24: =E24/D24 -> 42.38135593 | H24: 1982
B25: Galunggung | C25: 1982 | D25: 19 | E25: 4983 | F25: 262.2631579 | H25: 1006
C26: 1982 | D26: 19 | E26: 4981 | F26: 262.1578947 | H26: 1900
C27: 1982 | D27: 19 | E27: 4982 | F27: 262.2105263 | H27: 1815
C28: 1918 | D28: 83 | E28: 4984 | F28: 60.04819277 | H28: 1985
C29: -2200 | D29: 2400 | E29: 4984 | F29: 2.076666667
B30: Merapi | C30: 1006 | D30: 995 | E30: 4984 | F30: 5.009045226 | H30: 1900
C31: 1006 | D31: 995 | E31: 4984 | F31: 5.009045226
C32: 1006 | D32: 995 | E32: 4984 | F32: 5.009045226 | M32: =[1]!Th230Age(A3, B3) -> 
C33: 1006 | D33: 995 | E33: 4983 | F33: 5.008040201 | M33: A3=230Th/238U
B34: Rindjani | C34: 1900 | D34: 101 | E34: 4990 | F34: 49.40594059 | M34: B3=234U/238U
C35: 1900 | D35: 101 | E35: 4985 | F35: 49.35643564
B36: Tambora | C36: 1815 | D36: 186 | E36: 4967 | F36: 26.70430108
B37: Sangeang Api | C37: 1985 | D37: 16 | E37: 4970 | F37: 310.625
B38: Ayi Flores | C38: 1900 | D38: 101 | E38: 4975 | F38: 49.25742574
D39: Average | E39: =AVERAGE(E20:E38) -> 4983
D40: Maximum | E40: =MAX(E20:E39) -> 5001
D41: Minimum | E41: =MIN(E20:E40) -> 4967
D42: Difference | E42: =E40-E41 -> 34
D43: Accuracy | E43: =1-(E42/E39) -> 0.9931768011
A44: Table 1
A45: Volcano | B45: Toba | C45: Toba | D45: Sorikmarapi | E45: Krakatau | F45: Krakatau | G45: Galunggung | H45: Galunggung | I45: Galunggung | J45: Galunggung
A46: Age | B46: -72000 | C46: -72000 | D46: -10000 | E46: 1883 | F46: 1883 | G46: 1982 | H46: 1982 | I46: 1982 | J46: 1918 | L46: Negative Dates | M46: are BC
A47: 234U/238U | B47: - | C47: 0.998 | D47: 1.001 | E47: 1.003 | F47: 1.008 | G47: - | H47: 1.014 | I47: - | J47: 1.011
A48: 230Th/238U | B48: 0.852 | C48: 0.942 | D48: 0.977 | E48: 1.002 | F48: 1.002 | G48: 0.832 | H48: 0.827 | I48: 0.877 | J48: 0.931
A49: Age (Ka) | C49: =[1]!Th230Age(C48,C47) -> 314.4415556 | D49: =[1]!Th230Age(D48,D47) -> 404.1046487 | E49: =[1]!Th230Age(E48,E47) -> 661.978346 | F49: =[1]!Th230Age(F48,F47) -> 510.8936843 | H49: =[1]!Th230Age(H48,H47) -> 182.3995966 | J49: =[1]!Th230Age(J48,J47) -> 271.8859811
A53: Volcano | B53: Galunggung | C53: Merapi | D53: Merapi | E53: Merapi | F53: Merapi | G53: Rindjani | H53: Rindjani | I53: Tambora | J53: Sangeang Api | K53: Ayi Flores
A54: Age | B54: -4200 | C54: 1006 | D54: 1006 | E54: 1006 | F54: 1006 | G54: 1900 | H54: 1900 | I54: 1815 | J54: 1985 | K54: 1900 | L54: Negative Dates | M54: are BC
A55: 234U/238U | B55: 1.016 | C55: 1.001 | D55: 1.017 | E55: 1.101 | F55: 1.015 | G55: - | H55: - | I55: - | J55: - | K55: -
A56: 230Th/238U | B56: 0.932 | C56: 0.917 | D56: 1.025 | E56: 0.864 | F56: 1.028 | G56: 0.937 | H56: 0.942 | I56: 0.933 | J56: 0.9 | K56: 0.547
A57: Age (Ka) | B57: =[1]!Th230Age(B56,B55) -> 265.7282313 | C57: =[1]!Th230Age(C56,C55) -> 269.1328226 | D57: =[1]!Th230Age(D56,D55) -> 0 | E57: =[1]!Th230Age(E56,E55) -> 160.1663683 | F57: =[1]!Th230Age(F56,F55) -> 0
A60: Volcano | B60: Eruption Year | C60: Age (Years) | D60: 230Th Age (Ka) | E60: Age Ratio
A61: Toba | B61: -72000 | C61: 74000 | D61: 314.44 | E61: =(D61*1000)/C61 -> 4.249189189
A62: Sorikmarapi | B62: -10000 | C62: 12000 | D62: 404.1 | E62: 33.675
A63: Krakatau | B63: 1883 | C63: =2001-B63 -> 118 | D63: 661.98 | E63: 5610
B64: 1883 | C64: =2001-B64 -> 118 | D64: 510.89 | E64: 4329.576271
A65: Galunggung | B65: 1982 | C65: =2001-B65 -> 19 | D65: 182.4 | E65: =(D65*1000)/C65 -> 9600
B66: 1918 | C66: 83 | D66: 271.89 | E66: 3275.783133
B67: -2200 | C67: 2400 | D67: 265.73 | E67: 110.7208333
A68: Merapi | B68: 1006 | C68: =2001-B68 -> 995 | D68: 269.13 | E68: 270.4824121
B69: 1006 | C69: 995 | D69: 160.17 | E69: 160.9748744

Sheet H42
A1: Table 1 | U1: Thousand Years
A2: Volcano/Year AD | C2: Sample | D2: SiO2 | E2: U | F2: Th | J2: 226Ra | L2: 234U/238U | N2: 238U/232Th | P2: 230Th/232Th | R2: 226Ra/230Th | T2: 230Th/238U | U2: 230Th Age
A4: Fuji
A5: 800 | C5: 96080901 | D5: 49.3 | E5: -0.1 | F5: 0.49 | G5: 0.02 | H5: 1.17 | I5: 0.06 | J5: 220 | K5: 6 | L5: 1.01 | M5: 0.02 | N5: 1.3 | O5: 0.08 | P5: 1.09 | Q5: 0.02 | R5: 1.56 | S5: 0.09 | T5: =P5/N5 -> 0.8384615385 | U5: =[1]!Th230Age(T5, L5) -> 191.6080911
A6: 864 | C6: Ao-95122802 | D6: 49.7 | E6: -0.1 | F6: 0.55 | G6: 0.02 | H6: 1.33 | I6: 0.09 | J6: 212 | K6: 6 | L6: 0.98 | M6: 0.02 | N6: 1.24 | O6: 0.09 | P6: 1.06 | Q6: 0.03 | R6: 1.36 | S6: 0.11 | T6: =P6/N6 -> 0.8548387097 | U6: =[1]!Th230Age(T6, L6) -> 227.865022
A7: 864 | C7: Ao-95120814 | D7: - | E7: - | F7: 0.58 | G7: 0.02 | H7: 1.34 | I7: 0.04 | J7: 229 | K7: 6 | L7: 0.98 | M7: 0.02 | N7: 1.31 | O7: 0.06 | P7: 1.06 | Q7: 0.01 | R7: 1.46 | S7: 0.06 | T7: 0.8091603053 | U7: =[1]!Th230Age(T7, L7) -> 192.4286635
A8: 864 | C8: Ao-95101905 | F8: 0.56 | G8: 0.02 | H8: 1.48 | I8: 0.05 | J8: 224 | K8: 7 | L8: 1.02 | M8: 0.02 | N8: 1.18 | O8: 0.06 | P8: 1.04 | Q8: 0.01 | R8: 1.32 | S8: 0.06 | T8: 0.8813559322 | U8: =[1]!Th230Age(T8, L8) -> 213.7172616
A9: 864 | C9: Ao-95120811 | F9: 0.58 | G9: 0.03 | H9: 1.36 | I9: 0.08 | J9: 221 | K9: 9 | L9: 0.99 | M9: 0.02 | N9: 1.29 | O9: 0.09 | P9: 1.06 | Q9: 0.02 | R9: 1.38 | S9: 0.1 | T9: 0.8217054264 | U9: =[1]!Th230Age(T9, L9) -> 193.9590389
A10: 864 | C10: Ao-95060308 | F10: 0.49 | G10: 0.02 | H10: 1.3 | I10: 0.05 | J10: 206 | K10: 5 | L10: 1.01 | M10: 0.02 | N10: 1.18 | O10: 0.06 | P10: 1.04 | Q10: 0.01 | R10: 1.38 | S10: 0.06 | T10: 0.8813559322 | U10: =[1]!Th230Age(T10, L10) -> 222.227345
A11: 937 | C11: 96080908 | D11: 49.8 | E11: -0.1 | F11: 0.43 | G11: 0.02 | H11: 1.14 | I11: 0.05 | J11: 176 | K11: 4 | L11: 1 | M11: 0.02 | N11: 1.16 | O11: 0.07 | P11: 1.08 | Q11: 0.02 | R11: 1.29 | S11: 0.07 | T11: 0.9310344828 | U11: =[1]!Th230Age(T11, L11) -> 290.8184823
A12: 1033 | C12: 96080907 | D12: 50.3 | E12: -0.1 | F12: 0.44 | G12: 0.01 | H12: 1.08 | I12: 0.06 | J12: 199 | K12: 6 | L12: 0.98 | M12: 0.02 | N12: 1.15 | O12: 0.07 | P12: 1.06 | Q12: 0.02 | R12: 1.6 | S12: 0.1 | T12: 0.9217391304 | U12: =[1]!Th230Age(T12, L12) -> 319.1524763
A13: Izu-Oshima | U13: =[1]!Th230Age(T13, L13) -> 0
A14: 800 | C14: OSM06060401 | D14: 50.8 | E14: -0.1 | F14: 0.18 | G14: 0 | H14: 0.28 | I14: 0.01 | J14: 64 | K14: 3 | L14: 1.01 | M14: 0.01 | N14: 1.99 | O14: 0.1 | P14: 1.53 | Q14: 0.03 | R14: 1.36 | S14: 0.1 | T14: 0.7688442211 | U14: =[1]!Th230Age(T14, L14) -> 155.1011559
A15: 1338 | C15: JS820626 | D15: 52.1 | E15: -0.1 | F15: 0.2 | G15: 0.01 | H15: 0.4 | I15: 0.02 | J15: 73 | K15: 3 | L15: 1 | M15: 0.02 | N15: 1.52 | O15: 0.08 | P15: 1.24 | Q15: 0.02 | R15: 1.31 | S15: 0.09 | T15: 0.8157894737 | U15: =[1]!Th230Age(T15, L15) -> 183.9728132
A16: 1421 | C16: OSM06060301 | D16: 52.1 | E16: -0.5 | F16: 0.19 | G16: 0.01 | H16: 0.34 | I16: 0.01 | J16: 86 | K16: 6 | L16: 1.01 | M16: 0.02 | N16: 1.79 | O16: 0.08 | P16: 1.36 | Q16: 0.02 | R16: 1.68 | S16: 0.13 | T16: 0.7597765363 | U16: =[1]!Th230Age(T16, L16) -> 151.1317981
A17: 1552 | C17: OSM06060302 | D17: 51.9 | E17: -0.5 | F17: 0.2 | G17: 0.01 | H17: 0.31 | I17: 0.01 | J17: 77 | K17: 3 | L17: 1 | M17: 0.02 | N17: 1.99 | O17: 0.09 | P17: 1.41 | Q17: 0.02 | R17: 1.63 | S17: 0.1 | T17: 0.7085427136 | U17: =[1]!Th230Age(T17, L17) -> 134.0759429
A18: 1684 | C18: OSM06060303 | D18: 51.5 | E18: -0.1 | F18: 0.21 | G18: 0.01 | H18: 0.32 | I18: 0.01 | J18: 60 | K18: 3 | L18: 1.01 | M18: 0.02 | N18: 2 | O18: 0.1 | P18: 1.35 | Q18: 0.02 | R18: 1.25 | S18: 0.08 | T18: 0.675 | U18: =[1]!Th230Age(T18, L18) -> 119.6816466
A19: 1777 | C19: OSM05051701 | D19: 52.5 | E19: -0.1 | F19: 0.18 | G19: 0.01 | H19: 0.33 | I19: 0.02 | J19: 85 | K19: 3 | L19: 0.99 | M19: 0.02 | N19: 1.61 | O19: 0.11 | P19: 1.38 | Q19: 0.05 | R19: 1.61 | S19: 0.11 | T19: 0.8571428571 | U19: =[1]!Th230Age(T19, L19) -> 220.2477563
A20: 1777 | C20: JS820627-02 | D20: 50.2 | E20: -0.3 | F20: 0.16 | G20: 0.01 | H20: 0.32 | I20: 0.02 | J20: 78 | K20: 5 | L20: 1 | M20: 0.03 | N20: 1.55 | O20: 0.1 | P20: 1.38 | Q20: 0.03 | R20: 1.58 | S20: 0.14 | T20: 0.8903225806 | U20: =[1]!Th230Age(T20, L20) -> 240.3645113
A21: 1950 | C21: OSM05051601 | D21: 51.7 | E21: -0.4 | F21: 0.18 | G21: 0.01 | H21: 0.26 | I21: 0.02 | J21: 86 | K21: 5 | L21: 1.01 | M21: 0.03 | N21: 2.21 | O21: 0.16 | P21: 1.41 | Q21: 0.02 | R21: 2.14 | S21: 0.19 | T21: 0.6380090498 | U21: =[1]!Th230Age(T21, L21) -> 108.3648202
A27: Volcano | B27: 230Th Age | C27: Eruption AD | D27: Year Dated | E27: True Age | F27: Age Ratio
A28: Fuji | B28: 191.6080911 | C28: 800 | D28: 2011 | E28: =D28-C28 -> 1211 | F28: =(B28 * 1000)/E28 -> 158.2230315
B29: 227.865022 | C29: 864 | D29: 2011 | E29: =D29-C29 -> 1147 | F29: =(B29 * 1000)/E29 -> 198.6617454
B30: 192.4286635 | C30: 864 | D30: 2011 | E30: 1147 | F30: 167.7669255
B31: 213.7172616 | C31: 864 | D31: 2011 | E31: 1147 | F31: 186.3271679
B32: 193.9590389 | C32: 864 | D32: 2011 | E32: 1147 | F32: 169.1011673
B33: 222.227345 | C33: 864 | D33: 2011 | E33: 1147 | F33: 193.7465955
B34: 290.8184823 | C34: 937 | D34: 2011 | E34: 1074 | F34: 270.7807098
B35: 319.1524763 | C35: 1033 | D35: 2011 | E35: 978 | F35: 326.3317753
A36: Izu-Oshima | B36: 155.1011559 | C36: 800 | D36: 2011 | E36: 1211 | F36: =(B36 * 1000)/E36 -> 128.0769248
B37: 183.9728132 | C37: 1338 | D37: 2011 | E37: 673 | F37: 273.3622782
B38: 151.1317981 | C38: 1421 | D38: 2011 | E38: 590 | F38: 256.15559
B39: 134.0759429 | C39: 1552 | D39: 2011 | E39: 459 | F39: 292.1044508
B40: 119.6816466 | C40: 1684 | D40: 2011 | E40: 327 | F40: 365.9989193
B41: 220.2477563 | C41: 1777 | D41: 2011 | E41: 234 | F41: 941.2297277
B42: 240.3645113 | C42: 1777 | D42: 2011 | E42: 234 | F42: 1027.198766
B43: 108.3648202 | C43: 1950 | D43: 2011 | E43: 61 | F43: 1776.472462

Sheet H43
A1: Sample | B1: LSS1 | C1: LAS1 | D1: LSM07 | E1: LSGU5 | F1: GUAD510 | G1: LAG4 | H1: LAG2 | I1: MVO244 | J1: MVO372
A2: Island | B2: Saba | C2: Saba | D2: Montserrat | E2: Guadeloupe | F2: Guadeloupe | G2: Grenada | H2: Grenada | I2: Montserrat | J2: Montserrat
A3: Age | B3: 10ka | C3: 10ka | D3: 1995AD | E3: 1530AD | F3: 0.5Ma | G3: 10ka | H3: 10ka | I3: 1998AD | J3: 1998AD
A5: 206Pb/204Pb | B5: 18.728 | C5: 18.919 | D5: 18.753 | E5: 19.045 | F5: 19.15 | G5: 19.378 | H5: 18.374 | I5: 18.908 | J5: 19.007
A6: 207Pb/204Pb | B6: 15.637 | C6: 15.63 | D6: 15.616 | E6: 15.678 | F6: 15.662 | G6: 15.734 | H6: 15.624 | I6: 15.631 | J6: 15.644
A7: 207Pb/206Pb | B7: =(B6/B5) -> 0.8349530115 | C7: =(C6/C5) -> 0.8261536022 | D7: 0.8327200981 | E7: 0.8232081911 | F7: 0.8178590078 | G7: 0.8119516978 | H7: 0.8503319909 | I7: =(I6/I5) -> 0.8266871166 | J7: 0.8230651865
A8: Age (Ma) | B8: =[1]!AgePb76(B7) -> 4982.559934 | C8: =[1]!AgePb76(C7) -> 4967.506237 | D8: =[1]!AgePb76(D7) -> 4978.75597 | E8: =[1]!AgePb76(E7) -> 4962.429238 | F8: =[1]!AgePb76(F7) -> 4953.159281 | G8: =[1]!AgePb76(G7) -> 4942.846899 | H8: =[1]!AgePb76(H7) -> 5008.469336 | I8: =[1]!AgePb76(I7) -> 4968.423796 | J8: =[1]!AgePb76(J7) -> 4962.182249
A10: Island | B10: Eruption BC/AD | C10: Pb Age (Ma) | D10: Age Ratio (106) | E10: Th Age (Ka) | F10: Age Ratio
A11: Grenada | B11: -8000 | C11: 4943 | D11: =C11/10000 -> 0.4943
B12: -8000 | C12: 5008 | D12: =C12/10000 -> 0.5008
A13: Guadeloupe | B13: 1530 | C13: 4962 | D13: =C13/(2009-B13) -> 10.35908142 | E13: 401.17 | F13: =(E13*1000)/(2009-B13) -> 837.5156576
B14: -500000 | C14: 4953 | D14: =C14/B14 -> -0.009906 | E14: 299.86 | F14: =(E14*1000)/(2009-B14) -> 0.5973199684
A15: Montserrat | B15: 1995 | C15: 4979 | D15: =C15/(2009-B15) -> 355.6428571
B16: 1998 | C16: 4968 | D16: =C16/(2009-B16) -> 451.6363636 | E16: 373.56 | F16: =(E16*1000)/(2009-B16) -> 33960
B17: 1998 | C17: 4962 | D17: =C17/(2009-B17) -> 451.0909091 | E17: 333.79 | F17: =(E17*1000)/(2009-B17) -> 30344.54545
A18: Saba | B18: -8000 | C18: 4983 | D18: =C18/10000 -> 0.4983
B19: -8000 | C19: 4968 | D19: =C19/10000 -> 0.4968
C20: =MIN(C11:C19) -> 4943
C21: =MAX(C11:C20) -> 5008
A25: (234U/238U) | B25: 1 | C25: 1.002 | D25: 0.994 | E25: 0.996 | F25: 0.99 | G25: 0.993 | H25: 0.979 | I25: 1.02 | J25: 1.009
A26: (230Th/238U) | B26: 0.975 | C26: 0.939 | D26: 1.134 | E26: 1.018 | F26: 1.026 | G26: 1.128 | H26: 1.019 | I26: 0.994 | J26: 0.965
A27: Age | B27: =[1]!Th230Age(B26, B25) -> 401.1722851 | C27: =[1]!Th230Age(C26, C25) -> 299.8632122 | D27: =[1]!Th230Age(D26, D25) -> 0 | E27: =[1]!Th230Age(E26, E25) -> 0 | F27: =[1]!Th230Age(F26, F25) -> 0 | G27: =[1]!Th230Age(G26, G25) -> 0 | H27: =[1]!Th230Age(H26, H25) -> 0 | I27: =[1]!Th230Age(I26, I25) -> 373.5667267 | J27: =[1]!Th230Age(J26, J25) -> 333.7934889
B28: A3=230Th/238U
B29: B3=234U/238U

Sheet H44
A1: Table 2
A2: Volcano | B2: Eruption | C2: (234U/238U) | D2: (230Th/238U) | E2: Thousand Years | G2: Volcano | H2: Eruption | I2: 230Th Age 103 | J2: Age Ratio | K2: True Age | L2: Dated
A3: Younger Fuji | B3: 1707 | C3: 0.98 | D3: 0.76 | E3: =[1]!Th230Age(D3, C3) -> 164.0366434 | G3: Younger Fuji | H3: 1707 | I3: 164.0366434 | J3: =(I3 * 1000)/K3 -> 546.7888113 | K3: =L3-H3 -> 300 | L3: 2007
B4: 1707 | C4: 1 | D4: 0.75 | E4: =[1]!Th230Age(D4, C4) -> 150.7620086 | H4: 1707 | I4: 150.7620086 | J4: =(I4 * 1000)/K4 -> 502.5400286 | K4: =L4-H4 -> 300 | L4: 2007
B5: 1707 | C5: 1 | D5: 0.78 | E5: =[1]!Th230Age(D5, C5) -> 164.6641182 | H5: 1707 | I5: 164.6641182 | J5: 548.8803939 | K5: 300 | L5: 2007
B6: 1707 | C6: 1.01 | D6: 0.74 | E6: =[1]!Th230Age(D6, C6) -> 142.944593 | H6: 1707 | I6: 142.944593 | J6: 476.4819766 | K6: 300 | L6: 2007
B7: 1707 | C7: 1 | D7: 0.78 | E7: =[1]!Th230Age(D7, C7) -> 164.6641182 | H7: 1707 | I7: 164.6641182 | J7: 548.8803939 | K7: 300 | L7: 2007
B8: 1707 | C8: 1 | D8: 0.78 | E8: =[1]!Th230Age(D8, C8) -> 164.6641182 | H8: 1707 | I8: 164.6641182 | J8: 548.8803939 | K8: 300 | L8: 2007
B9: 1707 | C9: 1.01 | D9: 0.79 | E9: =[1]!Th230Age(D9, C9) -> 164.9643675 | H9: 1707 | I9: 164.9643675 | J9: 549.8812252 | K9: 300 | L9: 2007
B10: 1707 | C10: 1.01 | D10: 0.74 | E10: =[1]!Th230Age(D10, C10) -> 142.944593 | H10: 1707 | I10: 142.944593 | J10: 476.4819766 | K10: 300 | L10: 2007
B11: 1707 | C11: 0.99 | D11: 0.78 | E11: =[1]!Th230Age(D11, C11) -> 169.4836845 | H11: 1707 | I11: 169.4836845 | J11: 564.9456151 | K11: 300 | L11: 2007
B12: 1707 | C12: 1 | D12: 0.75 | E12: =[1]!Th230Age(D12, C12) -> 150.7620086 | H12: 1707 | I12: 150.7620086 | J12: 502.5400286 | K12: 300 | L12: 2007
B13: 1707 | C13: 0.99 | D13: 0.77 | E13: =[1]!Th230Age(D13, C13) -> 164.3550054 | H13: 1707 | I13: 164.3550054 | J13: 547.8500181 | K13: 300 | L13: 2007
A14: Isu-Oshima | B14: 800 | C14: 1.01 | D14: 0.77 | E14: =[1]!Th230Age(D14, C14) -> 155.6176162 | G14: Isu-Oshima | H14: 800 | I14: 155.6176162 | J14: 128.9292595 | K14: 1207 | L14: 2007
B15: 1338 | C15: 1 | D15: 0.82 | E15: =[1]!Th230Age(D15, C15) -> 186.4874178 | H15: 1338 | I15: 186.4874178 | J15: 278.7554824 | K15: 669 | L15: 2007
B16: 1421 | C16: 1.01 | D16: 0.76 | E16: =[1]!Th230Age(D16, C16) -> 151.2279056 | H16: 1421 | I16: 151.2279056 | J16: 258.0680982 | K16: 586 | L16: 2007
B17: 1552 | C17: 1 | D17: 0.71 | E17: =[1]!Th230Age(D17, C17) -> 134.6210659 | H17: 1552 | I17: 134.6210659 | J17: 295.8704744 | K17: 455 | L17: 2007
B18: 1684 | C18: 1.01 | D18: 0.67 | E18: =[1]!Th230Age(D18, C18) -> 118.0816845 | H18: 1684 | I18: 118.0816845 | J18: 365.5779707 | K18: 323 | L18: 2007
B19: 1777 | C19: 0.99 | D19: 0.86 | E19: =[1]!Th230Age(D19, C19) -> 222.6741627 | H19: 1777 | I19: 222.6741627 | J19: 968.1485333 | K19: 230 | L19: 2007
B20: 1950 | C20: 1.01 | D20: 0.64 | E20: =[1]!Th230Age(D20, C20) -> 108.9449628 | H20: 1950 | I20: 108.9449628 | J20: 1911.315136 | K20: 57 | L20: 2007
B21: 1986 | C21: 1 | D21: 0.53 | E21: =[1]!Th230Age(D21, C21) -> 82.11006599 | H21: 1986 | I21: 82.11006599 | J21: 3910.003142 | K21: 21 | L21: 2007
B22: 1986 | C22: 1.02 | D22: 0.7 | E22: =[1]!Th230Age(D22, C22) -> 125.3235619 | H22: 1986 | I22: 125.3235619 | J22: 5967.788663 | K22: 21 | L22: 2007
B23: 1986 | C23: 1 | D23: 0.61 | E23: =[1]!Th230Age(D23, C23) -> 102.4016247 | H23: 1986 | I23: 102.4016247 | J23: 4876.267845 | K23: 21 | L23: 2007
B24: 1986 | C24: 1 | D24: 0.62 | E24: =[1]!Th230Age(D24, C24) -> 105.2265057 | H24: 1986 | I24: 105.2265057 | J24: 5010.785984 | K24: 21 | L24: 2007
A25: Miyake-Jima | B25: 1874 | C25: 0.99 | D25: 0.81 | E25: =[1]!Th230Age(D25, C25) -> 186.5126612 | G25: Miyake-Jima | H25: 1874 | I25: 186.5126612 | J25: 1402.350836 | K25: 133 | L25: 2007
B26: 1940 | C26: 1 | D26: 0.86 | E26: =[1]!Th230Age(D26, C26) -> 213.8183145 | H26: 1940 | I26: 213.8183145 | J26: 3191.318127 | K26: 67 | L26: 2007
B27: 1962 | C27: 1 | D27: 0.68 | E27: =[1]!Th230Age(D27, C27) -> 123.9155306 | H27: 1962 | I27: 123.9155306 | J27: 2753.678459 | K27: 45 | L27: 2007
B28: 1983 | C28: 1.01 | D28: 0.75 | E28: =[1]!Th230Age(D28, C28) -> 147.0077667 | H28: 1983 | I28: 147.0077667 | J28: 6125.323615 | K28: 24 | L28: 2007
A29: Nijima | B29: 886 | C29: 1.03 | D29: 0.68 | E29: =[1]!Th230Age(D29, C29) -> 116.464612 | G29: Nijima | H29: 886 | I29: 116.464612 | J29: 103.8934987 | K29: 1121 | L29: 2007
B30: 886 | C30: 0.99 | D30: 1.11 | E30: =[1]!Th230Age(D30, C30) -> 0 | H30: 886 | I30: 447.1125485 | J30: 398.8515152 | K30: =L30-H30 -> 1121 | L30: 2007
B31: 886 | C31: 0.99 | D31: 0.97 | E31: =[1]!Th230Age(D31, C31) -> 447.1125485 | G31: Kozu-Shima | H31: 838 | I31: 596.976941 | J31: 510.6731745 | K31: 1169 | L31: 2007
A32: Kozu-Shima | B32: 838 | C32: 0.98 | D32: 1.17 | E32: =[1]!Th230Age(D32, C32) -> 0 | H32: 838 | I32: 232.7159057 | J32: 199.0726311 | K32: 1169 | L32: 2007
B33: 838 | C33: 1.01 | D33: 1.01 | E33: =[1]!Th230Age(D33, C33) -> 596.976941 | H33: 838 | I33: 596.976941 | J33: 510.6731745 | K33: 1169 | L33: 2007
B34: 838 | C34: 0.98 | D34: 0.86 | E34: =[1]!Th230Age(D34, C34) -> 232.7159057 | H34: 838 | I34: 232.7159057 | J34: 199.0726311 | K34: 1169 | L34: 2007
B35: 838 | C35: 0.36 | D35: 1.01 | E35: =[1]!Th230Age(D35, C35) -> 0 | I35: =MIN(I3:I34) -> 82.11006599 | J35: =MIN(J3:J34) -> 103.8934987
E36: =COUNT(E3:E35) -> 33 | I36: =MAX(I3:I35) -> 596.976941 | J36: =MAX(J3:J35) -> 6125.323615

Sheet H45
A1: Table 3
A2: Sample | B2: Island | C2: 207Pb/204Pb | D2: 206Pb/204Pb | E2: 207Pb/206Pb | F2: Pb Age (Ma) | G2: Eruption
A3: SAM06-2 | B3: Upolu | C3: 15.6079 | D3: 18.5772 | E3: =C3/D3 -> 0.8401642874 | F3: =[1]!AgePb76(E3) -> 4991.395906
A4: SAM06-2 | B4: Upolu | C4: 15.5974 | D4: 18.569 | E4: =C4/D4 -> 0.8399698422 | F4: =[1]!AgePb76(E4) -> 4991.067262
A5: SAM06-3 | B5: Upolu | C5: 15.6261 | D5: 18.5898 | E5: 0.8405738631 | F5: =[1]!AgePb76(E5) -> 4992.087892
A6: SAM06-4 | B6: Upolu | C6: 15.5899 | D6: 18.6654 | E6: 0.8352298906 | F6: =[1]!AgePb76(E6) -> 4983.030868
A7: SAM06-5 | B7: Upolu | C7: 15.6047 | D7: 18.8089 | E7: 0.8296444768 | F7: =[1]!AgePb76(E7) -> 4973.498593
A8: SAM06-9 | B8: Upolu | C8: 15.5928 | D8: 18.6091 | E8: 0.8379126341 | F8: =[1]!AgePb76(E8) -> 4987.585283
A9: SAM06-10 | B9: Upolu | C9: 15.5971 | D9: 18.8811 | E9: 0.8260694557 | F9: =[1]!AgePb76(E9) -> 4967.361461
A10: SAM06-7 | B10: Savaii | C10: 15.6236 | D10: 18.8174 | E10: 0.830274108 | F10: =[1]!AgePb76(E10) -> 4974.576551 | G10: 1905
A11: SAM06-8 | B11: Savaii | C11: 15.5747 | D11: 18.8255 | E11: 0.8273193275 | F11: =[1]!AgePb76(E11) -> 4969.510283 | G11: 1905

Sheet H46
A1: Table 1 | O1: 1975-12-18
A2: Eruption Day | B2: Eruption Month | C2: Eruption Year | D2: Sample Name | E2: Eruption Date Start | F2: Eruption Date End | G2: Vents Location | H2: 206Pb/204Pb | I2: 207Pb/204Pb | J2: 208Pb/204Pb | K2: 207Pb/206Pb | L2: Age (Ma) | O2: 1977-04-01
A3: 1 | B3: 1 | C3: 1927 | D3: T2101 | E3: 1927/01 | F3: 1927/02 | G3: 1 | H3: 18.8917 | I3: 15.5866 | J3: 38.9843 | K3: =(I3/H3) -> 0.8250501543 | L3: =[1]!AgePb76(K3) -> 4965.606483 | O3: 1977-04-08
C4: 1927 | D4: T2101 dup | H4: 18.9001 | I4: 15.5899 | J4: 38.9875 | K4: =(I4/H4) -> 0.8248580695 | L4: =[1]!AgePb76(K4) -> 4965.275504 | O4: 1977-10-24
A5: 1 | B5: 1 | C5: 1931 | D5: T1602 | E5: 1931/01 | F5: 1931/08 | G5: 2 | H5: 18.897 | I5: 15.5879 | J5: 38.9833 | K5: 0.8248875483 | L5: =[1]!AgePb76(K5) -> 4965.326304 | O5: 1977-10-31
C6: 1931 | D6: T1602 dup | H6: 18.8929 | I6: 15.5864 | J6: 38.97 | K6: 0.8249871645 | L6: =[1]!AgePb76(K6) -> 4965.497955 | O6: 1977-11-04
A7: 1 | B7: 12 | C7: 1938 | D7: P1601 | E7: 1938/12 | F7: 1939/01 | G7: 3 | H7: 18.9106 | I7: 15.5924 | J7: 38.996 | K7: 0.8245322729 | L7: =[1]!AgePb76(K7) -> 4964.71394 | O7: 1977-11-07
A8: 1 | B8: 4 | C8: 1943 | D8: N2201 | E8: 1943/04 | F8: 1943/05 | G8: 4 | H8: 18.9118 | I8: 15.591 | J8: 38.9951 | K8: 0.8244059265 | L8: =[1]!AgePb76(K8) -> 4964.496098 | O8: 1977-11-11
A9: 1 | B9: 4 | C9: 1945 | D9: PF1945 | E9: 1945/04 | F9: 1945/05 | G9: 5 | H9: 18.9103 | I9: 15.5932 | J9: 38.996 | K9: 0.8245876586 | L9: =[1]!AgePb76(K9) -> 4964.809423 | O9: 1977-11-13
A10: 1 | B10: 2 | C10: 1948 | D10: O1401 | E10: 1948/02 | G10: 6 | H10: 18.8904 | I10: 15.5876 | J10: 38.9727 | K10: 0.8251598696 | L10: =[1]!AgePb76(K10) -> 4965.795496 | O10: 1979-05-28
A11: 1 | B11: 6 | C11: 1953 | D11: T1904 | E11: 1953/06 | G11: 7 | H11: 18.8958 | I11: 15.5897 | J11: 38.9848 | K11: 0.825035193 | L11: =[1]!AgePb76(K11) -> 4965.580707 | O11: 1979-07-13
A12: 1 | B12: 4 | C12: 1961 | D12: GB1961 | E12: 1961/04 | G12: 8 | H12: 18.9069 | I12: 15.5941 | J12: 39.0027 | K12: 0.8247835446 | L12: =[1]!AgePb76(K12) -> 4965.147069 | O12: 1981-02-16
A13: 1 | B13: 3 | C13: 1977 | D13: SR1977 | E13: 1977/03 | F13: 1977/04 | G13: 9 | H13: 18.9337 | I13: 15.5965 | J13: 39.0344 | K13: 0.8237428501 | L13: =[1]!AgePb76(K13) -> 4963.352261 | O13: 1981-03-01
C14: 1977 | D14: SR1977 dup | H14: 18.9311 | I14: 15.598 | J14: 39.0319 | K14: 0.8239352177 | L14: =[1]!AgePb76(K14) -> 4963.684205 | O14: 1981-04-01
C15: 1977 | D15: SR1977 ter | H15: 18.9258 | I15: 15.5973 | J15: 39.0265 | K15: 0.8241289668 | L15: =[1]!AgePb76(K15) -> 4964.018449 | O15: 1983-12-04
A16: 1 | B16: 9 | C16: 1957 | D16: 80–99 | E16: 1957/09 | F16: 1957/11 | G16: 10 | H16: 18.9013 | I16: 15.5927 | J16: 38.9988 | K16: 0.8249538392 | L16: =[1]!AgePb76(K16) -> 4965.440534 | O16: 1983-12-06
A17: 1 | B17: 3 | C17: 1966 | D17: 80–91 | E17: 1966/03 | F17: 1966/05 | G17: 11 | H17: 18.9173 | I17: 15.5951 | J17: 39.0198 | K17: 0.8243829722 | L17: =[1]!AgePb76(K17) -> 4964.456517 | O17: 1983-12-21
A18: 1 | B18: 6 | C18: 1972 | D18: 80–89 | E18: 1972/06 | G18: 12 | H18: 18.9164 | I18: 15.5959 | J18: 39.0204 | K18: 0.8244644858 | L18: =[1]!AgePb76(K18) -> 4964.597068 | O18: 1983-12-29
A19: 1 | B19: 10 | C19: 1972 | D19: 1972–12 | E19: 1972/11 | G19: 12 | H19: 18.9126 | I19: 15.5976 | J19: 39.0192 | K19: 0.8247200279 | L19: =[1]!AgePb76(K19) -> 4965.037595 | O19: 1984-01-24
C20: 1972 | D20: 1972–13 | E20: 1972/12 | G20: 12 | H20: 18.9081 | I20: 15.5954 | J20: 39.0178 | K20: 0.8247999535 | L20: =[1]!AgePb76(K20) -> 4965.175349 | O20: 1984-01-27
A21: 1 | B21: 5 | C21: 1973 | D21: 80–76 | E21: 1973/05 | G21: D | H21: 18.91 | I21: 15.595 | J21: 39.0168 | K21: 0.8246959281 | L21: =[1]!AgePb76(K21) -> 4964.996056 | O21: 1984-02-07
A22: 1 | B22: 11 | C22: 1975 | D22: 80–75 | E22: 1975/11 | G22: D | H22: 18.9061 | I22: 15.5946 | J22: 39.0105 | K22: 0.8248448913 | L22: =[1]!AgePb76(K22) -> 4965.252794 | O22: 1985-06-14
A23: 1 | B23: 12 | C23: 1975 | D23: 10S11 | E23: 1975-12-18 | G23: 13 | H23: 18.9103 | I23: 15.5953 | J23: 39.0186 | K23: 0.8246987092 | L23: =[1]!AgePb76(K23) -> 4965.00085 | O23: 1985-08-07
C24: 1975 | D24: 9S11b | E24: 1975/12 | F24: 1976/01 | G24: 13 | H24: 18.9114 | I24: 15.5959 | J24: 39.0165 | K24: 0.8246824667 | L24: =[1]!AgePb76(K24) -> 4964.972853 | O24: 1985-08-14
C25: 1975 | D25: 6S11 | E25: 1975/12 | F25: 1976/01 | G25: 13 | H25: 18.911 | I25: 15.5961 | J25: 39.0172 | K25: 0.824710486 | L25: =[1]!AgePb76(K25) -> 4965.021149 | O25: 1985-08-28
C26: 1975 | D26: 1X9 | E26: 1976/01 | G26: 13 | H26: 18.9109 | I26: 15.595 | J26: 39.0154 | K26: 0.8246566795 | L26: =[1]!AgePb76(K26) -> 4964.928403 | O26: 1985-09-06
C27: 1975 | D27: 8V9a | E27: 1976/01 | G27: 13 | H27: 18.9098 | I27: 15.5947 | J27: 39.0138 | K27: 0.8246887857 | L27: =[1]!AgePb76(K27) -> 4964.983745 | O27: 1985-09-16
C28: 1975 | D28: 7W10 | E28: 1976/01 | F28: 1976/03 | G28: 13 | H28: 18.9108 | I28: 15.5934 | J28: 39.0129 | K28: 0.8245764325 | L28: =[1]!AgePb76(K28) -> 4964.79007 | O28: 1985-09-26
C29: 1975 | D29: 6T11F | E29: 1976/03 | F29: 1976/04 | G29: 13 | H29: 18.9156 | I29: 15.5973 | J29: 39.0259 | K29: 0.824573368 | L29: =[1]!AgePb76(K29) -> 4964.784787 | O29: 1985-09-30
A30: 1 | B30: 11 | C30: 1976 | D30: 5R12 | E30: 1976/11 | G30: 14 | H30: 18.9208 | I30: 15.5973 | J30: 39.0285 | K30: 0.8243467507 | L30: =[1]!AgePb76(K30) -> 4964.394057 | O30: 1985-12-02
A31: 24 | B31: 3 | C31: 1977 | D31: RU-77-3 | E31: 1977-04-01 | G31: 15 | H31: 18.9217 | I31: 15.5959 | J31: 39.0238 | K31: 0.824233552 | L31: =[1]!AgePb76(K31) -> 4964.198838 | O31: 1986-01-06
C32: 1977 | D32: RU-77-7 | E32: 1977-04-08 | G32: 9 | H32: 18.9346 | I32: 15.598 | J32: 39.0375 | K32: 0.8237829159 | L32: =[1]!AgePb76(K32) -> 4963.421404 | O32: 1986-01-17
A33: 24 | B33: 10 | C33: 1977 | D33: RU-77-11 | E33: 1977-10-24 | G33: 16 | H33: 18.8709 | I33: 15.5968 | J33: 38.9627 | K33: 0.8265000609 | L33: =[1]!AgePb76(K33) -> 4968.102162 | O33: 1986-03-19
C34: 1977 | D34: RU-77-11 | H34: 18.9314 | I34: 15.5988 | J34: 39.036 | K34: 0.8239644189 | L34: =[1]!AgePb76(K34) -> 4963.734586 | O34: 1986-03-20
C35: 1977 | D35: RU-77-11 | H35: 18.9174 | I35: 15.5973 | J35: 39.0183 | K35: 0.8244949094 | L35: =[1]!AgePb76(K35) -> 4964.649523 | O35: 1986-03-22
C36: 1977 | D36: RU-77-13 | E36: 1977-10-31 | G36: 16 | H36: 18.9184 | I36: 15.5982 | J36: 39.0202 | K36: 0.8244989005 | L36: =[1]!AgePb76(K36) -> 4964.656404 | O36: 1986-03-24
C37: 1977 | D37: RU-77-14 | E37: 1977-11-04 | G37: 16 | H37: 18.6972 | I37: 15.5923 | J37: 38.7717 | K37: 0.8339377019 | L37: =[1]!AgePb76(K37) -> 4980.831607 | O37: 1986-03-25
C38: 1977 | D38: RU-77-14 | H38: 18.8611 | I38: 15.5942 | J38: 38.953 | K38: 0.8267916505 | L38: =[1]!AgePb76(K38) -> 4968.603504 | O38: 1986-03-28
C39: 1977 | D39: RU-77-14 | H39: 18.8944 | I39: 15.5977 | J39: 38.9945 | K39: 0.8255197307 | L39: =[1]!AgePb76(K39) -> 4966.415261 | O39: 1986-03-30
C40: 1977 | D40: RU-77-16 | E40: 1977-11-07 | G40: 16 | H40: 18.9231 | I40: 15.5972 | J40: 39.0241 | K40: 0.8242412713 | L40: =[1]!AgePb76(K40) -> 4964.212151 | O40: 1986-11-12
C41: 1977 | D41: RU-77-17 | E41: 1977-11-11 | G41: 16 | H41: 18.9133 | I41: 15.5955 | J41: 39.0091 | K41: 0.8245784712 | L41: =[1]!AgePb76(K41) -> 4964.793585 | O41: 1986-11-26
C42: 1977 | D42: RU-77-18 | E42: 1977-11-13 | G42: 16 | H42: 18.9343 | I42: 15.5992 | J42: 39.0361 | K42: 0.8238593452 | L42: =[1]!AgePb76(K42) -> 4963.553291 | O42: 1986-12-07
A43: 28 | B43: 5 | C43: 1979 | D43: 795-23 | E43: 1979-05-28 | G43: 17 | H43: 18.9316 | I43: 15.5973 | J43: 39.029 | K43: 0.8238764816 | L43: =[1]!AgePb76(K43) -> 4963.58286 | O43: 1986-12-15
C44: 1979 | D44: JUIL-1979-M | E44: 1979-07-13 | G44: 18 | H44: 18.9184 | I44: 15.596 | J44: 39.0155 | K44: 0.8243826116 | L44: =[1]!AgePb76(K44) -> 4964.455895 | O44: 1987-01-06
A45: 3 | B45: 2 | C45: 1981 | D45: 8102-16 | E45: 1981-02-16 | G45: 19 | H45: 18.9335 | I45: 15.6022 | J45: 39.0427 | K45: 0.8240526052 | L45: =[1]!AgePb76(K45) -> 4963.886724 | O45: 1987-01-17
C46: 1981 | D46: 813-1 | E46: 1981-03-01 | G46: 20 | H46: 18.9355 | I46: 15.5989 | J46: 39.0343 | K46: 0.8237912915 | L46: =[1]!AgePb76(K46) -> 4963.435858 | O46: 1987-06-15
C47: 1981 | D47: 814-1 | E47: 1981-04-01 | G47: 21 | H47: 18.9343 | I47: 15.5993 | J47: 39.0339 | K47: 0.8238646266 | L47: =[1]!AgePb76(K47) -> 4963.562405 | O47: 1987-07-19
A48: 4 | B48: 12 | C48: 1983 | D48: 83-409 | E48: 1983-12-04 | G48: 22 | H48: 18.9352 | I48: 15.5981 | J48: 39.0362 | K48: 0.8237620939 | L48: =[1]!AgePb76(K48) -> 4963.385471 | O48: 1987-11-06
C49: 1983 | D49: 83-409 | E49: 1983-12-04 | G49: 22 | H49: 18.9369 | I49: 15.5973 | J49: 39.0343 | K49: 0.8236458977 | L49: =[1]!AgePb76(K49) -> 4963.184932 | O49: 1987-12-05
C50: 1983 | D50: 83-63 | E50: 1983-12-06 | G50: 22 | H50: 18.9395 | I50: 15.5993 | J50: 39.0394 | K50: 0.8236384276 | L50: =[1]!AgePb76(K50) -> 4963.172039 | O50: 1987-12-22
C51: 1983 | D51: 83-210 | E51: 1983-12-21 | G51: 22 | H51: 18.9387 | I51: 15.5984 | J51: 39.0353 | K51: 0.8236256976 | L51: =[1]!AgePb76(K51) -> 4963.150066 | O51: 1988-02-09
C52: 1983 | D52: 83-290 | E52: 1983-12-29 | G52: 22 | H52: 18.9402 | I52: 15.6002 | J52: 39.0419 | K52: 0.8236555052 | L52: =[1]!AgePb76(K52) -> 4963.201515 | O52: 1988-02-14
A53: 18 | B53: 1 | C53: 1984 | D53: 841-240 | E53: 1984-01-24 | G53: 23 | H53: 18.935 | I53: 15.5988 | J53: 39.0324 | K53: 0.8238077634 | L53: =[1]!AgePb76(K53) -> 4963.464283 | O53: 1988-03-25
C54: 1984 | D54: 841-272 | E54: 1984-01-27 | G54: 23 | H54: 18.9398 | I54: 15.5987 | J54: 39.0378 | K54: 0.8235937022 | L54: =[1]!AgePb76(K54) -> 4963.09484 | O54: 1988-05-18
C55: 1984 | D55: 842-75 | E55: 1984-02-07 | G55: 23 | H55: 18.9425 | I55: 15.6015 | J55: 39.048 | K55: 0.8236241256 | L55: =[1]!AgePb76(K55) -> 4963.147353 | O55: 1988-07-01
A56: 14 | B56: 6 | C56: 1985 | D56: 856-141 | E56: 1985-06-14 | G56: 24 | H56: 18.9423 | I56: 15.6008 | J56: 39.0447 | K56: 0.8235958675 | L56: =[1]!AgePb76(K56) -> 4963.098577 | O56: 1988-08-31
A57: 5 | B57: 8 | C57: 1985 | D57: 858-73 | E57: 1985-08-07 | G57: 25 | H57: 18.9426 | I57: 15.5995 | J57: 39.0407 | K57: 0.8235141955 | L57: =[1]!AgePb76(K57) -> 4962.957595 | O57: 1988-12-18
C58: 1985 | D58: 858-142 | E58: 1985-08-14 | G58: 25 | H58: 18.9427 | I58: 15.5994 | J58: 39.0399 | K58: 0.823504569 | L58: =[1]!AgePb76(K58) -> 4962.940977 | O58: 1990-01-18
C59: 1985 | D59: 858-281 | E59: 1985-08-28 | G59: 25 | H59: 18.9437 | I59: 15.6009 | J59: 39.0448 | K59: 0.8235402799 | L59: =[1]!AgePb76(K59) -> 4963.002623 | O59: 1990-04-18
A60: 6 | B60: 9 | C60: 1985 | D60: 859-61 | E60: 1985-09-06 | G60: 26 | H60: 18.9385 | I60: 15.5989 | J60: 39.0348 | K60: 0.8236607968 | L60: =[1]!AgePb76(K60) -> 4963.210648 | O60: 1990-04-19
C61: 1985 | D61: 859-161 | E61: 1985-09-16 | G61: 26 | H61: 18.9355 | I61: 15.5981 | J61: 39.0326 | K61: 0.8237490428 | L61: =[1]!AgePb76(K61) -> 4963.362949 | O61: 1991-07-19
C62: 1985 | D62: 859-261 | E62: 1985-09-26 | G62: 26 | H62: 18.9396 | I62: 15.5979 | J62: 39.0342 | K62: 0.8235601597 | L62: =[1]!AgePb76(K62) -> 4963.03694 | O62: 1992-08-27
C63: 1985 | D63: 859-301 | E63: 1985-09-30 | G63: 26 | H63: 18.9368 | I63: 15.5992 | J63: 39.0354 | K63: 0.8237505809 | L63: =[1]!AgePb76(K63) -> 4963.365603 | O63: 1992-08-28
A64: 2 | B64: 12 | C64: 1985 | D64: 8512-23 | E64: 1985-12-02 | G64: 27 | H64: 18.9387 | I64: 15.5983 | J64: 39.0357 | K64: 0.8236204175 | L64: =[1]!AgePb76(K64) -> 4963.140952 | O64: 2001-07-02
A65: 29 | B65: 12 | C65: 1985 | D65: 861-62 | E65: 1986-01-06 | G65: D | H65: 18.9378 | I65: 15.5984 | J65: 39.0331 | K65: 0.8236648396 | L65: =[1]!AgePb76(K65) -> 4963.217625 | O65: 2006-08-30
C66: 1985 | D66: 861-173 | E66: 1986-01-17 | G66: D | H66: 18.9369 | I66: 15.5978 | J66: 39.0311 | K66: 0.8236723012 | L66: =[1]!AgePb76(K66) -> 4963.230504 | O66: 2006-08-31
A67: 19 | B67: 3 | C67: 1986 | D67: 863-191 | E67: 1986-03-19 | G67: 28 | H67: 18.9298 | I67: 15.5981 | J67: 39.0238 | K67: 0.823997084 | L67: =[1]!AgePb76(K67) -> 4963.790942 | O67: 2006-09-13
C68: 1986 | D68: 863-204 | E68: 1986-03-20 | G68: 29 | H68: 18.9301 | I68: 15.5986 | J68: 39.0253 | K68: =(I68/H68) -> 0.8240104384 | L68: =[1]!AgePb76(K68) -> 4963.813981 | O68: 2006-09-28
C69: 1986 | D69: 863-221 | E69: 1986-03-22 | G69: 29 | H69: 18.9309 | I69: 15.5989 | J69: 39.0244 | K69: 0.8239914637 | L69: =[1]!AgePb76(K69) -> 4963.781246 | O69: 2006-10-11
C70: 1986 | D70: 863-242 | E70: 1986-03-24 | G70: 30 | H70: 18.925 | I70: 15.5985 | J70: 39.016 | K70: 0.8242272127 | L70: =[1]!AgePb76(K70) -> 4964.187905 | O70: 2006-10-26
C71: 1986 | D71: 863-251 | E71: 1986-03-25 | G71: 30 | H71: 18.9255 | I71: 15.5975 | J71: 39.0163 | K71: 0.8241525983 | L71: =[1]!AgePb76(K71) -> 4964.059211 | O71: 2006-10-31
C72: 1986 | D72: 863-281 | E72: 1986-03-28 | G72: 30 | H72: 18.9178 | I72: 15.5963 | J72: 39.0048 | K72: 0.824424616 | L72: =[1]!AgePb76(K72) -> 4964.528324 | O72: 2006-11-14
C73: 1986 | D73: 864-A101 | E73: 1986-03-30 | G73: 30 | H73: 18.9277 | I73: 15.5998 | J73: 39.0239 | K73: 0.8241783207 | L73: =[1]!AgePb76(K73) -> 4964.103578 | O73: 2006-12-11
C74: 1986 | D74: 864-A113 | E74: 1986-03-30 | G74: D | H74: 18.9374 | I74: 15.5985 | J74: 39.0329 | K74: 0.8236875178 | L74: =[1]!AgePb76(K74) -> 4963.256766 | O74: 2006-12-19
A75: 12 | B75: 11 | C75: 1986 | D75: 8611-12 | E75: 1986-11-12 | G75: D | H75: 18.9138 | I75: 15.5964 | J75: 39.0047 | K75: 0.8246042572 | L75: =[1]!AgePb76(K75) -> 4964.838037 | O75: 2006-12-28
A76: 26 | B76: 11 | C76: 1986 | D76: 8611-26 | E76: 1986-11-26 | G76: D | H76: 18.9108 | I76: 15.5962 | J76: 39.0012 | K76: 0.8247244961 | L76: =[1]!AgePb76(K76) -> 4965.045297 | O76: 2007-02-18
A77: 6 | B77: 12 | C77: 1986 | D77: 8612-71 | E77: 1986-12-07 | G77: D | H77: 18.912 | I77: 15.5956 | J77: 39.0017 | K77: 0.8246404399 | L77: =[1]!AgePb76(K77) -> 4964.90041 | O77: 2007-03-30
C78: 1986 | D78: 8612-152 | E78: 1986-12-15 | G78: D | H78: 18.9131 | I78: 15.5971 | J78: 39.0053 | K78: 0.8246717883 | L78: =[1]!AgePb76(K78) -> 4964.954447 | O78: 2007-04-02
A79: 6 | B79: 12 | C79: 1986 | D79: 871-82 | E79: 1987-01-06 | G79: 31 | H79: 18.9108 | I79: 15.5956 | J79: 38.9986 | K79: 0.8246927682 | L79: =[1]!AgePb76(K79) -> 4964.990609 | O79: 2007-04-03
C80: 1986 | D80: 871-170 | E80: 1987-01-17 | G80: 31 | H80: 18.9074 | I80: 15.5948 | J80: 38.9939 | K80: 0.824798756 | L80: =[1]!AgePb76(K80) -> 4965.173285 | O80: 2007-04-04
A81: 10 | B81: 6 | C81: 1987 | D81: 876-152 | E81: 1987-06-15 | G81: D | H81: 18.9099 | I81: 15.5954 | J81: 38.9972 | K81: 0.8247214422 | L81: =[1]!AgePb76(K81) -> 4965.040033 | O81: 2007-04-05
A82: 19 | B82: 7 | C82: 1987 | D82: 877-191 | E82: 1987-07-19 | G82: 32 | H82: 18.9043 | I82: 15.5959 | J82: 38.9976 | K82: 0.8249921975 | L82: =[1]!AgePb76(K82) -> 4965.506627 | O82: 2007-04-06
A83: 6 | B83: 11 | C83: 1987 | D83: 8711-61 | E83: 1987-11-06 | G83: 33 | H83: 18.903 | I83: 15.5954 | J83: 38.9955 | K83: 0.8250224832 | L83: =[1]!AgePb76(K83) -> 4965.558809 | O83: 2007-04-07
A84: 30 | B84: 11 | C84: 1987 | D84: 8712-51 | E84: 1987-12-05 | G84: 34 | H84: 18.8986 | I84: 15.5938 | J84: 38.9907 | K84: 0.8251299038 | L84: =[1]!AgePb76(K84) -> 4965.743875 | O84: 2007-04-08
C85: 1987 | D85: 8712-221 | E85: 1987-12-22 | G85: 34 | H85: 18.8985 | I85: 15.5945 | J85: 38.9905 | K85: 0.8251713099 | L85: =[1]!AgePb76(K85) -> 4965.815203 | O85: 2007-04-17
A86: 7 | B86: 2 | C86: 1988 | D86: 882-90 | E86: 1988-02-09 | G86: 35 | H86: 18.8979 | I86: 15.5952 | J86: 38.995 | K86: 0.8252345499 | L86: =[1]!AgePb76(K86) -> 4965.924136 | O86: 2007-04-20
C87: 1988 | D87: 882-140 | E87: 1988-02-14 | G87: 35 | H87: 18.8988 | I87: 15.5978 | J87: 39.0042 | K87: 0.8253328254 | L87: =[1]!AgePb76(K87) -> 4966.093402 | O87: 2007-04-25
C88: 1988 | D88: 883-250 | E88: 1988-03-25 | G88: 35 | H88: 18.8964 | I88: 15.594 | J88: 38.9886 | K88: 0.825236553 | L88: =[1]!AgePb76(K88) -> 4965.927587 | O88: 2007-04-27
A89: 18 | B89: 5 | C89: 1988 | D89: 885-1 | E89: 1988-05-18 | G89: 36 | H89: 18.8937 | I89: 15.5942 | J89: 38.9881 | K89: 0.8253650688 | L89: =[1]!AgePb76(K89) -> 4966.148932 | O89: 2007-04-29
C90: 1988 | D90: 887-1 | E90: 1988-07-01 | G90: 36 | H90: 18.8931 | I90: 15.5943 | J90: 38.9875 | K90: 0.8253965734 | L90: =[1]!AgePb76(K90) -> 4966.203187 | O90: 1927/01
A91: 31 | B91: 8 | C91: 1988 | D91: 888-311 | E91: 1988-08-31 | G91: 37 | H91: 18.8896 | I91: 15.593 | J91: 38.9818 | K91: 0.8254806878 | L91: =[1]!AgePb76(K91) -> 4966.348033 | O91: 1931/01
A92: 14 | B92: 12 | C92: 1988 | D92: 8812-181 | E92: 1988-12-18 | G92: 38 | H92: 18.8932 | I92: 15.5921 | J92: 38.9841 | K92: 0.8252757606 | L92: =[1]!AgePb76(K92) -> 4965.995118 | O92: 1938/12
A93: 18 | B93: 1 | C93: 1990 | D93: 901-18 | E93: 1990-01-18 | G93: D | H93: 18.9141 | I93: 15.595 | J93: 39.0082 | K93: 0.8245171592 | L93: =[1]!AgePb76(K93) -> 4964.687883 | O93: 1943/04
A94: 18 | B94: 4 | C94: 1990 | D94: 904-18 | E94: 1990-04-18 | G94: 39 | H94: 18.8794 | I94: 15.5932 | J94: 38.9606 | K94: 0.825937265 | L94: =[1]!AgePb76(K94) -> 4967.133992 | O94: 1945/04
A95: 18 | B95: 4 | C95: 1990 | D95: 904-19 | E95: 1990-04-19 | G95: 39 | H95: 18.8897 | I95: 15.5936 | J95: 38.9803 | K95: 0.8255080811 | L95: =[1]!AgePb76(K95) -> 4966.395202 | O95: 1948/02
A96: 19 | B96: 7 | C96: 1991 | D96: 917-191 | E96: 1991-07-19 | G96: D+40 | H96: 18.903 | I96: 15.5956 | J96: 38.9977 | K96: 0.8250330635 | L96: =[1]!AgePb76(K96) -> 4965.577038 | O96: 1953/06
A97: 27 | B97: 8 | C97: 1992 | D97: 928-27 | E97: 1992-08-27 | G97: D+41 | H97: 18.8999 | I97: 15.5942 | J97: 38.9901 | K97: 0.8250943127 | L97: =[1]!AgePb76(K97) -> 4965.682561 | O97: 1957/09
A98: 27 | B98: 8 | C98: 1992 | D98: 928-28 | E98: 1992-08-28 | G98: D+41 | H98: 18.9042 | I98: 15.5943 | J98: 38.9968 | K98: 0.8249119243 | L98: =[1]!AgePb76(K98) -> 4965.368309 | O98: 1961/04
A99: 1 | B99: 7 | C99: 2001 | D99: 010702-2 | E99: 2001-07-02 | G99: 42 | H99: 18.8842 | I99: 15.5921 | J99: 38.9806 | K99: 0.8256690779 | L99: =[1]!AgePb76(K99) -> 4966.672387 | O99: 1966/03
A100: 1 | B100: 7 | C100: 2001 | D100: 010702-2 | E100: 2001-07-02 | G100: 42 | H100: 18.8863 | I100: 15.5927 | J100: 38.9841 | K100: 0.8256090394 | L100: =[1]!AgePb76(K100) -> 4966.569026 | O100: 1972/06
A101: 1 | B101: 7 | C101: 2001 | D101: 010702-1 | E101: 2001-07-02 | G101: 42 | H101: 18.8817 | I101: 15.5918 | J101: 38.9764 | K101: 0.8257625108 | L101: =[1]!AgePb76(K101) -> 4966.833222 | O101: 1972/11
A102: 30 | B102: 8 | C102: 2006 | D102: 0608-302 | E102: 2006-08-30 | G102: D | H102: 18.9051 | I102: 15.5946 | J102: 39.0041 | K102: 0.8248885221 | L102: =[1]!AgePb76(K102) -> 4965.327982 | O102: 1972/12
A103: 30 | B103: 8 | C103: 2006 | D103: 0608-311 | E103: 2006-08-31 | G103: D | H103: 18.9007 | I103: 15.5906 | J103: 38.9941 | K103: 0.8248689202 | L103: =[1]!AgePb76(K103) -> 4965.294203 | O103: 1973/05
A104: 30 | B104: 8 | C104: 2006 | D104: 0609-131 | E104: 2006-09-13 | G104: D | H104: 18.903 | I104: 15.5918 | J104: 38.998 | K104: 0.8248320372 | L104: =[1]!AgePb76(K104) -> 4965.230642 | O104: 1975/11
A105: 30 | B105: 8 | C105: 2006 | D105: 0609-281 | E105: 2006-09-28 | G105: D | H105: 18.903 | I105: 15.5924 | J105: 38.9986 | K105: 0.8248637782 | L105: =[1]!AgePb76(K105) -> 4965.285342 | O105: 1975/12
A106: 30 | B106: 8 | C106: 2006 | D106: 0610-111 | E106: 2006-10-11 | G106: D | H106: 18.9037 | I106: 15.5934 | J106: 38.9999 | K106: 0.8248861334 | L106: =[1]!AgePb76(K106) -> 4965.323866 | O106: 1975/12
A107: 30 | B107: 8 | C107: 2006 | D107: 0610-261 | E107: 2006-10-26 | G107: D | H107: 18.9031 | I107: 15.5949 | J107: 39.0059 | K107: 0.824991668 | L107: =[1]!AgePb76(K107) -> 4965.505715 | O107: 1976/01
A108: 30 | B108: 8 | C108: 2006 | D108: 0610-311 | E108: 2006-10-31 | G108: D | H108: 18.9036 | I108: 15.5933 | J108: 39.0002 | K108: 0.8248852071 | L108: =[1]!AgePb76(K108) -> 4965.322269 | O108: 1976/01
A109: 30 | B109: 8 | C109: 2006 | D109: 0611-142 | E109: 2006-11-14 | G109: D | H109: 18.8998 | I109: 15.5894 | J109: 38.9891 | K109: 0.8248447074 | L109: =[1]!AgePb76(K109) -> 4965.252477 | O109: 1976/01
A110: 30 | B110: 8 | C110: 2006 | D110: 0612-111 | E110: 2006-12-11 | G110: D | H110: 18.9027 | I110: 15.5932 | J110: 38.9996 | K110: 0.8249191914 | L110: =[1]!AgePb76(K110) -> 4965.380831 | O110: 1976/03
A111: 30 | B111: 8 | C111: 2006 | D111: 0612-191 | E111: 2006-12-19 | G111: D | H111: 18.9 | I111: 15.5895 | J111: 38.9909 | K111: 0.8248412698 | L111: =[1]!AgePb76(K111) -> 4965.246553 | O111: 1976/11
A112: 30 | B112: 8 | C112: 2006 | D112: 0612-281 | E112: 2006-12-28 | G112: D | H112: 18.9016 | I112: 15.5915 | J112: 38.9931 | K112: 0.8248772591 | L112: =[1]!AgePb76(K112) -> 4965.308573 | O112: 1977/03
A113: 18 | B113: 2 | C113: 2007 | D113: 0702-18-2 | E113: 2007-02-18 | G113: D | H113: 18.9054 | I113: 15.595 | J113: 39.0031 | K113: 0.8248965904 | L113: =[1]!AgePb76(K113) -> 4965.341886
A114: 18 | B114: 2 | C114: 2007 | D114: 0702-18-3 | E114: 2007-02-18 | G114: 40 | H114: 18.9042 | I114: 15.5935 | J114: 39.0008 | K114: 0.8248696057 | L114: =[1]!AgePb76(K114) -> 4965.295384
A115: 30 | B115: 3 | C115: 2007 | D115: 070331-1 | E115: 2007-03-30 | G115: 43 | H115: 18.9038 | I115: 15.593 | J115: 38.9981 | K115: 0.82486061 | L115: =[1]!AgePb76(K115) -> 4965.279882
A116: 2 | B116: 4 | C116: 2007 | D116: 070402-1 | E116: 2007-04-02 | G116: 44 | H116: 18.9046 | I116: 15.5935 | J116: 39.0003 | K116: 0.8248521524 | L116: =[1]!AgePb76(K116) -> 4965.265307
A117: 2 | B117: 4 | C117: 2007 | D117: 070403- | E117: 2007-04-03 | G117: 44 | H117: 18.9025 | I117: 15.5917 | J117: 38.9946 | K117: 0.824848565 | L117: =[1]!AgePb76(K117) -> 4965.259125
A118: 2 | B118: 4 | C118: 2007 | D118: 070404- | E118: 2007-04-04 | G118: 44 | H118: 18.903 | I118: 15.5944 | J118: 38.9998 | K118: 0.8249695815 | L118: =[1]!AgePb76(K118) -> 4965.467659
A119: 2 | B119: 4 | C119: 2007 | D119: 070405-1 | E119: 2007-04-05 | G119: 44 | H119: 18.8356 | I119: 15.5843 | J119: 38.9149 | K119: 0.8273853766 | L119: =[1]!AgePb76(K119) -> 4969.623741
A120: 2 | B120: 4 | C120: 2007 | D120: 070405-2 | E120: 2007-04-05 | G120: 44 | H120: 18.9087 | I120: 15.5922 | J120: 38.9936 | K120: 0.8246045471 | L120: =[1]!AgePb76(K120) -> 4964.838537
A121: 2 | B121: 4 | C121: 2007 | D121: 070406- | E121: 2007-04-06 | G121: 44 | H121: 18.9079 | I121: 15.5934 | J121: 38.9947 | K121: 0.824702902 | L121: =[1]!AgePb76(K121) -> 4965.008077
A122: 2 | B122: 4 | C122: 2007 | D122: 070406-1 | E122: 2007-04-06 | G122: 44 | H122: 18.911 | I122: 15.593 | J122: 38.9977 | K122: 0.8245465602 | L122: =[1]!AgePb76(K122) -> 4964.738572
A123: 2 | B123: 4 | C123: 2007 | D123: 070407-1 | E123: 2007-04-07 | G123: 44 | H123: 18.9064 | I123: 15.5928 | J123: 38.9969 | K123: 0.8247365971 | L123: =[1]!AgePb76(K123) -> 4965.066154
A124: 2 | B124: 4 | C124: 2007 | D124: 070408-1 | E124: 2007-04-08 | G124: 44 | H124: 18.9074 | I124: 15.5932 | J124: 39.0005 | K124: 0.8247141331 | L124: =[1]!AgePb76(K124) -> 4965.027435
A125: 2 | B125: 4 | C125: 2007 | D125: 070417-1 | E125: 2007-04-17 | G125: 44 | H125: 18.909 | I125: 15.5953 | J125: 39.0074 | K125: 0.8247554075 | L125: =[1]!AgePb76(K125) -> 4965.098575
A126: 2 | B126: 4 | C126: 2007 | D126: 070420-2 | E126: 2007-04-20 | G126: 44 | H126: 18.9017 | I126: 15.5918 | J126: 38.9898 | K126: 0.8248887666 | L126: =[1]!AgePb76(K126) -> 4965.328403
A127: 2 | B127: 4 | C127: 2007 | D127: 070420-2 | H127: 18.903 | I127: 15.5899 | J127: 38.9871 | K127: 0.8247315241 | L127: =[1]!AgePb76(K127) -> 4965.05741
A128: 2 | B128: 4 | C128: 2007 | D128: 070425-1 | E128: 2007-04-25 | G128: 44 | H128: 18.9059 | I128: 15.5922 | J128: 38.9944 | K128: 0.8247266726 | L128: =[1]!AgePb76(K128) -> 4965.049048
A129: 2 | B129: 4 | C129: 2007 | D129: 070425-2 | E129: 2007-04-25 | G129: 44 | H129: 18.9069 | I129: 15.5934 | J129: 38.9997 | K129: 0.8247465211 | L129: =[1]!AgePb76(K129) -> 4965.083259
A130: 2 | B130: 4 | C130: 2007 | D130: 070425-2 | H130: 18.9067 | I130: 15.5923 | J130: 38.9955 | K130: 0.8246970651 | L130: =[1]!AgePb76(K130) -> 4964.998016
A131: 2 | B131: 4 | C131: 2007 | D131: 070428-1 | E131: 2007-04-27 | G131: 44 | H131: 18.9076 | I131: 15.5946 | J131: 39.0028 | K131: 0.8247794538 | L131: =[1]!AgePb76(K131) -> 4965.140018
A132: 2 | B132: 4 | C132: 2007 | D132: 070429-1 | E132: 2007-04-29 | G132: 44 | H132: 18.9083 | I132: 15.5936 | J132: 38.9994 | K132: =(I132/H132) -> 0.824696033 | L132: =[1]!AgePb76(K132) -> 4964.996237
A133: 2 | B133: 4 | C133: 2007 | D133: 070429-1 | H133: 18.9083 | I133: 15.5934 | J133: 38.9999 | K133: 0.8246854556 | L133: =[1]!AgePb76(K133) -> 4964.978005
K134: Average | L134: =AVERAGE(L3:L133) -> 4964.966909
K135: Maximum | L135: =MAX(L3:L134) -> 4980.831607
K136: Minimum | L136: =MIN(L3:L135) -> 4962.940977
A137: Eruption Year | B137: Age (Ma) | C137: Age | D137: Age Ratio (106) | F137: Eruption Year | G137: Age (Ma) | H137: Age | I137: Age Ratio (106) | K137: Difference | L137: =L135-L136 -> 17.89063005
A138: 1927 | B138: 4965.606483 | C138: =2009-A138 -> 82 | D138: =B138/C138 -> 60.55617663 | F138: 1927 | G138: 4965.606483 | H138: =2009-F138 -> 82 | I138: =G138/H138 -> 60.55617663 | K138: Accuracy | L138: =1-(L137/L134) -> 0.9963966265
A139: 1927 | B139: 4965.275504 | C139: =2009-A139 -> 82 | D139: =B139/C139 -> 60.55214029 | F139: 1931 | G139: 4965.326304 | H139: 78 | I139: 63.65802954
A140: 1931 | B140: 4965.326304 | C140: 78 | D140: 63.65802954 | F140: 1938 | G140: 4964.71394 | H140: 71 | I140: 69.92554845
A141: 1931 | B141: 4965.497955 | C141: 78 | D141: 63.6602302 | F141: 1943 | G141: 4964.496098 | H141: 66 | I141: 75.21963784
A142: 1938 | B142: 4964.71394 | C142: 71 | D142: 69.92554845 | F142: 1945 | G142: 4964.809423 | H142: 64 | I142: 77.57514723
A143: 1943 | B143: 4964.496098 | C143: 66 | D143: 75.21963784 | F143: 1948 | G143: 4965.795496 | H143: 61 | I143: 81.40648354
A144: 1945 | B144: 4964.809423 | C144: 64 | D144: 77.57514723 | F144: 1953 | G144: 4965.580707 | H144: 56 | I144: 88.67108405
A145: 1948 | B145: 4965.795496 | C145: 61 | D145: 81.40648354 | F145: 1961 | G145: 4965.147069 | H145: 48 | I145: 103.4405639
A146: 1953 | B146: 4965.580707 | C146: 56 | D146: 88.67108405 | F146: 1977 | G146: 4963.352261 | H146: 32 | I146: 155.1047582
A147: 1961 | B147: 4965.147069 | C147: 48 | D147: 103.4405639 | F147: 1957 | G147: 4965.440534 | H147: 52 | I147: 95.48924104
A148: 1977 | B148: 4963.352261 | C148: 32 | D148: 155.1047582 | F148: 1966 | G148: 4964.456517 | H148: 43 | I148: 115.4524771
A149: 1977 | B149: 4963.684205 | C149: 32 | D149: 155.1151314 | F149: 1972 | G149: 4964.597068 | H149: 37 | I149: 134.1782991
A150: 1977 | B150: 4964.018449 | C150: 32 | D150: 155.1255765 | F150: 1973 | G150: 4964.996056 | H150: 36 | I150: 137.9165571
A151: 1957 | B151: 4965.440534 | C151: 52 | D151: 95.48924104 | F151: 1975 | G151: 4965.252794 | H151: 34 | I151: 146.0368469
A152: 1966 | B152: 4964.456517 | C152: 43 | D152: 115.4524771 | F152: 1976 | G152: 4964.394057 | H152: 33 | I152: 150.4361835
A153: 1972 | B153: 4964.597068 | C153: 37 | D153: 134.1782991 | F153: 1979 | G153: 4963.58286 | H153: 30 | I153: 165.452762
A154: 1972 | B154: 4965.037595 | C154: 37 | D154: 134.1902053 | F154: 1981 | G154: 4963.886724 | H154: 28 | I154: 177.2816687
A155: 1972 | B155: 4965.175349 | C155: 37 | D155: 134.1939283 | F155: 1983 | G155: 4963.385471 | H155: 26 | I155: 190.8994412
A156: 1973 | B156: 4964.996056 | C156: 36 | D156: 137.9165571 | F156: 1984 | G156: 4963.464283 | H156: 25 | I156: 198.5385713
A157: 1975 | B157: 4965.252794 | C157: 34 | D157: 146.0368469 | F157: 1985 | G157: 4963.098577 | H157: 24 | I157: 206.795774
A158: 1975 | B158: 4965.00085 | C158: 34 | D158: 146.0294368 | F158: 1986 | G158: 4963.790942 | H158: 23 | I158: 215.8169975
A159: 1975 | B159: 4964.972853 | C159: 34 | D159: 146.0286133 | F159: 1987 | G159: 4965.040033 | H159: 22 | I159: 225.6836379
A160: 1975 | B160: 4965.021149 | C160: 34 | D160: 146.0300338 | F160: 1988 | G160: 4965.924136 | H160: 21 | I160: 236.4725779
A161: 1975 | B161: 4964.928403 | C161: 34 | D161: 146.027306 | F161: 1990 | G161: 4964.687883 | H161: 19 | I161: 261.2993623
A162: 1975 | B162: 4964.983745 | C162: 34 | D162: 146.0289337 | F162: 1991 | G162: 4965.577038 | H162: 18 | I162: 275.865391
A163: 1975 | B163: 4964.79007 | C163: 34 | D163: 146.0232374 | F163: 1992 | G163: 4965.682561 | H163: 17 | I163: 292.0989741
A164: 1975 | B164: 4964.784787 | C164: 34 | D164: 146.023082 | F164: 2001 | G164: 4966.672387 | H164: 8 | I164: 620.8340484
A165: 1976 | B165: 4964.394057 | C165: 33 | D165: 150.4361835 | F165: 2006 | G165: 4965.327982 | H165: 3 | I165: 1655.109327
A166: 1977 | B166: 4964.198838 | C166: 32 | D166: 155.1312137 | F166: 2007 | G166: 4965.341886 | H166: 2 | I166: 2482.670943
A167: 1977 | B167: 4963.421404 | C167: 32 | D167: 155.1069189
A168: 1977 | B168: 4968.102162 | C168: 32 | D168: 155.2531926
A169: 1977 | B169: 4963.734586 | C169: 32 | D169: 155.1167058
A170: 1977 | B170: 4964.649523 | C170: 32 | D170: 155.1452976
A171: 1977 | B171: 4964.656404 | C171: 32 | D171: 155.1455126
A172: 1977 | B172: 4980.831607 | C172: 32 | D172: 155.6509877
A173: 1977 | B173: 4968.603504 | C173: 32 | D173: 155.2688595
A174: 1977 | B174: 4966.415261 | C174: 32 | D174: 155.2004769
A175: 1977 | B175: 4964.212151 | C175: 32 | D175: 155.1316297
A176: 1977 | B176: 4964.793585 | C176: 32 | D176: 155.1497995
A177: 1977 | B177: 4963.553291 | C177: 32 | D177: 155.1110404
A178: 1979 | B178: 4963.58286 | C178: 30 | D178: 165.452762
A179: 1979 | B179: 4964.455895 | C179: 30 | D179: 165.4818632
A180: 1981 | B180: 4963.886724 | C180: 28 | D180: 177.2816687
A181: 1981 | B181: 4963.435858 | C181: 28 | D181: 177.2655664
A182: 1981 | B182: 4963.562405 | C182: 28 | D182: 177.2700859
A183: 1983 | B183: 4963.385471 | C183: 26 | D183: 190.8994412
A184: 1983 | B184: 4963.184932 | C184: 26 | D184: 190.8917282
A185: 1983 | B185: 4963.172039 | C185: 26 | D185: 190.8912323
A186: 1983 | B186: 4963.150066 | C186: 26 | D186: 190.8903872
A187: 1983 | B187: 4963.201515 | C187: 26 | D187: 190.8923659
A188: 1984 | B188: 4963.464283 | C188: 25 | D188: 198.5385713
A189: 1984 | B189: 4963.09484 | C189: 25 | D189: 198.5237936
A190: 1984 | B190: 4963.147353 | C190: 25 | D190: 198.5258941
A191: 1985 | B191: 4963.098577 | C191: 24 | D191: 206.795774
A192: 1985 | B192: 4962.957595 | C192: 24 | D192: 206.7898998
A193: 1985 | B193: 4962.940977 | C193: 24 | D193: 206.7892074
A194: 1985 | B194: 4963.002623 | C194: 24 | D194: 206.791776
A195: 1985 | B195: 4963.210648 | C195: 24 | D195: 206.8004437
A196: 1985 | B196: 4963.362949 | C196: 24 | D196: 206.8067895
A197: 1985 | B197: 4963.03694 | C197: 24 | D197: 206.7932058
A198: 1985 | B198: 4963.365603 | C198: 24 | D198: 206.8069001
A199: 1985 | B199: 4963.140952 | C199: 24 | D199: 206.7975397
A200: 1985 | B200: 4963.217625 | C200: 24 | D200: 206.8007344
... 68 more rows

Sheet H47
A1: Table 2 | N1: Age (Ma)
A2: Sample | B2: Rock | C2: Phenocrysts | D2: Phenocrysts | E2: Phenocrysts | F2: N18Ool | G2: N18Ocpx | H2: N18O | I2: 87Sr/86Sr | J2: 143Nd/144Nd | K2: 206Pb/204Pb | L2: 207Pb/204Pb | M2: 208Pb/204Pb | N2: 207Pb/206Pb
A3: KLU-01 | B3: HMB | C3: plag, | D3: cpx, | E3: ol | F3: 6.9 | G3: 6.51 | H3: 7.27 | I3: 0.70356 | J3: 0.51309 | K3: 18.31 | L3: 15.5 | M3: 37.97 | N3: =[1]!AgePb76(L3/K3) -> 5002.113878
A4: KLU-03 | B4: HMB | C4: ol, | D4: cpx | F4: 6.4 | G4: 6.68 | H4: 6.8 | I4: 0.70357 | J4: 0.5131 | K4: 18.28 | L4: 15.5 | M4: 37.97 | N4: =[1]!AgePb76(L4/K4) -> 5004.440909
A5: KLU-04 | B5: HMB | C5: plag, | D5: cpx, | E5: ol | F5: 5.97 | G5: 6.21 | H5: 6.32 | I5: 0.70353 | J5: 0.51307 | K5: 18.28 | L5: 15.5 | M5: 37.97 | N5: =[1]!AgePb76(L5/K5) -> 5004.440909
A6: KLU-07 | B6: HMB | C6: ol, | D6: cpx | F6: 6.28 | G6: 7.15 | H6: 6.64 | I6: 0.70355 | J6: 0.51307 | K6: 18.3 | L6: 15.5 | M6: 37.97 | N6: =[1]!AgePb76(L6/K6) -> 5002.889157
A7: KLU-08 | B7: HMB | C7: plag, | D7: cpx, | E7: ol | F7: 6 | G7: 5.73 | H7: 6.41 | I7: 0.70352 | J7: 0.51308 | K7: 18.3 | L7: 15.52 | M7: 38.01 | N7: =[1]!AgePb76(L7/K7) -> 5004.719032
A8: KLU-10 | B8: HMB | C8: plag, | D8: cpx, | E8: ol | F8: 5.85 | G8: 6.57 | H8: 6.22 | I8: 0.70352 | J8: 0.51311 | K8: 18.29 | L8: 15.51 | M8: 38 | N8: =[1]!AgePb76(L8/K8) -> 5004.580054
A9: KLU-11 | B9: HMB | C9: plag, | D9: ol, | E9: cpx | F9: 5.84 | G9: 6.28 | H9: 6.23 | I9: 0.70353 | J9: 0.5131 | K9: 18.29 | L9: 15.5 | M9: 37.97 | N9: =[1]!AgePb76(L9/K9) -> 5003.664834
A10: KLU-15 | B10: HMB | C10: ol, | D10: cpx | F10: 6.95 | G10: 7.26 | H10: 7.34 | I10: 0.70355 | J10: 0.51312 | K10: 18.3 | L10: 15.49 | M10: 37.94 | N10: =[1]!AgePb76(L10/K10) -> 5001.973279
A11: KLU-12 | B11: HAB | C11: plag | D11: (ol, | E11: cpx) | F11: 6.89 | G11: 7.66 | H11: 7.29 | I11: 0.70366 | J11: 0.51309 | K11: 18.3 | L11: 15.51 | M11: 38 | N11: =[1]!AgePb76(L11/K11) -> 5003.804408
A14: Age (Ma) | B14: Eruption | C14: Historic Age | D14: Age Ratio | E14: Year
A15: 207Pb/206Pb | B15: Year | C15: Years | D15: 106 | E15: Dated
A16: 5002.113878 | B16: 1932 | C16: =E16-B16 -> 68 | D16: =A16/C16 -> 73.56049821 | E16: 2000
A17: 5004.440909 | B17: 1932 | C17: =E17-B17 -> 68 | D17: =A17/C17 -> 73.59471924 | E17: 2000
A18: 5004.440909 | B18: 1932 | C18: 68 | D18: 73.59471924 | E18: 2000
A19: 5002.889157 | B19: 1932 | C19: 68 | D19: 73.57189937 | E19: 2000
A20: 5004.719032 | B20: 1932 | C20: 68 | D20: 73.5988093 | E20: 2000
A21: 5004.580054 | B21: 1932 | C21: 68 | D21: 73.59676549 | E21: 2000
A22: 5003.664834 | B22: 1932 | C22: 68 | D22: 73.58330638 | E22: 2000
A23: 5001.973279 | B23: 1932 | C23: 68 | D23: 73.55843058 | E23: 2000
A24: 5003.804408 | B24: 1953 | C24: 47 | D24: 106.4639236 | E24: 2000
A25: =AVERAGE(A16:A24) -> 5003.625162 | F25: Average
A26: =MAX(A16:A25) -> 5004.719032 | F26: Maximum
A27: =MIN(A16:A26) -> 5001.973279 | F27: Minimum
A28: =A26-A27 -> 2.745752948 | F28: Difference
A29: =1-(A28/A25) -> 0.9994512473 | F29: Accuracy

Sheet H48
A1: Table 2c.
A2: Sample | B2: 1 | C2: 2 | D2: 3 | E2: 4 | F2: 5 | G2: 6
A3: 206Pb/204Pb | B3: 19.1306 | C3: 19.1043 | D3: 19.1396 | E3: 19.1302 | F3: 19.1177 | G3: 19.1188
A4: 207Pb/204Pb | B4: 15.525 | C4: 15.5182 | D4: 15.5431 | E4: 15.5322 | F4: 15.51 | G4: 15.5389
A5: 207Pb/206Pb | B5: =(B4/B3) -> 0.8115270823 | C5: =(C4/C3) -> 0.812288333 | D5: 0.8120911618 | E5: 0.811920419 | F5: 0.811290061 | G5: 0.8127549846
A6: Age (Ma) | B6: =[1]!AgePb76(B5) -> 4942.102577 | C6: =[1]!AgePb76(C5) -> 4943.436704 | D6: =[1]!AgePb76(D5) -> 4943.09128 | E6: =[1]!AgePb76(E5) -> 4942.792084 | F6: =[1]!AgePb76(F5) -> 4941.686915 | G6: =[1]!AgePb76(G5) -> 4944.253875
A9: Pb Age (Ma) | B9: Historic Age | C9: Age Ratio 106
A10: 4942 | B10: 2 | C10: =A10/B10 -> 2471
A11: 4943 | B11: 2 | C11: =A11/B11 -> 2471.5
A12: 4943 | B12: 2 | C12: 2471.5
A13: 4943 | B13: 2 | C13: 2471.5
A14: 4942 | B14: 2 | C14: 2471
A15: 4944 | B15: 2 | C15: 2472

Sheet H49
A1: Table 1. | E1: Table 3. | K1: 207Pb/206Pb
A2: 3550 yr B.P. to A.D. 79: PROTOHISTORIC activity | E2: Sample | G2: 206Pb/204Pb | H2: 207Pb/204Pb | I2: 208Pb/204Pb | J2: 207Pb/206Pb | K2: Age (Ma) | L2: Eruption Date | N2: 472 AD to 1139 AD | O2: 79 AD to 472 AD | P2: 1550 BC to 79 AD
A3: Sample | B3: Lithotype Locality Eruption | E3: R-1(1) | F3: res | G3: 19.034 | H3: 15.679 | I3: 39.141 | J3: =(H3/G3) -> 0.8237364716 | K3: =[1]!AgePb76(J3) -> 4963.341253 | L3: 472 AD to 1139 AD | N3: 4963.341253 | O3: 4960.043413 | P3: 4966.985504
E4: R-1(1) | F4: L1 | G4: 19.053 | H4: 15.709 | I4: 39.225 | J4: =(H4/G4) -> 0.8244895817 | K4: =[1]!AgePb76(J4) -> 4964.640337 | L4: 472 AD to 1139 AD | N4: 4964.640337 | O4: 4959.329606 | P4: 4965.051539
A5: S-11(1) | B5: Pumice S.Pietro a Terzigno (300m a.s.l.) | C5: I | E5: R-1(1) | F5: L2 | G5: 19.024 | H5: 15.672 | I5: 39.111 | J5: 0.8238015139 | K5: =[1]!AgePb76(J5) -> 4963.453498 | L5: 472 AD to 1139 AD | N5: 4963.453498 | O5: 4959.946288 | P5: 4965.90382
A6: S-12(1) | B6: Pumice S.Pietro a Terzigno (300m a.s.l.) | C6: II | E6: R-3(1)A | F6: res | G6: 18.977 | H6: 15.647 | I6: 39.005 | J6: 0.8245244243 | K6: =[1]!AgePb76(J6) -> 4964.700409 | L6: 472 AD to 1139 AD | N6: 4964.700409 | O6: 4959.60205 | P6: 4965.604079
A7: S-13(1)a | B7: Pumice S.Pietro a Terzigno (300m a.s.l.) | C7: III Unit A | E7: R-3(1)A | F7: L1 | G7: 18.973 | H7: 15.641 | I7: 38.994 | J7: 0.8243820165 | K7: =[1]!AgePb76(J7) -> 4964.454869 | L7: 472 AD to 1139 AD | N7: 4964.454869 | O7: 4959.15113 | P7: 4965.342909
A8: S-13(1)b | B8: Pumice/scoria S.Pietro a Terzigno (300m a.s.l.) | C8: III Unit A | E8: R-3(1)A | F8: L2 | G8: 18.965 | H8: 15.63 | I8: 38.96 | J8: 0.8241497495 | K8: =[1]!AgePb76(J8) -> 4964.054297 | L8: 472 AD to 1139 AD | N8: 4964.054297 | O8: 4959.053663 | P8: 4965.354223
A9: S-14(1) | B9: Pumice/scoria S.Pietro a Terzigno (300m a.s.l.) | C9: III Unit B | E9: R-3(1)B | F9: res | G9: 19.014 | H9: 15.67 | I9: 39.106 | J9: 0.8241295887 | K9: =[1]!AgePb76(J9) -> 4964.019522 | L9: 472 AD to 1139 AD | N9: 4964.019522 | O9: 4959.913898 | P9: 4965.99733
A10: S-15(1)b | B10: Pumice S.Pietro a Terzigno (300m a.s.l.) | C10: III Unit C | E10: R-3(1)B | F10: L1 | G10: 18.976 | H10: 15.632 | I10: 38.987 | J10: 0.823777403 | K10: =[1]!AgePb76(J10) -> 4963.411891 | L10: 472 AD to 1139 AD | N10: 4963.411891 | O10: 4959.326373 | P10: 4966.154542
A11: S-16(1) | B11: Pumice Pozzelle Boscoreale III Unit D | E11: R-3(1)B | F11: L2 | G11: 19 | H11: 15.656 | I11: 39.07 | J11: 0.824 | K11: =[1]!AgePb76(J11) -> 4963.795973 | L11: 472 AD to 1139 AD | N11: 4963.795973 | O11: 4960.253617 | P11: 4966.340701
A12: S17(1)a | B12: Pumice Lag. Zabatta, S.Gius. Ves III Unit E | E12: R-3(1)D | F12: res | G12: 19.041 | H12: 15.687 | I12: 39.181 | J12: 0.8238537892 | K12: =[1]!AgePb76(J12) -> 4963.543704 | L12: 472 AD to 1139 AD | N12: 4963.543704 | O12: 4961.284945 | P12: 4966.14301
A13: S17(1)b | B13: Pumice Lag. Zabatta, S.Gius. Ves III Unit E | E13: R-3(1)D | F13: L1 | G13: 19.032 | H13: 15.675 | I13: 39.142 | J13: 0.8236128625 | K13: =[1]!AgePb76(J13) -> 4963.127912 | L13: 472 AD to 1139 AD | N13: 4963.127912 | O13: 4959.768048 | P13: 4966.744243
A14: S-18(1) | B14: Pumice Lag. Zabatta, S.Gius. Ves I | E14: R-3(1)D | F14: L2 | G14: 19.02 | H14: 15.662 | I14: 39.102 | J14: 0.8234490011 | K14: =[1]!AgePb76(J14) -> 4962.845045 | L14: 472 AD to 1139 AD | N14: 4962.845045 | O14: 4960.432818 | P14: 4965.52689
A15: S-11(2) | B15: Pumice/scoria Lag. Fossa dei Leoni S.G. II | E15: R-3(1)E | F15: res | G15: 19 | H15: 15.635 | I15: 39.012 | J15: 0.8228947368 | K15: =[1]!AgePb76(J15) -> 4961.8878 | L15: 472 AD to 1139 AD | N15: 4961.8878 | P15: 4966.269974
A16: S-12(2) | B16: Pumice/scoria Pozzelle Boscoreale III Unit A | E16: R-3(1)E | F16: L1 | G16: 18.99 | H16: 15.621 | I16: 38.964 | J16: 0.8225908373 | K16: =[1]!AgePb76(J16) -> 4961.362658 | L16: 472 AD to 1139 AD | N16: 4961.362658 | P16: 4965.965565
A17: S-13(2) | B17: Pumice/scoria Pozzelle Boscoreale III Unit B | E17: R-3(1)E | F17: L2 | G17: 19.031 | H17: 15.672 | I17: 39.135 | J17: 0.8234985024 | K17: =[1]!AgePb76(J17) -> 4962.930504 | L17: 472 AD to 1139 AD | N17: 4962.930504 | P17: 4965.454091
A18: S-14(2) | B18: Pumice Pozzelle Boscoreale III Unit C | E18: R-4(1)B | F18: res | G18: 19.005 | H18: 15.663 | I18: 39.07 | J18: 0.8241515391 | K18: =[1]!AgePb76(J18) -> 4964.057384 | L18: 472 AD to 1139 AD | N18: 4964.057384 | P18: 4967.111453
A19: S-15(2)a | B19: Pumice Pozzelle Boscoreale II | E19: R-4(1)B | F19: L1 | G19: 18.981 | H19: 15.647 | I19: 39.013 | J19: 0.8243506665 | K19: =[1]!AgePb76(J19) -> 4964.400809 | L19: 472 AD to 1139 AD | N19: 4964.400809 | P19: 4967.210428
A20: S-18bis | B20: Pumice Camaldoli della Torre >A.D.79 | E20: R-4(1)B | F20: L2 | G20: 19.043 | H20: 15.64 | I20: 39.017 | J20: 0.821299165 | K20: =[1]!AgePb76(J20) -> 4959.128328 | L20: 472 AD to 1139 AD | N20: 4959.128328 | P20: 4966.96971
E21: S20(1) | F21: res | G21: 19.049 | H21: 15.655 | I21: 39.089 | J21: 0.8218279175 | K21: =[1]!AgePb76(J21) -> 4960.043413 | L21: 79 AD to 472 AD | M21: =K22/1922 -> 2.580296361 | P21: 4965.622328
A22: A.D. 79 to A.D. 472: ANCIENT HISTORIC activity | E22: S20(1) | F22: L1 | G22: 19.033 | H22: 15.634 | I22: 39.019 | J22: 0.8214154363 | K22: =[1]!AgePb76(J22) -> 4959.329606 | L22: 79 AD to 472 AD | M22: =K23/1922 -> 2.580617215 | P22: 4965.681424
A23: S20(1) | B23: Dark Sand Terzigno (300m a.s.l.) | C23: Unit A | E23: S20(1) | F23: L2 | G23: 19.043 | H23: 15.649 | I23: 39.066 | J23: 0.8217717797 | K23: =[1]!AgePb76(J23) -> 4959.946288 | L23: 79 AD to 472 AD | M23: 2.580438112 | P23: 4965.78821
A24: S20(2) | B24: Scoria Terzigno (300m a.s.l.) | C24: Unit A | E24: S20(3) | F24: res | G24: 19.061 | H24: 15.66 | I24: 39.103 | J24: 0.8215728451 | K24: =[1]!AgePb76(J24) -> 4959.60205 | L24: 79 AD to 472 AD | M24: 2.580203501
A25: S20(3) | B25: Dark Sand Terzigno (300m a.s.l.) | C25: Unit B | E25: S20(3) | F25: L1 | G25: 19.05 | H25: 15.646 | I25: 39.058 | J25: 0.821312336 | K25: =[1]!AgePb76(J25) -> 4959.15113 | L25: 79 AD to 472 AD | M25: 2.580152791
A26: S20(4) | B26: Dark Sand Terzigno (300m a.s.l.) | C26: Unit C | E26: S20(3) | F26: L2 | G26: 19.044 | H26: 15.64 | I26: 39.038 | J26: 0.8212560386 | K26: =[1]!AgePb76(J26) -> 4959.053663 | L26: 79 AD to 472 AD | M26: 2.580600363
A27: S20(5) | B27: Scoria Terzigno (300m a.s.l.) | C27: Unit D | E27: S20(4) | F27: res | G27: 19.041 | H27: 15.647 | I27: 39.05 | J27: 0.8217530592 | K27: =[1]!AgePb76(J27) -> 4959.913898 | L27: 79 AD to 472 AD | M27: 2.580294679
A28: S20(6) | B28: Dark Sand Terzigno (300m a.s.l.) | C28: Unit E | E28: S20(4) | F28: L1 | G28: 19.044 | H28: 15.643 | I28: 39.044 | J28: 0.8214135686 | K28: =[1]!AgePb76(J28) -> 4959.326373 | L28: 79 AD to 472 AD | M28: 2.580777116
A29: S20(7) | B29: Dark Sand Terzigno (300m a.s.l.) | C29: Unit E | E29: S20(4) | F29: L2 | G29: 19.062 | H29: 15.668 | I29: 39.124 | J29: 0.8219494282 | K29: =[1]!AgePb76(J29) -> 4960.253617 | L29: 79 AD to 472 AD | M29: 2.581313707
E30: S20(6) | F30: res | G30: 19.019 | H30: 15.644 | I30: 39.019 | J30: 0.8225458752 | K30: =[1]!AgePb76(J30) -> 4961.284945 | L30: 79 AD to 472 AD | M30: 2.580524479
A31: A.D. 472 to A.D. 1139: MEDIEVAL activity | E31: S20(6) | F31: L1 | G31: 19.032 | H31: 15.638 | I31: 39.019 | J31: 0.8216687684 | K31: =[1]!AgePb76(J31) -> 4959.768048 | L31: 79 AD to 472 AD | M31: 2.580870353
A32: R-1(1) | B32: Dark scoria Terzigno (300m a.s.l.) | C32: I | E32: S20(6) | F32: L2 | G32: 19.045 | H32: 15.656 | I32: 39.074 | J32: 0.8220530323 | K32: =[1]!AgePb76(J32) -> 4960.432818 | L32: 79 AD to 472 AD | M32: 2.584279659
A33: R-2(1) | B33: Dark scoria Terzigno (300m a.s.l.) | C33: II | E33: S11(1) | F33: res | G33: 18.978 | H33: 15.673 | I33: 39.104 | J33: 0.8258509854 | K33: =[1]!AgePb76(J33) -> 4966.985504 | L33: 1550 BC to 79 AD
A34: R-3(1) | B34: A Dark scoria Terzigno (300m a.s.l.) | C34: III | E34: S11(1) | F34: L1 | G34: 18.942 | H34: 15.622 | I34: 38.928 | J34: 0.8247281174 | K34: =[1]!AgePb76(J34) -> 4965.051539 | L34: 1550 BC to 79 AD
A35: R-3(1) | B35: B Dark scoria Terzigno (300m a.s.l.) | C35: III | E35: S11(1) | F35: L2 | G35: 18.967 | H35: 15.652 | I35: 39.029 | J35: 0.8252227553 | K35: =[1]!AgePb76(J35) -> 4965.90382 | L35: 1550 BC to 79 AD
A36: R-3(1) | B36: C Dark scoria Terzigno (300m a.s.l.) | C36: III | E36: S12(1) | F36: res | G36: 18.971 | H36: 15.652 | I36: 39.03 | J36: 0.8250487586 | K36: =[1]!AgePb76(J36) -> 4965.604079 | L36: 1550 BC to 79 AD
A37: R-3(1)D | B37: Dark Sand Terzigno (300m a.s.l.) | C37: III | E37: S12(1) | F37: L1 | G37: 18.966 | H37: 15.645 | I37: 39.005 | J37: 0.8248971844 | K37: =[1]!AgePb76(J37) -> 4965.342909 | L37: 1550 BC to 79 AD
A38: R-3(1)E | B38: Dark scoria Terzigno (300m a.s.l.) | C38: III | E38: S12(1) | F38: L2 | G38: 18.961 | H38: 15.641 | I38: 38.993 | J38: 0.8249037498 | K38: =[1]!AgePb76(J38) -> 4965.354223 | L38: 1550 BC to 79 AD
A39: R-3(1)F | B39: Dark scoria Terzigno (300m a.s.l.) | C39: III | E39: S13(1)b | F39: res | G39: 18.95 | H39: 15.639 | I39: 38.988 | J39: 0.8252770449 | K39: =[1]!AgePb76(J39) -> 4965.99733 | L39: 1550 BC to 79 AD
A40: R-4(1)A | B40: Dark scoria Terzigno (300m a.s.l.) | C40: IV | E40: S13(1)b | F40: L1 | G40: 18.937 | H40: 15.63 | I40: 38.954 | J40: 0.8253683266 | K40: =[1]!AgePb76(J40) -> 4966.154542 | L40: 1550 BC to 79 AD
A41: R-4(1)B | B41: Dark scoria Terzigno (300m a.s.l.) | C41: IV | E41: S13(1)b | F41: L2 | G41: 18.943 | H41: 15.637 | I41: 38.978 | J41: 0.8254764293 | K41: =[1]!AgePb76(J41) -> 4966.340701 | L41: 1550 BC to 79 AD
E42: S14(1) | F42: res | G42: 18.942 | H42: 15.634 | I42: 38.97 | J42: 0.8253616302 | K42: =[1]!AgePb76(J42) -> 4966.14301 | L42: 1550 BC to 79 AD
E43: S14(1) | F43: L1 | G43: 18.957 | H43: 15.653 | I43: 39.03 | J43: 0.8257108192 | K43: =[1]!AgePb76(J43) -> 4966.744243 | L43: 1550 BC to 79 AD
E44: S14(1) | F44: L2 | G44: 18.949 | H44: 15.633 | I44: 38.96 | J44: 0.825003958 | K44: =[1]!AgePb76(J44) -> 4965.52689 | L44: 1550 BC to 79 AD
E45: S15(1)b | F45: res | G45: 18.95 | H45: 15.642 | I45: 38.995 | J45: 0.8254353562 | K45: =[1]!AgePb76(J45) -> 4966.269974 | L45: 1550 BC to 79 AD
E46: S15(1)b | F46: L1 | G46: 18.948 | H46: 15.637 | I46: 38.975 | J46: 0.8252586025 | K46: =[1]!AgePb76(J46) -> 4965.965565 | L46: 1550 BC to 79 AD
E47: S15(1)b | F47: L2 | G47: 18.933 | H47: 15.619 | I47: 38.917 | J47: 0.8249617071 | K47: =[1]!AgePb76(J47) -> 4965.454091 | L47: 1550 BC to 79 AD
E48: S16(1) | F48: res | G48: 18.963 | H48: 15.662 | I48: 39.058 | J48: 0.8259241681 | K48: =[1]!AgePb76(J48) -> 4967.111453 | L48: 1550 BC to 79 AD
E49: S16(1) | F49: L1 | G49: 18.998 | H49: 15.692 | I49: 39.157 | J49: 0.8259816823 | K49: =[1]!AgePb76(J49) -> 4967.210428 | L49: 1550 BC to 79 AD
E50: S16(1) | F50: L2 | G50: 18.977 | H50: 15.672 | I50: 39.089 | J50: 0.8258418085 | K50: =[1]!AgePb76(J50) -> 4966.96971 | L50: 1550 BC to 79 AD
E51: S18(1)a | F51: res | G51: 18.955 | H51: 15.639 | I51: 38.98 | J51: 0.8250593511 | K51: =[1]!AgePb76(J51) -> 4965.622328 | L51: 1550 BC to 79 AD
E52: S18(1)a | F52: L1 | G52: 18.953 | H52: 15.638 | I52: 38.972 | J52: 0.8250936527 | K52: =[1]!AgePb76(J52) -> 4965.681424 | L52: 1550 BC to 79 AD
E53: S18(1)a | F53: L2 | G53: 18.954 | H53: 15.64 | I53: 38.981 | J53: 0.82515564 | K53: =[1]!AgePb76(J53) -> 4965.78821 | L53: 1550 BC to 79 AD
J54: Average | K54: =AVERAGE(K3:K53) -> 4963.617334
J55: Maximum | K55: =MAX(K3:K54) -> 4967.210428
J56: Minimum | K56: =MIN(K3:K55) -> 4959.053663
J57: Difference | K57: =K55-K56 -> 8.156764649
J58: Accuracy | K58: =1-(K57/K54) -> 0.9983566895

Sheet H50
A1: Table 7 | L1: 4981.559808
A2: Sample No. | B2: Material | F2: 206Pb/204Pb | G2: 207Pb/204Pb | H2: 208Pb/204Pb | I2: 207Pb/206Pb | J2: Age (Ma) | L2: 4981.530253
A3: AC-1 | B3: marble, | C3: metadolostone | D3: whole | E3: rock | F3: 19.16 | G3: 15.642 | H3: 38.853 | I3: =(G3/F3) -> 0.816388309 | J3: =[1]!AgePb76(I3) -> 4950.599307 | L3: 4968.935919
A4: AC-2 | B4: marble, | C4: metalimestone | D4: whole | E4: rock | F4: 19.019 | G4: 15.649 | H4: 38.857 | I4: =(G4/F4) -> 0.8228087702 | J4: =[1]!AgePb76(I4) -> 4961.73927 | L4: 4967.40738
A5: SKM-2 | B5: marble, | C5: metalimestone | D5: whole | E5: rock | F5: 19.042 | G5: 15.665 | H5: 38.77 | I5: 0.8226551833 | J5: =[1]!AgePb76(I5) -> 4961.473866 | L5: 4961.73927
A6: SKM-11b | B6: marble, | C6: metalimestone | D6: whole | E6: rock | F6: 18.93 | G6: 15.638 | H6: 38.77 | I6: 0.8260961437 | J6: =[1]!AgePb76(I6) -> 4967.40738 | L6: 4961.621082
A7: SKM-12 | B7: marble, | C7: metalimestone | D7: whole | E7: rock | F7: 19.11 | G7: 15.65 | H7: 38.874 | I7: 0.8189429618 | J7: =[1]!AgePb76(I7) -> 4955.042935 | L7: 4961.473866
A8: SKM-14 | B8: marble, | C8: metalimestone | D8: whole | E8: rock | F8: 18.734 | G8: 15.631 | H8: 38.535 | I8: 0.8343653251 | J8: =[1]!AgePb76(I8) -> 4981.559808 | L8: 4960.1927
A9: S19(3) | B9: marble, | C9: metalimestone | D9: whole | E9: rock | F9: 19.085 | G9: 15.702 | H9: 39.1 | I9: 0.822740372 | J9: =[1]!AgePb76(I9) -> 4961.621082 | L9: 4959.689405
A10: SKM-13 | B10: hornfels | C10: whole | D10: rock | F10: 18.726 | G10: 15.624 | H10: 38.441 | I10: 0.8343479654 | J10: =[1]!AgePb76(I10) -> 4981.530253 | L10: 4959.543661
A11: SKM-3 | B11: skarn | C11: wollastonite | F11: 19.047 | G11: 15.655 | H11: 38.915 | I11: 0.8219142122 | J11: =[1]!AgePb76(I11) -> 4960.1927 | L11: 4959.192356
A12: SKM-10 | B12: skarn | C12: vesuvianite | F12: 19.063 | G12: 15.661 | H12: 38.925 | I12: 0.8215391072 | J12: =[1]!AgePb76(I12) -> 4959.543661 | L12: 4955.042935
A13: SKM-11c | B13: skarn | C13: vesuvianite | F13: 19.202 | G13: 15.659 | H13: 39.069 | I13: 0.81548797 | J13: =[1]!AgePb76(I13) -> 4949.02971 | L13: 4950.599307
A14: SKM-14 | B14: skarn | C14: anorthite | I14: . | J14: . | L14: 4949.02971
A15: S21(5) | B15: skarn | C15: whole | D15: rock | F15: 19.072 | G15: 15.67 | H15: 38.998 | I15: 0.8216233221 | J15: =[1]!AgePb76(I15) -> 4959.689405 | K15: Average | L15: =AVERAGE(L1:L14) -> 4962.682689
A16: N403a | B16: pyroxenite | C16: whole | D16: rock | F16: 18.929 | G16: 15.654 | H16: 38.842 | I16: 0.8269850494 | J16: =[1]!AgePb76(I16) -> 4968.935919 | K16: Maximum | L16: =MAX(L1:L15) -> 4981.559808
A17: HB86-472-B | B17: pyroxenite | C17: whole | D17: rock | F17: 18.935 | G17: 15.552 | H17: 38.661 | I17: 0.82133615 | J17: =[1]!AgePb76(I17) -> 4959.192356 | K17: Minimum | L17: =MIN(L1:L16) -> 4949.02971
K18: Difference | L18: =L16-L17 -> 32.53009756
K19: Accuracy | L19: =1-(L18/L15) -> 0.9934450579
A20: Pb Age (Ma) | B20: Pb Age (Ma)
A21: 4981.559808 | B21: 4960.1927
A22: 4981.530253 | B22: 4959.689405
A23: 4968.935919 | B23: 4959.543661
A24: 4967.40738 | B24: 4959.192356
A25: 4961.73927 | B25: 4955.042935
A26: 4961.621082 | B26: 4950.599307
A27: 4961.473866 | B27: 4949.02971
